Workbook

Sheet Examples (hidden)
A1: IPART COLOUR CODES FOR MODELS AND INFORMATION REQUESTS
B2: NB ALWAYS DESCRIBE THE COLOUR CODE USED IN YOUR MODEL
B3: Note: If you use the formats for the inputs provided in this template, input cells will always be unprotected even when you protect the worksheet
H4: use this column cell to "paint" input cells for numbers (NOT for percentages)
I5: use this column cell to "paint" input cells for percentages (NOT numbers)
B6: Models
B7: Option 1 (best for models that will be used repeatedly) | G7: =G22 -> numbers | H7: =H22 -> % | I7: Option 2 (best for smaller models for once-off and/or own use)
B8: Inputs | G8: 4442 | H8: 0.08 | I8: Inputs | J8: 67 | K8: 0.03
B9: Links from other files (green) | I9: =B9 -> Links from other files (green)
B10: Error check (check =0) | I10: Error check (check =0)
B11: Error warnings, messages and unusual calculation assumptions | I11: =B11 -> Error warnings, messages and unusual calculation assumptions
B12: Indicate change in formula across row with a double red line | I12: ..change in formula across row with a double red line
B13: Key outputs | I13: =B13 -> Key outputs
B14: Note: can combine options, eg:
B15: Example 1 | D15: Inputs for model runs | F15: AND
C16: Hard-coded protected inputs that can't be changed (eg credit ratio and ratings tables)
B18: Example 2 | D18: Inputs can be links to other files in some runs
D19: Attention can be drawn to different/unusual inputs
H20: use this column cell to "paint" input cells for numbers (NOT for percentages)
B21: Information Requests | I21: use this column cell to "paint" input cells for percentages (NOT numbers)
G22: numbers | H22: %
B23: compulsory inputs (numbers and text) | G23: 234 | H23: 0.24
B24: Forecast Inputs | G24: 667 | H24: 0.05
B25: Error warnings and messages
B26: Error check (check =0)
B28: QA notes - annotation or documenation by QA staff
A31: User Instructions - IPART CHARTS
B33: Dark blue | C33: Lime | D33: Red | E33: Blue | F33: Light gold | G33: Green | H33: Maroon | I33: Light blue | L33: Blue solid | M33: Lime solid | N33: Red solid | O33: Blue dashes | P33: Lime dashes | Q33: Red dashes | S33: X value | T33: 1st Y value | U33: 2nd Y value | X33: Black | Y33: Red 100% | Z33: Red 70% | AA33: Grey 40%
A34: 1975-76 | B34: 36.19 | C34: 36.88 | D34: 21.56 | E34: 5.36 | F34: 3.01 | G34: 10 | H34: 3.01 | I34: 10 | K34: 1975-76 | L34: 33.19 | M34: 36.88 | N34: 21.56 | O34: 5.36 | P34: 3.01 | Q34: 10 | S34: 1.8 | T34: 10 | U34: 17 | W34: 1975-76 | X34: 33.19 | Y34: 36.88 | Z34: 21.56 | AA34: 5.36
A35: 1983-84 | B35: 39.39 | C35: 32.02 | D35: 21.6 | E35: 7.01 | F35: 3.36 | G35: 12 | H35: 3.36 | I35: 12 | K35: 1983-84 | L35: 39.39 | M35: 32.02 | N35: 21.6 | O35: 7.01 | P35: 3.36 | Q35: 12 | S35: 2.3 | T35: 12 | U35: 9 | W35: 1983-84 | X35: 39.39 | Y35: 32.02 | Z35: 21.6 | AA35: 7.01
A36: 1988-89 | B36: 42.78 | C36: 29.91 | D36: 18.35 | E36: 6.33 | F36: 2.63 | G36: 14 | H36: 2.63 | I36: 14 | K36: 1988-89 | L36: 42.78 | M36: 29.91 | N36: 18.35 | O36: 6.33 | P36: 2.63 | Q36: 14 | S36: 3.7 | T36: 16 | U36: 14 | W36: 1988-89 | X36: 42.78 | Y36: 29.91 | Z36: 18.35 | AA36: 6.33
A37: 1993-94 | B37: 42.13 | C37: 26.53 | D37: 21.6 | E37: 7.01 | F37: 2.72 | G37: 16 | H37: 2.72 | I37: 16 | K37: 1993-94 | L37: 42.13 | M37: 26.53 | N37: 21.6 | O37: 7.01 | P37: 2.72 | Q37: 16 | S37: 4.1 | T37: 8 | U37: 23 | W37: 1993-94 | X37: 42.13 | Y37: 26.53 | Z37: 21.6 | AA37: 7.01
A38: 1996-97 | B38: 41.69 | C38: 24.76 | D38: 23.98 | E38: 7 | F38: 2.57 | G38: 18 | H38: 2.57 | I38: 18 | K38: 1996-97 | L38: 41.69 | M38: 24.76 | N38: 23.98 | O38: 7 | P38: 2.57 | Q38: 18 | S38: 5.5 | T38: 14 | U38: 27 | W38: 1996-97 | X38: 41.69 | Y38: 24.76 | Z38: 23.98 | AA38: 7
A39: 1997-98 | B39: 39.39 | C39: 32.02 | D39: 21.6 | E39: 7.01 | F39: 3.36 | G39: 12 | H39: 3.36 | I39: 12 | K39: 1997-98 | L39: 39.39 | M39: 32.02 | N39: 21.6 | O39: 7.01 | P39: 3.36 | Q39: 12 | W39: 1997-98 | X39: 39.39 | Y39: 32.02 | Z39: 21.6 | AA39: 7.01
A40: 1998-99 | B40: 42.13 | C40: 26.53 | D40: 21.6 | E40: 7.01 | F40: 2.72 | G40: 16 | H40: 2.72 | I40: 16 | K40: 1998-99 | L40: 42.13 | M40: 26.53 | N40: 21.6 | O40: 7.01 | P40: 2.72 | Q40: 16 | W40: 1998-99 | X40: 42.13 | Y40: 26.53 | Z40: 21.6 | AA40: 7.01
A41: 1999-00 | B41: 45 | C41: 22 | D41: 26 | E41: 8 | F41: 2 | G41: 20 | H41: 2 | I41: 20 | K41: 1999-00 | L41: 45 | M41: 22 | N41: 26 | O41: 8 | P41: 2 | Q41: 20 | W41: 1999-00 | X41: 45 | Y41: 22 | Z41: 26 | AA41: 8
A42: – en rule for when needed

Sheet QA Scope & Report (hidden)
B2: Review that the QA is for | E2: Ethanol market monitoring 2022
B3: Name of model | E3: Ethanol market monitoring Oct 2022 - QA version.xlsm
B4: File name(s):
B8: Name of modeller | E8: Regina Choi
B9: Name(s) of QA staff: | E9: Greg McLennan
B10: Planned date of QA: | E10: 2022-09-12
B13: 1. PURPOSE OF MODEL
B15: Underpins all data reported in the market monitoring report
B22: 2. CONTEXT AND SCOPE OF QA
B23: The modeller provides information about the context of the QA and the scope of work.
B25: 2.1 The model/spreadsheet is for (context)
E34: Determination for Ethanol wholesale price
B37: 2.2 The scope of the QA is to check
C39: Logic checks | E39: Input checks
B45: 2.3 Detailed scope of QA
B47: (i) | C47: Other inputs fuel excise Feb 22 onwards calculated correctly | I47: Checked - one issue around method for calculating the excise rate; one around range names; and one around carrying formula over historical ranges or formatting.
B48: (ii) | C48: The model changes made since last QA are ok and no impact to the calculation - see 'Log' tab | I48: Checked
B49: (iii) Log of the changes made since last QA are in the 'log' tab - please check changes made are correct | C49: The value estimated in the 'Main' tab for 1 October 2022 matches your parallel calculation (after the model changes in log made) | I49: Checked
B51: The last QA model to check against the changes made is D21/28849
B60: 3. ASSURANCE THAT THE DELIVERABLE IS READY FOR QA
B61: The Director signs off that the model/spreadsheet is ready for QA. | J61: DO NOT DELETE
J62: Yes
B63: 3.1 Director assurance that the model is ready for QA | J63: No
J64: NA
B65: 3.1.1 Where the QA scope includes a logic check
C66: Select an option
C68: Yes | D68: The model has been structured and colour coded in accordance with IPART’s modelling standards
C69: Yes | D69: Tables, inputs and outputs are clearly labelled, including (but not confined to)
D70: – Units
D71: – Nominal or real
D72: – Including or excluding GST
C73: Yes | D73: The QAer can easily identify the parts of the model that need to be checked
B76: 3.1.2 Where the QA scope includes input checks
C77: No | D77: The model inputs reflect Tribunal decisions or information from the source documents
C78: No | D78: The model uses the same common inputs as other models used for the same review, eg, WACC and inflation
C79: Yes | D79: The source documents (or references) have all been located and will be provided to the QAer/s
C80: Yes | D80: The QAer can easily identify the inputs that need to be checked
C81: Yes | D81: The QAer can easily identify the source for each input that needs to be checked
B84: Director (name, signature, date)
B87: 4 Chief Modeller* – scope approval
B89: The Chief Modeller has approved the scope.
B92: Chief Modeller (name, signature, date)
B94: * Or delegated SEA team modeller.
B97: 5 QAer Report
B98: 5.1 QAer Report on standard QA checks
C99: Select an option
C101: No | D101: Has the correct (eg, most current) version of building block model logic been used?
C102: No | D102: – Has the Regulatory Asset Base (RAB) been rolled forward correctly?
C103: No | D103: – Has a real weighted average cost of capital (WACC) correctly been applied to the RAB?
C104: No | D104: – Are timing assumptions consistent with IPART's Cash Flow assumptions?
C105: No | D105: – Is the treatment of cash and non-cash capital contributions consistent with IPART’s most current policy?
C106: No | D106: – Is the treatment of asset disposals consistent with IPART’s most current policy?
C107: No | D107: – Has the tax allowance been calculated using IPART’s most current methodology?
C108: No | D108: – Have the financial ratios been calculated using IPART’s most current methodology?
C109: No | D109: Are calculations consistent and clearly marked as real or nominal?
C110: No | D110: Are calculations consistent and clearly marked as inclusive or exclusive of GST?
C111: No | D111: Have units been provided for all values and clearly marked, eg, $m, $’000, $ or cents, kL, MWh, GJ, etc...?
C112: No | D112: Have adequate error checks been built into the model?
C113: No | D113: If the model is a support model for a review, does it use the same common inputs as the main model, eg, WACC and inflation?
C114: No | D114: Is the model consistent with good spreadsheet practice and IPART's modelling standards?
C115: No | D115: If no to any of the above, have the relevant issues been recorded in the log and/or reported in the key findings?
B118: 5.2 QAer summary of key findings (not applicable for inputs only check)
B119: <add or delete rows as required>
B127: 5.3 Issues for noting
B128: <add or delete rows as required>
B136: 6 Industry Team – RM8’ing
F137: <add or delete rows as required>
B138: The post-QA deliverable(s) has(have) been RM8’ed as
B142: 7 QA sign off
E144: Name | F144: Signature | G144: Date
B145: QA analyst
B146: Director
B147: Executive Director/GM
B148: <add rows as required>

Sheet Instructions
B1: THE INDEPENDENT PRICING AND REGULATORY TRIBUNAL OF NSW
B3: NAVIGATING THE MODEL AND OBTAINING THE DETERMINED PRICE FOR WHOLESALE ETHANOL
B5: This model calculates the determined price for wholesale ethanol based on an import parity price (IPP) approach.
B6: Before use
B7: This model contains macros and data connections, which must be enabled for the model to function as intended. Enabling the macros and data connections in this model is at user's own risk - see disclaimer below. If macros or data connections are not currently enabled, you will get a security warning when opening this excel model. The macros and data connections in this model can be enabled by pressing the 'Enable Content' button in the security warning.
B9: Disclaimer
B10: Users must take their own precautions to ensure that the process which they employ for accessing the IPP Excel Model does not expose them to the risk of viruses, malicious computer code or other forms of interference which may damage their computer system or the computer system of others. IPART does not accept responsibility for any interference or damage to computer systems which arises in connection with use of the IPP Excel Model.
B12: Contents | K12: Obtaining the determined price for wholesale ethanol
B13: 1. User information
C14: a) Instructions (this page) | K14: All relevant outputs are displayed on the 'MAIN' page.
D15: Explains how the model is structured and how to obtain the determined prices for wholesale ethanol.
C17: b) Methodology | K17: 1. Update the model by refreshing the data
D18: Provides detail around the IPP methodology used to calculate the determined prices for wholesale ethanol. | K18: This requires an internet connection. Press the 'Refresh all data' button on the MAIN page. Please wait while the update is taking place - this could take up to a minute.
B20: 2. Main outputs
C21: a) MAIN | K21: 2. View determined price for a chosen period
D22: Shows the determined prices for wholesale ethanol in any given pricing period, including the components in the underlying IPP calculation. | K22: The user can choose any pricing period to show the determined wholesale price and the value of each underlying IPP component.
B24: 3. Calculations
C25: a) Pricing Period IPPs
D26: For each pricing period, calculates the average of the weekly IPP components within the relevant averaging period.
C28: b) USDA ESALQ weekly IPPs
D29: Calculates weekly IPP components.
C30: c) USDA calcs
D31: Calculates average weekly mill-gate prices for US ethanol, using prices downloaded from the US Department of Agriculture (USDA) website.
C32: d) USDA historical daily prices
D33: Calculates weekly mill-gate prices for US ethanol using historical prices obtained directly from USDA staff. These are only used for weeks where prices could not be obtained from the USDA website.
C35: e) ESALQ calcs
D36: Assigns weekly average mill-gate prices for Brazilian ethanol to the appropriate week under the Australian date system.
C37: f) ExRate calcs
D38: Calculates weekly average exchange rates from USD and BRL to AUD.
B39: 4. Data inputs
C40: a) Other inputs
D41: Key static convesion rates and other inputs.
C42: b) BRL USD ExRates
D43: USD to BRL exchange rates imported from the US Federal Reserve website. | K43: 3. View previous determined prices
C44: c) USDA prices import new | K44: The MAIN page shows the most recent determined prices for wholesale ethanol. It also shows hypothetical wholesale prices for pricing periods prior to 1 January 2017, using same IPP methodology.
D45: Extracts the relevant data from the 'USDA download' sheet as inputs for 'USDA calcs'.
C46: d) USDA download
D47: US weekly ethanol prices manually downloaded from the USDA website for data post July 2022.
C48: e) USDA prices import pre 202207
D49: US weekly ethanol prices imported from the USDA website prior to July 2022.
C50: f) ESALQ prices
D51: Brazilian weekly ethanol prices imported from the University of Sao Paulo School of Agriculture (ESAQL) website.
C52: g) RBA ExRate latest
D53: AUD to USD exchange rates from 1 January 2014 imported from the Reserve Bank of Australia (RBA) website.
C54: h) RBA ExRates pre2018
D55: AUD to USD exchange rates from before 1 January 2018 from the RBA website.
C56: i) Freight to the Port of Houston
D57: US freight costs from mill gate to Port of Houston. Data is manually downloaded and added to the table.

Sheet Methodology
B2: IMPORT PARITY PRICE METHODOLOGY FOR DETERMINING WHOLESALE ETHANOL PRICE
B4: This page sets out the IPP methodology used to calculate the determined price for wholesale ethanol in each quarterly pricing period from 2017 Q1 to 2018 Q4
B6: Step 1: Calculating weekly IPPs for US and Brazilian ethanol
B7: The first step in calculating the price for wholesale ethanol is calculating weekly IPPs for US and Brazilian ethanol for a period of nine months up to one month prior to the commencement of the pricing period. This is illustrated in Figure 1, which shows that for the pricing period commencing at Month 1, the averaging period for weekly IPPs covers Month -9 through Month -1. Weekly IPPs need to be calculated for every week for which the Friday of that week is within the averaging period. The averaging period will include between 37 and 40 weekly IPPs.
B8: Table 1 sets out volume and mass conversion factors required. Tables 2 through 4 describe how the weekly IPPs are calculated for US and Brazilian ethanol. These weekly IPPs include relevant fuel excise and customs duties, but exclude GST.
B9: In calculating the January 2023 wholesale price, we have modified the method for calculating fuel exercise at the date of publication instead of the 9-month historical average. This is because the fuel exercise was temporarily halved from March to September 2022 and the average value would not represent the likely value of excise from the date of the determined price applies.
B11: Figure 1 | C11: Pricing periods and corresponding averaging periods
B22: Table 1 Conversion factors
B23: Parameter | C23: Definition | E23: Unit
B24: Ethanol kg per litre | C24: 1 litre = 0.7893 kg (at 20°C for weekly IPPs until 31 December 2017) | E24: Kg per litre
C25: 1 litre = 0.7848 kg (at 15°C for weekly IPPs from 1 January 2018 to 31 December 2018)
B27: Gallon to litre conversion factor | C27: 1 gallon = 3.78541 litres | E27: Litres per gallon
B32: Table 2 Parameters common to the calculation of weekly IPPs for US ethanol and Brazilian ethanol
B33: Parameter | C33: Definition | G33: Unit
C34: Daily AUD/USD (A$1=USD) exchange rate as published by the Reserve Bank of Australia (RBA) at | G34: AUD/USD
C35: http://www.rba.gov.au/statistics/historical-data.html#exchange-rates
C37: Daily USD/BRL (US$1=BRL) exchange rates as published by the US Federal Reserve at | G37: USD/BRL
C38: https://www.federalreserve.gov/releases/h10/hist/dat00_bz.htm
C40: Arithmetic mean of | G40: AUD/USD
C41: for Monday through Friday in week t
C43: Arithmetic mean of | G43: AUD/BRL
C44: for Monday through Friday in week t
C46: Wharfage charges at Australian import terminal in week t, based on ex-GST bulk liquids tariffs at Port Botany, published at | G46: AUD/litre
C47: http://www.nswportsbotany.com.au/trade/port-charges/
C49: Cost of storage and handling at import terminal, assumed constant at AUD 0.03/litre | G49: AUD/litre
C51: Cost of freight from import terminal to fuel wholesaler’s terminal, assumed constant at AUD 0.015/litre | G51: AUD/litre
C53: Fuel excise tariffs applicable to imported ethanol in week t, as published by the ATO at | G53: AUD/litre
C54: https://www.ato.gov.au/business/excise-and-excise-equivalent-goods/fuel-excise/excise-rates-for-fuel/
B58: Table 3 Calculation of weekly US IPPs
B59: Parameters | C59: Definition | G59: Unit
C60: Price of wholesale ethanol at the mill gate in the US in week t. | G60: USD/litre
C61: The USDA publishes end-of-week (EOW) low/high spot bids for wholesale ethanol at the mill-gate for seven major ethanol producing regions. Bids are presented in USD/gallon, and are converted to USD/litre.
C62: For each week,
C63: is calculated as the median of the mid-points of the EOW bids in each of the seven regions (where available).
C64: Occasionally, the USDA does not publish the EOW bids. In those cases, we will seek daily price information directly from USDA, and use the latest of the bids obtained for the relevant week. Each
D65: used in the calculation of the IPP will be
C66: published in the IPP model on our website
C67: www.ipart.nsw.gov.au
C68: In the case that we do not obtain the necessary prices for the relevant week, we will use the last price previously available.
D70: converted from USD to AUD in week t | G70: AUD/litre
C72: Sum of the costs of transporting the ethanol from the mill-gate in the US to Houston Port, plus any port and handling costs at Houston Port. | G72: USD/litre
C74: US domestic freight costs are published by United States Department of Agriculture at
C75: https://www.ams.usda.gov/services/transportation-analysis/datasets/ethanol
C77: Port costs are published by the Port of Houston at
C78: https://porthouston.com/tariffs/
D81: converted from USD to AUD in week t | G81: AUD/litre
C83: Estimated price of the ethanol delivered ‘Free-On-Board’ (FOB) the vessel at Houston port in week t, calculated as | G83: AUD/litre
C86: Cost of sea freight from US to Australia. | G86: USD/litre
C87: We estimate sea freight costs using data on chemical shipments from ICIS
D89: converted from USD to AUD in week t | G89: AUD/litre
C91: Insurance of ethanol in transit from the US to Australia in week t, calculated as: | G91: AUD/litre
C95: Total costs associated with the shipping of ethanol from the US to fuel wholesaler’s terminal in NSW in week t, excluding taxes. Calculated as: | G95: AUD/litre
C98: Customs duty on ethanol imported from the US is nil for all relevant periods, as set out in the Australia – United States Free Trade Agreement (FTA), found here: | G98: AUD/litre
C99: http://dfat.gov.au/trade/agreements/ausfta/pages/australia-united-states-fta.aspx
C100: The customs duty for US ethanol is thus calculated as:
C103: Total import taxes on US ethanol in week t, calculated as: | G103: AUD/litre
C106: Total IPP for US ethanol in week t, calculated as: | G106: AUD/litre
B112: Table 4 Calculation of weekly Brazilian IPPs
B113: Parameters | C113: Definition | G113: Unit
C114: Price of wholesale ethanol at the mill gate in São Paulo, Brazil in week t. | G114: USD/litre
C115: The Centre of Advanced Studies on Applied Economics (CEPEA) at the “Luiz de Queiroz” College of Agriculture (ESALQ) at the University of São Paulo publishes weekly volume-weighted average spot prices for wholesale anhydrous ethanol at the mill‑gate for ethanol producers in São Paulo. This publication is referred to as the CEPA/ESALQ Anhydrous Ethanol Index - São Paulo (ESALQ index), and is published at:
C116: http://www.cepea.esalq.usp.br/en/indicator/ethanol.aspx
C117: The index is published in USD per litre.
D119: converted from USD to AUD in week t | G119: AUD/litre
C121: Sum of the costs of transporting the ethanol from the mill-gate in São Paulo to Santos Port, plus any port and handling costs at Santos Port. | G121: BRL/litre
C122: We obtain transport costs from the Centre of Advanced Studies on Applied Economics (CEPEA) at the “Luiz de Queiroz” College of Agriculture (ESALQ) at the University of São Paulo
D124: converted from USD to AUD in week t | G124: AUD/litre
C126: Estimated price of the ethanol delivered ‘Free-On-Board’ (FOB) the vessel at Santos port in week t, calculated as | G126: AUD/litre
C129: Cost of sea freight from Brazil to Australia. | G129: USD/litre
C130: We estimate sea freight costs using data on chemical shipments that we obtain on subscription from ICIS
D132: converted from USD to AUD in week t | G132: AUD/litre
C134: Insurance of ethanol in transit from Brazil to Australia in week t, calculated as: | G134: AUD/litre
C137: Total costs associated with the shipping of ethanol from Brazil to fuel wholesaler’s terminal in NSW in week t, excluding taxes. Calculated as: | G137: AUD/litre
C140: Customs duty on ethanol imported from Brazil is 4.0% for all relevant periods as specified in Schedule 3 to the Customs Tariff Act 1995 – Item 2207.20.10. | G140: AUD/litre
C141: The customs duty for Brazilian ethanol is thus calculated as:
C144: If relevant changes are made to the customs duty that applies to ethanol imported from Brazil, the changes will be reflected in the calculation of weekly Brazilian IPPs for the subsequent pricing period.
C146: Total import taxes on Brazilian ethanol in week t, calculated as: | G146: AUD/litre
C149: Total IPP for Brazilian ethanol in week t, calculated as: | G149: AUD/litre
B156: Step 2: Calculating the price for wholesale ethanol
B157: After weekly IPPs for US and Brazilian ethanol have been calculated for all relevant weeks in the averaging period, they are combined to produce the determined price for wholesale ethanol. Let t represent the week-number of a given week in an averaging period, so Week 1 is the first week in the averaging period, etc.
B158: The determined price for wholesale ethanol is calculated as follows:
B161: Where: | C161: Week 1 = the first week ending on a Friday within the averaging period
C162: n = the number of Fridays in the averaging period
B164: Table 5 sets out the averaging periods and corresponding week numbers for the quarterly pricing periods.
B166: Table 5 Averaging periods and week numbers
B167: Pricing period | C167: Week 1 is the week ending on Friday… | D167: Week n is the week ending on Friday… | E167: Number of Fridays in period, n
B168: 2017 Q1 | C168: 2016-03-04 | D168: 2016-11-25 | E168: 39
B169: 2017 Q2 | C169: 2016-06-03 | D169: 2017-02-24 | E169: 39
B170: 2017 Q3 | C170: 2016-09-02 | D170: 2017-05-26 | E170: 39
B171: 2017 Q4 | C171: 2016-12-02 | D171: 2017-08-25 | E171: 39
B172: 2018 Q1 | C172: 2017-03-03 | D172: 2017-11-24 | E172: 39
B173: 2018 Q2 | C173: 2017-06-02 | D173: 2018-02-23 | E173: 39
B174: 2018 Q3 | C174: 2017-09-01 | D174: 2018-05-25 | E174: 39
B175: 2018 Q4 | C175: 2017-12-01 | D175: 2018-08-31 | E175: 40
B176: 2019 Q1 | C176: 2018-03-02 | D176: 2018-11-30 | E176: 40
B177: 2019 Q2 | C177: 2018-06-01 | D177: 2019-02-28

Sheet MAIN
B2: Determined price for wholesale ethanol
H4: Last updated on | M4: Previous Determined Prices | V4: Components of determined price
M6: ="Recently determined prices as of "&TEXT(TODAY(),"d mmmm yyyy") -> Recently determined prices as of 29 August 2024 | V6: ="Change between "&X8&" and previous period (AU cents per litre)" -> Change between 1 Sep 2024 and previous period (AU cents per litre)
M8: Pricing period | N8: Determined price | V8: Cost component | W8: =EDATE(G9,-6) -> 2024-03-01 | X8: =TEXT(G9,"d mmm yyyy") -> 1 Sep 2024 | Y8: Change | Z8: % of the index
C9: Commencement date of pricing period: | G9: 2024-09-01 | N9: AU cents per litre (ex GST) | V9: Total FOB price | W9: =SUM(W10:W12) -> 89.23473864 | X9: =SUM(X10:X12) -> 79.29563145 | Y9: =X9-W9 -> -9.939107185 | Z9: =SUM(Z10:Z12) -> 0.5147662108
K10: =M10 -> 2018-01-01 | M10: =DATE(YEAR(M11),MONTH(M11)-3,DAY(M11)) -> 2018-01-01 | N10: =IFERROR(INDEX('Pricing Period IPPs'!$P$6:$P$101,MATCH(K10,'Pricing Period IPPs'!$B$6:$B$101,0))," ") -> 114.7175715 | P10: =IF(ISNUMBER(N10), N10-Q10, 0) -> 113.7175715 | Q10: 1 | V10: Mill-gate price | W10: =IFERROR(100*INDEX('Pricing Period IPPs'!$F$6:$F$101,MATCH($W$8,'Pricing Period IPPs'!$B$6:$B$101,0)),"N/A") -> 77.51634309 | X10: =IFERROR(100*INDEX('Pricing Period IPPs'!$F$6:$F$101,MATCH($G$9,'Pricing Period IPPs'!$B$6:$B$101,0)),"N/A") -> 65.20601103 | Y10: -12.31033206 | Z10: =X10/$X$22 -> 0.4233001315
C11: Pricing period: | G11: =TEXT(G9,"d mmmm yyyy")&" to "&TEXT(DATE(YEAR($G$9),MONTH($G$9)+6,DAY($G$9)-1),"d mmmm yyyy") -> 1 September 2024 to 28 February 2025 | K11: 2018-04-01 | M11: 2018-04-01 | N11: =IFERROR(INDEX('Pricing Period IPPs'!$P$6:$P$101,MATCH(K11,'Pricing Period IPPs'!$B$6:$B$101,0))," ") -> 112.0492688 | P11: 111.0492688 | Q11: 1 | V11: Origin country freight | W11: =IFERROR(100*INDEX('Pricing Period IPPs'!$G$6:$G$101,MATCH($W$8,'Pricing Period IPPs'!$B$6:$B$101,0)),"N/A") -> 6.922330893 | X11: =IFERROR(100*INDEX('Pricing Period IPPs'!$G$6:$G$101,MATCH($G$9,'Pricing Period IPPs'!$B$6:$B$101,0)),"N/A") -> 9.721805492 | Y11: 2.799474599 | Z11: =X11/$X$22 -> 0.06311138311
K12: 2018-07-01 | M12: 2018-07-01 | N12: =IFERROR(INDEX('Pricing Period IPPs'!$P$6:$P$101,MATCH(K12,'Pricing Period IPPs'!$B$6:$B$101,0))," ") -> 111.3086077 | P12: 110.3086077 | Q12: 1 | V12: Origin country port costs | W12: =IFERROR(100*INDEX('Pricing Period IPPs'!$H$6:$H$101,MATCH($W$8,'Pricing Period IPPs'!$B$6:$B$101,0)),"N/A") -> 4.796064656 | X12: =IFERROR(100*INDEX('Pricing Period IPPs'!$H$6:$H$101,MATCH($G$9,'Pricing Period IPPs'!$B$6:$B$101,0)),"N/A") -> 4.367814935 | Y12: -0.4282497216 | Z12: =X12/$X$22 -> 0.02835469625
C13: Determined price (ex GST): | G13: =IF(ISNA(INDEX('Pricing Period IPPs'!$P$6:$P$101,MATCH(MAIN!$G$9,'Pricing Period IPPs'!$B$6:$B$101,0))),"Not available",INDEX('Pricing Period IPPs'!$P$6:$P$101,MATCH(MAIN!$G$9,'Pricing Period IPPs'!$B$6:$B$101,0))) -> 154.0420288 | H13: =IF(ISNUMBER($G$13)," AU cents/litre","") -> AU cents/litre | K13: 2018-10-01 | M13: 2018-10-01 | N13: =IFERROR(INDEX('Pricing Period IPPs'!$P$6:$P$101,MATCH(K13,'Pricing Period IPPs'!$B$6:$B$101,0))," ") -> 112.4961541 | P13: 111.4961541 | Q13: 1 | V13: Total transit costs | W13: =SUM(W14:W18) -> 20.3890639 | X13: =SUM(X14:X18) -> 23.21257607 | Y13: 2.823512162 | Z13: =SUM(Z14:Z18) -> 0.150689888
G14: =IF($G$9<DATE(2017,1,1),"Indicative only!*","") ->  | K14: 2019-01-01 | M14: 2019-01-01 | N14: =IFERROR(INDEX('Pricing Period IPPs'!$P$6:$P$101,MATCH(K14,'Pricing Period IPPs'!$B$6:$B$101,0))," ") -> 113.3334093 | P14: 112.3334093 | Q14: 1 | V14: Sea freight | W14: =IFERROR(100*INDEX('Pricing Period IPPs'!$I$6:$I$101,MATCH($W$8,'Pricing Period IPPs'!$B$6:$B$101,0)),"N/A") -> 15.23183362 | X14: =IFERROR(100*INDEX('Pricing Period IPPs'!$I$6:$I$101,MATCH($G$9,'Pricing Period IPPs'!$B$6:$B$101,0)),"N/A") -> 18.07353301 | Y14: 2.841699394 | Z14: =X14/$X$22 -> 0.1173285833
K15: 2019-04-01 | M15: 2019-04-01 | N15: =IFERROR(INDEX('Pricing Period IPPs'!$P$6:$P$101,MATCH(K15,'Pricing Period IPPs'!$B$6:$B$101,0))," ") -> 111.9107417 | P15: 110.9107417 | Q15: 1 | V15: Insurance costs | W15: =IFERROR(100*INDEX('Pricing Period IPPs'!$J$6:$J$101,MATCH($W$8,'Pricing Period IPPs'!$B$6:$B$101,0)),"N/A") -> 0.417866289 | X15: =IFERROR(100*INDEX('Pricing Period IPPs'!$J$6:$J$101,MATCH($G$9,'Pricing Period IPPs'!$B$6:$B$101,0)),"N/A") -> 0.3894766578 | Y15: -0.02838963116 | Z15: =X15/$X$22 -> 0.002528379177
D16: =IF($G$9<DATE(2017,1,1),"* These are hypothetical prices only, since IPART did not determine wholesale prices prior to 1 January 2017. The calculation uses historical mill-gate prices, but otherwise uses current estimates of IPP components.","") ->  | K16: 2019-07-01 | M16: =DATE(YEAR(M17),MONTH(M17)-3,DAY(M17)) -> 2019-07-01 | N16: =IFERROR(INDEX('Pricing Period IPPs'!$P$6:$P$101,MATCH(K16,'Pricing Period IPPs'!$B$6:$B$101,0))," ") -> 110.3469558 | P16: 109.3469558 | Q16: 1 | V16: Wharfage import terminal | W16: =IFERROR(100*INDEX('Pricing Period IPPs'!$M$6:$M$101,MATCH($W$8,'Pricing Period IPPs'!$B$6:$B$101,0)),"N/A") -> 0.239364 | X16: =IFERROR(100*INDEX('Pricing Period IPPs'!$M$6:$M$101,MATCH($G$9,'Pricing Period IPPs'!$B$6:$B$101,0)),"N/A") -> 0.2495664 | Y16: 0.0102024 | Z16: =X16/$X$22 -> 0.001620118886
K17: =M17 -> 2019-10-01 | M17: 2019-10-01 | N17: =IFERROR(INDEX('Pricing Period IPPs'!$P$6:$P$101,MATCH(K17,'Pricing Period IPPs'!$B$6:$B$101,0))," ") -> 110.4352946 | P17: 109.4352946 | Q17: 1 | V17: Storage and handling import terminal | W17: =IFERROR(100*INDEX('Pricing Period IPPs'!$N$6:$N$101,MATCH($W$8,'Pricing Period IPPs'!$B$6:$B$101,0)),"N/A") -> 3 | X17: =IFERROR(100*INDEX('Pricing Period IPPs'!$N$6:$N$101,MATCH($G$9,'Pricing Period IPPs'!$B$6:$B$101,0)),"N/A") -> 3 | Y17: 0 | Z17: =X17/$X$22 -> 0.01947520442
K18: =DATE(YEAR(K19)-1,MONTH(K19),DAY(K19)) -> 43831 | M18: =YEAR(K18) -> 2020 | N18: =IFERROR(INDEX('Pricing Period IPPs'!$P$6:$P$101,MATCH(K18,'Pricing Period IPPs'!$B$6:$B$101,0))," ") -> 111.7125952 | P18: 110.7125952 | Q18: 1 | V18: Transport to fuel wholesale terminal | W18: =IFERROR(100*INDEX('Pricing Period IPPs'!$O$6:$O$101,MATCH($W$8,'Pricing Period IPPs'!$B$6:$B$101,0)),"N/A") -> 1.5 | X18: =IFERROR(100*INDEX('Pricing Period IPPs'!$O$6:$O$101,MATCH($G$9,'Pricing Period IPPs'!$B$6:$B$101,0)),"N/A") -> 1.5 | Y18: 0 | Z18: =X18/$X$22 -> 0.009737602212
K19: =DATE(YEAR(K20)-1,MONTH(K20),DAY(K20)) -> 44197 | M19: =YEAR(K19) -> 2021 | N19: =IFERROR(INDEX('Pricing Period IPPs'!$P$6:$P$101,MATCH(K19,'Pricing Period IPPs'!$B$6:$B$101,0))," ") -> 114.2422189 | P19: 113.2422189 | Q19: 1 | V19: Total landing costs (taxes) | W19: =SUM(W20:W21) -> 52.31718848 | X19: =SUM(X20:X21) -> 51.53382124 | Y19: -0.7833672385 | Z19: =SUM(Z20:Z21) -> 0.3345439011
K20: =DATE(YEAR(M21)-1,MONTH(M21),DAY(M21)) -> 44562 | M20: =YEAR(K20) -> 2022 | N20: =IFERROR(INDEX('Pricing Period IPPs'!$P$6:$P$101,MATCH(K20,'Pricing Period IPPs'!$B$6:$B$101,0))," ") -> 149.2840901 | P20: 148.2840901 | Q20: 1 | V20: Customs value duty | W20: =IFERROR(100*INDEX('Pricing Period IPPs'!$K$6:$K$101,MATCH($W$8,'Pricing Period IPPs'!$B$6:$B$101,0)),"N/A") -> 2.71718848 | X20: =IFERROR(100*INDEX('Pricing Period IPPs'!$K$6:$K$101,MATCH($G$9,'Pricing Period IPPs'!$B$6:$B$101,0)),"N/A") -> 0.9338212416 | Y20: -1.783367238 | Z20: =X20/$X$22 -> 0.006062119859
K21: =M21 -> 2023-01-01 | M21: 2023-01-01 | N21: =IFERROR(INDEX('Pricing Period IPPs'!$P$6:$P$101,MATCH(K21,'Pricing Period IPPs'!$B$6:$B$101,0))," ") -> 167.1752831 | P21: 166.1752831 | Q21: 1 | V21: Average fuel excise | W21: =IFERROR(100*INDEX('Pricing Period IPPs'!$L$6:$L$101,MATCH($W$8,'Pricing Period IPPs'!$B$6:$B$101,0)),"N/A") -> 49.6 | X21: =IFERROR(100*INDEX('Pricing Period IPPs'!$L$6:$L$101,MATCH($G$9,'Pricing Period IPPs'!$B$6:$B$101,0)),"N/A") -> 50.6 | Y21: 1 | Z21: =X21/$X$22 -> 0.3284817813
K22: =M22 -> 2023-04-01 | M22: =DATE(YEAR(M21),MONTH(M21)+3,DAY(M21)) -> 2023-04-01 | N22: =IFERROR(INDEX('Pricing Period IPPs'!$P$6:$P$101,MATCH(K22,'Pricing Period IPPs'!$B$6:$B$101,0))," ") -> 168.3978956 | P22: 167.3978956 | Q22: 1 | V22: Total import parity price delivered to wholesale terminal (ex GST) | W22: =SUM(W9,W13,W19) -> 161.940991 | X22: =SUM(X9,X13,X19) -> 154.0420288 | Y22: =X22-W22 -> -7.898962261
K23: =M23 -> 2023-07-01 | M23: =DATE(YEAR(M22),MONTH(M22)+3,DAY(M22)) -> 2023-07-01 | N23: =IFERROR(INDEX('Pricing Period IPPs'!$P$6:$P$101,MATCH(K23,'Pricing Period IPPs'!$B$6:$B$101,0))," ") -> 167.3731994 | P23: 166.3731994 | Q23: 1
K24: 2023-09-01 | M24: =DATE(YEAR(M23),MONTH(M23)+2,DAY(M23)) -> 2023-09-01 | N24: =IFERROR(INDEX('Pricing Period IPPs'!$P$6:$P$101,MATCH(K24,'Pricing Period IPPs'!$B$6:$B$101,0))," ") -> 169.2447118 | P24: 168.2447118 | Q24: 1 | X24: =IF($W$8<DATE(2017,1,1),"Indicative only!*","") ->  | Z24: =IF($G$9<DATE(2017,1,1),"Indicative only!*","") -> 
K25: 2024-03-01 | M25: =DATE(YEAR(M24),MONTH(M24)+6,DAY(M24)) -> 2024-03-01 | N25: =IFERROR(INDEX('Pricing Period IPPs'!$P$6:$P$101,MATCH(K25,'Pricing Period IPPs'!$B$6:$B$101,0))," ") -> 161.940991 | P25: 160.940991 | Q25: 1 | V25: Numbers may not add due to rounding
K26: 2024-09-01 | M26: =DATE(YEAR(M25),MONTH(M25)+6,DAY(M25)) -> 2024-09-01 | N26: =IFERROR(INDEX('Pricing Period IPPs'!$P$6:$P$101,MATCH(K26,'Pricing Period IPPs'!$B$6:$B$101,0))," ") -> 154.0420288 | P26: 153.0420288 | Q26: 1
AD31: =V10 -> Mill-gate price | AE31: =Y10 -> -12.31033206 | AF31: =X10 -> 65.20601103 | AG31: =AF31 -> 65.20601103
AD32: =V11 -> Origin country freight | AE32: =Y11 -> 2.799474599 | AF32: =X11 -> 9.721805492 | AG32: =AF32 -> 9.721805492
AD33: =V12 -> Origin country port costs | AE33: =Y12 -> -0.4282497216 | AF33: =X12 -> 4.367814935 | AG33: 4.367814935
AD34: =V14 -> Sea freight | AE34: =Y14 -> 2.841699394 | AF34: =X14 -> 18.07353301 | AG34: 18.07353301
AD35: =V15 -> Insurance costs | AE35: =Y15 -> -0.02838963116 | AF35: =X15 -> 0.3894766578 | AG35: 0.3894766578
AD36: =V16 -> Wharfage import terminal | AE36: =Y16 -> 0.0102024 | AF36: =X16 -> 0.2495664 | AG36: 0.2495664
AD37: =V17 -> Storage and handling import terminal | AE37: =Y17 -> 0 | AF37: =X17 -> 3 | AG37: 3
AD38: =V18 -> Transport to fuel wholesale terminal | AE38: =Y18 -> 0 | AF38: =X18 -> 1.5 | AG38: 1.5
AD39: =V20 -> Customs value duty | AE39: =Y20 -> -1.783367238 | AF39: =X20 -> 0.9338212416 | AG39: 0.9338212416
AD40: =V21 -> Average fuel excise | AE40: =Y21 -> 1 | AF40: =X21 -> 50.6 | AG40: 50.6
AD41: Overall | AE41: =Y22 -> -7.898962261 | AF41: =X22 -> 154.0420288 | AG41: 154.0420288

Sheet CALCULATIONS -->
E16: This page is intentionally left blank
L37: `

Sheet Pricing Period IPPs
P1: =I49/P2 -> 0.07606192639
B2: Pricing Period IPP Calculations | P2: =SUM(F49:O49) -> 1.667041697
B4: Pricing period IPPs | F4: IPP components (AUD/litre) | P4: Determined prices (AUc/litre) | U4: List of pricing periods
B5: Pricing period start date | C5: Pricing period end date | D5: Averaging period start date | E5: Averaging period end date | F5: Mill gate prices | G5: Local transport | H5: Local port costs | I5: Sea Freight | J5: Insurance | K5: Customes value duty | L5: Fuel excise | M5: Wharfage | N5: Import terminal storage and handling | O5: Transport from import terminal to fuel wholesale terminal | P5: Pricing period IPP | Q5: Hypothetical historical prices | R5: Determined prices | S5: For charting purposes only | U5: Commencement date of pricing period
B6: 2012-01-01 | C6: =DATE(YEAR(B6),MONTH(B6)+3,DAY(B6)-1) -> 2012-03-31 | D6: =DATE(YEAR(B6),MONTH(B6)-10,DAY(B6)) -> 2011-03-01 | E6: =DATE(YEAR(D6),MONTH(D6)+9,DAY(D6)-1) -> 2011-11-30 | F6: =AVERAGEIFS('USDA ESALQ weekly IPPs'!$E$10:$E$20000,'USDA ESALQ weekly IPPs'!$B$10:$B$20000,">="&$D6,'USDA ESALQ weekly IPPs'!$B$10:$B$20000,"<="&$E6) -> 0.6743380947 | G6: =AVERAGEIFS('USDA ESALQ weekly IPPs'!$F$10:$F$20000,'USDA ESALQ weekly IPPs'!$B$10:$B$20000,">="&$D6,'USDA ESALQ weekly IPPs'!$B$10:$B$20000,"<="&$E6) -> 0.05315220184 | H6: =AVERAGEIFS('USDA ESALQ weekly IPPs'!$G$10:$G$20000,'USDA ESALQ weekly IPPs'!$B$10:$B$20000,">="&$D6,'USDA ESALQ weekly IPPs'!$B$10:$B$20000,"<="&$E6) -> 0.02326009556 | I6: =AVERAGEIFS('USDA ESALQ weekly IPPs'!$H$10:$H$20000,'USDA ESALQ weekly IPPs'!$B$10:$B$20000,">="&$D6,'USDA ESALQ weekly IPPs'!$B$10:$B$20000,"<="&$E6) -> 0.06727658153 | J6: =AVERAGEIFS('USDA ESALQ weekly IPPs'!$I$10:$I$20000,'USDA ESALQ weekly IPPs'!$B$10:$B$20000,">="&$D6,'USDA ESALQ weekly IPPs'!$B$10:$B$20000,"<="&$E6) -> 0.003272107895 | K6: =AVERAGEIFS('USDA ESALQ weekly IPPs'!$J$10:$J$20000,'USDA ESALQ weekly IPPs'!$B$10:$B$20000,">="&$D6,'USDA ESALQ weekly IPPs'!$B$10:$B$20000,"<="&$E6) -> 0 | L6: =AVERAGEIFS('USDA ESALQ weekly IPPs'!$L$10:$L$20000,'USDA ESALQ weekly IPPs'!$B$10:$B$20000,">="&$D6,'USDA ESALQ weekly IPPs'!$B$10:$B$20000,"<="&$E6) -> 0.38143 | M6: =AVERAGEIFS('USDA ESALQ weekly IPPs'!$M$10:$M$20000,'USDA ESALQ weekly IPPs'!$B$10:$B$20000,">="&$D6,'USDA ESALQ weekly IPPs'!$B$10:$B$20000,"<="&$E6) -> 0.001917999 | N6: =AVERAGEIFS('USDA ESALQ weekly IPPs'!$N$10:$N$20000,'USDA ESALQ weekly IPPs'!$B$10:$B$20000,">="&$D6,'USDA ESALQ weekly IPPs'!$B$10:$B$20000,"<="&$E6) -> 0.03 | O6: =AVERAGEIFS('USDA ESALQ weekly IPPs'!$O$10:$O$20000,'USDA ESALQ weekly IPPs'!$B$10:$B$20000,">="&$D6,'USDA ESALQ weekly IPPs'!$B$10:$B$20000,"<="&$E6) -> 0.015 | P6: =100*IFERROR(SUM(F6:O6),NA()) -> 124.9647081 | Q6: =IF(B6<DATE(2017,1,1),P6,NA()) -> 124.9647081 | R6: =IF(C6>=DATE(2017,1,1),P6,NA()) ->  | S6: =NA() ->  | U6: 2028-03-01
B7: =C6+1 -> 2012-04-01 | C7: =DATE(YEAR(B7),MONTH(B7)+3,DAY(B7)-1) -> 2012-06-30 | D7: =DATE(YEAR(B7),MONTH(B7)-10,DAY(B7)) -> 2011-06-01 | E7: =DATE(YEAR(D7),MONTH(D7)+9,DAY(D7)-1) -> 2012-02-29 | F7: =AVERAGEIFS('USDA ESALQ weekly IPPs'!$E$10:$E$20000,'USDA ESALQ weekly IPPs'!$B$10:$B$20000,">="&$D7,'USDA ESALQ weekly IPPs'!$B$10:$B$20000,"<="&$E7) -> 0.6462344342 | G7: =AVERAGEIFS('USDA ESALQ weekly IPPs'!$F$10:$F$20000,'USDA ESALQ weekly IPPs'!$B$10:$B$20000,">="&$D7,'USDA ESALQ weekly IPPs'!$B$10:$B$20000,"<="&$E7) -> 0.05327073344 | H7: =AVERAGEIFS('USDA ESALQ weekly IPPs'!$G$10:$G$20000,'USDA ESALQ weekly IPPs'!$B$10:$B$20000,">="&$D7,'USDA ESALQ weekly IPPs'!$B$10:$B$20000,"<="&$E7) -> 0.02331196653 | I7: =AVERAGEIFS('USDA ESALQ weekly IPPs'!$H$10:$H$20000,'USDA ESALQ weekly IPPs'!$B$10:$B$20000,">="&$D7,'USDA ESALQ weekly IPPs'!$B$10:$B$20000,"<="&$E7) -> 0.06742661109 | J7: =AVERAGEIFS('USDA ESALQ weekly IPPs'!$I$10:$I$20000,'USDA ESALQ weekly IPPs'!$B$10:$B$20000,">="&$D7,'USDA ESALQ weekly IPPs'!$B$10:$B$20000,"<="&$E7) -> 0.003160974981 | K7: =AVERAGEIFS('USDA ESALQ weekly IPPs'!$J$10:$J$20000,'USDA ESALQ weekly IPPs'!$B$10:$B$20000,">="&$D7,'USDA ESALQ weekly IPPs'!$B$10:$B$20000,"<="&$E7) -> 0 | L7: =AVERAGEIFS('USDA ESALQ weekly IPPs'!$L$10:$L$20000,'USDA ESALQ weekly IPPs'!$B$10:$B$20000,">="&$D7,'USDA ESALQ weekly IPPs'!$B$10:$B$20000,"<="&$E7) -> 0.38143 | M7: =AVERAGEIFS('USDA ESALQ weekly IPPs'!$M$10:$M$20000,'USDA ESALQ weekly IPPs'!$B$10:$B$20000,">="&$D7,'USDA ESALQ weekly IPPs'!$B$10:$B$20000,"<="&$E7) -> 0.001917999 | N7: =AVERAGEIFS('USDA ESALQ weekly IPPs'!$N$10:$N$20000,'USDA ESALQ weekly IPPs'!$B$10:$B$20000,">="&$D7,'USDA ESALQ weekly IPPs'!$B$10:$B$20000,"<="&$E7) -> 0.03 | O7: =AVERAGEIFS('USDA ESALQ weekly IPPs'!$O$10:$O$20000,'USDA ESALQ weekly IPPs'!$B$10:$B$20000,">="&$D7,'USDA ESALQ weekly IPPs'!$B$10:$B$20000,"<="&$E7) -> 0.015 | P7: 122.1752719 | Q7: =IF(B7<DATE(2017,1,1),P7,NA()) -> 122.1752719 | R7: =IF(C7>=DATE(2017,1,1),P7,NA()) ->  | S7: =NA() ->  | U7: 2027-09-01
B8: =C7+1 -> 2012-07-01 | C8: 2012-09-30 | D8: 2011-09-01 | E8: 2012-05-31 | F8: =AVERAGEIFS('USDA ESALQ weekly IPPs'!$E$10:$E$20000,'USDA ESALQ weekly IPPs'!$B$10:$B$20000,">="&$D8,'USDA ESALQ weekly IPPs'!$B$10:$B$20000,"<="&$E8) -> 0.6026453784 | G8: =AVERAGEIFS('USDA ESALQ weekly IPPs'!$F$10:$F$20000,'USDA ESALQ weekly IPPs'!$B$10:$B$20000,">="&$D8,'USDA ESALQ weekly IPPs'!$B$10:$B$20000,"<="&$E8) -> 0.05374139367 | H8: =AVERAGEIFS('USDA ESALQ weekly IPPs'!$G$10:$G$20000,'USDA ESALQ weekly IPPs'!$B$10:$B$20000,">="&$D8,'USDA ESALQ weekly IPPs'!$B$10:$B$20000,"<="&$E8) -> 0.02351793358 | I8: =AVERAGEIFS('USDA ESALQ weekly IPPs'!$H$10:$H$20000,'USDA ESALQ weekly IPPs'!$B$10:$B$20000,">="&$D8,'USDA ESALQ weekly IPPs'!$B$10:$B$20000,"<="&$E8) -> 0.06802234203 | J8: =AVERAGEIFS('USDA ESALQ weekly IPPs'!$I$10:$I$20000,'USDA ESALQ weekly IPPs'!$B$10:$B$20000,">="&$D8,'USDA ESALQ weekly IPPs'!$B$10:$B$20000,"<="&$E8) -> 0.002991708191 | K8: =AVERAGEIFS('USDA ESALQ weekly IPPs'!$J$10:$J$20000,'USDA ESALQ weekly IPPs'!$B$10:$B$20000,">="&$D8,'USDA ESALQ weekly IPPs'!$B$10:$B$20000,"<="&$E8) -> 0 | L8: =AVERAGEIFS('USDA ESALQ weekly IPPs'!$L$10:$L$20000,'USDA ESALQ weekly IPPs'!$B$10:$B$20000,">="&$D8,'USDA ESALQ weekly IPPs'!$B$10:$B$20000,"<="&$E8) -> 0.38143 | M8: =AVERAGEIFS('USDA ESALQ weekly IPPs'!$M$10:$M$20000,'USDA ESALQ weekly IPPs'!$B$10:$B$20000,">="&$D8,'USDA ESALQ weekly IPPs'!$B$10:$B$20000,"<="&$E8) -> 0.001917999 | N8: =AVERAGEIFS('USDA ESALQ weekly IPPs'!$N$10:$N$20000,'USDA ESALQ weekly IPPs'!$B$10:$B$20000,">="&$D8,'USDA ESALQ weekly IPPs'!$B$10:$B$20000,"<="&$E8) -> 0.03 | O8: =AVERAGEIFS('USDA ESALQ weekly IPPs'!$O$10:$O$20000,'USDA ESALQ weekly IPPs'!$B$10:$B$20000,">="&$D8,'USDA ESALQ weekly IPPs'!$B$10:$B$20000,"<="&$E8) -> 0.015 | P8: 117.9266755 | Q8: 117.9266755 | S8: =NA() ->  | U8: 2027-03-01
B9: 2012-10-01 | C9: 2012-12-31 | D9: 2011-12-01 | E9: 2012-08-31 | F9: =AVERAGEIFS('USDA ESALQ weekly IPPs'!$E$10:$E$20000,'USDA ESALQ weekly IPPs'!$B$10:$B$20000,">="&$D9,'USDA ESALQ weekly IPPs'!$B$10:$B$20000,"<="&$E9) -> 0.5578659718 | G9: =AVERAGEIFS('USDA ESALQ weekly IPPs'!$F$10:$F$20000,'USDA ESALQ weekly IPPs'!$B$10:$B$20000,">="&$D9,'USDA ESALQ weekly IPPs'!$B$10:$B$20000,"<="&$E9) -> 0.05265280432 | H9: =AVERAGEIFS('USDA ESALQ weekly IPPs'!$G$10:$G$20000,'USDA ESALQ weekly IPPs'!$B$10:$B$20000,">="&$D9,'USDA ESALQ weekly IPPs'!$B$10:$B$20000,"<="&$E9) -> 0.027691943 | I9: =AVERAGEIFS('USDA ESALQ weekly IPPs'!$H$10:$H$20000,'USDA ESALQ weekly IPPs'!$B$10:$B$20000,">="&$D9,'USDA ESALQ weekly IPPs'!$B$10:$B$20000,"<="&$E9) -> 0.06776641752 | J9: =AVERAGEIFS('USDA ESALQ weekly IPPs'!$I$10:$I$20000,'USDA ESALQ weekly IPPs'!$B$10:$B$20000,">="&$D9,'USDA ESALQ weekly IPPs'!$B$10:$B$20000,"<="&$E9) -> 0.002823908547 | K9: =AVERAGEIFS('USDA ESALQ weekly IPPs'!$J$10:$J$20000,'USDA ESALQ weekly IPPs'!$B$10:$B$20000,">="&$D9,'USDA ESALQ weekly IPPs'!$B$10:$B$20000,"<="&$E9) -> 0.004791662945 | L9: =AVERAGEIFS('USDA ESALQ weekly IPPs'!$L$10:$L$20000,'USDA ESALQ weekly IPPs'!$B$10:$B$20000,">="&$D9,'USDA ESALQ weekly IPPs'!$B$10:$B$20000,"<="&$E9) -> 0.38143 | M9: =AVERAGEIFS('USDA ESALQ weekly IPPs'!$M$10:$M$20000,'USDA ESALQ weekly IPPs'!$B$10:$B$20000,">="&$D9,'USDA ESALQ weekly IPPs'!$B$10:$B$20000,"<="&$E9) -> 0.001917999 | N9: =AVERAGEIFS('USDA ESALQ weekly IPPs'!$N$10:$N$20000,'USDA ESALQ weekly IPPs'!$B$10:$B$20000,">="&$D9,'USDA ESALQ weekly IPPs'!$B$10:$B$20000,"<="&$E9) -> 0.03 | O9: =AVERAGEIFS('USDA ESALQ weekly IPPs'!$O$10:$O$20000,'USDA ESALQ weekly IPPs'!$B$10:$B$20000,">="&$D9,'USDA ESALQ weekly IPPs'!$B$10:$B$20000,"<="&$E9) -> 0.015 | P9: 114.1940707 | Q9: 114.1940707 | S9: =NA() ->  | U9: 2026-09-01
B10: 2013-01-01 | C10: 2013-03-31 | D10: 2012-03-01 | E10: 2012-11-30 | F10: =AVERAGEIFS('USDA ESALQ weekly IPPs'!$E$10:$E$20000,'USDA ESALQ weekly IPPs'!$B$10:$B$20000,">="&$D10,'USDA ESALQ weekly IPPs'!$B$10:$B$20000,"<="&$E10) -> 0.5631901667 | G10: =AVERAGEIFS('USDA ESALQ weekly IPPs'!$F$10:$F$20000,'USDA ESALQ weekly IPPs'!$B$10:$B$20000,">="&$D10,'USDA ESALQ weekly IPPs'!$B$10:$B$20000,"<="&$E10) -> 0.05191026278 | H10: =AVERAGEIFS('USDA ESALQ weekly IPPs'!$G$10:$G$20000,'USDA ESALQ weekly IPPs'!$B$10:$B$20000,">="&$D10,'USDA ESALQ weekly IPPs'!$B$10:$B$20000,"<="&$E10) -> 0.03072460054 | I10: =AVERAGEIFS('USDA ESALQ weekly IPPs'!$H$10:$H$20000,'USDA ESALQ weekly IPPs'!$B$10:$B$20000,">="&$D10,'USDA ESALQ weekly IPPs'!$B$10:$B$20000,"<="&$E10) -> 0.06765193975 | J10: =AVERAGEIFS('USDA ESALQ weekly IPPs'!$I$10:$I$20000,'USDA ESALQ weekly IPPs'!$B$10:$B$20000,">="&$D10,'USDA ESALQ weekly IPPs'!$B$10:$B$20000,"<="&$E10) -> 0.002853907879 | K10: =AVERAGEIFS('USDA ESALQ weekly IPPs'!$J$10:$J$20000,'USDA ESALQ weekly IPPs'!$B$10:$B$20000,">="&$D10,'USDA ESALQ weekly IPPs'!$B$10:$B$20000,"<="&$E10) -> 0.0080076835 | L10: =AVERAGEIFS('USDA ESALQ weekly IPPs'!$L$10:$L$20000,'USDA ESALQ weekly IPPs'!$B$10:$B$20000,">="&$D10,'USDA ESALQ weekly IPPs'!$B$10:$B$20000,"<="&$E10) -> 0.38143 | M10: =AVERAGEIFS('USDA ESALQ weekly IPPs'!$M$10:$M$20000,'USDA ESALQ weekly IPPs'!$B$10:$B$20000,">="&$D10,'USDA ESALQ weekly IPPs'!$B$10:$B$20000,"<="&$E10) -> 0.001917999 | N10: =AVERAGEIFS('USDA ESALQ weekly IPPs'!$N$10:$N$20000,'USDA ESALQ weekly IPPs'!$B$10:$B$20000,">="&$D10,'USDA ESALQ weekly IPPs'!$B$10:$B$20000,"<="&$E10) -> 0.03 | O10: =AVERAGEIFS('USDA ESALQ weekly IPPs'!$O$10:$O$20000,'USDA ESALQ weekly IPPs'!$B$10:$B$20000,">="&$D10,'USDA ESALQ weekly IPPs'!$B$10:$B$20000,"<="&$E10) -> 0.015 | P10: 115.268656 | Q10: 115.268656 | S10: =NA() ->  | U10: 2026-03-01
B11: 2013-04-01 | C11: 2013-06-30 | D11: 2012-06-01 | E11: 2013-02-28 | F11: =AVERAGEIFS('USDA ESALQ weekly IPPs'!$E$10:$E$20000,'USDA ESALQ weekly IPPs'!$B$10:$B$20000,">="&$D11,'USDA ESALQ weekly IPPs'!$B$10:$B$20000,"<="&$E11) -> 0.5705485434 | G11: =AVERAGEIFS('USDA ESALQ weekly IPPs'!$F$10:$F$20000,'USDA ESALQ weekly IPPs'!$B$10:$B$20000,">="&$D11,'USDA ESALQ weekly IPPs'!$B$10:$B$20000,"<="&$E11) -> 0.05170308526 | H11: =AVERAGEIFS('USDA ESALQ weekly IPPs'!$G$10:$G$20000,'USDA ESALQ weekly IPPs'!$B$10:$B$20000,">="&$D11,'USDA ESALQ weekly IPPs'!$B$10:$B$20000,"<="&$E11) -> 0.03083927013 | I11: =AVERAGEIFS('USDA ESALQ weekly IPPs'!$H$10:$H$20000,'USDA ESALQ weekly IPPs'!$B$10:$B$20000,">="&$D11,'USDA ESALQ weekly IPPs'!$B$10:$B$20000,"<="&$E11) -> 0.06743963935 | J11: =AVERAGEIFS('USDA ESALQ weekly IPPs'!$I$10:$I$20000,'USDA ESALQ weekly IPPs'!$B$10:$B$20000,">="&$D11,'USDA ESALQ weekly IPPs'!$B$10:$B$20000,"<="&$E11) -> 0.002882122153 | K11: =AVERAGEIFS('USDA ESALQ weekly IPPs'!$J$10:$J$20000,'USDA ESALQ weekly IPPs'!$B$10:$B$20000,">="&$D11,'USDA ESALQ weekly IPPs'!$B$10:$B$20000,"<="&$E11) -> 0.008213008718 | L11: =AVERAGEIFS('USDA ESALQ weekly IPPs'!$L$10:$L$20000,'USDA ESALQ weekly IPPs'!$B$10:$B$20000,">="&$D11,'USDA ESALQ weekly IPPs'!$B$10:$B$20000,"<="&$E11) -> 0.38143 | M11: =AVERAGEIFS('USDA ESALQ weekly IPPs'!$M$10:$M$20000,'USDA ESALQ weekly IPPs'!$B$10:$B$20000,">="&$D11,'USDA ESALQ weekly IPPs'!$B$10:$B$20000,"<="&$E11) -> 0.001917999 | N11: =AVERAGEIFS('USDA ESALQ weekly IPPs'!$N$10:$N$20000,'USDA ESALQ weekly IPPs'!$B$10:$B$20000,">="&$D11,'USDA ESALQ weekly IPPs'!$B$10:$B$20000,"<="&$E11) -> 0.03 | O11: =AVERAGEIFS('USDA ESALQ weekly IPPs'!$O$10:$O$20000,'USDA ESALQ weekly IPPs'!$B$10:$B$20000,">="&$D11,'USDA ESALQ weekly IPPs'!$B$10:$B$20000,"<="&$E11) -> 0.015 | P11: 115.9973668 | Q11: 115.9973668 | S11: =NA() ->  | U11: 2025-09-01
B12: 2013-07-01 | C12: 2013-09-30 | D12: 2012-09-01 | E12: 2013-05-31 | F12: =AVERAGEIFS('USDA ESALQ weekly IPPs'!$E$10:$E$20000,'USDA ESALQ weekly IPPs'!$B$10:$B$20000,">="&$D12,'USDA ESALQ weekly IPPs'!$B$10:$B$20000,"<="&$E12) -> 0.5967656722 | G12: =AVERAGEIFS('USDA ESALQ weekly IPPs'!$F$10:$F$20000,'USDA ESALQ weekly IPPs'!$B$10:$B$20000,">="&$D12,'USDA ESALQ weekly IPPs'!$B$10:$B$20000,"<="&$E12) -> 0.05257627529 | H12: =AVERAGEIFS('USDA ESALQ weekly IPPs'!$G$10:$G$20000,'USDA ESALQ weekly IPPs'!$B$10:$B$20000,">="&$D12,'USDA ESALQ weekly IPPs'!$B$10:$B$20000,"<="&$E12) -> 0.02716528513 | I12: =AVERAGEIFS('USDA ESALQ weekly IPPs'!$H$10:$H$20000,'USDA ESALQ weekly IPPs'!$B$10:$B$20000,">="&$D12,'USDA ESALQ weekly IPPs'!$B$10:$B$20000,"<="&$E12) -> 0.06762739493 | J12: =AVERAGEIFS('USDA ESALQ weekly IPPs'!$I$10:$I$20000,'USDA ESALQ weekly IPPs'!$B$10:$B$20000,">="&$D12,'USDA ESALQ weekly IPPs'!$B$10:$B$20000,"<="&$E12) -> 0.00297653851 | K12: =AVERAGEIFS('USDA ESALQ weekly IPPs'!$J$10:$J$20000,'USDA ESALQ weekly IPPs'!$B$10:$B$20000,">="&$D12,'USDA ESALQ weekly IPPs'!$B$10:$B$20000,"<="&$E12) -> 0.004056879205 | L12: =AVERAGEIFS('USDA ESALQ weekly IPPs'!$L$10:$L$20000,'USDA ESALQ weekly IPPs'!$B$10:$B$20000,">="&$D12,'USDA ESALQ weekly IPPs'!$B$10:$B$20000,"<="&$E12) -> 0.38143 | M12: =AVERAGEIFS('USDA ESALQ weekly IPPs'!$M$10:$M$20000,'USDA ESALQ weekly IPPs'!$B$10:$B$20000,">="&$D12,'USDA ESALQ weekly IPPs'!$B$10:$B$20000,"<="&$E12) -> 0.001917999 | N12: =AVERAGEIFS('USDA ESALQ weekly IPPs'!$N$10:$N$20000,'USDA ESALQ weekly IPPs'!$B$10:$B$20000,">="&$D12,'USDA ESALQ weekly IPPs'!$B$10:$B$20000,"<="&$E12) -> 0.03 | O12: =AVERAGEIFS('USDA ESALQ weekly IPPs'!$O$10:$O$20000,'USDA ESALQ weekly IPPs'!$B$10:$B$20000,">="&$D12,'USDA ESALQ weekly IPPs'!$B$10:$B$20000,"<="&$E12) -> 0.015 | P12: 117.9516044 | Q12: 117.9516044 | S12: =NA() ->  | U12: 2025-03-01
B13: 2013-10-01 | C13: 2013-12-31 | D13: 2012-12-01 | E13: 2013-08-31 | F13: =AVERAGEIFS('USDA ESALQ weekly IPPs'!$E$10:$E$20000,'USDA ESALQ weekly IPPs'!$B$10:$B$20000,">="&$D13,'USDA ESALQ weekly IPPs'!$B$10:$B$20000,"<="&$E13) -> 0.6125220918 | G13: =AVERAGEIFS('USDA ESALQ weekly IPPs'!$F$10:$F$20000,'USDA ESALQ weekly IPPs'!$B$10:$B$20000,">="&$D13,'USDA ESALQ weekly IPPs'!$B$10:$B$20000,"<="&$E13) -> 0.05159610669 | H13: =AVERAGEIFS('USDA ESALQ weekly IPPs'!$G$10:$G$20000,'USDA ESALQ weekly IPPs'!$B$10:$B$20000,">="&$D13,'USDA ESALQ weekly IPPs'!$B$10:$B$20000,"<="&$E13) -> 0.03231785106 | I13: =AVERAGEIFS('USDA ESALQ weekly IPPs'!$H$10:$H$20000,'USDA ESALQ weekly IPPs'!$B$10:$B$20000,">="&$D13,'USDA ESALQ weekly IPPs'!$B$10:$B$20000,"<="&$E13) -> 0.0702354756 | J13: =AVERAGEIFS('USDA ESALQ weekly IPPs'!$I$10:$I$20000,'USDA ESALQ weekly IPPs'!$B$10:$B$20000,">="&$D13,'USDA ESALQ weekly IPPs'!$B$10:$B$20000,"<="&$E13) -> 0.003066686101 | K13: =AVERAGEIFS('USDA ESALQ weekly IPPs'!$J$10:$J$20000,'USDA ESALQ weekly IPPs'!$B$10:$B$20000,">="&$D13,'USDA ESALQ weekly IPPs'!$B$10:$B$20000,"<="&$E13) -> 0.0102611081 | L13: =AVERAGEIFS('USDA ESALQ weekly IPPs'!$L$10:$L$20000,'USDA ESALQ weekly IPPs'!$B$10:$B$20000,">="&$D13,'USDA ESALQ weekly IPPs'!$B$10:$B$20000,"<="&$E13) -> 0.38143 | M13: =AVERAGEIFS('USDA ESALQ weekly IPPs'!$M$10:$M$20000,'USDA ESALQ weekly IPPs'!$B$10:$B$20000,">="&$D13,'USDA ESALQ weekly IPPs'!$B$10:$B$20000,"<="&$E13) -> 0.001917999 | N13: =AVERAGEIFS('USDA ESALQ weekly IPPs'!$N$10:$N$20000,'USDA ESALQ weekly IPPs'!$B$10:$B$20000,">="&$D13,'USDA ESALQ weekly IPPs'!$B$10:$B$20000,"<="&$E13) -> 0.03 | O13: =AVERAGEIFS('USDA ESALQ weekly IPPs'!$O$10:$O$20000,'USDA ESALQ weekly IPPs'!$B$10:$B$20000,">="&$D13,'USDA ESALQ weekly IPPs'!$B$10:$B$20000,"<="&$E13) -> 0.015 | P13: 120.8347318 | Q13: 120.8347318 | S13: =NA() ->  | U13: 2024-09-01
B14: 2014-01-01 | C14: 2014-03-31 | D14: 2013-03-01 | E14: 2013-11-30 | F14: =AVERAGEIFS('USDA ESALQ weekly IPPs'!$E$10:$E$20000,'USDA ESALQ weekly IPPs'!$B$10:$B$20000,">="&$D14,'USDA ESALQ weekly IPPs'!$B$10:$B$20000,"<="&$E14) -> 0.6153209421 | G14: =AVERAGEIFS('USDA ESALQ weekly IPPs'!$F$10:$F$20000,'USDA ESALQ weekly IPPs'!$B$10:$B$20000,">="&$D14,'USDA ESALQ weekly IPPs'!$B$10:$B$20000,"<="&$E14) -> 0.05292554493 | H14: =AVERAGEIFS('USDA ESALQ weekly IPPs'!$G$10:$G$20000,'USDA ESALQ weekly IPPs'!$B$10:$B$20000,">="&$D14,'USDA ESALQ weekly IPPs'!$B$10:$B$20000,"<="&$E14) -> 0.03398269642 | I14: =AVERAGEIFS('USDA ESALQ weekly IPPs'!$H$10:$H$20000,'USDA ESALQ weekly IPPs'!$B$10:$B$20000,">="&$D14,'USDA ESALQ weekly IPPs'!$B$10:$B$20000,"<="&$E14) -> 0.07257836329 | J14: =AVERAGEIFS('USDA ESALQ weekly IPPs'!$I$10:$I$20000,'USDA ESALQ weekly IPPs'!$B$10:$B$20000,">="&$D14,'USDA ESALQ weekly IPPs'!$B$10:$B$20000,"<="&$E14) -> 0.003099230187 | K14: =AVERAGEIFS('USDA ESALQ weekly IPPs'!$J$10:$J$20000,'USDA ESALQ weekly IPPs'!$B$10:$B$20000,">="&$D14,'USDA ESALQ weekly IPPs'!$B$10:$B$20000,"<="&$E14) -> 0.01140260768 | L14: =AVERAGEIFS('USDA ESALQ weekly IPPs'!$L$10:$L$20000,'USDA ESALQ weekly IPPs'!$B$10:$B$20000,">="&$D14,'USDA ESALQ weekly IPPs'!$B$10:$B$20000,"<="&$E14) -> 0.38143 | M14: =AVERAGEIFS('USDA ESALQ weekly IPPs'!$M$10:$M$20000,'USDA ESALQ weekly IPPs'!$B$10:$B$20000,">="&$D14,'USDA ESALQ weekly IPPs'!$B$10:$B$20000,"<="&$E14) -> 0.001917999 | N14: =AVERAGEIFS('USDA ESALQ weekly IPPs'!$N$10:$N$20000,'USDA ESALQ weekly IPPs'!$B$10:$B$20000,">="&$D14,'USDA ESALQ weekly IPPs'!$B$10:$B$20000,"<="&$E14) -> 0.03 | O14: =AVERAGEIFS('USDA ESALQ weekly IPPs'!$O$10:$O$20000,'USDA ESALQ weekly IPPs'!$B$10:$B$20000,">="&$D14,'USDA ESALQ weekly IPPs'!$B$10:$B$20000,"<="&$E14) -> 0.015 | P14: 121.7657384 | Q14: 121.7657384 | S14: =NA() ->  | U14: 2024-03-01
B15: 2014-04-01 | C15: 2014-06-30 | D15: 2013-06-01 | E15: 2014-02-28 | F15: =AVERAGEIFS('USDA ESALQ weekly IPPs'!$E$10:$E$20000,'USDA ESALQ weekly IPPs'!$B$10:$B$20000,">="&$D15,'USDA ESALQ weekly IPPs'!$B$10:$B$20000,"<="&$E15) -> 0.6083680719 | G15: =AVERAGEIFS('USDA ESALQ weekly IPPs'!$F$10:$F$20000,'USDA ESALQ weekly IPPs'!$B$10:$B$20000,">="&$D15,'USDA ESALQ weekly IPPs'!$B$10:$B$20000,"<="&$E15) -> 0.05566431237 | H15: =AVERAGEIFS('USDA ESALQ weekly IPPs'!$G$10:$G$20000,'USDA ESALQ weekly IPPs'!$B$10:$B$20000,">="&$D15,'USDA ESALQ weekly IPPs'!$B$10:$B$20000,"<="&$E15) -> 0.03474517172 | I15: =AVERAGEIFS('USDA ESALQ weekly IPPs'!$H$10:$H$20000,'USDA ESALQ weekly IPPs'!$B$10:$B$20000,">="&$D15,'USDA ESALQ weekly IPPs'!$B$10:$B$20000,"<="&$E15) -> 0.07595497808 | J15: =AVERAGEIFS('USDA ESALQ weekly IPPs'!$I$10:$I$20000,'USDA ESALQ weekly IPPs'!$B$10:$B$20000,">="&$D15,'USDA ESALQ weekly IPPs'!$B$10:$B$20000,"<="&$E15) -> 0.003098930136 | K15: =AVERAGEIFS('USDA ESALQ weekly IPPs'!$J$10:$J$20000,'USDA ESALQ weekly IPPs'!$B$10:$B$20000,">="&$D15,'USDA ESALQ weekly IPPs'!$B$10:$B$20000,"<="&$E15) -> 0.01093658565 | L15: =AVERAGEIFS('USDA ESALQ weekly IPPs'!$L$10:$L$20000,'USDA ESALQ weekly IPPs'!$B$10:$B$20000,">="&$D15,'USDA ESALQ weekly IPPs'!$B$10:$B$20000,"<="&$E15) -> 0.38143 | M15: =AVERAGEIFS('USDA ESALQ weekly IPPs'!$M$10:$M$20000,'USDA ESALQ weekly IPPs'!$B$10:$B$20000,">="&$D15,'USDA ESALQ weekly IPPs'!$B$10:$B$20000,"<="&$E15) -> 0.001917999 | N15: =AVERAGEIFS('USDA ESALQ weekly IPPs'!$N$10:$N$20000,'USDA ESALQ weekly IPPs'!$B$10:$B$20000,">="&$D15,'USDA ESALQ weekly IPPs'!$B$10:$B$20000,"<="&$E15) -> 0.03 | O15: =AVERAGEIFS('USDA ESALQ weekly IPPs'!$O$10:$O$20000,'USDA ESALQ weekly IPPs'!$B$10:$B$20000,">="&$D15,'USDA ESALQ weekly IPPs'!$B$10:$B$20000,"<="&$E15) -> 0.015 | P15: 121.7116049 | Q15: 121.7116049 | S15: =NA() ->  | U15: 2024-01-01
B16: 2014-07-01 | C16: 2014-09-30 | D16: 2013-09-01 | E16: 2014-05-31 | F16: =AVERAGEIFS('USDA ESALQ weekly IPPs'!$E$10:$E$20000,'USDA ESALQ weekly IPPs'!$B$10:$B$20000,">="&$D16,'USDA ESALQ weekly IPPs'!$B$10:$B$20000,"<="&$E16) -> 0.6314078067 | G16: =AVERAGEIFS('USDA ESALQ weekly IPPs'!$F$10:$F$20000,'USDA ESALQ weekly IPPs'!$B$10:$B$20000,">="&$D16,'USDA ESALQ weekly IPPs'!$B$10:$B$20000,"<="&$E16) -> 0.05802759798 | H16: =AVERAGEIFS('USDA ESALQ weekly IPPs'!$G$10:$G$20000,'USDA ESALQ weekly IPPs'!$B$10:$B$20000,">="&$D16,'USDA ESALQ weekly IPPs'!$B$10:$B$20000,"<="&$E16) -> 0.03020481097 | I16: =AVERAGEIFS('USDA ESALQ weekly IPPs'!$H$10:$H$20000,'USDA ESALQ weekly IPPs'!$B$10:$B$20000,">="&$D16,'USDA ESALQ weekly IPPs'!$B$10:$B$20000,"<="&$E16) -> 0.0760875723 | J16: =AVERAGEIFS('USDA ESALQ weekly IPPs'!$I$10:$I$20000,'USDA ESALQ weekly IPPs'!$B$10:$B$20000,">="&$D16,'USDA ESALQ weekly IPPs'!$B$10:$B$20000,"<="&$E16) -> 0.003182911152 | K16: =AVERAGEIFS('USDA ESALQ weekly IPPs'!$J$10:$J$20000,'USDA ESALQ weekly IPPs'!$B$10:$B$20000,">="&$D16,'USDA ESALQ weekly IPPs'!$B$10:$B$20000,"<="&$E16) -> 0.005665899932 | L16: =AVERAGEIFS('USDA ESALQ weekly IPPs'!$L$10:$L$20000,'USDA ESALQ weekly IPPs'!$B$10:$B$20000,">="&$D16,'USDA ESALQ weekly IPPs'!$B$10:$B$20000,"<="&$E16) -> 0.38143 | M16: =AVERAGEIFS('USDA ESALQ weekly IPPs'!$M$10:$M$20000,'USDA ESALQ weekly IPPs'!$B$10:$B$20000,">="&$D16,'USDA ESALQ weekly IPPs'!$B$10:$B$20000,"<="&$E16) -> 0.001917999 | N16: =AVERAGEIFS('USDA ESALQ weekly IPPs'!$N$10:$N$20000,'USDA ESALQ weekly IPPs'!$B$10:$B$20000,">="&$D16,'USDA ESALQ weekly IPPs'!$B$10:$B$20000,"<="&$E16) -> 0.03 | O16: =AVERAGEIFS('USDA ESALQ weekly IPPs'!$O$10:$O$20000,'USDA ESALQ weekly IPPs'!$B$10:$B$20000,">="&$D16,'USDA ESALQ weekly IPPs'!$B$10:$B$20000,"<="&$E16) -> 0.015 | P16: 123.2924598 | Q16: 123.2924598 | S16: =NA() ->  | U16: 2023-09-01
B17: 2014-10-01 | C17: 2014-12-31 | D17: 2013-12-01 | E17: 2014-08-31 | F17: =AVERAGEIFS('USDA ESALQ weekly IPPs'!$E$10:$E$20000,'USDA ESALQ weekly IPPs'!$B$10:$B$20000,">="&$D17,'USDA ESALQ weekly IPPs'!$B$10:$B$20000,"<="&$E17) -> 0.6366186502 | G17: =AVERAGEIFS('USDA ESALQ weekly IPPs'!$F$10:$F$20000,'USDA ESALQ weekly IPPs'!$B$10:$B$20000,">="&$D17,'USDA ESALQ weekly IPPs'!$B$10:$B$20000,"<="&$E17) -> 0.0587453451 | H17: =AVERAGEIFS('USDA ESALQ weekly IPPs'!$G$10:$G$20000,'USDA ESALQ weekly IPPs'!$B$10:$B$20000,">="&$D17,'USDA ESALQ weekly IPPs'!$B$10:$B$20000,"<="&$E17) -> 0.02915835881 | I17: =AVERAGEIFS('USDA ESALQ weekly IPPs'!$H$10:$H$20000,'USDA ESALQ weekly IPPs'!$B$10:$B$20000,">="&$D17,'USDA ESALQ weekly IPPs'!$B$10:$B$20000,"<="&$E17) -> 0.07619257878 | J17: =AVERAGEIFS('USDA ESALQ weekly IPPs'!$I$10:$I$20000,'USDA ESALQ weekly IPPs'!$B$10:$B$20000,">="&$D17,'USDA ESALQ weekly IPPs'!$B$10:$B$20000,"<="&$E17) -> 0.003202859731 | K17: =AVERAGEIFS('USDA ESALQ weekly IPPs'!$J$10:$J$20000,'USDA ESALQ weekly IPPs'!$B$10:$B$20000,">="&$D17,'USDA ESALQ weekly IPPs'!$B$10:$B$20000,"<="&$E17) -> 0.004232025795 | L17: =AVERAGEIFS('USDA ESALQ weekly IPPs'!$L$10:$L$20000,'USDA ESALQ weekly IPPs'!$B$10:$B$20000,">="&$D17,'USDA ESALQ weekly IPPs'!$B$10:$B$20000,"<="&$E17) -> 0.38143 | M17: =AVERAGEIFS('USDA ESALQ weekly IPPs'!$M$10:$M$20000,'USDA ESALQ weekly IPPs'!$B$10:$B$20000,">="&$D17,'USDA ESALQ weekly IPPs'!$B$10:$B$20000,"<="&$E17) -> 0.001917999 | N17: =AVERAGEIFS('USDA ESALQ weekly IPPs'!$N$10:$N$20000,'USDA ESALQ weekly IPPs'!$B$10:$B$20000,">="&$D17,'USDA ESALQ weekly IPPs'!$B$10:$B$20000,"<="&$E17) -> 0.03 | O17: =AVERAGEIFS('USDA ESALQ weekly IPPs'!$O$10:$O$20000,'USDA ESALQ weekly IPPs'!$B$10:$B$20000,">="&$D17,'USDA ESALQ weekly IPPs'!$B$10:$B$20000,"<="&$E17) -> 0.015 | P17: 123.6497817 | Q17: 123.6497817 | S17: =NA() ->  | U17: 2023-07-01
B18: 2015-01-01 | C18: 2015-03-31 | D18: 2014-03-01 | E18: 2014-11-30 | F18: =AVERAGEIFS('USDA ESALQ weekly IPPs'!$E$10:$E$20000,'USDA ESALQ weekly IPPs'!$B$10:$B$20000,">="&$D18,'USDA ESALQ weekly IPPs'!$B$10:$B$20000,"<="&$E18) -> 0.6026632173 | G18: =AVERAGEIFS('USDA ESALQ weekly IPPs'!$F$10:$F$20000,'USDA ESALQ weekly IPPs'!$B$10:$B$20000,">="&$D18,'USDA ESALQ weekly IPPs'!$B$10:$B$20000,"<="&$E18) -> 0.05753729612 | H18: =AVERAGEIFS('USDA ESALQ weekly IPPs'!$G$10:$G$20000,'USDA ESALQ weekly IPPs'!$B$10:$B$20000,">="&$D18,'USDA ESALQ weekly IPPs'!$B$10:$B$20000,"<="&$E18) -> 0.03058353796 | I18: =AVERAGEIFS('USDA ESALQ weekly IPPs'!$H$10:$H$20000,'USDA ESALQ weekly IPPs'!$B$10:$B$20000,">="&$D18,'USDA ESALQ weekly IPPs'!$B$10:$B$20000,"<="&$E18) -> 0.07641203379 | J18: =AVERAGEIFS('USDA ESALQ weekly IPPs'!$I$10:$I$20000,'USDA ESALQ weekly IPPs'!$B$10:$B$20000,">="&$D18,'USDA ESALQ weekly IPPs'!$B$10:$B$20000,"<="&$E18) -> 0.003068784341 | K18: =AVERAGEIFS('USDA ESALQ weekly IPPs'!$J$10:$J$20000,'USDA ESALQ weekly IPPs'!$B$10:$B$20000,">="&$D18,'USDA ESALQ weekly IPPs'!$B$10:$B$20000,"<="&$E18) -> 0.006380507712 | L18: =AVERAGEIFS('USDA ESALQ weekly IPPs'!$L$10:$L$20000,'USDA ESALQ weekly IPPs'!$B$10:$B$20000,">="&$D18,'USDA ESALQ weekly IPPs'!$B$10:$B$20000,"<="&$E18) -> 0.3817815385 | M18: =AVERAGEIFS('USDA ESALQ weekly IPPs'!$M$10:$M$20000,'USDA ESALQ weekly IPPs'!$B$10:$B$20000,">="&$D18,'USDA ESALQ weekly IPPs'!$B$10:$B$20000,"<="&$E18) -> 0.001917999 | N18: =AVERAGEIFS('USDA ESALQ weekly IPPs'!$N$10:$N$20000,'USDA ESALQ weekly IPPs'!$B$10:$B$20000,">="&$D18,'USDA ESALQ weekly IPPs'!$B$10:$B$20000,"<="&$E18) -> 0.03 | O18: =AVERAGEIFS('USDA ESALQ weekly IPPs'!$O$10:$O$20000,'USDA ESALQ weekly IPPs'!$B$10:$B$20000,">="&$D18,'USDA ESALQ weekly IPPs'!$B$10:$B$20000,"<="&$E18) -> 0.015 | P18: 120.5344915 | Q18: 120.5344915 | S18: =NA() ->  | U18: 2023-04-01
B19: 2015-04-01 | C19: 2015-06-30 | D19: 2014-06-01 | E19: 2015-02-28 | F19: =AVERAGEIFS('USDA ESALQ weekly IPPs'!$E$10:$E$20000,'USDA ESALQ weekly IPPs'!$B$10:$B$20000,">="&$D19,'USDA ESALQ weekly IPPs'!$B$10:$B$20000,"<="&$E19) -> 0.5376525594 | G19: =AVERAGEIFS('USDA ESALQ weekly IPPs'!$F$10:$F$20000,'USDA ESALQ weekly IPPs'!$B$10:$B$20000,">="&$D19,'USDA ESALQ weekly IPPs'!$B$10:$B$20000,"<="&$E19) -> 0.06153671504 | H19: =AVERAGEIFS('USDA ESALQ weekly IPPs'!$G$10:$G$20000,'USDA ESALQ weekly IPPs'!$B$10:$B$20000,">="&$D19,'USDA ESALQ weekly IPPs'!$B$10:$B$20000,"<="&$E19) -> 0.02954795867 | I19: =AVERAGEIFS('USDA ESALQ weekly IPPs'!$H$10:$H$20000,'USDA ESALQ weekly IPPs'!$B$10:$B$20000,">="&$D19,'USDA ESALQ weekly IPPs'!$B$10:$B$20000,"<="&$E19) -> 0.08024284138 | J19: =AVERAGEIFS('USDA ESALQ weekly IPPs'!$I$10:$I$20000,'USDA ESALQ weekly IPPs'!$B$10:$B$20000,">="&$D19,'USDA ESALQ weekly IPPs'!$B$10:$B$20000,"<="&$E19) -> 0.002835920298 | K19: =AVERAGEIFS('USDA ESALQ weekly IPPs'!$J$10:$J$20000,'USDA ESALQ weekly IPPs'!$B$10:$B$20000,">="&$D19,'USDA ESALQ weekly IPPs'!$B$10:$B$20000,"<="&$E19) -> 0.002900438966 | L19: =AVERAGEIFS('USDA ESALQ weekly IPPs'!$L$10:$L$20000,'USDA ESALQ weekly IPPs'!$B$10:$B$20000,">="&$D19,'USDA ESALQ weekly IPPs'!$B$10:$B$20000,"<="&$E19) -> 0.3836125641 | M19: =AVERAGEIFS('USDA ESALQ weekly IPPs'!$M$10:$M$20000,'USDA ESALQ weekly IPPs'!$B$10:$B$20000,">="&$D19,'USDA ESALQ weekly IPPs'!$B$10:$B$20000,"<="&$E19) -> 0.001917999 | N19: =AVERAGEIFS('USDA ESALQ weekly IPPs'!$N$10:$N$20000,'USDA ESALQ weekly IPPs'!$B$10:$B$20000,">="&$D19,'USDA ESALQ weekly IPPs'!$B$10:$B$20000,"<="&$E19) -> 0.03 | O19: =AVERAGEIFS('USDA ESALQ weekly IPPs'!$O$10:$O$20000,'USDA ESALQ weekly IPPs'!$B$10:$B$20000,">="&$D19,'USDA ESALQ weekly IPPs'!$B$10:$B$20000,"<="&$E19) -> 0.015 | P19: 114.5246997 | Q19: 114.5246997 | S19: =NA() ->  | U19: 2023-01-01
B20: 2015-07-01 | C20: 2015-09-30 | D20: 2014-09-01 | E20: 2015-05-31 | F20: =AVERAGEIFS('USDA ESALQ weekly IPPs'!$E$10:$E$20000,'USDA ESALQ weekly IPPs'!$B$10:$B$20000,">="&$D20,'USDA ESALQ weekly IPPs'!$B$10:$B$20000,"<="&$E20) -> 0.5063576123 | G20: =AVERAGEIFS('USDA ESALQ weekly IPPs'!$F$10:$F$20000,'USDA ESALQ weekly IPPs'!$B$10:$B$20000,">="&$D20,'USDA ESALQ weekly IPPs'!$B$10:$B$20000,"<="&$E20) -> 0.06551570077 | H20: =AVERAGEIFS('USDA ESALQ weekly IPPs'!$G$10:$G$20000,'USDA ESALQ weekly IPPs'!$B$10:$B$20000,">="&$D20,'USDA ESALQ weekly IPPs'!$B$10:$B$20000,"<="&$E20) -> 0.03128921464 | I20: =AVERAGEIFS('USDA ESALQ weekly IPPs'!$H$10:$H$20000,'USDA ESALQ weekly IPPs'!$B$10:$B$20000,">="&$D20,'USDA ESALQ weekly IPPs'!$B$10:$B$20000,"<="&$E20) -> 0.08527918134 | J20: =AVERAGEIFS('USDA ESALQ weekly IPPs'!$I$10:$I$20000,'USDA ESALQ weekly IPPs'!$B$10:$B$20000,">="&$D20,'USDA ESALQ weekly IPPs'!$B$10:$B$20000,"<="&$E20) -> 0.002753766836 | K20: =AVERAGEIFS('USDA ESALQ weekly IPPs'!$J$10:$J$20000,'USDA ESALQ weekly IPPs'!$B$10:$B$20000,">="&$D20,'USDA ESALQ weekly IPPs'!$B$10:$B$20000,"<="&$E20) -> 0.002900438966 | L20: =AVERAGEIFS('USDA ESALQ weekly IPPs'!$L$10:$L$20000,'USDA ESALQ weekly IPPs'!$B$10:$B$20000,">="&$D20,'USDA ESALQ weekly IPPs'!$B$10:$B$20000,"<="&$E20) -> 0.3861358974 | M20: =AVERAGEIFS('USDA ESALQ weekly IPPs'!$M$10:$M$20000,'USDA ESALQ weekly IPPs'!$B$10:$B$20000,">="&$D20,'USDA ESALQ weekly IPPs'!$B$10:$B$20000,"<="&$E20) -> 0.001917999 | N20: =AVERAGEIFS('USDA ESALQ weekly IPPs'!$N$10:$N$20000,'USDA ESALQ weekly IPPs'!$B$10:$B$20000,">="&$D20,'USDA ESALQ weekly IPPs'!$B$10:$B$20000,"<="&$E20) -> 0.03 | O20: =AVERAGEIFS('USDA ESALQ weekly IPPs'!$O$10:$O$20000,'USDA ESALQ weekly IPPs'!$B$10:$B$20000,">="&$D20,'USDA ESALQ weekly IPPs'!$B$10:$B$20000,"<="&$E20) -> 0.015 | P20: 112.7149811 | Q20: 112.7149811 | S20: =NA() ->  | U20: 2022-10-01
B21: 2015-10-01 | C21: 2015-12-31 | D21: 2014-12-01 | E21: 2015-08-31 | F21: =AVERAGEIFS('USDA ESALQ weekly IPPs'!$E$10:$E$20000,'USDA ESALQ weekly IPPs'!$B$10:$B$20000,">="&$D21,'USDA ESALQ weekly IPPs'!$B$10:$B$20000,"<="&$E21) -> 0.5025890046 | G21: =AVERAGEIFS('USDA ESALQ weekly IPPs'!$F$10:$F$20000,'USDA ESALQ weekly IPPs'!$B$10:$B$20000,">="&$D21,'USDA ESALQ weekly IPPs'!$B$10:$B$20000,"<="&$E21) -> 0.06881794403 | H21: =AVERAGEIFS('USDA ESALQ weekly IPPs'!$G$10:$G$20000,'USDA ESALQ weekly IPPs'!$B$10:$B$20000,">="&$D21,'USDA ESALQ weekly IPPs'!$B$10:$B$20000,"<="&$E21) -> 0.03190624593 | I21: =AVERAGEIFS('USDA ESALQ weekly IPPs'!$H$10:$H$20000,'USDA ESALQ weekly IPPs'!$B$10:$B$20000,">="&$D21,'USDA ESALQ weekly IPPs'!$B$10:$B$20000,"<="&$E21) -> 0.09005749777 | J21: =AVERAGEIFS('USDA ESALQ weekly IPPs'!$I$10:$I$20000,'USDA ESALQ weekly IPPs'!$B$10:$B$20000,">="&$D21,'USDA ESALQ weekly IPPs'!$B$10:$B$20000,"<="&$E21) -> 0.002773482769 | K21: =AVERAGEIFS('USDA ESALQ weekly IPPs'!$J$10:$J$20000,'USDA ESALQ weekly IPPs'!$B$10:$B$20000,">="&$D21,'USDA ESALQ weekly IPPs'!$B$10:$B$20000,"<="&$E21) -> 0.001980472753 | L21: =AVERAGEIFS('USDA ESALQ weekly IPPs'!$L$10:$L$20000,'USDA ESALQ weekly IPPs'!$B$10:$B$20000,">="&$D21,'USDA ESALQ weekly IPPs'!$B$10:$B$20000,"<="&$E21) -> 0.3886153846 | M21: =AVERAGEIFS('USDA ESALQ weekly IPPs'!$M$10:$M$20000,'USDA ESALQ weekly IPPs'!$B$10:$B$20000,">="&$D21,'USDA ESALQ weekly IPPs'!$B$10:$B$20000,"<="&$E21) -> 0.001917999 | N21: =AVERAGEIFS('USDA ESALQ weekly IPPs'!$N$10:$N$20000,'USDA ESALQ weekly IPPs'!$B$10:$B$20000,">="&$D21,'USDA ESALQ weekly IPPs'!$B$10:$B$20000,"<="&$E21) -> 0.03 | O21: =AVERAGEIFS('USDA ESALQ weekly IPPs'!$O$10:$O$20000,'USDA ESALQ weekly IPPs'!$B$10:$B$20000,">="&$D21,'USDA ESALQ weekly IPPs'!$B$10:$B$20000,"<="&$E21) -> 0.015 | P21: 113.3658032 | Q21: 113.3658032 | S21: =NA() ->  | U21: 2022-07-01
B22: 2016-01-01 | C22: 2016-03-31 | D22: 2015-03-01 | E22: 2015-11-30 | F22: =AVERAGEIFS('USDA ESALQ weekly IPPs'!$E$10:$E$20000,'USDA ESALQ weekly IPPs'!$B$10:$B$20000,">="&$D22,'USDA ESALQ weekly IPPs'!$B$10:$B$20000,"<="&$E22) -> 0.5138453175 | G22: =AVERAGEIFS('USDA ESALQ weekly IPPs'!$F$10:$F$20000,'USDA ESALQ weekly IPPs'!$B$10:$B$20000,">="&$D22,'USDA ESALQ weekly IPPs'!$B$10:$B$20000,"<="&$E22) -> 0.06685250793 | H22: =AVERAGEIFS('USDA ESALQ weekly IPPs'!$G$10:$G$20000,'USDA ESALQ weekly IPPs'!$B$10:$B$20000,">="&$D22,'USDA ESALQ weekly IPPs'!$B$10:$B$20000,"<="&$E22) -> 0.03300515715 | I22: =AVERAGEIFS('USDA ESALQ weekly IPPs'!$H$10:$H$20000,'USDA ESALQ weekly IPPs'!$B$10:$B$20000,">="&$D22,'USDA ESALQ weekly IPPs'!$B$10:$B$20000,"<="&$E22) -> 0.09360672349 | J22: =AVERAGEIFS('USDA ESALQ weekly IPPs'!$I$10:$I$20000,'USDA ESALQ weekly IPPs'!$B$10:$B$20000,">="&$D22,'USDA ESALQ weekly IPPs'!$B$10:$B$20000,"<="&$E22) -> 0.002829238824 | K22: =AVERAGEIFS('USDA ESALQ weekly IPPs'!$J$10:$J$20000,'USDA ESALQ weekly IPPs'!$B$10:$B$20000,">="&$D22,'USDA ESALQ weekly IPPs'!$B$10:$B$20000,"<="&$E22) -> 0.004261744789 | L22: =AVERAGEIFS('USDA ESALQ weekly IPPs'!$L$10:$L$20000,'USDA ESALQ weekly IPPs'!$B$10:$B$20000,">="&$D22,'USDA ESALQ weekly IPPs'!$B$10:$B$20000,"<="&$E22) -> 0.3903076923 | M22: =AVERAGEIFS('USDA ESALQ weekly IPPs'!$M$10:$M$20000,'USDA ESALQ weekly IPPs'!$B$10:$B$20000,">="&$D22,'USDA ESALQ weekly IPPs'!$B$10:$B$20000,"<="&$E22) -> 0.001917999 | N22: =AVERAGEIFS('USDA ESALQ weekly IPPs'!$N$10:$N$20000,'USDA ESALQ weekly IPPs'!$B$10:$B$20000,">="&$D22,'USDA ESALQ weekly IPPs'!$B$10:$B$20000,"<="&$E22) -> 0.03 | O22: =AVERAGEIFS('USDA ESALQ weekly IPPs'!$O$10:$O$20000,'USDA ESALQ weekly IPPs'!$B$10:$B$20000,">="&$D22,'USDA ESALQ weekly IPPs'!$B$10:$B$20000,"<="&$E22) -> 0.015 | P22: 115.1626381 | Q22: 115.1626381 | S22: =NA() ->  | U22: 2022-04-01
B23: 2016-04-01 | C23: 2016-06-30 | D23: 2015-06-01 | E23: 2016-02-29 | F23: =AVERAGEIFS('USDA ESALQ weekly IPPs'!$E$10:$E$20000,'USDA ESALQ weekly IPPs'!$B$10:$B$20000,">="&$D23,'USDA ESALQ weekly IPPs'!$B$10:$B$20000,"<="&$E23) -> 0.5053269794 | G23: =AVERAGEIFS('USDA ESALQ weekly IPPs'!$F$10:$F$20000,'USDA ESALQ weekly IPPs'!$B$10:$B$20000,">="&$D23,'USDA ESALQ weekly IPPs'!$B$10:$B$20000,"<="&$E23) -> 0.0689961259 | H23: =AVERAGEIFS('USDA ESALQ weekly IPPs'!$G$10:$G$20000,'USDA ESALQ weekly IPPs'!$B$10:$B$20000,">="&$D23,'USDA ESALQ weekly IPPs'!$B$10:$B$20000,"<="&$E23) -> 0.03394323228 | I23: =AVERAGEIFS('USDA ESALQ weekly IPPs'!$H$10:$H$20000,'USDA ESALQ weekly IPPs'!$B$10:$B$20000,">="&$D23,'USDA ESALQ weekly IPPs'!$B$10:$B$20000,"<="&$E23) -> 0.09631997496 | J23: =AVERAGEIFS('USDA ESALQ weekly IPPs'!$I$10:$I$20000,'USDA ESALQ weekly IPPs'!$B$10:$B$20000,">="&$D23,'USDA ESALQ weekly IPPs'!$B$10:$B$20000,"<="&$E23) -> 0.00281834525 | K23: =AVERAGEIFS('USDA ESALQ weekly IPPs'!$J$10:$J$20000,'USDA ESALQ weekly IPPs'!$B$10:$B$20000,">="&$D23,'USDA ESALQ weekly IPPs'!$B$10:$B$20000,"<="&$E23) -> 0.004261744789 | L23: =AVERAGEIFS('USDA ESALQ weekly IPPs'!$L$10:$L$20000,'USDA ESALQ weekly IPPs'!$B$10:$B$20000,">="&$D23,'USDA ESALQ weekly IPPs'!$B$10:$B$20000,"<="&$E23) -> 0.3916153846 | M23: =AVERAGEIFS('USDA ESALQ weekly IPPs'!$M$10:$M$20000,'USDA ESALQ weekly IPPs'!$B$10:$B$20000,">="&$D23,'USDA ESALQ weekly IPPs'!$B$10:$B$20000,"<="&$E23) -> 0.001917999 | N23: =AVERAGEIFS('USDA ESALQ weekly IPPs'!$N$10:$N$20000,'USDA ESALQ weekly IPPs'!$B$10:$B$20000,">="&$D23,'USDA ESALQ weekly IPPs'!$B$10:$B$20000,"<="&$E23) -> 0.03 | O23: =AVERAGEIFS('USDA ESALQ weekly IPPs'!$O$10:$O$20000,'USDA ESALQ weekly IPPs'!$B$10:$B$20000,">="&$D23,'USDA ESALQ weekly IPPs'!$B$10:$B$20000,"<="&$E23) -> 0.015 | P23: 115.0199786 | Q23: 115.0199786 | S23: =NA() ->  | U23: 2022-01-01
B24: 2016-07-01 | C24: 2016-09-30 | D24: 2015-09-01 | E24: 2016-05-31 | F24: =AVERAGEIFS('USDA ESALQ weekly IPPs'!$E$10:$E$20000,'USDA ESALQ weekly IPPs'!$B$10:$B$20000,">="&$D24,'USDA ESALQ weekly IPPs'!$B$10:$B$20000,"<="&$E24) -> 0.4984209751 | G24: =AVERAGEIFS('USDA ESALQ weekly IPPs'!$F$10:$F$20000,'USDA ESALQ weekly IPPs'!$B$10:$B$20000,">="&$D24,'USDA ESALQ weekly IPPs'!$B$10:$B$20000,"<="&$E24) -> 0.07088345595 | H24: =AVERAGEIFS('USDA ESALQ weekly IPPs'!$G$10:$G$20000,'USDA ESALQ weekly IPPs'!$B$10:$B$20000,">="&$D24,'USDA ESALQ weekly IPPs'!$B$10:$B$20000,"<="&$E24) -> 0.03364338873 | I24: =AVERAGEIFS('USDA ESALQ weekly IPPs'!$H$10:$H$20000,'USDA ESALQ weekly IPPs'!$B$10:$B$20000,">="&$D24,'USDA ESALQ weekly IPPs'!$B$10:$B$20000,"<="&$E24) -> 0.09636175665 | J24: =AVERAGEIFS('USDA ESALQ weekly IPPs'!$I$10:$I$20000,'USDA ESALQ weekly IPPs'!$B$10:$B$20000,">="&$D24,'USDA ESALQ weekly IPPs'!$B$10:$B$20000,"<="&$E24) -> 0.002797238306 | K24: =AVERAGEIFS('USDA ESALQ weekly IPPs'!$J$10:$J$20000,'USDA ESALQ weekly IPPs'!$B$10:$B$20000,">="&$D24,'USDA ESALQ weekly IPPs'!$B$10:$B$20000,"<="&$E24) -> 0.003033229085 | L24: =AVERAGEIFS('USDA ESALQ weekly IPPs'!$L$10:$L$20000,'USDA ESALQ weekly IPPs'!$B$10:$B$20000,">="&$D24,'USDA ESALQ weekly IPPs'!$B$10:$B$20000,"<="&$E24) -> 0.3933076923 | M24: =AVERAGEIFS('USDA ESALQ weekly IPPs'!$M$10:$M$20000,'USDA ESALQ weekly IPPs'!$B$10:$B$20000,">="&$D24,'USDA ESALQ weekly IPPs'!$B$10:$B$20000,"<="&$E24) -> 0.001917999 | N24: =AVERAGEIFS('USDA ESALQ weekly IPPs'!$N$10:$N$20000,'USDA ESALQ weekly IPPs'!$B$10:$B$20000,">="&$D24,'USDA ESALQ weekly IPPs'!$B$10:$B$20000,"<="&$E24) -> 0.03 | O24: =AVERAGEIFS('USDA ESALQ weekly IPPs'!$O$10:$O$20000,'USDA ESALQ weekly IPPs'!$B$10:$B$20000,">="&$D24,'USDA ESALQ weekly IPPs'!$B$10:$B$20000,"<="&$E24) -> 0.015 | P24: 114.5365735 | Q24: 114.5365735 | S24: =NA() ->  | U24: 2021-10-01
B25: 2016-10-01 | C25: 2016-12-31 | D25: 2015-12-01 | E25: 2016-08-31 | F25: =AVERAGEIFS('USDA ESALQ weekly IPPs'!$E$10:$E$20000,'USDA ESALQ weekly IPPs'!$B$10:$B$20000,">="&$D25,'USDA ESALQ weekly IPPs'!$B$10:$B$20000,"<="&$E25) -> 0.4947510395 | G25: =AVERAGEIFS('USDA ESALQ weekly IPPs'!$F$10:$F$20000,'USDA ESALQ weekly IPPs'!$B$10:$B$20000,">="&$D25,'USDA ESALQ weekly IPPs'!$B$10:$B$20000,"<="&$E25) -> 0.07499865501 | H25: =AVERAGEIFS('USDA ESALQ weekly IPPs'!$G$10:$G$20000,'USDA ESALQ weekly IPPs'!$B$10:$B$20000,">="&$D25,'USDA ESALQ weekly IPPs'!$B$10:$B$20000,"<="&$E25) -> 0.03282038791 | I25: =AVERAGEIFS('USDA ESALQ weekly IPPs'!$H$10:$H$20000,'USDA ESALQ weekly IPPs'!$B$10:$B$20000,">="&$D25,'USDA ESALQ weekly IPPs'!$B$10:$B$20000,"<="&$E25) -> 0.09492839344 | J25: =AVERAGEIFS('USDA ESALQ weekly IPPs'!$I$10:$I$20000,'USDA ESALQ weekly IPPs'!$B$10:$B$20000,">="&$D25,'USDA ESALQ weekly IPPs'!$B$10:$B$20000,"<="&$E25) -> 0.002789993904 | K25: =AVERAGEIFS('USDA ESALQ weekly IPPs'!$J$10:$J$20000,'USDA ESALQ weekly IPPs'!$B$10:$B$20000,">="&$D25,'USDA ESALQ weekly IPPs'!$B$10:$B$20000,"<="&$E25) -> 0 | L25: =AVERAGEIFS('USDA ESALQ weekly IPPs'!$L$10:$L$20000,'USDA ESALQ weekly IPPs'!$B$10:$B$20000,">="&$D25,'USDA ESALQ weekly IPPs'!$B$10:$B$20000,"<="&$E25) -> 0.3944102564 | M25: =AVERAGEIFS('USDA ESALQ weekly IPPs'!$M$10:$M$20000,'USDA ESALQ weekly IPPs'!$B$10:$B$20000,">="&$D25,'USDA ESALQ weekly IPPs'!$B$10:$B$20000,"<="&$E25) -> 0.001927106308 | N25: =AVERAGEIFS('USDA ESALQ weekly IPPs'!$N$10:$N$20000,'USDA ESALQ weekly IPPs'!$B$10:$B$20000,">="&$D25,'USDA ESALQ weekly IPPs'!$B$10:$B$20000,"<="&$E25) -> 0.03 | O25: =AVERAGEIFS('USDA ESALQ weekly IPPs'!$O$10:$O$20000,'USDA ESALQ weekly IPPs'!$B$10:$B$20000,">="&$D25,'USDA ESALQ weekly IPPs'!$B$10:$B$20000,"<="&$E25) -> 0.015 | P25: 114.1625833 | Q25: 114.1625833 | S25: =NA() ->  | U25: 2021-07-01
B26: 2017-01-01 | C26: 2017-03-31 | D26: 2016-03-01 | E26: 2016-11-30 | F26: =AVERAGEIFS('USDA ESALQ weekly IPPs'!$E$10:$E$20000,'USDA ESALQ weekly IPPs'!$B$10:$B$20000,">="&$D26,'USDA ESALQ weekly IPPs'!$B$10:$B$20000,"<="&$E26) -> 0.5083595476 | G26: =AVERAGEIFS('USDA ESALQ weekly IPPs'!$F$10:$F$20000,'USDA ESALQ weekly IPPs'!$B$10:$B$20000,">="&$D26,'USDA ESALQ weekly IPPs'!$B$10:$B$20000,"<="&$E26) -> 0.07347881985 | H26: =AVERAGEIFS('USDA ESALQ weekly IPPs'!$G$10:$G$20000,'USDA ESALQ weekly IPPs'!$B$10:$B$20000,">="&$D26,'USDA ESALQ weekly IPPs'!$B$10:$B$20000,"<="&$E26) -> 0.03215528825 | I26: =AVERAGEIFS('USDA ESALQ weekly IPPs'!$H$10:$H$20000,'USDA ESALQ weekly IPPs'!$B$10:$B$20000,">="&$D26,'USDA ESALQ weekly IPPs'!$B$10:$B$20000,"<="&$E26) -> 0.09300468547 | J26: =AVERAGEIFS('USDA ESALQ weekly IPPs'!$I$10:$I$20000,'USDA ESALQ weekly IPPs'!$B$10:$B$20000,">="&$D26,'USDA ESALQ weekly IPPs'!$B$10:$B$20000,"<="&$E26) -> 0.002827993365 | K26: =AVERAGEIFS('USDA ESALQ weekly IPPs'!$J$10:$J$20000,'USDA ESALQ weekly IPPs'!$B$10:$B$20000,">="&$D26,'USDA ESALQ weekly IPPs'!$B$10:$B$20000,"<="&$E26) -> 0 | L26: =AVERAGEIFS('USDA ESALQ weekly IPPs'!$L$10:$L$20000,'USDA ESALQ weekly IPPs'!$B$10:$B$20000,">="&$D26,'USDA ESALQ weekly IPPs'!$B$10:$B$20000,"<="&$E26) -> 0.3954358974 | M26: =AVERAGEIFS('USDA ESALQ weekly IPPs'!$M$10:$M$20000,'USDA ESALQ weekly IPPs'!$B$10:$B$20000,">="&$D26,'USDA ESALQ weekly IPPs'!$B$10:$B$20000,"<="&$E26) -> 0.001940261308 | N26: =AVERAGEIFS('USDA ESALQ weekly IPPs'!$N$10:$N$20000,'USDA ESALQ weekly IPPs'!$B$10:$B$20000,">="&$D26,'USDA ESALQ weekly IPPs'!$B$10:$B$20000,"<="&$E26) -> 0.03 | O26: =AVERAGEIFS('USDA ESALQ weekly IPPs'!$O$10:$O$20000,'USDA ESALQ weekly IPPs'!$B$10:$B$20000,">="&$D26,'USDA ESALQ weekly IPPs'!$B$10:$B$20000,"<="&$E26) -> 0.015 | P26: 115.2202493 | R26: 115.2202493 | S26: =NA() ->  | U26: 2021-04-01
B27: 2017-04-01 | C27: 2017-06-30 | D27: 2016-06-01 | E27: 2017-02-28 | F27: =AVERAGEIFS('USDA ESALQ weekly IPPs'!$E$10:$E$20000,'USDA ESALQ weekly IPPs'!$B$10:$B$20000,">="&$D27,'USDA ESALQ weekly IPPs'!$B$10:$B$20000,"<="&$E27) -> 0.5209287949 | G27: =AVERAGEIFS('USDA ESALQ weekly IPPs'!$F$10:$F$20000,'USDA ESALQ weekly IPPs'!$B$10:$B$20000,">="&$D27,'USDA ESALQ weekly IPPs'!$B$10:$B$20000,"<="&$E27) -> 0.07353320872 | H27: =AVERAGEIFS('USDA ESALQ weekly IPPs'!$G$10:$G$20000,'USDA ESALQ weekly IPPs'!$B$10:$B$20000,">="&$D27,'USDA ESALQ weekly IPPs'!$B$10:$B$20000,"<="&$E27) -> 0.03217908953 | I27: =AVERAGEIFS('USDA ESALQ weekly IPPs'!$H$10:$H$20000,'USDA ESALQ weekly IPPs'!$B$10:$B$20000,">="&$D27,'USDA ESALQ weekly IPPs'!$B$10:$B$20000,"<="&$E27) -> 0.09307352734 | J27: =AVERAGEIFS('USDA ESALQ weekly IPPs'!$I$10:$I$20000,'USDA ESALQ weekly IPPs'!$B$10:$B$20000,">="&$D27,'USDA ESALQ weekly IPPs'!$B$10:$B$20000,"<="&$E27) -> 0.002878858482 | K27: =AVERAGEIFS('USDA ESALQ weekly IPPs'!$J$10:$J$20000,'USDA ESALQ weekly IPPs'!$B$10:$B$20000,">="&$D27,'USDA ESALQ weekly IPPs'!$B$10:$B$20000,"<="&$E27) -> 0 | L27: =AVERAGEIFS('USDA ESALQ weekly IPPs'!$L$10:$L$20000,'USDA ESALQ weekly IPPs'!$B$10:$B$20000,">="&$D27,'USDA ESALQ weekly IPPs'!$B$10:$B$20000,"<="&$E27) -> 0.3962820513 | M27: =AVERAGEIFS('USDA ESALQ weekly IPPs'!$M$10:$M$20000,'USDA ESALQ weekly IPPs'!$B$10:$B$20000,">="&$D27,'USDA ESALQ weekly IPPs'!$B$10:$B$20000,"<="&$E27) -> 0.001953416308 | N27: =AVERAGEIFS('USDA ESALQ weekly IPPs'!$N$10:$N$20000,'USDA ESALQ weekly IPPs'!$B$10:$B$20000,">="&$D27,'USDA ESALQ weekly IPPs'!$B$10:$B$20000,"<="&$E27) -> 0.03 | O27: =AVERAGEIFS('USDA ESALQ weekly IPPs'!$O$10:$O$20000,'USDA ESALQ weekly IPPs'!$B$10:$B$20000,">="&$D27,'USDA ESALQ weekly IPPs'!$B$10:$B$20000,"<="&$E27) -> 0.015 | P27: 116.5828947 | R27: 116.5828947 | S27: =NA() ->  | U27: 2021-01-01
B28: 2017-07-01 | C28: 2017-09-30 | D28: 2016-09-01 | E28: 2017-05-31 | F28: =AVERAGEIFS('USDA ESALQ weekly IPPs'!$E$10:$E$20000,'USDA ESALQ weekly IPPs'!$B$10:$B$20000,">="&$D28,'USDA ESALQ weekly IPPs'!$B$10:$B$20000,"<="&$E28) -> 0.5205866908 | G28: =AVERAGEIFS('USDA ESALQ weekly IPPs'!$F$10:$F$20000,'USDA ESALQ weekly IPPs'!$B$10:$B$20000,">="&$D28,'USDA ESALQ weekly IPPs'!$B$10:$B$20000,"<="&$E28) -> 0.07342871578 | H28: =AVERAGEIFS('USDA ESALQ weekly IPPs'!$G$10:$G$20000,'USDA ESALQ weekly IPPs'!$B$10:$B$20000,">="&$D28,'USDA ESALQ weekly IPPs'!$B$10:$B$20000,"<="&$E28) -> 0.03213336206 | I28: =AVERAGEIFS('USDA ESALQ weekly IPPs'!$H$10:$H$20000,'USDA ESALQ weekly IPPs'!$B$10:$B$20000,">="&$D28,'USDA ESALQ weekly IPPs'!$B$10:$B$20000,"<="&$E28) -> 0.09294126703 | J28: =AVERAGEIFS('USDA ESALQ weekly IPPs'!$I$10:$I$20000,'USDA ESALQ weekly IPPs'!$B$10:$B$20000,">="&$D28,'USDA ESALQ weekly IPPs'!$B$10:$B$20000,"<="&$E28) -> 0.002876360143 | K28: =AVERAGEIFS('USDA ESALQ weekly IPPs'!$J$10:$J$20000,'USDA ESALQ weekly IPPs'!$B$10:$B$20000,">="&$D28,'USDA ESALQ weekly IPPs'!$B$10:$B$20000,"<="&$E28) -> 0 | L28: =AVERAGEIFS('USDA ESALQ weekly IPPs'!$L$10:$L$20000,'USDA ESALQ weekly IPPs'!$B$10:$B$20000,">="&$D28,'USDA ESALQ weekly IPPs'!$B$10:$B$20000,"<="&$E28) -> 0.3981794872 | M28: =AVERAGEIFS('USDA ESALQ weekly IPPs'!$M$10:$M$20000,'USDA ESALQ weekly IPPs'!$B$10:$B$20000,">="&$D28,'USDA ESALQ weekly IPPs'!$B$10:$B$20000,"<="&$E28) -> 0.001957464 | N28: =AVERAGEIFS('USDA ESALQ weekly IPPs'!$N$10:$N$20000,'USDA ESALQ weekly IPPs'!$B$10:$B$20000,">="&$D28,'USDA ESALQ weekly IPPs'!$B$10:$B$20000,"<="&$E28) -> 0.03 | O28: =AVERAGEIFS('USDA ESALQ weekly IPPs'!$O$10:$O$20000,'USDA ESALQ weekly IPPs'!$B$10:$B$20000,">="&$D28,'USDA ESALQ weekly IPPs'!$B$10:$B$20000,"<="&$E28) -> 0.015 | P28: 116.7103347 | R28: 116.7103347 | S28: =NA() ->  | U28: 2020-10-01
B29: 2017-10-01 | C29: 2017-12-31 | D29: 2016-12-01 | E29: 2017-08-31 | F29: =AVERAGEIFS('USDA ESALQ weekly IPPs'!$E$10:$E$20000,'USDA ESALQ weekly IPPs'!$B$10:$B$20000,">="&$D29,'USDA ESALQ weekly IPPs'!$B$10:$B$20000,"<="&$E29) -> 0.5175183913 | G29: =AVERAGEIFS('USDA ESALQ weekly IPPs'!$F$10:$F$20000,'USDA ESALQ weekly IPPs'!$B$10:$B$20000,">="&$D29,'USDA ESALQ weekly IPPs'!$B$10:$B$20000,"<="&$E29) -> 0.07297759133 | H29: =AVERAGEIFS('USDA ESALQ weekly IPPs'!$G$10:$G$20000,'USDA ESALQ weekly IPPs'!$B$10:$B$20000,">="&$D29,'USDA ESALQ weekly IPPs'!$B$10:$B$20000,"<="&$E29) -> 0.03193594413 | I29: =AVERAGEIFS('USDA ESALQ weekly IPPs'!$H$10:$H$20000,'USDA ESALQ weekly IPPs'!$B$10:$B$20000,">="&$D29,'USDA ESALQ weekly IPPs'!$B$10:$B$20000,"<="&$E29) -> 0.09237026319 | J29: =AVERAGEIFS('USDA ESALQ weekly IPPs'!$I$10:$I$20000,'USDA ESALQ weekly IPPs'!$B$10:$B$20000,">="&$D29,'USDA ESALQ weekly IPPs'!$B$10:$B$20000,"<="&$E29) -> 0.00285920876 | K29: =AVERAGEIFS('USDA ESALQ weekly IPPs'!$J$10:$J$20000,'USDA ESALQ weekly IPPs'!$B$10:$B$20000,">="&$D29,'USDA ESALQ weekly IPPs'!$B$10:$B$20000,"<="&$E29) -> 0 | L29: =AVERAGEIFS('USDA ESALQ weekly IPPs'!$L$10:$L$20000,'USDA ESALQ weekly IPPs'!$B$10:$B$20000,">="&$D29,'USDA ESALQ weekly IPPs'!$B$10:$B$20000,"<="&$E29) -> 0.4000512821 | M29: =AVERAGEIFS('USDA ESALQ weekly IPPs'!$M$10:$M$20000,'USDA ESALQ weekly IPPs'!$B$10:$B$20000,">="&$D29,'USDA ESALQ weekly IPPs'!$B$10:$B$20000,"<="&$E29) -> 0.001965559385 | N29: =AVERAGEIFS('USDA ESALQ weekly IPPs'!$N$10:$N$20000,'USDA ESALQ weekly IPPs'!$B$10:$B$20000,">="&$D29,'USDA ESALQ weekly IPPs'!$B$10:$B$20000,"<="&$E29) -> 0.03 | O29: =AVERAGEIFS('USDA ESALQ weekly IPPs'!$O$10:$O$20000,'USDA ESALQ weekly IPPs'!$B$10:$B$20000,">="&$D29,'USDA ESALQ weekly IPPs'!$B$10:$B$20000,"<="&$E29) -> 0.015 | P29: 116.467824 | R29: 116.467824 | S29: =NA() ->  | U29: 2020-07-01
B30: 2018-01-01 | C30: 2018-03-31 | D30: 2017-03-01 | E30: 2017-11-30 | F30: =AVERAGEIFS('USDA ESALQ weekly IPPs'!$E$10:$E$20000,'USDA ESALQ weekly IPPs'!$B$10:$B$20000,">="&$D30,'USDA ESALQ weekly IPPs'!$B$10:$B$20000,"<="&$E30) -> 0.5011472985 | G30: =AVERAGEIFS('USDA ESALQ weekly IPPs'!$F$10:$F$20000,'USDA ESALQ weekly IPPs'!$B$10:$B$20000,">="&$D30,'USDA ESALQ weekly IPPs'!$B$10:$B$20000,"<="&$E30) -> 0.07190926287 | H30: =AVERAGEIFS('USDA ESALQ weekly IPPs'!$G$10:$G$20000,'USDA ESALQ weekly IPPs'!$B$10:$B$20000,">="&$D30,'USDA ESALQ weekly IPPs'!$B$10:$B$20000,"<="&$E30) -> 0.03146842968 | I30: =AVERAGEIFS('USDA ESALQ weekly IPPs'!$H$10:$H$20000,'USDA ESALQ weekly IPPs'!$B$10:$B$20000,">="&$D30,'USDA ESALQ weekly IPPs'!$B$10:$B$20000,"<="&$E30) -> 0.09101804288 | J30: =AVERAGEIFS('USDA ESALQ weekly IPPs'!$I$10:$I$20000,'USDA ESALQ weekly IPPs'!$B$10:$B$20000,">="&$D30,'USDA ESALQ weekly IPPs'!$B$10:$B$20000,"<="&$E30) -> 0.002782172136 | K30: =AVERAGEIFS('USDA ESALQ weekly IPPs'!$J$10:$J$20000,'USDA ESALQ weekly IPPs'!$B$10:$B$20000,">="&$D30,'USDA ESALQ weekly IPPs'!$B$10:$B$20000,"<="&$E30) -> 0 | L30: =AVERAGEIFS('USDA ESALQ weekly IPPs'!$L$10:$L$20000,'USDA ESALQ weekly IPPs'!$B$10:$B$20000,">="&$D30,'USDA ESALQ weekly IPPs'!$B$10:$B$20000,"<="&$E30) -> 0.4018717949 | M30: =AVERAGEIFS('USDA ESALQ weekly IPPs'!$M$10:$M$20000,'USDA ESALQ weekly IPPs'!$B$10:$B$20000,">="&$D30,'USDA ESALQ weekly IPPs'!$B$10:$B$20000,"<="&$E30) -> 0.001978714385 | N30: =AVERAGEIFS('USDA ESALQ weekly IPPs'!$N$10:$N$20000,'USDA ESALQ weekly IPPs'!$B$10:$B$20000,">="&$D30,'USDA ESALQ weekly IPPs'!$B$10:$B$20000,"<="&$E30) -> 0.03 | O30: =AVERAGEIFS('USDA ESALQ weekly IPPs'!$O$10:$O$20000,'USDA ESALQ weekly IPPs'!$B$10:$B$20000,">="&$D30,'USDA ESALQ weekly IPPs'!$B$10:$B$20000,"<="&$E30) -> 0.015 | P30: 114.7175715 | R30: 114.7175715 | S30: =NA() ->  | U30: 2020-04-01
B31: 2018-04-01 | C31: 2018-06-30 | D31: 2017-06-01 | E31: 2018-02-28 | F31: =AVERAGEIFS('USDA ESALQ weekly IPPs'!$E$10:$E$20000,'USDA ESALQ weekly IPPs'!$B$10:$B$20000,">="&$D31,'USDA ESALQ weekly IPPs'!$B$10:$B$20000,"<="&$E31) -> 0.4767466201 | G31: =AVERAGEIFS('USDA ESALQ weekly IPPs'!$F$10:$F$20000,'USDA ESALQ weekly IPPs'!$B$10:$B$20000,">="&$D31,'USDA ESALQ weekly IPPs'!$B$10:$B$20000,"<="&$E31) -> 0.07126435672 | H31: 0.0313027645 | I31: =AVERAGEIFS('USDA ESALQ weekly IPPs'!$H$10:$H$20000,'USDA ESALQ weekly IPPs'!$B$10:$B$20000,">="&$D31,'USDA ESALQ weekly IPPs'!$B$10:$B$20000,"<="&$E31) -> 0.08836205289 | J31: =AVERAGEIFS('USDA ESALQ weekly IPPs'!$I$10:$I$20000,'USDA ESALQ weekly IPPs'!$B$10:$B$20000,">="&$D31,'USDA ESALQ weekly IPPs'!$B$10:$B$20000,"<="&$E31) -> 0.002671178722 | K31: =AVERAGEIFS('USDA ESALQ weekly IPPs'!$J$10:$J$20000,'USDA ESALQ weekly IPPs'!$B$10:$B$20000,">="&$D31,'USDA ESALQ weekly IPPs'!$B$10:$B$20000,"<="&$E31) -> 0 | L31: =AVERAGEIFS('USDA ESALQ weekly IPPs'!$L$10:$L$20000,'USDA ESALQ weekly IPPs'!$B$10:$B$20000,">="&$D31,'USDA ESALQ weekly IPPs'!$B$10:$B$20000,"<="&$E31) -> 0.4031538462 | M31: =AVERAGEIFS('USDA ESALQ weekly IPPs'!$M$10:$M$20000,'USDA ESALQ weekly IPPs'!$B$10:$B$20000,">="&$D31,'USDA ESALQ weekly IPPs'!$B$10:$B$20000,"<="&$E31) -> 0.001991869385 | N31: =AVERAGEIFS('USDA ESALQ weekly IPPs'!$N$10:$N$20000,'USDA ESALQ weekly IPPs'!$B$10:$B$20000,">="&$D31,'USDA ESALQ weekly IPPs'!$B$10:$B$20000,"<="&$E31) -> 0.03 | O31: =AVERAGEIFS('USDA ESALQ weekly IPPs'!$O$10:$O$20000,'USDA ESALQ weekly IPPs'!$B$10:$B$20000,">="&$D31,'USDA ESALQ weekly IPPs'!$B$10:$B$20000,"<="&$E31) -> 0.015 | P31: 112.0492688 | R31: 112.0492688 | S31: =NA() ->  | U31: 2020-01-01
B32: 2018-07-01 | C32: 2018-09-30 | D32: 2017-09-01 | E32: 2018-05-31 | F32: 0.4683913067 | G32: =AVERAGEIFS('USDA ESALQ weekly IPPs'!$F$10:$F$20000,'USDA ESALQ weekly IPPs'!$B$10:$B$20000,">="&$D32,'USDA ESALQ weekly IPPs'!$B$10:$B$20000,"<="&$E32) -> 0.07178545047 | H32: 0.03172628734 | I32: =AVERAGEIFS('USDA ESALQ weekly IPPs'!$H$10:$H$20000,'USDA ESALQ weekly IPPs'!$B$10:$B$20000,">="&$D32,'USDA ESALQ weekly IPPs'!$B$10:$B$20000,"<="&$E32) -> 0.08593604466 | J32: =AVERAGEIFS('USDA ESALQ weekly IPPs'!$I$10:$I$20000,'USDA ESALQ weekly IPPs'!$B$10:$B$20000,">="&$D32,'USDA ESALQ weekly IPPs'!$B$10:$B$20000,"<="&$E32) -> 0.002634674472 | K32: =AVERAGEIFS('USDA ESALQ weekly IPPs'!$J$10:$J$20000,'USDA ESALQ weekly IPPs'!$B$10:$B$20000,">="&$D32,'USDA ESALQ weekly IPPs'!$B$10:$B$20000,"<="&$E32) -> 0 | L32: =AVERAGEIFS('USDA ESALQ weekly IPPs'!$L$10:$L$20000,'USDA ESALQ weekly IPPs'!$B$10:$B$20000,">="&$D32,'USDA ESALQ weekly IPPs'!$B$10:$B$20000,"<="&$E32) -> 0.4056153846 | M32: =AVERAGEIFS('USDA ESALQ weekly IPPs'!$M$10:$M$20000,'USDA ESALQ weekly IPPs'!$B$10:$B$20000,">="&$D32,'USDA ESALQ weekly IPPs'!$B$10:$B$20000,"<="&$E32) -> 0.001996929 | N32: =AVERAGEIFS('USDA ESALQ weekly IPPs'!$N$10:$N$20000,'USDA ESALQ weekly IPPs'!$B$10:$B$20000,">="&$D32,'USDA ESALQ weekly IPPs'!$B$10:$B$20000,"<="&$E32) -> 0.03 | O32: =AVERAGEIFS('USDA ESALQ weekly IPPs'!$O$10:$O$20000,'USDA ESALQ weekly IPPs'!$B$10:$B$20000,">="&$D32,'USDA ESALQ weekly IPPs'!$B$10:$B$20000,"<="&$E32) -> 0.015 | P32: 111.3086077 | R32: 111.3086077 | S32: =NA() ->  | U32: 2019-10-01
B33: =C32+1 -> 2018-10-01 | C33: 2018-12-31 | D33: 2017-12-01 | E33: 2018-08-31 | F33: 0.4763137623 | G33: =AVERAGEIFS('USDA ESALQ weekly IPPs'!$F$10:$F$20000,'USDA ESALQ weekly IPPs'!$B$10:$B$20000,">="&$D33,'USDA ESALQ weekly IPPs'!$B$10:$B$20000,"<="&$E33) -> 0.0734638459 | H33: 0.03266535388 | I33: =AVERAGEIFS('USDA ESALQ weekly IPPs'!$H$10:$H$20000,'USDA ESALQ weekly IPPs'!$B$10:$B$20000,">="&$D33,'USDA ESALQ weekly IPPs'!$B$10:$B$20000,"<="&$E33) -> 0.08483134133 | J33: =AVERAGEIFS('USDA ESALQ weekly IPPs'!$I$10:$I$20000,'USDA ESALQ weekly IPPs'!$B$10:$B$20000,">="&$D33,'USDA ESALQ weekly IPPs'!$B$10:$B$20000,"<="&$E33) -> 0.002659041487 | K33: =AVERAGEIFS('USDA ESALQ weekly IPPs'!$J$10:$J$20000,'USDA ESALQ weekly IPPs'!$B$10:$B$20000,">="&$D33,'USDA ESALQ weekly IPPs'!$B$10:$B$20000,"<="&$E33) -> 0 | L33: =AVERAGEIFS('USDA ESALQ weekly IPPs'!$L$10:$L$20000,'USDA ESALQ weekly IPPs'!$B$10:$B$20000,">="&$D33,'USDA ESALQ weekly IPPs'!$B$10:$B$20000,"<="&$E33) -> 0.408025 | M33: =AVERAGEIFS('USDA ESALQ weekly IPPs'!$M$10:$M$20000,'USDA ESALQ weekly IPPs'!$B$10:$B$20000,">="&$D33,'USDA ESALQ weekly IPPs'!$B$10:$B$20000,"<="&$E33) -> 0.002003196375 | N33: =AVERAGEIFS('USDA ESALQ weekly IPPs'!$N$10:$N$20000,'USDA ESALQ weekly IPPs'!$B$10:$B$20000,">="&$D33,'USDA ESALQ weekly IPPs'!$B$10:$B$20000,"<="&$E33) -> 0.03 | O33: =AVERAGEIFS('USDA ESALQ weekly IPPs'!$O$10:$O$20000,'USDA ESALQ weekly IPPs'!$B$10:$B$20000,">="&$D33,'USDA ESALQ weekly IPPs'!$B$10:$B$20000,"<="&$E33) -> 0.015 | P33: 112.4961541 | R33: 112.4961541 | S33: =NA() ->  | U33: 2019-07-01
B34: 2019-01-01 | C34: 2019-03-31 | D34: 2018-03-01 | E34: 2018-11-30 | F34: =AVERAGEIFS('USDA ESALQ weekly IPPs'!$E$10:$E$20000,'USDA ESALQ weekly IPPs'!$B$10:$B$20000,">="&$D34,'USDA ESALQ weekly IPPs'!$B$10:$B$20000,"<="&$E34) -> 0.4771619134 | G34: =AVERAGEIFS('USDA ESALQ weekly IPPs'!$F$10:$F$20000,'USDA ESALQ weekly IPPs'!$B$10:$B$20000,">="&$D34,'USDA ESALQ weekly IPPs'!$B$10:$B$20000,"<="&$E34) -> 0.07563427653 | H34: =AVERAGEIFS('USDA ESALQ weekly IPPs'!$G$10:$G$20000,'USDA ESALQ weekly IPPs'!$B$10:$B$20000,">="&$D34,'USDA ESALQ weekly IPPs'!$B$10:$B$20000,"<="&$E34) -> 0.03432382158 | I34: =AVERAGEIFS('USDA ESALQ weekly IPPs'!$H$10:$H$20000,'USDA ESALQ weekly IPPs'!$B$10:$B$20000,">="&$D34,'USDA ESALQ weekly IPPs'!$B$10:$B$20000,"<="&$E34) -> 0.08615871735 | J34: =AVERAGEIFS('USDA ESALQ weekly IPPs'!$I$10:$I$20000,'USDA ESALQ weekly IPPs'!$B$10:$B$20000,">="&$D34,'USDA ESALQ weekly IPPs'!$B$10:$B$20000,"<="&$E34) -> 0.002693114915 | K34: =AVERAGEIFS('USDA ESALQ weekly IPPs'!$J$10:$J$20000,'USDA ESALQ weekly IPPs'!$B$10:$B$20000,">="&$D34,'USDA ESALQ weekly IPPs'!$B$10:$B$20000,"<="&$E34) -> 0 | L34: =AVERAGEIFS('USDA ESALQ weekly IPPs'!$L$10:$L$20000,'USDA ESALQ weekly IPPs'!$B$10:$B$20000,">="&$D34,'USDA ESALQ weekly IPPs'!$B$10:$B$20000,"<="&$E34) -> 0.41035 | M34: =AVERAGEIFS('USDA ESALQ weekly IPPs'!$M$10:$M$20000,'USDA ESALQ weekly IPPs'!$B$10:$B$20000,">="&$D34,'USDA ESALQ weekly IPPs'!$B$10:$B$20000,"<="&$E34) -> 0.00201224925 | N34: =AVERAGEIFS('USDA ESALQ weekly IPPs'!$N$10:$N$20000,'USDA ESALQ weekly IPPs'!$B$10:$B$20000,">="&$D34,'USDA ESALQ weekly IPPs'!$B$10:$B$20000,"<="&$E34) -> 0.03 | O34: =AVERAGEIFS('USDA ESALQ weekly IPPs'!$O$10:$O$20000,'USDA ESALQ weekly IPPs'!$B$10:$B$20000,">="&$D34,'USDA ESALQ weekly IPPs'!$B$10:$B$20000,"<="&$E34) -> 0.015 | P34: 113.3334093 | R34: 113.3334093 | S34: =NA() ->  | U34: 2019-04-01
B35: 2019-04-01 | C35: 2019-06-30 | D35: 2018-06-01 | E35: 2019-02-28 | F35: 0.4568903203 | G35: =AVERAGEIFS('USDA ESALQ weekly IPPs'!$F$10:$F$20000,'USDA ESALQ weekly IPPs'!$B$10:$B$20000,">="&$D35,'USDA ESALQ weekly IPPs'!$B$10:$B$20000,"<="&$E35) -> 0.07882790334 | H35: 0.03443368444 | I35: =AVERAGEIFS('USDA ESALQ weekly IPPs'!$H$10:$H$20000,'USDA ESALQ weekly IPPs'!$B$10:$B$20000,">="&$D35,'USDA ESALQ weekly IPPs'!$B$10:$B$20000,"<="&$E35) -> 0.08756913127 | J35: =AVERAGEIFS('USDA ESALQ weekly IPPs'!$I$10:$I$20000,'USDA ESALQ weekly IPPs'!$B$10:$B$20000,">="&$D35,'USDA ESALQ weekly IPPs'!$B$10:$B$20000,"<="&$E35) -> 0.002647216485 | K35: =AVERAGEIFS('USDA ESALQ weekly IPPs'!$J$10:$J$20000,'USDA ESALQ weekly IPPs'!$B$10:$B$20000,">="&$D35,'USDA ESALQ weekly IPPs'!$B$10:$B$20000,"<="&$E35) -> 0 | L35: =AVERAGEIFS('USDA ESALQ weekly IPPs'!$L$10:$L$20000,'USDA ESALQ weekly IPPs'!$B$10:$B$20000,">="&$D35,'USDA ESALQ weekly IPPs'!$B$10:$B$20000,"<="&$E35) -> 0.4117179487 | M35: =AVERAGEIFS('USDA ESALQ weekly IPPs'!$M$10:$M$20000,'USDA ESALQ weekly IPPs'!$B$10:$B$20000,">="&$D35,'USDA ESALQ weekly IPPs'!$B$10:$B$20000,"<="&$E35) -> 0.002021212846 | N35: =AVERAGEIFS('USDA ESALQ weekly IPPs'!$N$10:$N$20000,'USDA ESALQ weekly IPPs'!$B$10:$B$20000,">="&$D35,'USDA ESALQ weekly IPPs'!$B$10:$B$20000,"<="&$E35) -> 0.03 | O35: =AVERAGEIFS('USDA ESALQ weekly IPPs'!$O$10:$O$20000,'USDA ESALQ weekly IPPs'!$B$10:$B$20000,">="&$D35,'USDA ESALQ weekly IPPs'!$B$10:$B$20000,"<="&$E35) -> 0.015 | P35: 111.9107417 | R35: 111.9107417 | S35: =NA() ->  | U35: 2019-01-01
B36: 2019-07-01 | C36: 2019-09-30 | D36: 2018-09-01 | E36: 2019-05-31 | F36: 0.4338393015 | G36: =AVERAGEIFS('USDA ESALQ weekly IPPs'!$F$10:$F$20000,'USDA ESALQ weekly IPPs'!$B$10:$B$20000,">="&$D36,'USDA ESALQ weekly IPPs'!$B$10:$B$20000,"<="&$E36) -> 0.08287530326 | H36: 0.0350066722 | I36: =AVERAGEIFS('USDA ESALQ weekly IPPs'!$H$10:$H$20000,'USDA ESALQ weekly IPPs'!$B$10:$B$20000,">="&$D36,'USDA ESALQ weekly IPPs'!$B$10:$B$20000,"<="&$E36) -> 0.08823302271 | J36: =AVERAGEIFS('USDA ESALQ weekly IPPs'!$I$10:$I$20000,'USDA ESALQ weekly IPPs'!$B$10:$B$20000,">="&$D36,'USDA ESALQ weekly IPPs'!$B$10:$B$20000,"<="&$E36) -> 0.002644320448 | K36: =AVERAGEIFS('USDA ESALQ weekly IPPs'!$J$10:$J$20000,'USDA ESALQ weekly IPPs'!$B$10:$B$20000,">="&$D36,'USDA ESALQ weekly IPPs'!$B$10:$B$20000,"<="&$E36) -> 0 | L36: =AVERAGEIFS('USDA ESALQ weekly IPPs'!$L$10:$L$20000,'USDA ESALQ weekly IPPs'!$B$10:$B$20000,">="&$D36,'USDA ESALQ weekly IPPs'!$B$10:$B$20000,"<="&$E36) -> 0.4138461538 | M36: =AVERAGEIFS('USDA ESALQ weekly IPPs'!$M$10:$M$20000,'USDA ESALQ weekly IPPs'!$B$10:$B$20000,">="&$D36,'USDA ESALQ weekly IPPs'!$B$10:$B$20000,"<="&$E36) -> 0.002024784 | N36: =AVERAGEIFS('USDA ESALQ weekly IPPs'!$N$10:$N$20000,'USDA ESALQ weekly IPPs'!$B$10:$B$20000,">="&$D36,'USDA ESALQ weekly IPPs'!$B$10:$B$20000,"<="&$E36) -> 0.03 | O36: =AVERAGEIFS('USDA ESALQ weekly IPPs'!$O$10:$O$20000,'USDA ESALQ weekly IPPs'!$B$10:$B$20000,">="&$D36,'USDA ESALQ weekly IPPs'!$B$10:$B$20000,"<="&$E36) -> 0.015 | P36: 110.3469558 | R36: 110.3469558 | S36: =NA() ->  | U36: 2018-10-01
B37: 2019-10-01 | C37: 2019-12-31 | D37: 2018-12-01 | E37: 2019-08-31 | F37: 0.4293399286 | G37: =AVERAGEIFS('USDA ESALQ weekly IPPs'!$F$10:$F$20000,'USDA ESALQ weekly IPPs'!$B$10:$B$20000,">="&$D37,'USDA ESALQ weekly IPPs'!$B$10:$B$20000,"<="&$E37) -> 0.08645747653 | H37: 0.03543500356 | I37: =AVERAGEIFS('USDA ESALQ weekly IPPs'!$H$10:$H$20000,'USDA ESALQ weekly IPPs'!$B$10:$B$20000,">="&$D37,'USDA ESALQ weekly IPPs'!$B$10:$B$20000,"<="&$E37) -> 0.0885679122 | J37: 0.002559201283 | K37: =AVERAGEIFS('USDA ESALQ weekly IPPs'!$J$10:$J$20000,'USDA ESALQ weekly IPPs'!$B$10:$B$20000,">="&$D37,'USDA ESALQ weekly IPPs'!$B$10:$B$20000,"<="&$E37) -> 0 | L37: =AVERAGEIFS('USDA ESALQ weekly IPPs'!$L$10:$L$20000,'USDA ESALQ weekly IPPs'!$B$10:$B$20000,">="&$D37,'USDA ESALQ weekly IPPs'!$B$10:$B$20000,"<="&$E37) -> 0.4154358974 | M37: 0.001557526154 | N37: =AVERAGEIFS('USDA ESALQ weekly IPPs'!$N$10:$N$20000,'USDA ESALQ weekly IPPs'!$B$10:$B$20000,">="&$D37,'USDA ESALQ weekly IPPs'!$B$10:$B$20000,"<="&$E37) -> 0.03 | O37: =AVERAGEIFS('USDA ESALQ weekly IPPs'!$O$10:$O$20000,'USDA ESALQ weekly IPPs'!$B$10:$B$20000,">="&$D37,'USDA ESALQ weekly IPPs'!$B$10:$B$20000,"<="&$E37) -> 0.015 | P37: 110.4352946 | R37: 110.4352946 | S37: =NA() ->  | U37: 2018-07-01
B38: 2020-01-01 | C38: 2020-03-31 | D38: 2019-03-01 | E38: 2019-11-30 | F38: 0.4360524031 | G38: =AVERAGEIFS('USDA ESALQ weekly IPPs'!$F$10:$F$20000,'USDA ESALQ weekly IPPs'!$B$10:$B$20000,">="&$D38,'USDA ESALQ weekly IPPs'!$B$10:$B$20000,"<="&$E38) -> 0.08856372507 | H38: 0.03596562184 | I38: =AVERAGEIFS('USDA ESALQ weekly IPPs'!$H$10:$H$20000,'USDA ESALQ weekly IPPs'!$B$10:$B$20000,">="&$D38,'USDA ESALQ weekly IPPs'!$B$10:$B$20000,"<="&$E38) -> 0.08968728523 | J38: =AVERAGEIFS('USDA ESALQ weekly IPPs'!$I$10:$I$20000,'USDA ESALQ weekly IPPs'!$B$10:$B$20000,">="&$D38,'USDA ESALQ weekly IPPs'!$B$10:$B$20000,"<="&$E38) -> 0.002910551235 | K38: =AVERAGEIFS('USDA ESALQ weekly IPPs'!$J$10:$J$20000,'USDA ESALQ weekly IPPs'!$B$10:$B$20000,">="&$D38,'USDA ESALQ weekly IPPs'!$B$10:$B$20000,"<="&$E38) -> 0 | L38: =AVERAGEIFS('USDA ESALQ weekly IPPs'!$L$10:$L$20000,'USDA ESALQ weekly IPPs'!$B$10:$B$20000,">="&$D38,'USDA ESALQ weekly IPPs'!$B$10:$B$20000,"<="&$E38) -> 0.4169 | M38: =AVERAGEIFS('USDA ESALQ weekly IPPs'!$M$10:$M$20000,'USDA ESALQ weekly IPPs'!$B$10:$B$20000,">="&$D38,'USDA ESALQ weekly IPPs'!$B$10:$B$20000,"<="&$E38) -> 0.002046366 | N38: =AVERAGEIFS('USDA ESALQ weekly IPPs'!$N$10:$N$20000,'USDA ESALQ weekly IPPs'!$B$10:$B$20000,">="&$D38,'USDA ESALQ weekly IPPs'!$B$10:$B$20000,"<="&$E38) -> 0.03 | O38: =AVERAGEIFS('USDA ESALQ weekly IPPs'!$O$10:$O$20000,'USDA ESALQ weekly IPPs'!$B$10:$B$20000,">="&$D38,'USDA ESALQ weekly IPPs'!$B$10:$B$20000,"<="&$E38) -> 0.015 | P38: =100*IFERROR(SUM(F38:O38),NA()) -> 111.7125952 | R38: 111.7125952 | S38: =NA() ->  | U38: 2018-04-01
B39: 2020-04-01 | C39: 2020-06-30 | D39: 2019-06-01 | E39: 2020-02-29 | F39: =AVERAGEIFS('USDA ESALQ weekly IPPs'!$E$10:$E$20000,'USDA ESALQ weekly IPPs'!$B$10:$B$20000,">="&$D39,'USDA ESALQ weekly IPPs'!$B$10:$B$20000,"<="&$E39) -> 0.5170244913 | G39: =AVERAGEIFS('USDA ESALQ weekly IPPs'!$F$10:$F$20000,'USDA ESALQ weekly IPPs'!$B$10:$B$20000,">="&$D39,'USDA ESALQ weekly IPPs'!$B$10:$B$20000,"<="&$E39) -> 0.09054204802 | H39: =AVERAGEIFS('USDA ESALQ weekly IPPs'!$G$10:$G$20000,'USDA ESALQ weekly IPPs'!$B$10:$B$20000,">="&$D39,'USDA ESALQ weekly IPPs'!$B$10:$B$20000,"<="&$E39) -> 0.03722230225 | I39: =AVERAGEIFS('USDA ESALQ weekly IPPs'!$H$10:$H$20000,'USDA ESALQ weekly IPPs'!$B$10:$B$20000,">="&$D39,'USDA ESALQ weekly IPPs'!$B$10:$B$20000,"<="&$E39) -> 0.09354707377 | J39: =AVERAGEIFS('USDA ESALQ weekly IPPs'!$I$10:$I$20000,'USDA ESALQ weekly IPPs'!$B$10:$B$20000,">="&$D39,'USDA ESALQ weekly IPPs'!$B$10:$B$20000,"<="&$E39) -> 0.002953343661 | K39: =AVERAGEIFS('USDA ESALQ weekly IPPs'!$J$10:$J$20000,'USDA ESALQ weekly IPPs'!$B$10:$B$20000,">="&$D39,'USDA ESALQ weekly IPPs'!$B$10:$B$20000,"<="&$E39) -> 0 | L39: =AVERAGEIFS('USDA ESALQ weekly IPPs'!$L$10:$L$20000,'USDA ESALQ weekly IPPs'!$B$10:$B$20000,">="&$D39,'USDA ESALQ weekly IPPs'!$B$10:$B$20000,"<="&$E39) -> 0.4181025641 | M39: =AVERAGEIFS('USDA ESALQ weekly IPPs'!$M$10:$M$20000,'USDA ESALQ weekly IPPs'!$B$10:$B$20000,">="&$D39,'USDA ESALQ weekly IPPs'!$B$10:$B$20000,"<="&$E39) -> 0.002059999385 | N39: =AVERAGEIFS('USDA ESALQ weekly IPPs'!$N$10:$N$20000,'USDA ESALQ weekly IPPs'!$B$10:$B$20000,">="&$D39,'USDA ESALQ weekly IPPs'!$B$10:$B$20000,"<="&$E39) -> 0.03 | O39: =AVERAGEIFS('USDA ESALQ weekly IPPs'!$O$10:$O$20000,'USDA ESALQ weekly IPPs'!$B$10:$B$20000,">="&$D39,'USDA ESALQ weekly IPPs'!$B$10:$B$20000,"<="&$E39) -> 0.015 | P39: 120.6451822 | R39: 120.6451822 | S39: =NA() ->  | U39: 2018-01-01
B40: 2020-07-01 | C40: 2020-09-30 | D40: 2019-09-01 | E40: 2020-05-31 | F40: =AVERAGEIFS('USDA ESALQ weekly IPPs'!$E$10:$E$20000,'USDA ESALQ weekly IPPs'!$B$10:$B$20000,">="&$D40,'USDA ESALQ weekly IPPs'!$B$10:$B$20000,"<="&$E40) -> 0.4686607669 | G40: =AVERAGEIFS('USDA ESALQ weekly IPPs'!$F$10:$F$20000,'USDA ESALQ weekly IPPs'!$B$10:$B$20000,">="&$D40,'USDA ESALQ weekly IPPs'!$B$10:$B$20000,"<="&$E40) -> 0.08760083584 | H40: =AVERAGEIFS('USDA ESALQ weekly IPPs'!$G$10:$G$20000,'USDA ESALQ weekly IPPs'!$B$10:$B$20000,">="&$D40,'USDA ESALQ weekly IPPs'!$B$10:$B$20000,"<="&$E40) -> 0.03710610222 | I40: =AVERAGEIFS('USDA ESALQ weekly IPPs'!$H$10:$H$20000,'USDA ESALQ weekly IPPs'!$B$10:$B$20000,">="&$D40,'USDA ESALQ weekly IPPs'!$B$10:$B$20000,"<="&$E40) -> 0.1002829208 | J40: =AVERAGEIFS('USDA ESALQ weekly IPPs'!$I$10:$I$20000,'USDA ESALQ weekly IPPs'!$B$10:$B$20000,">="&$D40,'USDA ESALQ weekly IPPs'!$B$10:$B$20000,"<="&$E40) -> 0.002774602503 | K40: =AVERAGEIFS('USDA ESALQ weekly IPPs'!$J$10:$J$20000,'USDA ESALQ weekly IPPs'!$B$10:$B$20000,">="&$D40,'USDA ESALQ weekly IPPs'!$B$10:$B$20000,"<="&$E40) -> 0.002002926487 | L40: =AVERAGEIFS('USDA ESALQ weekly IPPs'!$L$10:$L$20000,'USDA ESALQ weekly IPPs'!$B$10:$B$20000,">="&$D40,'USDA ESALQ weekly IPPs'!$B$10:$B$20000,"<="&$E40) -> 0.4201794872 | M40: =AVERAGEIFS('USDA ESALQ weekly IPPs'!$M$10:$M$20000,'USDA ESALQ weekly IPPs'!$B$10:$B$20000,">="&$D40,'USDA ESALQ weekly IPPs'!$B$10:$B$20000,"<="&$E40) -> 0.002064024 | N40: =AVERAGEIFS('USDA ESALQ weekly IPPs'!$N$10:$N$20000,'USDA ESALQ weekly IPPs'!$B$10:$B$20000,">="&$D40,'USDA ESALQ weekly IPPs'!$B$10:$B$20000,"<="&$E40) -> 0.03 | O40: =AVERAGEIFS('USDA ESALQ weekly IPPs'!$O$10:$O$20000,'USDA ESALQ weekly IPPs'!$B$10:$B$20000,">="&$D40,'USDA ESALQ weekly IPPs'!$B$10:$B$20000,"<="&$E40) -> 0.015 | P40: 116.5671666 | R40: 116.5671666 | S40: =NA() ->  | U40: 2017-10-01
B41: 2020-10-01 | C41: 2020-12-31 | D41: 2019-12-01 | E41: 2020-08-31 | F41: =AVERAGEIFS('USDA ESALQ weekly IPPs'!$E$10:$E$20000,'USDA ESALQ weekly IPPs'!$B$10:$B$20000,">="&$D41,'USDA ESALQ weekly IPPs'!$B$10:$B$20000,"<="&$E41) -> 0.449042968 | G41: =AVERAGEIFS('USDA ESALQ weekly IPPs'!$F$10:$F$20000,'USDA ESALQ weekly IPPs'!$B$10:$B$20000,">="&$D41,'USDA ESALQ weekly IPPs'!$B$10:$B$20000,"<="&$E41) -> 0.07675880755 | H41: =AVERAGEIFS('USDA ESALQ weekly IPPs'!$G$10:$G$20000,'USDA ESALQ weekly IPPs'!$B$10:$B$20000,">="&$D41,'USDA ESALQ weekly IPPs'!$B$10:$B$20000,"<="&$E41) -> 0.03494194028 | I41: =AVERAGEIFS('USDA ESALQ weekly IPPs'!$H$10:$H$20000,'USDA ESALQ weekly IPPs'!$B$10:$B$20000,">="&$D41,'USDA ESALQ weekly IPPs'!$B$10:$B$20000,"<="&$E41) -> 0.1028017882 | J41: =AVERAGEIFS('USDA ESALQ weekly IPPs'!$I$10:$I$20000,'USDA ESALQ weekly IPPs'!$B$10:$B$20000,">="&$D41,'USDA ESALQ weekly IPPs'!$B$10:$B$20000,"<="&$E41) -> 0.002654182016 | K41: =AVERAGEIFS('USDA ESALQ weekly IPPs'!$J$10:$J$20000,'USDA ESALQ weekly IPPs'!$B$10:$B$20000,">="&$D41,'USDA ESALQ weekly IPPs'!$B$10:$B$20000,"<="&$E41) -> 0.005999560762 | L41: =AVERAGEIFS('USDA ESALQ weekly IPPs'!$L$10:$L$20000,'USDA ESALQ weekly IPPs'!$B$10:$B$20000,">="&$D41,'USDA ESALQ weekly IPPs'!$B$10:$B$20000,"<="&$E41) -> 0.4218461538 | M41: =AVERAGEIFS('USDA ESALQ weekly IPPs'!$M$10:$M$20000,'USDA ESALQ weekly IPPs'!$B$10:$B$20000,">="&$D41,'USDA ESALQ weekly IPPs'!$B$10:$B$20000,"<="&$E41) -> 0.002064024 | N41: =AVERAGEIFS('USDA ESALQ weekly IPPs'!$N$10:$N$20000,'USDA ESALQ weekly IPPs'!$B$10:$B$20000,">="&$D41,'USDA ESALQ weekly IPPs'!$B$10:$B$20000,"<="&$E41) -> 0.03 | O41: =AVERAGEIFS('USDA ESALQ weekly IPPs'!$O$10:$O$20000,'USDA ESALQ weekly IPPs'!$B$10:$B$20000,">="&$D41,'USDA ESALQ weekly IPPs'!$B$10:$B$20000,"<="&$E41) -> 0.015 | P41: 114.1109425 | R41: 114.1109425 | S41: =NA() ->  | U41: 2017-07-01
B42: 2021-01-01 | C42: 2021-03-31 | D42: 2020-03-01 | E42: 2020-11-30 | F42: =AVERAGEIFS('USDA ESALQ weekly IPPs'!$E$10:$E$20000,'USDA ESALQ weekly IPPs'!$B$10:$B$20000,">="&$D42,'USDA ESALQ weekly IPPs'!$B$10:$B$20000,"<="&$E42) -> 0.4532074553 | G42: =AVERAGEIFS('USDA ESALQ weekly IPPs'!$F$10:$F$20000,'USDA ESALQ weekly IPPs'!$B$10:$B$20000,">="&$D42,'USDA ESALQ weekly IPPs'!$B$10:$B$20000,"<="&$E42) -> 0.07383544155 | H42: =AVERAGEIFS('USDA ESALQ weekly IPPs'!$G$10:$G$20000,'USDA ESALQ weekly IPPs'!$B$10:$B$20000,">="&$D42,'USDA ESALQ weekly IPPs'!$B$10:$B$20000,"<="&$E42) -> 0.03397754928 | I42: =AVERAGEIFS('USDA ESALQ weekly IPPs'!$H$10:$H$20000,'USDA ESALQ weekly IPPs'!$B$10:$B$20000,">="&$D42,'USDA ESALQ weekly IPPs'!$B$10:$B$20000,"<="&$E42) -> 0.102077218 | J42: =AVERAGEIFS('USDA ESALQ weekly IPPs'!$I$10:$I$20000,'USDA ESALQ weekly IPPs'!$B$10:$B$20000,">="&$D42,'USDA ESALQ weekly IPPs'!$B$10:$B$20000,"<="&$E42) -> 0.002652390657 | K42: =AVERAGEIFS('USDA ESALQ weekly IPPs'!$J$10:$J$20000,'USDA ESALQ weekly IPPs'!$B$10:$B$20000,">="&$D42,'USDA ESALQ weekly IPPs'!$B$10:$B$20000,"<="&$E42) -> 0.006608109712 | L42: =AVERAGEIFS('USDA ESALQ weekly IPPs'!$L$10:$L$20000,'USDA ESALQ weekly IPPs'!$B$10:$B$20000,">="&$D42,'USDA ESALQ weekly IPPs'!$B$10:$B$20000,"<="&$E42) -> 0.423 | M42: =AVERAGEIFS('USDA ESALQ weekly IPPs'!$M$10:$M$20000,'USDA ESALQ weekly IPPs'!$B$10:$B$20000,">="&$D42,'USDA ESALQ weekly IPPs'!$B$10:$B$20000,"<="&$E42) -> 0.002064024 | N42: =AVERAGEIFS('USDA ESALQ weekly IPPs'!$N$10:$N$20000,'USDA ESALQ weekly IPPs'!$B$10:$B$20000,">="&$D42,'USDA ESALQ weekly IPPs'!$B$10:$B$20000,"<="&$E42) -> 0.03 | O42: =AVERAGEIFS('USDA ESALQ weekly IPPs'!$O$10:$O$20000,'USDA ESALQ weekly IPPs'!$B$10:$B$20000,">="&$D42,'USDA ESALQ weekly IPPs'!$B$10:$B$20000,"<="&$E42) -> 0.015 | P42: 114.2422189 | R42: 114.2422189 | S42: =NA() ->  | U42: 2017-04-01
B43: 2021-04-01 | C43: 2021-06-30 | D43: 2020-06-01 | E43: 2021-02-28 | F43: =AVERAGEIFS('USDA ESALQ weekly IPPs'!$E$10:$E$20000,'USDA ESALQ weekly IPPs'!$B$10:$B$20000,">="&$D43,'USDA ESALQ weekly IPPs'!$B$10:$B$20000,"<="&$E43) -> 0.4818621738 | G43: =AVERAGEIFS('USDA ESALQ weekly IPPs'!$F$10:$F$20000,'USDA ESALQ weekly IPPs'!$B$10:$B$20000,">="&$D43,'USDA ESALQ weekly IPPs'!$B$10:$B$20000,"<="&$E43) -> 0.07571032373 | H43: =AVERAGEIFS('USDA ESALQ weekly IPPs'!$G$10:$G$20000,'USDA ESALQ weekly IPPs'!$B$10:$B$20000,">="&$D43,'USDA ESALQ weekly IPPs'!$B$10:$B$20000,"<="&$E43) -> 0.03287741797 | I43: =AVERAGEIFS('USDA ESALQ weekly IPPs'!$H$10:$H$20000,'USDA ESALQ weekly IPPs'!$B$10:$B$20000,">="&$D43,'USDA ESALQ weekly IPPs'!$B$10:$B$20000,"<="&$E43) -> 0.09866823982 | J43: =AVERAGEIFS('USDA ESALQ weekly IPPs'!$I$10:$I$20000,'USDA ESALQ weekly IPPs'!$B$10:$B$20000,">="&$D43,'USDA ESALQ weekly IPPs'!$B$10:$B$20000,"<="&$E43) -> 0.002756472621 | K43: =AVERAGEIFS('USDA ESALQ weekly IPPs'!$J$10:$J$20000,'USDA ESALQ weekly IPPs'!$B$10:$B$20000,">="&$D43,'USDA ESALQ weekly IPPs'!$B$10:$B$20000,"<="&$E43) -> 0.004605183225 | L43: =AVERAGEIFS('USDA ESALQ weekly IPPs'!$L$10:$L$20000,'USDA ESALQ weekly IPPs'!$B$10:$B$20000,">="&$D43,'USDA ESALQ weekly IPPs'!$B$10:$B$20000,"<="&$E43) -> 0.4234102564 | M43: =AVERAGEIFS('USDA ESALQ weekly IPPs'!$M$10:$M$20000,'USDA ESALQ weekly IPPs'!$B$10:$B$20000,">="&$D43,'USDA ESALQ weekly IPPs'!$B$10:$B$20000,"<="&$E43) -> 0.002064024 | N43: =AVERAGEIFS('USDA ESALQ weekly IPPs'!$N$10:$N$20000,'USDA ESALQ weekly IPPs'!$B$10:$B$20000,">="&$D43,'USDA ESALQ weekly IPPs'!$B$10:$B$20000,"<="&$E43) -> 0.03 | O43: =AVERAGEIFS('USDA ESALQ weekly IPPs'!$O$10:$O$20000,'USDA ESALQ weekly IPPs'!$B$10:$B$20000,">="&$D43,'USDA ESALQ weekly IPPs'!$B$10:$B$20000,"<="&$E43) -> 0.015 | P43: 116.6954092 | R43: 116.6954092 | S43: =NA() ->  | U43: 2017-01-01
B44: 2021-07-01 | C44: 2021-09-30 | D44: 2020-09-01 | E44: 2021-05-31 | F44: =AVERAGEIFS('USDA ESALQ weekly IPPs'!$E$10:$E$20000,'USDA ESALQ weekly IPPs'!$B$10:$B$20000,">="&$D44,'USDA ESALQ weekly IPPs'!$B$10:$B$20000,"<="&$E44) -> 0.5532172631 | G44: =AVERAGEIFS('USDA ESALQ weekly IPPs'!$F$10:$F$20000,'USDA ESALQ weekly IPPs'!$B$10:$B$20000,">="&$D44,'USDA ESALQ weekly IPPs'!$B$10:$B$20000,"<="&$E44) -> 0.07132829757 | H44: =AVERAGEIFS('USDA ESALQ weekly IPPs'!$G$10:$G$20000,'USDA ESALQ weekly IPPs'!$B$10:$B$20000,">="&$D44,'USDA ESALQ weekly IPPs'!$B$10:$B$20000,"<="&$E44) -> 0.03414072633 | I44: =AVERAGEIFS('USDA ESALQ weekly IPPs'!$H$10:$H$20000,'USDA ESALQ weekly IPPs'!$B$10:$B$20000,">="&$D44,'USDA ESALQ weekly IPPs'!$B$10:$B$20000,"<="&$E44) -> 0.09869422307 | J44: =AVERAGEIFS('USDA ESALQ weekly IPPs'!$I$10:$I$20000,'USDA ESALQ weekly IPPs'!$B$10:$B$20000,">="&$D44,'USDA ESALQ weekly IPPs'!$B$10:$B$20000,"<="&$E44) -> 0.00302952204 | K44: =AVERAGEIFS('USDA ESALQ weekly IPPs'!$J$10:$J$20000,'USDA ESALQ weekly IPPs'!$B$10:$B$20000,">="&$D44,'USDA ESALQ weekly IPPs'!$B$10:$B$20000,"<="&$E44) -> 0.007689345165 | L44: =AVERAGEIFS('USDA ESALQ weekly IPPs'!$L$10:$L$20000,'USDA ESALQ weekly IPPs'!$B$10:$B$20000,">="&$D44,'USDA ESALQ weekly IPPs'!$B$10:$B$20000,"<="&$E44) -> 0.4247435897 | M44: =AVERAGEIFS('USDA ESALQ weekly IPPs'!$M$10:$M$20000,'USDA ESALQ weekly IPPs'!$B$10:$B$20000,">="&$D44,'USDA ESALQ weekly IPPs'!$B$10:$B$20000,"<="&$E44) -> 0.002064024 | N44: =AVERAGEIFS('USDA ESALQ weekly IPPs'!$N$10:$N$20000,'USDA ESALQ weekly IPPs'!$B$10:$B$20000,">="&$D44,'USDA ESALQ weekly IPPs'!$B$10:$B$20000,"<="&$E44) -> 0.03 | O44: =AVERAGEIFS('USDA ESALQ weekly IPPs'!$O$10:$O$20000,'USDA ESALQ weekly IPPs'!$B$10:$B$20000,">="&$D44,'USDA ESALQ weekly IPPs'!$B$10:$B$20000,"<="&$E44) -> 0.015 | P44: 123.9906991 | R44: 123.9906991 | S44: =NA() ->  | U44: 2016-10-01
B45: 2021-10-01 | C45: 2021-12-31 | D45: 2020-12-01 | E45: 2021-08-31 | F45: =AVERAGEIFS('USDA ESALQ weekly IPPs'!$E$10:$E$20000,'USDA ESALQ weekly IPPs'!$B$10:$B$20000,">="&$D45,'USDA ESALQ weekly IPPs'!$B$10:$B$20000,"<="&$E45) -> 0.6484311536 | G45: =AVERAGEIFS('USDA ESALQ weekly IPPs'!$F$10:$F$20000,'USDA ESALQ weekly IPPs'!$B$10:$B$20000,">="&$D45,'USDA ESALQ weekly IPPs'!$B$10:$B$20000,"<="&$E45) -> 0.07294669883 | H45: =AVERAGEIFS('USDA ESALQ weekly IPPs'!$G$10:$G$20000,'USDA ESALQ weekly IPPs'!$B$10:$B$20000,">="&$D45,'USDA ESALQ weekly IPPs'!$B$10:$B$20000,"<="&$E45) -> 0.03401701925 | I45: =AVERAGEIFS('USDA ESALQ weekly IPPs'!$H$10:$H$20000,'USDA ESALQ weekly IPPs'!$B$10:$B$20000,">="&$D45,'USDA ESALQ weekly IPPs'!$B$10:$B$20000,"<="&$E45) -> 0.1017151769 | J45: =AVERAGEIFS('USDA ESALQ weekly IPPs'!$I$10:$I$20000,'USDA ESALQ weekly IPPs'!$B$10:$B$20000,">="&$D45,'USDA ESALQ weekly IPPs'!$B$10:$B$20000,"<="&$E45) -> 0.003428440194 | K45: =AVERAGEIFS('USDA ESALQ weekly IPPs'!$J$10:$J$20000,'USDA ESALQ weekly IPPs'!$B$10:$B$20000,">="&$D45,'USDA ESALQ weekly IPPs'!$B$10:$B$20000,"<="&$E45) -> 0.007080796215 | L45: =AVERAGEIFS('USDA ESALQ weekly IPPs'!$L$10:$L$20000,'USDA ESALQ weekly IPPs'!$B$10:$B$20000,">="&$D45,'USDA ESALQ weekly IPPs'!$B$10:$B$20000,"<="&$E45) -> 0.4266923077 | M45: =AVERAGEIFS('USDA ESALQ weekly IPPs'!$M$10:$M$20000,'USDA ESALQ weekly IPPs'!$B$10:$B$20000,">="&$D45,'USDA ESALQ weekly IPPs'!$B$10:$B$20000,"<="&$E45) -> 0.002082134769 | N45: =AVERAGEIFS('USDA ESALQ weekly IPPs'!$N$10:$N$20000,'USDA ESALQ weekly IPPs'!$B$10:$B$20000,">="&$D45,'USDA ESALQ weekly IPPs'!$B$10:$B$20000,"<="&$E45) -> 0.03 | O45: =AVERAGEIFS('USDA ESALQ weekly IPPs'!$O$10:$O$20000,'USDA ESALQ weekly IPPs'!$B$10:$B$20000,">="&$D45,'USDA ESALQ weekly IPPs'!$B$10:$B$20000,"<="&$E45) -> 0.015 | P45: 134.1393727 | R45: 134.1393727 | S45: =NA() ->  | U45: 2016-07-01
B46: 2022-01-01 | C46: 2022-03-31 | D46: 2021-03-01 | E46: 2021-11-30 | F46: =AVERAGEIFS('USDA ESALQ weekly IPPs'!$E$10:$E$20000,'USDA ESALQ weekly IPPs'!$B$10:$B$20000,">="&$D46,'USDA ESALQ weekly IPPs'!$B$10:$B$20000,"<="&$E46) -> 0.7950933391 | G46: =AVERAGEIFS('USDA ESALQ weekly IPPs'!$F$10:$F$20000,'USDA ESALQ weekly IPPs'!$B$10:$B$20000,">="&$D46,'USDA ESALQ weekly IPPs'!$B$10:$B$20000,"<="&$E46) -> 0.06796279588 | H46: 0.03353193517 | I46: =AVERAGEIFS('USDA ESALQ weekly IPPs'!$H$10:$H$20000,'USDA ESALQ weekly IPPs'!$B$10:$B$20000,">="&$D46,'USDA ESALQ weekly IPPs'!$B$10:$B$20000,"<="&$E46) -> 0.1037842999 | J46: =AVERAGEIFS('USDA ESALQ weekly IPPs'!$I$10:$I$20000,'USDA ESALQ weekly IPPs'!$B$10:$B$20000,">="&$D46,'USDA ESALQ weekly IPPs'!$B$10:$B$20000,"<="&$E46) -> 0.004006141451 | K46: =AVERAGEIFS('USDA ESALQ weekly IPPs'!$J$10:$J$20000,'USDA ESALQ weekly IPPs'!$B$10:$B$20000,">="&$D46,'USDA ESALQ weekly IPPs'!$B$10:$B$20000,"<="&$E46) -> 0.01173871002 | L46: =AVERAGEIFS('USDA ESALQ weekly IPPs'!$L$10:$L$20000,'USDA ESALQ weekly IPPs'!$B$10:$B$20000,">="&$D46,'USDA ESALQ weekly IPPs'!$B$10:$B$20000,"<="&$E46) -> 0.4296153846 | M46: =AVERAGEIFS('USDA ESALQ weekly IPPs'!$M$10:$M$20000,'USDA ESALQ weekly IPPs'!$B$10:$B$20000,">="&$D46,'USDA ESALQ weekly IPPs'!$B$10:$B$20000,"<="&$E46) -> 0.002108294769 | N46: =AVERAGEIFS('USDA ESALQ weekly IPPs'!$N$10:$N$20000,'USDA ESALQ weekly IPPs'!$B$10:$B$20000,">="&$D46,'USDA ESALQ weekly IPPs'!$B$10:$B$20000,"<="&$E46) -> 0.03 | O46: =AVERAGEIFS('USDA ESALQ weekly IPPs'!$O$10:$O$20000,'USDA ESALQ weekly IPPs'!$B$10:$B$20000,">="&$D46,'USDA ESALQ weekly IPPs'!$B$10:$B$20000,"<="&$E46) -> 0.015 | P46: 149.2840901 | R46: 149.2840901 | S46: =NA() ->  | U46: 2016-04-01
B47: 2022-04-01 | C47: 2022-06-30 | D47: 2021-06-01 | E47: 2022-02-28 | F47: =AVERAGEIFS('USDA ESALQ weekly IPPs'!$E$10:$E$20000,'USDA ESALQ weekly IPPs'!$B$10:$B$20000,">="&$D47,'USDA ESALQ weekly IPPs'!$B$10:$B$20000,"<="&$E47) -> 0.8458589209 | G47: =AVERAGEIFS('USDA ESALQ weekly IPPs'!$F$10:$F$20000,'USDA ESALQ weekly IPPs'!$B$10:$B$20000,">="&$D47,'USDA ESALQ weekly IPPs'!$B$10:$B$20000,"<="&$E47) -> 0.07638771001 | H47: =AVERAGEIFS('USDA ESALQ weekly IPPs'!$G$10:$G$20000,'USDA ESALQ weekly IPPs'!$B$10:$B$20000,">="&$D47,'USDA ESALQ weekly IPPs'!$B$10:$B$20000,"<="&$E47) -> 0.03517506997 | I47: =AVERAGEIFS('USDA ESALQ weekly IPPs'!$H$10:$H$20000,'USDA ESALQ weekly IPPs'!$B$10:$B$20000,">="&$D47,'USDA ESALQ weekly IPPs'!$B$10:$B$20000,"<="&$E47) -> 0.1114205419 | J47: =AVERAGEIFS('USDA ESALQ weekly IPPs'!$I$10:$I$20000,'USDA ESALQ weekly IPPs'!$B$10:$B$20000,">="&$D47,'USDA ESALQ weekly IPPs'!$B$10:$B$20000,"<="&$E47) -> 0.004275368971 | K47: =AVERAGEIFS('USDA ESALQ weekly IPPs'!$J$10:$J$20000,'USDA ESALQ weekly IPPs'!$B$10:$B$20000,">="&$D47,'USDA ESALQ weekly IPPs'!$B$10:$B$20000,"<="&$E47) -> 0.009899141125 | L47: =AVERAGEIFS('USDA ESALQ weekly IPPs'!$L$10:$L$20000,'USDA ESALQ weekly IPPs'!$B$10:$B$20000,">="&$D47,'USDA ESALQ weekly IPPs'!$B$10:$B$20000,"<="&$E47) -> 0.4325384615 | M47: =AVERAGEIFS('USDA ESALQ weekly IPPs'!$M$10:$M$20000,'USDA ESALQ weekly IPPs'!$B$10:$B$20000,">="&$D47,'USDA ESALQ weekly IPPs'!$B$10:$B$20000,"<="&$E47) -> 0.002134454769 | N47: =AVERAGEIFS('USDA ESALQ weekly IPPs'!$N$10:$N$20000,'USDA ESALQ weekly IPPs'!$B$10:$B$20000,">="&$D47,'USDA ESALQ weekly IPPs'!$B$10:$B$20000,"<="&$E47) -> 0.03 | O47: =AVERAGEIFS('USDA ESALQ weekly IPPs'!$O$10:$O$20000,'USDA ESALQ weekly IPPs'!$B$10:$B$20000,">="&$D47,'USDA ESALQ weekly IPPs'!$B$10:$B$20000,"<="&$E47) -> 0.015 | P47: 156.2689669 | R47: 156.2689669 | S47: =NA() ->  | U47: 2016-01-01
B48: 2022-07-01 | C48: 2022-09-30 | D48: 2021-09-01 | E48: 2022-05-31 | F48: =AVERAGEIFS('USDA ESALQ weekly IPPs'!$E$10:$E$20000,'USDA ESALQ weekly IPPs'!$B$10:$B$20000,">="&$D48,'USDA ESALQ weekly IPPs'!$B$10:$B$20000,"<="&$E48) -> 0.8921641402 | G48: =AVERAGEIFS('USDA ESALQ weekly IPPs'!$F$10:$F$20000,'USDA ESALQ weekly IPPs'!$B$10:$B$20000,">="&$D48,'USDA ESALQ weekly IPPs'!$B$10:$B$20000,"<="&$E48) -> 0.07838601302 | H48: =AVERAGEIFS('USDA ESALQ weekly IPPs'!$G$10:$G$20000,'USDA ESALQ weekly IPPs'!$B$10:$B$20000,">="&$D48,'USDA ESALQ weekly IPPs'!$B$10:$B$20000,"<="&$E48) -> 0.03548437921 | I48: =AVERAGEIFS('USDA ESALQ weekly IPPs'!$H$10:$H$20000,'USDA ESALQ weekly IPPs'!$B$10:$B$20000,">="&$D48,'USDA ESALQ weekly IPPs'!$B$10:$B$20000,"<="&$E48) -> 0.1194798146 | J48: =AVERAGEIFS('USDA ESALQ weekly IPPs'!$I$10:$I$20000,'USDA ESALQ weekly IPPs'!$B$10:$B$20000,">="&$D48,'USDA ESALQ weekly IPPs'!$B$10:$B$20000,"<="&$E48) -> 0.004502057388 | K48: =AVERAGEIFS('USDA ESALQ weekly IPPs'!$J$10:$J$20000,'USDA ESALQ weekly IPPs'!$B$10:$B$20000,">="&$D48,'USDA ESALQ weekly IPPs'!$B$10:$B$20000,"<="&$E48) -> 0.009899141125 | L48: =L47 -> 0.4325384615 | M48: =AVERAGEIFS('USDA ESALQ weekly IPPs'!$M$10:$M$20000,'USDA ESALQ weekly IPPs'!$B$10:$B$20000,">="&$D48,'USDA ESALQ weekly IPPs'!$B$10:$B$20000,"<="&$E48) -> 0.002142504 | N48: =AVERAGEIFS('USDA ESALQ weekly IPPs'!$N$10:$N$20000,'USDA ESALQ weekly IPPs'!$B$10:$B$20000,">="&$D48,'USDA ESALQ weekly IPPs'!$B$10:$B$20000,"<="&$E48) -> 0.03 | O48: =AVERAGEIFS('USDA ESALQ weekly IPPs'!$O$10:$O$20000,'USDA ESALQ weekly IPPs'!$B$10:$B$20000,">="&$D48,'USDA ESALQ weekly IPPs'!$B$10:$B$20000,"<="&$E48) -> 0.015 | P48: 161.9596511 | R48: 161.9596511 | S48: =NA() ->  | U48: 2015-10-01
B49: 2022-10-01 | C49: 2022-12-31 | D49: 2021-12-01 | E49: 2022-08-31 | F49: =AVERAGEIFS('USDA ESALQ weekly IPPs'!$E$10:$E$20000,'USDA ESALQ weekly IPPs'!$B$10:$B$20000,">="&$D49,'USDA ESALQ weekly IPPs'!$B$10:$B$20000,"<="&$E49) -> 0.899957937 | G49: =AVERAGEIFS('USDA ESALQ weekly IPPs'!$F$10:$F$20000,'USDA ESALQ weekly IPPs'!$B$10:$B$20000,">="&$D49,'USDA ESALQ weekly IPPs'!$B$10:$B$20000,"<="&$E49) -> 0.07498199423 | H49: =AVERAGEIFS('USDA ESALQ weekly IPPs'!$G$10:$G$20000,'USDA ESALQ weekly IPPs'!$B$10:$B$20000,">="&$D49,'USDA ESALQ weekly IPPs'!$B$10:$B$20000,"<="&$E49) -> 0.03778266231 | I49: =AVERAGEIFS('USDA ESALQ weekly IPPs'!$H$10:$H$20000,'USDA ESALQ weekly IPPs'!$B$10:$B$20000,">="&$D49,'USDA ESALQ weekly IPPs'!$B$10:$B$20000,"<="&$E49) -> 0.1267984028 | J49: =AVERAGEIFS('USDA ESALQ weekly IPPs'!$I$10:$I$20000,'USDA ESALQ weekly IPPs'!$B$10:$B$20000,">="&$D49,'USDA ESALQ weekly IPPs'!$B$10:$B$20000,"<="&$E49) -> 0.004558083986 | K49: =AVERAGEIFS('USDA ESALQ weekly IPPs'!$J$10:$J$20000,'USDA ESALQ weekly IPPs'!$B$10:$B$20000,">="&$D49,'USDA ESALQ weekly IPPs'!$B$10:$B$20000,"<="&$E49) -> 0.01580200176 | L49: =INDEX(Other_Inputs!$I$59:$ZF$59,MATCH(B49,Other_Inputs!$I$58:$ZF$58,1)) -> 0.46 | M49: =AVERAGEIFS('USDA ESALQ weekly IPPs'!$M$10:$M$20000,'USDA ESALQ weekly IPPs'!$B$10:$B$20000,">="&$D49,'USDA ESALQ weekly IPPs'!$B$10:$B$20000,"<="&$E49) -> 0.002160614769 | N49: =AVERAGEIFS('USDA ESALQ weekly IPPs'!$N$10:$N$20000,'USDA ESALQ weekly IPPs'!$B$10:$B$20000,">="&$D49,'USDA ESALQ weekly IPPs'!$B$10:$B$20000,"<="&$E49) -> 0.03 | O49: =AVERAGEIFS('USDA ESALQ weekly IPPs'!$O$10:$O$20000,'USDA ESALQ weekly IPPs'!$B$10:$B$20000,">="&$D49,'USDA ESALQ weekly IPPs'!$B$10:$B$20000,"<="&$E49) -> 0.015 | P49: 166.7041697 | R49: 166.7041697 | S49: =NA() ->  | U49: 2015-07-01
B50: 2023-01-01 | C50: 2023-03-31 | D50: 2022-03-01 | E50: 2022-11-30 | F50: 0.9174510211 | G50: 0.052437794 | H50: 0.040054294 | I50: 0.1238596473 | J50: 0.004535211025 | K50: 0.02622808888 | L50: =INDEX(Other_Inputs!$I$59:$ZF$59,MATCH(B50,Other_Inputs!$I$58:$ZF$58,1)) -> 0.46 | M50: =AVERAGEIFS('USDA ESALQ weekly IPPs'!$M$10:$M$20000,'USDA ESALQ weekly IPPs'!$B$10:$B$20000,">="&$D50,'USDA ESALQ weekly IPPs'!$B$10:$B$20000,"<="&$E50) -> 0.002186774769 | N50: =AVERAGEIFS('USDA ESALQ weekly IPPs'!$N$10:$N$20000,'USDA ESALQ weekly IPPs'!$B$10:$B$20000,">="&$D50,'USDA ESALQ weekly IPPs'!$B$10:$B$20000,"<="&$E50) -> 0.03 | O50: =AVERAGEIFS('USDA ESALQ weekly IPPs'!$O$10:$O$20000,'USDA ESALQ weekly IPPs'!$B$10:$B$20000,">="&$D50,'USDA ESALQ weekly IPPs'!$B$10:$B$20000,"<="&$E50) -> 0.015 | P50: 167.1752831 | R50: 167.1752831 | S50: =NA() ->  | U50: 2015-04-01
B51: 2023-04-01 | C51: 2023-06-30 | D51: 2022-06-01 | E51: 2023-02-28 | F51: =AVERAGEIFS('USDA ESALQ weekly IPPs'!$E$10:$E$20000,'USDA ESALQ weekly IPPs'!$B$10:$B$20000,">="&$D51,'USDA ESALQ weekly IPPs'!$B$10:$B$20000,"<="&$E51) -> 0.8797000349 | G51: =AVERAGEIFS('USDA ESALQ weekly IPPs'!$F$10:$F$20000,'USDA ESALQ weekly IPPs'!$B$10:$B$20000,">="&$D51,'USDA ESALQ weekly IPPs'!$B$10:$B$20000,"<="&$E51) -> 0.06851539693 | H51: =AVERAGEIFS('USDA ESALQ weekly IPPs'!$G$10:$G$20000,'USDA ESALQ weekly IPPs'!$B$10:$B$20000,">="&$D51,'USDA ESALQ weekly IPPs'!$B$10:$B$20000,"<="&$E51) -> 0.04290270532 | I51: =AVERAGEIFS('USDA ESALQ weekly IPPs'!$H$10:$H$20000,'USDA ESALQ weekly IPPs'!$B$10:$B$20000,">="&$D51,'USDA ESALQ weekly IPPs'!$B$10:$B$20000,"<="&$E51) -> 0.1385239039 | J51: =AVERAGEIFS('USDA ESALQ weekly IPPs'!$I$10:$I$20000,'USDA ESALQ weekly IPPs'!$B$10:$B$20000,">="&$D51,'USDA ESALQ weekly IPPs'!$B$10:$B$20000,"<="&$E51) -> 0.004518568164 | K51: =AVERAGEIFS('USDA ESALQ weekly IPPs'!$J$10:$J$20000,'USDA ESALQ weekly IPPs'!$B$10:$B$20000,">="&$D51,'USDA ESALQ weekly IPPs'!$B$10:$B$20000,"<="&$E51) -> 0.02560541216 | L51: =INDEX(Other_Inputs!$I$59:$ZF$59,MATCH(B51,Other_Inputs!$I$58:$ZF$58,1)) -> 0.477 | M51: =AVERAGEIFS('USDA ESALQ weekly IPPs'!$M$10:$M$20000,'USDA ESALQ weekly IPPs'!$B$10:$B$20000,">="&$D51,'USDA ESALQ weekly IPPs'!$B$10:$B$20000,"<="&$E51) -> 0.002212934769 | N51: =AVERAGEIFS('USDA ESALQ weekly IPPs'!$N$10:$N$20000,'USDA ESALQ weekly IPPs'!$B$10:$B$20000,">="&$D51,'USDA ESALQ weekly IPPs'!$B$10:$B$20000,"<="&$E51) -> 0.03 | O51: =AVERAGEIFS('USDA ESALQ weekly IPPs'!$O$10:$O$20000,'USDA ESALQ weekly IPPs'!$B$10:$B$20000,">="&$D51,'USDA ESALQ weekly IPPs'!$B$10:$B$20000,"<="&$E51) -> 0.015 | P51: 168.3978956 | R51: 168.3978956 | S51: =NA() ->  | U51: 2015-01-01
B52: 2023-07-01 | C52: =DATE(YEAR(B52),MONTH(B52)+2,DAY(B52)-1) -> 2023-08-31 | D52: 2022-09-01 | E52: 2023-05-31 | F52: =AVERAGEIFS('USDA ESALQ weekly IPPs'!$E$10:$E$20000,'USDA ESALQ weekly IPPs'!$B$10:$B$20000,">="&$D52,'USDA ESALQ weekly IPPs'!$B$10:$B$20000,"<="&$E52) -> 0.8602670267 | G52: =AVERAGEIFS('USDA ESALQ weekly IPPs'!$F$10:$F$20000,'USDA ESALQ weekly IPPs'!$B$10:$B$20000,">="&$D52,'USDA ESALQ weekly IPPs'!$B$10:$B$20000,"<="&$E52) -> 0.07890769309 | H52: =AVERAGEIFS('USDA ESALQ weekly IPPs'!$G$10:$G$20000,'USDA ESALQ weekly IPPs'!$B$10:$B$20000,">="&$D52,'USDA ESALQ weekly IPPs'!$B$10:$B$20000,"<="&$E52) -> 0.04312736266 | I52: =AVERAGEIFS('USDA ESALQ weekly IPPs'!$H$10:$H$20000,'USDA ESALQ weekly IPPs'!$B$10:$B$20000,">="&$D52,'USDA ESALQ weekly IPPs'!$B$10:$B$20000,"<="&$E52) -> 0.1443761108 | J52: =AVERAGEIFS('USDA ESALQ weekly IPPs'!$I$10:$I$20000,'USDA ESALQ weekly IPPs'!$B$10:$B$20000,">="&$D52,'USDA ESALQ weekly IPPs'!$B$10:$B$20000,"<="&$E52) -> 0.004506712773 | K52: =AVERAGEIFS('USDA ESALQ weekly IPPs'!$J$10:$J$20000,'USDA ESALQ weekly IPPs'!$B$10:$B$20000,">="&$D52,'USDA ESALQ weekly IPPs'!$B$10:$B$20000,"<="&$E52) -> 0.01815344758 | L52: =INDEX(Other_Inputs!$I$59:$ZF$59,MATCH(B52,Other_Inputs!$I$58:$ZF$58,1)) -> 0.477 | M52: =INDEX(Other_Inputs!$I$48:$V$48,MATCH(B52,Other_Inputs!$I$46:$V$46,1)) -> 0.00239364 | N52: =AVERAGEIFS('USDA ESALQ weekly IPPs'!$N$10:$N$20000,'USDA ESALQ weekly IPPs'!$B$10:$B$20000,">="&$D52,'USDA ESALQ weekly IPPs'!$B$10:$B$20000,"<="&$E52) -> 0.03 | O52: =AVERAGEIFS('USDA ESALQ weekly IPPs'!$O$10:$O$20000,'USDA ESALQ weekly IPPs'!$B$10:$B$20000,">="&$D52,'USDA ESALQ weekly IPPs'!$B$10:$B$20000,"<="&$E52) -> 0.015 | P52: 167.3731994 | R52: 167.3731994 | S52: =NA() ->  | U52: 2014-10-01
B53: 2023-09-01 | C53: =DATE(YEAR(B53),MONTH(B53)+3,DAY(B53)-1) -> 2023-11-30 | D53: 2022-11-01 | E53: 2023-07-31 | F53: =AVERAGEIFS('USDA ESALQ weekly IPPs'!$E$10:$E$20000,'USDA ESALQ weekly IPPs'!$B$10:$B$20000,">="&$D53,'USDA ESALQ weekly IPPs'!$B$10:$B$20000,"<="&$E53) -> 0.8656026452 | G53: =AVERAGEIFS('USDA ESALQ weekly IPPs'!$F$10:$F$20000,'USDA ESALQ weekly IPPs'!$B$10:$B$20000,">="&$D53,'USDA ESALQ weekly IPPs'!$B$10:$B$20000,"<="&$E53) -> 0.07958229042 | H53: =AVERAGEIFS('USDA ESALQ weekly IPPs'!$G$10:$G$20000,'USDA ESALQ weekly IPPs'!$B$10:$B$20000,">="&$D53,'USDA ESALQ weekly IPPs'!$B$10:$B$20000,"<="&$E53) -> 0.04372700474 | I53: =AVERAGEIFS('USDA ESALQ weekly IPPs'!$H$10:$H$20000,'USDA ESALQ weekly IPPs'!$B$10:$B$20000,">="&$D53,'USDA ESALQ weekly IPPs'!$B$10:$B$20000,"<="&$E53) -> 0.1451872983 | J53: =AVERAGEIFS('USDA ESALQ weekly IPPs'!$I$10:$I$20000,'USDA ESALQ weekly IPPs'!$B$10:$B$20000,">="&$D53,'USDA ESALQ weekly IPPs'!$B$10:$B$20000,"<="&$E53) -> 0.004536396955 | K53: =AVERAGEIFS('USDA ESALQ weekly IPPs'!$J$10:$J$20000,'USDA ESALQ weekly IPPs'!$B$10:$B$20000,">="&$D53,'USDA ESALQ weekly IPPs'!$B$10:$B$20000,"<="&$E53) -> 0.01841784189 | L53: =INDEX(Other_Inputs!$I$59:$ZF$59,MATCH(B53,Other_Inputs!$I$58:$ZF$58,1)) -> 0.488 | M53: =INDEX(Other_Inputs!$I$48:$V$48,MATCH(B53,Other_Inputs!$I$46:$V$46,1)) -> 0.00239364 | N53: =AVERAGEIFS('USDA ESALQ weekly IPPs'!$N$10:$N$20000,'USDA ESALQ weekly IPPs'!$B$10:$B$20000,">="&$D53,'USDA ESALQ weekly IPPs'!$B$10:$B$20000,"<="&$E53) -> 0.03 | O53: =AVERAGEIFS('USDA ESALQ weekly IPPs'!$O$10:$O$20000,'USDA ESALQ weekly IPPs'!$B$10:$B$20000,">="&$D53,'USDA ESALQ weekly IPPs'!$B$10:$B$20000,"<="&$E53) -> 0.015 | P53: 169.2447118 | R53: 169.2447118 | S53: =NA() ->  | U53: 2014-07-01
B54: 2023-12-01 | C54: 2024-02-29 | D54: 2023-02-01 | E54: 2023-10-31 | F54: =AVERAGEIFS('USDA ESALQ weekly IPPs'!$E$10:$E$20000,'USDA ESALQ weekly IPPs'!$B$10:$B$20000,">="&$D54,'USDA ESALQ weekly IPPs'!$B$10:$B$20000,"<="&$E54) -> 0.838531308 | G54: =AVERAGEIFS('USDA ESALQ weekly IPPs'!$F$10:$F$20000,'USDA ESALQ weekly IPPs'!$B$10:$B$20000,">="&$D54,'USDA ESALQ weekly IPPs'!$B$10:$B$20000,"<="&$E54) -> 0.07233324848 | H54: =AVERAGEIFS('USDA ESALQ weekly IPPs'!$G$10:$G$20000,'USDA ESALQ weekly IPPs'!$B$10:$B$20000,">="&$D54,'USDA ESALQ weekly IPPs'!$B$10:$B$20000,"<="&$E54) -> 0.04645723378 | I54: =AVERAGEIFS('USDA ESALQ weekly IPPs'!$H$10:$H$20000,'USDA ESALQ weekly IPPs'!$B$10:$B$20000,">="&$D54,'USDA ESALQ weekly IPPs'!$B$10:$B$20000,"<="&$E54) -> 0.1461143163 | J54: =AVERAGEIFS('USDA ESALQ weekly IPPs'!$I$10:$I$20000,'USDA ESALQ weekly IPPs'!$B$10:$B$20000,">="&$D54,'USDA ESALQ weekly IPPs'!$B$10:$B$20000,"<="&$E54) -> 0.004413744426 | K54: =AVERAGEIFS('USDA ESALQ weekly IPPs'!$J$10:$J$20000,'USDA ESALQ weekly IPPs'!$B$10:$B$20000,">="&$D54,'USDA ESALQ weekly IPPs'!$B$10:$B$20000,"<="&$E54) -> 0.02403919799 | L54: =INDEX(Other_Inputs!$I$59:$ZF$59,MATCH(B54,Other_Inputs!$I$58:$ZF$58,1)) -> 0.488 | M54: =INDEX(Other_Inputs!$I$48:$V$48,MATCH(B54,Other_Inputs!$I$46:$V$46,1)) -> 0.00239364 | N54: =AVERAGEIFS('USDA ESALQ weekly IPPs'!$N$10:$N$20000,'USDA ESALQ weekly IPPs'!$B$10:$B$20000,">="&$D54,'USDA ESALQ weekly IPPs'!$B$10:$B$20000,"<="&$E54) -> 0.03 | O54: =AVERAGEIFS('USDA ESALQ weekly IPPs'!$O$10:$O$20000,'USDA ESALQ weekly IPPs'!$B$10:$B$20000,">="&$D54,'USDA ESALQ weekly IPPs'!$B$10:$B$20000,"<="&$E54) -> 0.015 | P54: 166.7282689 | R54: 166.7282689 | S54: =NA() ->  | U54: 2014-04-01
B55: 2024-03-01 | C55: =DATE(YEAR(B55),MONTH(B55)+6,DAY(B55)-1) -> 2024-08-31 | D55: 2023-05-01 | E55: 2024-01-31 | F55: 0.7751634309 | G55: 0.06922330893 | H55: 0.04796064656 | I55: 0.1523183362 | J55: 0.00417866289 | K55: 0.0271718848 | L55: =INDEX(Other_Inputs!$I$59:$ZF$59,MATCH(B55,Other_Inputs!$I$58:$ZF$58,1)) -> 0.496 | M55: =INDEX(Other_Inputs!$I$48:$V$48,MATCH(B55,Other_Inputs!$I$46:$V$46,1)) -> 0.00239364 | N55: =AVERAGEIFS('USDA ESALQ weekly IPPs'!$N$10:$N$20000,'USDA ESALQ weekly IPPs'!$B$10:$B$20000,">="&$D55,'USDA ESALQ weekly IPPs'!$B$10:$B$20000,"<="&$E55) -> 0.03 | O55: =AVERAGEIFS('USDA ESALQ weekly IPPs'!$O$10:$O$20000,'USDA ESALQ weekly IPPs'!$B$10:$B$20000,">="&$D55,'USDA ESALQ weekly IPPs'!$B$10:$B$20000,"<="&$E55) -> 0.015 | P55: 161.940991 | R55: 161.940991 | S55: =NA() ->  | U55: 2014-01-01
B56: 2024-09-01 | C56: =DATE(YEAR(B56),MONTH(B56)+6,DAY(B56)-1) -> 2025-02-28 | D56: 2023-11-01 | E56: 2024-07-31 | F56: =AVERAGEIFS('USDA ESALQ weekly IPPs'!$E$10:$E$20000,'USDA ESALQ weekly IPPs'!$B$10:$B$20000,">="&$D56,'USDA ESALQ weekly IPPs'!$B$10:$B$20000,"<="&$E56) -> 0.6520601103 | G56: =AVERAGEIFS('USDA ESALQ weekly IPPs'!$F$10:$F$20000,'USDA ESALQ weekly IPPs'!$B$10:$B$20000,">="&$D56,'USDA ESALQ weekly IPPs'!$B$10:$B$20000,"<="&$E56) -> 0.09721805492 | H56: =AVERAGEIFS('USDA ESALQ weekly IPPs'!$G$10:$G$20000,'USDA ESALQ weekly IPPs'!$B$10:$B$20000,">="&$D56,'USDA ESALQ weekly IPPs'!$B$10:$B$20000,"<="&$E56) -> 0.04367814935 | I56: =AVERAGEIFS('USDA ESALQ weekly IPPs'!$H$10:$H$20000,'USDA ESALQ weekly IPPs'!$B$10:$B$20000,">="&$D56,'USDA ESALQ weekly IPPs'!$B$10:$B$20000,"<="&$E56) -> 0.1807353301 | J56: =AVERAGEIFS('USDA ESALQ weekly IPPs'!$I$10:$I$20000,'USDA ESALQ weekly IPPs'!$B$10:$B$20000,">="&$D56,'USDA ESALQ weekly IPPs'!$B$10:$B$20000,"<="&$E56) -> 0.003894766578 | K56: =AVERAGEIFS('USDA ESALQ weekly IPPs'!$J$10:$J$20000,'USDA ESALQ weekly IPPs'!$B$10:$B$20000,">="&$D56,'USDA ESALQ weekly IPPs'!$B$10:$B$20000,"<="&$E56) -> 0.009338212416 | L56: =INDEX(Other_Inputs!$I$59:$ZF$59,MATCH(B56,Other_Inputs!$I$58:$ZF$58,1)) -> 0.506 | M56: =INDEX(Other_Inputs!$I$48:$V$48,MATCH(B56,Other_Inputs!$I$46:$V$46,1)) -> 0.002495664 | N56: =AVERAGEIFS('USDA ESALQ weekly IPPs'!$N$10:$N$20000,'USDA ESALQ weekly IPPs'!$B$10:$B$20000,">="&$D56,'USDA ESALQ weekly IPPs'!$B$10:$B$20000,"<="&$E56) -> 0.03 | O56: =AVERAGEIFS('USDA ESALQ weekly IPPs'!$O$10:$O$20000,'USDA ESALQ weekly IPPs'!$B$10:$B$20000,">="&$D56,'USDA ESALQ weekly IPPs'!$B$10:$B$20000,"<="&$E56) -> 0.015 | P56: 154.0420288 | R56: 154.0420288 | S56: =NA() ->  | U56: 2013-10-01
B57: 2025-03-01 | C57: 2025-08-31 | D57: 2024-05-01 | E57: 2025-01-31 | F57: =AVERAGEIFS('USDA ESALQ weekly IPPs'!$E$10:$E$20000,'USDA ESALQ weekly IPPs'!$B$10:$B$20000,">="&$D57,'USDA ESALQ weekly IPPs'!$B$10:$B$20000,"<="&$E57) -> 0.7035120593 | G57: =AVERAGEIFS('USDA ESALQ weekly IPPs'!$F$10:$F$20000,'USDA ESALQ weekly IPPs'!$B$10:$B$20000,">="&$D57,'USDA ESALQ weekly IPPs'!$B$10:$B$20000,"<="&$E57) -> 0.09373093641 | H57: =AVERAGEIFS('USDA ESALQ weekly IPPs'!$G$10:$G$20000,'USDA ESALQ weekly IPPs'!$B$10:$B$20000,">="&$D57,'USDA ESALQ weekly IPPs'!$B$10:$B$20000,"<="&$E57) -> 0.04249087293 | I57: =AVERAGEIFS('USDA ESALQ weekly IPPs'!$H$10:$H$20000,'USDA ESALQ weekly IPPs'!$B$10:$B$20000,">="&$D57,'USDA ESALQ weekly IPPs'!$B$10:$B$20000,"<="&$E57) -> 0.1594433977 | J57: =AVERAGEIFS('USDA ESALQ weekly IPPs'!$I$10:$I$20000,'USDA ESALQ weekly IPPs'!$B$10:$B$20000,">="&$D57,'USDA ESALQ weekly IPPs'!$B$10:$B$20000,"<="&$E57) -> 0.003996709065 | K57: =AVERAGEIFS('USDA ESALQ weekly IPPs'!$J$10:$J$20000,'USDA ESALQ weekly IPPs'!$B$10:$B$20000,">="&$D57,'USDA ESALQ weekly IPPs'!$B$10:$B$20000,"<="&$E57) -> 0.0121908542 | L57: =INDEX(Other_Inputs!$I$59:$ZF$59,MATCH(B57,Other_Inputs!$I$58:$ZF$58,1)) -> 0 | M57: =INDEX(Other_Inputs!$I$48:$V$48,MATCH(B57,Other_Inputs!$I$46:$V$46,1)) -> 0.002495664 | N57: =AVERAGEIFS('USDA ESALQ weekly IPPs'!$N$10:$N$20000,'USDA ESALQ weekly IPPs'!$B$10:$B$20000,">="&$D57,'USDA ESALQ weekly IPPs'!$B$10:$B$20000,"<="&$E57) -> 0.03 | O57: =AVERAGEIFS('USDA ESALQ weekly IPPs'!$O$10:$O$20000,'USDA ESALQ weekly IPPs'!$B$10:$B$20000,">="&$D57,'USDA ESALQ weekly IPPs'!$B$10:$B$20000,"<="&$E57) -> 0.015 | P57: 106.2860494 | R57: 106.2860494 | S57: =NA() ->  | U57: 2013-07-01
B58: 2025-09-01 | C58: 2026-02-28 | D58: 2024-11-01 | E58: 2025-07-31 | F58: =AVERAGEIFS('USDA ESALQ weekly IPPs'!$E$10:$E$20000,'USDA ESALQ weekly IPPs'!$B$10:$B$20000,">="&$D58,'USDA ESALQ weekly IPPs'!$B$10:$B$20000,"<="&$E58) ->  | G58: =AVERAGEIFS('USDA ESALQ weekly IPPs'!$F$10:$F$20000,'USDA ESALQ weekly IPPs'!$B$10:$B$20000,">="&$D58,'USDA ESALQ weekly IPPs'!$B$10:$B$20000,"<="&$E58) ->  | H58: =AVERAGEIFS('USDA ESALQ weekly IPPs'!$G$10:$G$20000,'USDA ESALQ weekly IPPs'!$B$10:$B$20000,">="&$D58,'USDA ESALQ weekly IPPs'!$B$10:$B$20000,"<="&$E58) ->  | I58: =AVERAGEIFS('USDA ESALQ weekly IPPs'!$H$10:$H$20000,'USDA ESALQ weekly IPPs'!$B$10:$B$20000,">="&$D58,'USDA ESALQ weekly IPPs'!$B$10:$B$20000,"<="&$E58) ->  | J58: =AVERAGEIFS('USDA ESALQ weekly IPPs'!$I$10:$I$20000,'USDA ESALQ weekly IPPs'!$B$10:$B$20000,">="&$D58,'USDA ESALQ weekly IPPs'!$B$10:$B$20000,"<="&$E58) ->  | K58: =AVERAGEIFS('USDA ESALQ weekly IPPs'!$J$10:$J$20000,'USDA ESALQ weekly IPPs'!$B$10:$B$20000,">="&$D58,'USDA ESALQ weekly IPPs'!$B$10:$B$20000,"<="&$E58) ->  | L58: =INDEX(Other_Inputs!$I$59:$ZF$59,MATCH(B58,Other_Inputs!$I$58:$ZF$58,1)) -> 0 | M58: =INDEX(Other_Inputs!$I$48:$V$48,MATCH(B58,Other_Inputs!$I$46:$V$46,1)) -> 0 | N58: =AVERAGEIFS('USDA ESALQ weekly IPPs'!$N$10:$N$20000,'USDA ESALQ weekly IPPs'!$B$10:$B$20000,">="&$D58,'USDA ESALQ weekly IPPs'!$B$10:$B$20000,"<="&$E58) ->  | O58: =AVERAGEIFS('USDA ESALQ weekly IPPs'!$O$10:$O$20000,'USDA ESALQ weekly IPPs'!$B$10:$B$20000,">="&$D58,'USDA ESALQ weekly IPPs'!$B$10:$B$20000,"<="&$E58) ->  | S58: =NA() ->  | U58: 2013-04-01
B59: 2026-03-01 | C59: 2026-08-31 | D59: 2025-05-01 | E59: 2026-01-31 | F59: =AVERAGEIFS('USDA ESALQ weekly IPPs'!$E$10:$E$20000,'USDA ESALQ weekly IPPs'!$B$10:$B$20000,">="&$D59,'USDA ESALQ weekly IPPs'!$B$10:$B$20000,"<="&$E59) ->  | G59: =AVERAGEIFS('USDA ESALQ weekly IPPs'!$F$10:$F$20000,'USDA ESALQ weekly IPPs'!$B$10:$B$20000,">="&$D59,'USDA ESALQ weekly IPPs'!$B$10:$B$20000,"<="&$E59) ->  | H59: =AVERAGEIFS('USDA ESALQ weekly IPPs'!$G$10:$G$20000,'USDA ESALQ weekly IPPs'!$B$10:$B$20000,">="&$D59,'USDA ESALQ weekly IPPs'!$B$10:$B$20000,"<="&$E59) ->  | I59: =AVERAGEIFS('USDA ESALQ weekly IPPs'!$H$10:$H$20000,'USDA ESALQ weekly IPPs'!$B$10:$B$20000,">="&$D59,'USDA ESALQ weekly IPPs'!$B$10:$B$20000,"<="&$E59) ->  | J59: =AVERAGEIFS('USDA ESALQ weekly IPPs'!$I$10:$I$20000,'USDA ESALQ weekly IPPs'!$B$10:$B$20000,">="&$D59,'USDA ESALQ weekly IPPs'!$B$10:$B$20000,"<="&$E59) ->  | K59: =AVERAGEIFS('USDA ESALQ weekly IPPs'!$J$10:$J$20000,'USDA ESALQ weekly IPPs'!$B$10:$B$20000,">="&$D59,'USDA ESALQ weekly IPPs'!$B$10:$B$20000,"<="&$E59) ->  | L59: =INDEX(Other_Inputs!$I$59:$ZF$59,MATCH(B59,Other_Inputs!$I$58:$ZF$58,1)) -> 0 | M59: =INDEX(Other_Inputs!$I$48:$V$48,MATCH(B59,Other_Inputs!$I$46:$V$46,1)) -> 0 | N59: =AVERAGEIFS('USDA ESALQ weekly IPPs'!$N$10:$N$20000,'USDA ESALQ weekly IPPs'!$B$10:$B$20000,">="&$D59,'USDA ESALQ weekly IPPs'!$B$10:$B$20000,"<="&$E59) ->  | O59: =AVERAGEIFS('USDA ESALQ weekly IPPs'!$O$10:$O$20000,'USDA ESALQ weekly IPPs'!$B$10:$B$20000,">="&$D59,'USDA ESALQ weekly IPPs'!$B$10:$B$20000,"<="&$E59) ->  | S59: =NA() ->  | U59: 2013-01-01
B60: 2026-09-01 | C60: 2027-02-28 | D60: 2025-11-01 | E60: 2026-07-31 | F60: =AVERAGEIFS('USDA ESALQ weekly IPPs'!$E$10:$E$20000,'USDA ESALQ weekly IPPs'!$B$10:$B$20000,">="&$D60,'USDA ESALQ weekly IPPs'!$B$10:$B$20000,"<="&$E60) ->  | G60: =AVERAGEIFS('USDA ESALQ weekly IPPs'!$F$10:$F$20000,'USDA ESALQ weekly IPPs'!$B$10:$B$20000,">="&$D60,'USDA ESALQ weekly IPPs'!$B$10:$B$20000,"<="&$E60) ->  | H60: =AVERAGEIFS('USDA ESALQ weekly IPPs'!$G$10:$G$20000,'USDA ESALQ weekly IPPs'!$B$10:$B$20000,">="&$D60,'USDA ESALQ weekly IPPs'!$B$10:$B$20000,"<="&$E60) ->  | I60: =AVERAGEIFS('USDA ESALQ weekly IPPs'!$H$10:$H$20000,'USDA ESALQ weekly IPPs'!$B$10:$B$20000,">="&$D60,'USDA ESALQ weekly IPPs'!$B$10:$B$20000,"<="&$E60) ->  | J60: =AVERAGEIFS('USDA ESALQ weekly IPPs'!$I$10:$I$20000,'USDA ESALQ weekly IPPs'!$B$10:$B$20000,">="&$D60,'USDA ESALQ weekly IPPs'!$B$10:$B$20000,"<="&$E60) ->  | K60: =AVERAGEIFS('USDA ESALQ weekly IPPs'!$J$10:$J$20000,'USDA ESALQ weekly IPPs'!$B$10:$B$20000,">="&$D60,'USDA ESALQ weekly IPPs'!$B$10:$B$20000,"<="&$E60) ->  | L60: =INDEX(Other_Inputs!$I$59:$ZF$59,MATCH(B60,Other_Inputs!$I$58:$ZF$58,1)) -> 0 | M60: =INDEX(Other_Inputs!$I$48:$V$48,MATCH(B60,Other_Inputs!$I$46:$V$46,1)) -> 0 | N60: =AVERAGEIFS('USDA ESALQ weekly IPPs'!$N$10:$N$20000,'USDA ESALQ weekly IPPs'!$B$10:$B$20000,">="&$D60,'USDA ESALQ weekly IPPs'!$B$10:$B$20000,"<="&$E60) ->  | O60: =AVERAGEIFS('USDA ESALQ weekly IPPs'!$O$10:$O$20000,'USDA ESALQ weekly IPPs'!$B$10:$B$20000,">="&$D60,'USDA ESALQ weekly IPPs'!$B$10:$B$20000,"<="&$E60) ->  | S60: =NA() ->  | U60: 2012-10-01
B61: 2027-03-01 | C61: 2027-08-31 | D61: 2026-05-01 | E61: 2027-01-31 | F61: =AVERAGEIFS('USDA ESALQ weekly IPPs'!$E$10:$E$20000,'USDA ESALQ weekly IPPs'!$B$10:$B$20000,">="&$D61,'USDA ESALQ weekly IPPs'!$B$10:$B$20000,"<="&$E61) ->  | G61: =AVERAGEIFS('USDA ESALQ weekly IPPs'!$F$10:$F$20000,'USDA ESALQ weekly IPPs'!$B$10:$B$20000,">="&$D61,'USDA ESALQ weekly IPPs'!$B$10:$B$20000,"<="&$E61) ->  | H61: =AVERAGEIFS('USDA ESALQ weekly IPPs'!$G$10:$G$20000,'USDA ESALQ weekly IPPs'!$B$10:$B$20000,">="&$D61,'USDA ESALQ weekly IPPs'!$B$10:$B$20000,"<="&$E61) ->  | I61: =AVERAGEIFS('USDA ESALQ weekly IPPs'!$H$10:$H$20000,'USDA ESALQ weekly IPPs'!$B$10:$B$20000,">="&$D61,'USDA ESALQ weekly IPPs'!$B$10:$B$20000,"<="&$E61) ->  | J61: =AVERAGEIFS('USDA ESALQ weekly IPPs'!$I$10:$I$20000,'USDA ESALQ weekly IPPs'!$B$10:$B$20000,">="&$D61,'USDA ESALQ weekly IPPs'!$B$10:$B$20000,"<="&$E61) ->  | K61: =AVERAGEIFS('USDA ESALQ weekly IPPs'!$J$10:$J$20000,'USDA ESALQ weekly IPPs'!$B$10:$B$20000,">="&$D61,'USDA ESALQ weekly IPPs'!$B$10:$B$20000,"<="&$E61) ->  | L61: =INDEX(Other_Inputs!$I$59:$ZF$59,MATCH(B61,Other_Inputs!$I$58:$ZF$58,1)) -> 0 | M61: =INDEX(Other_Inputs!$I$48:$V$48,MATCH(B61,Other_Inputs!$I$46:$V$46,1)) -> 0 | N61: =AVERAGEIFS('USDA ESALQ weekly IPPs'!$N$10:$N$20000,'USDA ESALQ weekly IPPs'!$B$10:$B$20000,">="&$D61,'USDA ESALQ weekly IPPs'!$B$10:$B$20000,"<="&$E61) ->  | O61: =AVERAGEIFS('USDA ESALQ weekly IPPs'!$O$10:$O$20000,'USDA ESALQ weekly IPPs'!$B$10:$B$20000,">="&$D61,'USDA ESALQ weekly IPPs'!$B$10:$B$20000,"<="&$E61) ->  | S61: =NA() ->  | U61: 2012-07-01
B62: 2027-09-01 | C62: 2028-02-29 | D62: 2026-11-01 | E62: 2027-07-31 | F62: =AVERAGEIFS('USDA ESALQ weekly IPPs'!$E$10:$E$20000,'USDA ESALQ weekly IPPs'!$B$10:$B$20000,">="&$D62,'USDA ESALQ weekly IPPs'!$B$10:$B$20000,"<="&$E62) ->  | G62: =AVERAGEIFS('USDA ESALQ weekly IPPs'!$F$10:$F$20000,'USDA ESALQ weekly IPPs'!$B$10:$B$20000,">="&$D62,'USDA ESALQ weekly IPPs'!$B$10:$B$20000,"<="&$E62) ->  | H62: =AVERAGEIFS('USDA ESALQ weekly IPPs'!$G$10:$G$20000,'USDA ESALQ weekly IPPs'!$B$10:$B$20000,">="&$D62,'USDA ESALQ weekly IPPs'!$B$10:$B$20000,"<="&$E62) ->  | I62: =AVERAGEIFS('USDA ESALQ weekly IPPs'!$H$10:$H$20000,'USDA ESALQ weekly IPPs'!$B$10:$B$20000,">="&$D62,'USDA ESALQ weekly IPPs'!$B$10:$B$20000,"<="&$E62) ->  | J62: =AVERAGEIFS('USDA ESALQ weekly IPPs'!$I$10:$I$20000,'USDA ESALQ weekly IPPs'!$B$10:$B$20000,">="&$D62,'USDA ESALQ weekly IPPs'!$B$10:$B$20000,"<="&$E62) ->  | K62: =AVERAGEIFS('USDA ESALQ weekly IPPs'!$J$10:$J$20000,'USDA ESALQ weekly IPPs'!$B$10:$B$20000,">="&$D62,'USDA ESALQ weekly IPPs'!$B$10:$B$20000,"<="&$E62) ->  | L62: =INDEX(Other_Inputs!$I$59:$ZF$59,MATCH(B62,Other_Inputs!$I$58:$ZF$58,1)) -> 0 | M62: =INDEX(Other_Inputs!$I$48:$V$48,MATCH(B62,Other_Inputs!$I$46:$V$46,1)) -> 0 | N62: =AVERAGEIFS('USDA ESALQ weekly IPPs'!$N$10:$N$20000,'USDA ESALQ weekly IPPs'!$B$10:$B$20000,">="&$D62,'USDA ESALQ weekly IPPs'!$B$10:$B$20000,"<="&$E62) ->  | O62: =AVERAGEIFS('USDA ESALQ weekly IPPs'!$O$10:$O$20000,'USDA ESALQ weekly IPPs'!$B$10:$B$20000,">="&$D62,'USDA ESALQ weekly IPPs'!$B$10:$B$20000,"<="&$E62) ->  | S62: =NA() ->  | U62: 2012-04-01
B63: 2028-03-01 | C63: 2028-08-31 | D63: 2027-05-01 | E63: 2028-01-31 | F63: =AVERAGEIFS('USDA ESALQ weekly IPPs'!$E$10:$E$20000,'USDA ESALQ weekly IPPs'!$B$10:$B$20000,">="&$D63,'USDA ESALQ weekly IPPs'!$B$10:$B$20000,"<="&$E63) ->  | G63: =AVERAGEIFS('USDA ESALQ weekly IPPs'!$F$10:$F$20000,'USDA ESALQ weekly IPPs'!$B$10:$B$20000,">="&$D63,'USDA ESALQ weekly IPPs'!$B$10:$B$20000,"<="&$E63) ->  | H63: =AVERAGEIFS('USDA ESALQ weekly IPPs'!$G$10:$G$20000,'USDA ESALQ weekly IPPs'!$B$10:$B$20000,">="&$D63,'USDA ESALQ weekly IPPs'!$B$10:$B$20000,"<="&$E63) ->  | I63: =AVERAGEIFS('USDA ESALQ weekly IPPs'!$H$10:$H$20000,'USDA ESALQ weekly IPPs'!$B$10:$B$20000,">="&$D63,'USDA ESALQ weekly IPPs'!$B$10:$B$20000,"<="&$E63) ->  | J63: =AVERAGEIFS('USDA ESALQ weekly IPPs'!$I$10:$I$20000,'USDA ESALQ weekly IPPs'!$B$10:$B$20000,">="&$D63,'USDA ESALQ weekly IPPs'!$B$10:$B$20000,"<="&$E63) ->  | K63: =AVERAGEIFS('USDA ESALQ weekly IPPs'!$J$10:$J$20000,'USDA ESALQ weekly IPPs'!$B$10:$B$20000,">="&$D63,'USDA ESALQ weekly IPPs'!$B$10:$B$20000,"<="&$E63) ->  | L63: =INDEX(Other_Inputs!$I$59:$ZF$59,MATCH(B63,Other_Inputs!$I$58:$ZF$58,1)) -> 0 | M63: =INDEX(Other_Inputs!$I$48:$V$48,MATCH(B63,Other_Inputs!$I$46:$V$46,1)) -> 0 | N63: =AVERAGEIFS('USDA ESALQ weekly IPPs'!$N$10:$N$20000,'USDA ESALQ weekly IPPs'!$B$10:$B$20000,">="&$D63,'USDA ESALQ weekly IPPs'!$B$10:$B$20000,"<="&$E63) ->  | O63: =AVERAGEIFS('USDA ESALQ weekly IPPs'!$O$10:$O$20000,'USDA ESALQ weekly IPPs'!$B$10:$B$20000,">="&$D63,'USDA ESALQ weekly IPPs'!$B$10:$B$20000,"<="&$E63) ->  | S63: =NA() ->  | U63: 2012-01-01
B64: 2028-09-01 | C64: 2029-02-28 | D64: 2027-11-01 | E64: 2028-07-31 | F64: =AVERAGEIFS('USDA ESALQ weekly IPPs'!$E$10:$E$20000,'USDA ESALQ weekly IPPs'!$B$10:$B$20000,">="&$D64,'USDA ESALQ weekly IPPs'!$B$10:$B$20000,"<="&$E64) ->  | G64: =AVERAGEIFS('USDA ESALQ weekly IPPs'!$F$10:$F$20000,'USDA ESALQ weekly IPPs'!$B$10:$B$20000,">="&$D64,'USDA ESALQ weekly IPPs'!$B$10:$B$20000,"<="&$E64) ->  | H64: =AVERAGEIFS('USDA ESALQ weekly IPPs'!$G$10:$G$20000,'USDA ESALQ weekly IPPs'!$B$10:$B$20000,">="&$D64,'USDA ESALQ weekly IPPs'!$B$10:$B$20000,"<="&$E64) ->  | I64: =AVERAGEIFS('USDA ESALQ weekly IPPs'!$H$10:$H$20000,'USDA ESALQ weekly IPPs'!$B$10:$B$20000,">="&$D64,'USDA ESALQ weekly IPPs'!$B$10:$B$20000,"<="&$E64) ->  | J64: =AVERAGEIFS('USDA ESALQ weekly IPPs'!$I$10:$I$20000,'USDA ESALQ weekly IPPs'!$B$10:$B$20000,">="&$D64,'USDA ESALQ weekly IPPs'!$B$10:$B$20000,"<="&$E64) ->  | K64: =AVERAGEIFS('USDA ESALQ weekly IPPs'!$J$10:$J$20000,'USDA ESALQ weekly IPPs'!$B$10:$B$20000,">="&$D64,'USDA ESALQ weekly IPPs'!$B$10:$B$20000,"<="&$E64) ->  | L64: =INDEX(Other_Inputs!$I$59:$ZF$59,MATCH(B64,Other_Inputs!$I$58:$ZF$58,1)) -> 0 | M64: =INDEX(Other_Inputs!$I$48:$V$48,MATCH(B64,Other_Inputs!$I$46:$V$46,1)) -> 0 | N64: =AVERAGEIFS('USDA ESALQ weekly IPPs'!$N$10:$N$20000,'USDA ESALQ weekly IPPs'!$B$10:$B$20000,">="&$D64,'USDA ESALQ weekly IPPs'!$B$10:$B$20000,"<="&$E64) ->  | O64: =AVERAGEIFS('USDA ESALQ weekly IPPs'!$O$10:$O$20000,'USDA ESALQ weekly IPPs'!$B$10:$B$20000,">="&$D64,'USDA ESALQ weekly IPPs'!$B$10:$B$20000,"<="&$E64) ->  | S64: =NA() -> 
B65: 2029-03-01 | C65: 2029-08-31 | D65: 2028-05-01 | E65: 2029-01-31 | F65: =AVERAGEIFS('USDA ESALQ weekly IPPs'!$E$10:$E$20000,'USDA ESALQ weekly IPPs'!$B$10:$B$20000,">="&$D65,'USDA ESALQ weekly IPPs'!$B$10:$B$20000,"<="&$E65) ->  | G65: =AVERAGEIFS('USDA ESALQ weekly IPPs'!$F$10:$F$20000,'USDA ESALQ weekly IPPs'!$B$10:$B$20000,">="&$D65,'USDA ESALQ weekly IPPs'!$B$10:$B$20000,"<="&$E65) ->  | H65: =AVERAGEIFS('USDA ESALQ weekly IPPs'!$G$10:$G$20000,'USDA ESALQ weekly IPPs'!$B$10:$B$20000,">="&$D65,'USDA ESALQ weekly IPPs'!$B$10:$B$20000,"<="&$E65) ->  | I65: =AVERAGEIFS('USDA ESALQ weekly IPPs'!$H$10:$H$20000,'USDA ESALQ weekly IPPs'!$B$10:$B$20000,">="&$D65,'USDA ESALQ weekly IPPs'!$B$10:$B$20000,"<="&$E65) ->  | J65: =AVERAGEIFS('USDA ESALQ weekly IPPs'!$I$10:$I$20000,'USDA ESALQ weekly IPPs'!$B$10:$B$20000,">="&$D65,'USDA ESALQ weekly IPPs'!$B$10:$B$20000,"<="&$E65) ->  | K65: =AVERAGEIFS('USDA ESALQ weekly IPPs'!$J$10:$J$20000,'USDA ESALQ weekly IPPs'!$B$10:$B$20000,">="&$D65,'USDA ESALQ weekly IPPs'!$B$10:$B$20000,"<="&$E65) ->  | L65: =INDEX(Other_Inputs!$I$59:$ZF$59,MATCH(B65,Other_Inputs!$I$58:$ZF$58,1)) -> 0 | M65: =INDEX(Other_Inputs!$I$48:$V$48,MATCH(B65,Other_Inputs!$I$46:$V$46,1)) -> 0 | N65: =AVERAGEIFS('USDA ESALQ weekly IPPs'!$N$10:$N$20000,'USDA ESALQ weekly IPPs'!$B$10:$B$20000,">="&$D65,'USDA ESALQ weekly IPPs'!$B$10:$B$20000,"<="&$E65) ->  | O65: =AVERAGEIFS('USDA ESALQ weekly IPPs'!$O$10:$O$20000,'USDA ESALQ weekly IPPs'!$B$10:$B$20000,">="&$D65,'USDA ESALQ weekly IPPs'!$B$10:$B$20000,"<="&$E65) ->  | S65: =NA() -> 
B66: 2029-09-01 | C66: 2030-02-28 | D66: 2028-11-01 | E66: 2029-07-31 | F66: =AVERAGEIFS('USDA ESALQ weekly IPPs'!$E$10:$E$20000,'USDA ESALQ weekly IPPs'!$B$10:$B$20000,">="&$D66,'USDA ESALQ weekly IPPs'!$B$10:$B$20000,"<="&$E66) ->  | G66: =AVERAGEIFS('USDA ESALQ weekly IPPs'!$F$10:$F$20000,'USDA ESALQ weekly IPPs'!$B$10:$B$20000,">="&$D66,'USDA ESALQ weekly IPPs'!$B$10:$B$20000,"<="&$E66) ->  | H66: =AVERAGEIFS('USDA ESALQ weekly IPPs'!$G$10:$G$20000,'USDA ESALQ weekly IPPs'!$B$10:$B$20000,">="&$D66,'USDA ESALQ weekly IPPs'!$B$10:$B$20000,"<="&$E66) ->  | I66: =AVERAGEIFS('USDA ESALQ weekly IPPs'!$H$10:$H$20000,'USDA ESALQ weekly IPPs'!$B$10:$B$20000,">="&$D66,'USDA ESALQ weekly IPPs'!$B$10:$B$20000,"<="&$E66) ->  | J66: =AVERAGEIFS('USDA ESALQ weekly IPPs'!$I$10:$I$20000,'USDA ESALQ weekly IPPs'!$B$10:$B$20000,">="&$D66,'USDA ESALQ weekly IPPs'!$B$10:$B$20000,"<="&$E66) ->  | K66: =AVERAGEIFS('USDA ESALQ weekly IPPs'!$J$10:$J$20000,'USDA ESALQ weekly IPPs'!$B$10:$B$20000,">="&$D66,'USDA ESALQ weekly IPPs'!$B$10:$B$20000,"<="&$E66) ->  | L66: =INDEX(Other_Inputs!$I$59:$ZF$59,MATCH(B66,Other_Inputs!$I$58:$ZF$58,1)) -> 0 | M66: =INDEX(Other_Inputs!$I$48:$V$48,MATCH(B66,Other_Inputs!$I$46:$V$46,1)) -> 0 | N66: =AVERAGEIFS('USDA ESALQ weekly IPPs'!$N$10:$N$20000,'USDA ESALQ weekly IPPs'!$B$10:$B$20000,">="&$D66,'USDA ESALQ weekly IPPs'!$B$10:$B$20000,"<="&$E66) ->  | O66: =AVERAGEIFS('USDA ESALQ weekly IPPs'!$O$10:$O$20000,'USDA ESALQ weekly IPPs'!$B$10:$B$20000,">="&$D66,'USDA ESALQ weekly IPPs'!$B$10:$B$20000,"<="&$E66) ->  | S66: =NA() -> 
B67: 2030-03-01 | C67: 2030-08-31 | D67: 2029-05-01 | E67: 2030-01-31 | F67: =AVERAGEIFS('USDA ESALQ weekly IPPs'!$E$10:$E$20000,'USDA ESALQ weekly IPPs'!$B$10:$B$20000,">="&$D67,'USDA ESALQ weekly IPPs'!$B$10:$B$20000,"<="&$E67) ->  | G67: =AVERAGEIFS('USDA ESALQ weekly IPPs'!$F$10:$F$20000,'USDA ESALQ weekly IPPs'!$B$10:$B$20000,">="&$D67,'USDA ESALQ weekly IPPs'!$B$10:$B$20000,"<="&$E67) ->  | H67: =AVERAGEIFS('USDA ESALQ weekly IPPs'!$G$10:$G$20000,'USDA ESALQ weekly IPPs'!$B$10:$B$20000,">="&$D67,'USDA ESALQ weekly IPPs'!$B$10:$B$20000,"<="&$E67) ->  | I67: =AVERAGEIFS('USDA ESALQ weekly IPPs'!$H$10:$H$20000,'USDA ESALQ weekly IPPs'!$B$10:$B$20000,">="&$D67,'USDA ESALQ weekly IPPs'!$B$10:$B$20000,"<="&$E67) ->  | J67: =AVERAGEIFS('USDA ESALQ weekly IPPs'!$I$10:$I$20000,'USDA ESALQ weekly IPPs'!$B$10:$B$20000,">="&$D67,'USDA ESALQ weekly IPPs'!$B$10:$B$20000,"<="&$E67) ->  | K67: =AVERAGEIFS('USDA ESALQ weekly IPPs'!$J$10:$J$20000,'USDA ESALQ weekly IPPs'!$B$10:$B$20000,">="&$D67,'USDA ESALQ weekly IPPs'!$B$10:$B$20000,"<="&$E67) ->  | L67: =INDEX(Other_Inputs!$I$59:$ZF$59,MATCH(B67,Other_Inputs!$I$58:$ZF$58,1)) -> 0 | M67: =INDEX(Other_Inputs!$I$48:$V$48,MATCH(B67,Other_Inputs!$I$46:$V$46,1)) -> 0 | N67: =AVERAGEIFS('USDA ESALQ weekly IPPs'!$N$10:$N$20000,'USDA ESALQ weekly IPPs'!$B$10:$B$20000,">="&$D67,'USDA ESALQ weekly IPPs'!$B$10:$B$20000,"<="&$E67) ->  | O67: =AVERAGEIFS('USDA ESALQ weekly IPPs'!$O$10:$O$20000,'USDA ESALQ weekly IPPs'!$B$10:$B$20000,">="&$D67,'USDA ESALQ weekly IPPs'!$B$10:$B$20000,"<="&$E67) ->  | S67: =NA() -> 
B68: 2030-09-01 | C68: 2031-02-28 | D68: 2029-11-01 | E68: 2030-07-31 | F68: =AVERAGEIFS('USDA ESALQ weekly IPPs'!$E$10:$E$20000,'USDA ESALQ weekly IPPs'!$B$10:$B$20000,">="&$D68,'USDA ESALQ weekly IPPs'!$B$10:$B$20000,"<="&$E68) ->  | G68: =AVERAGEIFS('USDA ESALQ weekly IPPs'!$F$10:$F$20000,'USDA ESALQ weekly IPPs'!$B$10:$B$20000,">="&$D68,'USDA ESALQ weekly IPPs'!$B$10:$B$20000,"<="&$E68) ->  | H68: =AVERAGEIFS('USDA ESALQ weekly IPPs'!$G$10:$G$20000,'USDA ESALQ weekly IPPs'!$B$10:$B$20000,">="&$D68,'USDA ESALQ weekly IPPs'!$B$10:$B$20000,"<="&$E68) ->  | I68: =AVERAGEIFS('USDA ESALQ weekly IPPs'!$H$10:$H$20000,'USDA ESALQ weekly IPPs'!$B$10:$B$20000,">="&$D68,'USDA ESALQ weekly IPPs'!$B$10:$B$20000,"<="&$E68) ->  | J68: =AVERAGEIFS('USDA ESALQ weekly IPPs'!$I$10:$I$20000,'USDA ESALQ weekly IPPs'!$B$10:$B$20000,">="&$D68,'USDA ESALQ weekly IPPs'!$B$10:$B$20000,"<="&$E68) ->  | K68: =AVERAGEIFS('USDA ESALQ weekly IPPs'!$J$10:$J$20000,'USDA ESALQ weekly IPPs'!$B$10:$B$20000,">="&$D68,'USDA ESALQ weekly IPPs'!$B$10:$B$20000,"<="&$E68) ->  | L68: =INDEX(Other_Inputs!$I$59:$ZF$59,MATCH(B68,Other_Inputs!$I$58:$ZF$58,1)) -> 0 | M68: =INDEX(Other_Inputs!$I$48:$V$48,MATCH(B68,Other_Inputs!$I$46:$V$46,1)) -> 0 | N68: =AVERAGEIFS('USDA ESALQ weekly IPPs'!$N$10:$N$20000,'USDA ESALQ weekly IPPs'!$B$10:$B$20000,">="&$D68,'USDA ESALQ weekly IPPs'!$B$10:$B$20000,"<="&$E68) ->  | O68: =AVERAGEIFS('USDA ESALQ weekly IPPs'!$O$10:$O$20000,'USDA ESALQ weekly IPPs'!$B$10:$B$20000,">="&$D68,'USDA ESALQ weekly IPPs'!$B$10:$B$20000,"<="&$E68) ->  | S68: =NA() -> 
B69: 2031-03-01 | C69: 2031-08-31 | D69: 2030-05-01 | E69: 2031-01-31 | F69: =AVERAGEIFS('USDA ESALQ weekly IPPs'!$E$10:$E$20000,'USDA ESALQ weekly IPPs'!$B$10:$B$20000,">="&$D69,'USDA ESALQ weekly IPPs'!$B$10:$B$20000,"<="&$E69) ->  | G69: =AVERAGEIFS('USDA ESALQ weekly IPPs'!$F$10:$F$20000,'USDA ESALQ weekly IPPs'!$B$10:$B$20000,">="&$D69,'USDA ESALQ weekly IPPs'!$B$10:$B$20000,"<="&$E69) ->  | H69: =AVERAGEIFS('USDA ESALQ weekly IPPs'!$G$10:$G$20000,'USDA ESALQ weekly IPPs'!$B$10:$B$20000,">="&$D69,'USDA ESALQ weekly IPPs'!$B$10:$B$20000,"<="&$E69) ->  | I69: =AVERAGEIFS('USDA ESALQ weekly IPPs'!$H$10:$H$20000,'USDA ESALQ weekly IPPs'!$B$10:$B$20000,">="&$D69,'USDA ESALQ weekly IPPs'!$B$10:$B$20000,"<="&$E69) ->  | J69: =AVERAGEIFS('USDA ESALQ weekly IPPs'!$I$10:$I$20000,'USDA ESALQ weekly IPPs'!$B$10:$B$20000,">="&$D69,'USDA ESALQ weekly IPPs'!$B$10:$B$20000,"<="&$E69) ->  | K69: =AVERAGEIFS('USDA ESALQ weekly IPPs'!$J$10:$J$20000,'USDA ESALQ weekly IPPs'!$B$10:$B$20000,">="&$D69,'USDA ESALQ weekly IPPs'!$B$10:$B$20000,"<="&$E69) ->  | L69: =INDEX(Other_Inputs!$I$59:$ZF$59,MATCH(B69,Other_Inputs!$I$58:$ZF$58,1)) -> 0 | M69: =INDEX(Other_Inputs!$I$48:$V$48,MATCH(B69,Other_Inputs!$I$46:$V$46,1)) -> 0 | N69: =AVERAGEIFS('USDA ESALQ weekly IPPs'!$N$10:$N$20000,'USDA ESALQ weekly IPPs'!$B$10:$B$20000,">="&$D69,'USDA ESALQ weekly IPPs'!$B$10:$B$20000,"<="&$E69) ->  | O69: =AVERAGEIFS('USDA ESALQ weekly IPPs'!$O$10:$O$20000,'USDA ESALQ weekly IPPs'!$B$10:$B$20000,">="&$D69,'USDA ESALQ weekly IPPs'!$B$10:$B$20000,"<="&$E69) ->  | S69: =NA() -> 
B70: 2031-09-01 | C70: 2032-02-29 | D70: 2030-11-01 | E70: 2031-07-31 | F70: =AVERAGEIFS('USDA ESALQ weekly IPPs'!$E$10:$E$20000,'USDA ESALQ weekly IPPs'!$B$10:$B$20000,">="&$D70,'USDA ESALQ weekly IPPs'!$B$10:$B$20000,"<="&$E70) ->  | G70: =AVERAGEIFS('USDA ESALQ weekly IPPs'!$F$10:$F$20000,'USDA ESALQ weekly IPPs'!$B$10:$B$20000,">="&$D70,'USDA ESALQ weekly IPPs'!$B$10:$B$20000,"<="&$E70) ->  | H70: =AVERAGEIFS('USDA ESALQ weekly IPPs'!$G$10:$G$20000,'USDA ESALQ weekly IPPs'!$B$10:$B$20000,">="&$D70,'USDA ESALQ weekly IPPs'!$B$10:$B$20000,"<="&$E70) ->  | I70: =AVERAGEIFS('USDA ESALQ weekly IPPs'!$H$10:$H$20000,'USDA ESALQ weekly IPPs'!$B$10:$B$20000,">="&$D70,'USDA ESALQ weekly IPPs'!$B$10:$B$20000,"<="&$E70) ->  | J70: =AVERAGEIFS('USDA ESALQ weekly IPPs'!$I$10:$I$20000,'USDA ESALQ weekly IPPs'!$B$10:$B$20000,">="&$D70,'USDA ESALQ weekly IPPs'!$B$10:$B$20000,"<="&$E70) ->  | K70: =AVERAGEIFS('USDA ESALQ weekly IPPs'!$J$10:$J$20000,'USDA ESALQ weekly IPPs'!$B$10:$B$20000,">="&$D70,'USDA ESALQ weekly IPPs'!$B$10:$B$20000,"<="&$E70) ->  | L70: =INDEX(Other_Inputs!$I$59:$ZF$59,MATCH(B70,Other_Inputs!$I$58:$ZF$58,1)) -> 0 | M70: =INDEX(Other_Inputs!$I$48:$V$48,MATCH(B70,Other_Inputs!$I$46:$V$46,1)) -> 0 | N70: =AVERAGEIFS('USDA ESALQ weekly IPPs'!$N$10:$N$20000,'USDA ESALQ weekly IPPs'!$B$10:$B$20000,">="&$D70,'USDA ESALQ weekly IPPs'!$B$10:$B$20000,"<="&$E70) ->  | O70: =AVERAGEIFS('USDA ESALQ weekly IPPs'!$O$10:$O$20000,'USDA ESALQ weekly IPPs'!$B$10:$B$20000,">="&$D70,'USDA ESALQ weekly IPPs'!$B$10:$B$20000,"<="&$E70) ->  | P70: =100*IFERROR(SUM(F70:O70),NA()) ->  | S70: =NA() -> 
B71: 2032-03-01 | C71: 2032-08-31 | D71: =DATE(YEAR(B71),MONTH(B71)-10,DAY(B71)) -> 2031-05-01 | E71: =DATE(YEAR(D71),MONTH(D71)+9,DAY(D71)-1) -> 2032-01-31 | F71: =AVERAGEIFS('USDA ESALQ weekly IPPs'!$E$10:$E$20000,'USDA ESALQ weekly IPPs'!$B$10:$B$20000,">="&$D71,'USDA ESALQ weekly IPPs'!$B$10:$B$20000,"<="&$E71) ->  | G71: =AVERAGEIFS('USDA ESALQ weekly IPPs'!$F$10:$F$20000,'USDA ESALQ weekly IPPs'!$B$10:$B$20000,">="&$D71,'USDA ESALQ weekly IPPs'!$B$10:$B$20000,"<="&$E71) ->  | H71: =AVERAGEIFS('USDA ESALQ weekly IPPs'!$G$10:$G$20000,'USDA ESALQ weekly IPPs'!$B$10:$B$20000,">="&$D71,'USDA ESALQ weekly IPPs'!$B$10:$B$20000,"<="&$E71) ->  | I71: =AVERAGEIFS('USDA ESALQ weekly IPPs'!$H$10:$H$20000,'USDA ESALQ weekly IPPs'!$B$10:$B$20000,">="&$D71,'USDA ESALQ weekly IPPs'!$B$10:$B$20000,"<="&$E71) ->  | J71: =AVERAGEIFS('USDA ESALQ weekly IPPs'!$I$10:$I$20000,'USDA ESALQ weekly IPPs'!$B$10:$B$20000,">="&$D71,'USDA ESALQ weekly IPPs'!$B$10:$B$20000,"<="&$E71) ->  | K71: =AVERAGEIFS('USDA ESALQ weekly IPPs'!$J$10:$J$20000,'USDA ESALQ weekly IPPs'!$B$10:$B$20000,">="&$D71,'USDA ESALQ weekly IPPs'!$B$10:$B$20000,"<="&$E71) ->  | L71: =INDEX(Other_Inputs!$I$59:$ZF$59,MATCH(B71,Other_Inputs!$I$58:$ZF$58,1)) -> 0 | M71: =INDEX(Other_Inputs!$I$48:$V$48,MATCH(B71,Other_Inputs!$I$46:$V$46,1)) -> 0 | N71: =AVERAGEIFS('USDA ESALQ weekly IPPs'!$N$10:$N$20000,'USDA ESALQ weekly IPPs'!$B$10:$B$20000,">="&$D71,'USDA ESALQ weekly IPPs'!$B$10:$B$20000,"<="&$E71) ->  | O71: =AVERAGEIFS('USDA ESALQ weekly IPPs'!$O$10:$O$20000,'USDA ESALQ weekly IPPs'!$B$10:$B$20000,">="&$D71,'USDA ESALQ weekly IPPs'!$B$10:$B$20000,"<="&$E71) ->  | P71: =100*IFERROR(SUM(F71:O71),NA()) ->  | Q71: =IF(B71<DATE(2017,1,1),P71,NA()) ->  | R71: =IF(C71>=DATE(2017,1,1),P71,NA()) ->  | S71: =NA() -> 
B72: =C71+1 -> 2032-09-01 | C72: 2033-02-28 | D72: 2031-11-01 | E72: 2032-07-31 | F72: =AVERAGEIFS('USDA ESALQ weekly IPPs'!$E$10:$E$20000,'USDA ESALQ weekly IPPs'!$B$10:$B$20000,">="&$D72,'USDA ESALQ weekly IPPs'!$B$10:$B$20000,"<="&$E72) ->  | G72: =AVERAGEIFS('USDA ESALQ weekly IPPs'!$F$10:$F$20000,'USDA ESALQ weekly IPPs'!$B$10:$B$20000,">="&$D72,'USDA ESALQ weekly IPPs'!$B$10:$B$20000,"<="&$E72) ->  | H72: =AVERAGEIFS('USDA ESALQ weekly IPPs'!$G$10:$G$20000,'USDA ESALQ weekly IPPs'!$B$10:$B$20000,">="&$D72,'USDA ESALQ weekly IPPs'!$B$10:$B$20000,"<="&$E72) ->  | I72: =AVERAGEIFS('USDA ESALQ weekly IPPs'!$H$10:$H$20000,'USDA ESALQ weekly IPPs'!$B$10:$B$20000,">="&$D72,'USDA ESALQ weekly IPPs'!$B$10:$B$20000,"<="&$E72) ->  | J72: =AVERAGEIFS('USDA ESALQ weekly IPPs'!$I$10:$I$20000,'USDA ESALQ weekly IPPs'!$B$10:$B$20000,">="&$D72,'USDA ESALQ weekly IPPs'!$B$10:$B$20000,"<="&$E72) ->  | K72: =AVERAGEIFS('USDA ESALQ weekly IPPs'!$J$10:$J$20000,'USDA ESALQ weekly IPPs'!$B$10:$B$20000,">="&$D72,'USDA ESALQ weekly IPPs'!$B$10:$B$20000,"<="&$E72) ->  | L72: =INDEX(Other_Inputs!$I$59:$ZF$59,MATCH(B72,Other_Inputs!$I$58:$ZF$58,1)) -> 0 | M72: =INDEX(Other_Inputs!$I$48:$V$48,MATCH(B72,Other_Inputs!$I$46:$V$46,1)) -> 0 | N72: =AVERAGEIFS('USDA ESALQ weekly IPPs'!$N$10:$N$20000,'USDA ESALQ weekly IPPs'!$B$10:$B$20000,">="&$D72,'USDA ESALQ weekly IPPs'!$B$10:$B$20000,"<="&$E72) ->  | O72: =AVERAGEIFS('USDA ESALQ weekly IPPs'!$O$10:$O$20000,'USDA ESALQ weekly IPPs'!$B$10:$B$20000,">="&$D72,'USDA ESALQ weekly IPPs'!$B$10:$B$20000,"<="&$E72) ->  | S72: =NA() -> 
B73: 2033-03-01 | C73: 2033-08-31 | D73: 2032-05-01 | E73: 2033-01-31 | F73: =AVERAGEIFS('USDA ESALQ weekly IPPs'!$E$10:$E$20000,'USDA ESALQ weekly IPPs'!$B$10:$B$20000,">="&$D73,'USDA ESALQ weekly IPPs'!$B$10:$B$20000,"<="&$E73) ->  | G73: =AVERAGEIFS('USDA ESALQ weekly IPPs'!$F$10:$F$20000,'USDA ESALQ weekly IPPs'!$B$10:$B$20000,">="&$D73,'USDA ESALQ weekly IPPs'!$B$10:$B$20000,"<="&$E73) ->  | H73: =AVERAGEIFS('USDA ESALQ weekly IPPs'!$G$10:$G$20000,'USDA ESALQ weekly IPPs'!$B$10:$B$20000,">="&$D73,'USDA ESALQ weekly IPPs'!$B$10:$B$20000,"<="&$E73) ->  | I73: =AVERAGEIFS('USDA ESALQ weekly IPPs'!$H$10:$H$20000,'USDA ESALQ weekly IPPs'!$B$10:$B$20000,">="&$D73,'USDA ESALQ weekly IPPs'!$B$10:$B$20000,"<="&$E73) ->  | J73: =AVERAGEIFS('USDA ESALQ weekly IPPs'!$I$10:$I$20000,'USDA ESALQ weekly IPPs'!$B$10:$B$20000,">="&$D73,'USDA ESALQ weekly IPPs'!$B$10:$B$20000,"<="&$E73) ->  | K73: =AVERAGEIFS('USDA ESALQ weekly IPPs'!$J$10:$J$20000,'USDA ESALQ weekly IPPs'!$B$10:$B$20000,">="&$D73,'USDA ESALQ weekly IPPs'!$B$10:$B$20000,"<="&$E73) ->  | L73: =INDEX(Other_Inputs!$I$59:$ZF$59,MATCH(B73,Other_Inputs!$I$58:$ZF$58,1)) -> 0 | M73: =INDEX(Other_Inputs!$I$48:$V$48,MATCH(B73,Other_Inputs!$I$46:$V$46,1)) -> 0 | N73: =AVERAGEIFS('USDA ESALQ weekly IPPs'!$N$10:$N$20000,'USDA ESALQ weekly IPPs'!$B$10:$B$20000,">="&$D73,'USDA ESALQ weekly IPPs'!$B$10:$B$20000,"<="&$E73) ->  | O73: =AVERAGEIFS('USDA ESALQ weekly IPPs'!$O$10:$O$20000,'USDA ESALQ weekly IPPs'!$B$10:$B$20000,">="&$D73,'USDA ESALQ weekly IPPs'!$B$10:$B$20000,"<="&$E73) ->  | S73: =NA() -> 
B74: 2033-09-01 | C74: 2034-02-28 | D74: 2032-11-01 | E74: 2033-07-31 | F74: =AVERAGEIFS('USDA ESALQ weekly IPPs'!$E$10:$E$20000,'USDA ESALQ weekly IPPs'!$B$10:$B$20000,">="&$D74,'USDA ESALQ weekly IPPs'!$B$10:$B$20000,"<="&$E74) ->  | G74: =AVERAGEIFS('USDA ESALQ weekly IPPs'!$F$10:$F$20000,'USDA ESALQ weekly IPPs'!$B$10:$B$20000,">="&$D74,'USDA ESALQ weekly IPPs'!$B$10:$B$20000,"<="&$E74) ->  | H74: =AVERAGEIFS('USDA ESALQ weekly IPPs'!$G$10:$G$20000,'USDA ESALQ weekly IPPs'!$B$10:$B$20000,">="&$D74,'USDA ESALQ weekly IPPs'!$B$10:$B$20000,"<="&$E74) ->  | I74: =AVERAGEIFS('USDA ESALQ weekly IPPs'!$H$10:$H$20000,'USDA ESALQ weekly IPPs'!$B$10:$B$20000,">="&$D74,'USDA ESALQ weekly IPPs'!$B$10:$B$20000,"<="&$E74) ->  | J74: =AVERAGEIFS('USDA ESALQ weekly IPPs'!$I$10:$I$20000,'USDA ESALQ weekly IPPs'!$B$10:$B$20000,">="&$D74,'USDA ESALQ weekly IPPs'!$B$10:$B$20000,"<="&$E74) ->  | K74: =AVERAGEIFS('USDA ESALQ weekly IPPs'!$J$10:$J$20000,'USDA ESALQ weekly IPPs'!$B$10:$B$20000,">="&$D74,'USDA ESALQ weekly IPPs'!$B$10:$B$20000,"<="&$E74) ->  | L74: =INDEX(Other_Inputs!$I$59:$ZF$59,MATCH(B74,Other_Inputs!$I$58:$ZF$58,1)) -> 0 | M74: =INDEX(Other_Inputs!$I$48:$V$48,MATCH(B74,Other_Inputs!$I$46:$V$46,1)) -> 0 | N74: =AVERAGEIFS('USDA ESALQ weekly IPPs'!$N$10:$N$20000,'USDA ESALQ weekly IPPs'!$B$10:$B$20000,">="&$D74,'USDA ESALQ weekly IPPs'!$B$10:$B$20000,"<="&$E74) ->  | O74: =AVERAGEIFS('USDA ESALQ weekly IPPs'!$O$10:$O$20000,'USDA ESALQ weekly IPPs'!$B$10:$B$20000,">="&$D74,'USDA ESALQ weekly IPPs'!$B$10:$B$20000,"<="&$E74) ->  | S74: =NA() -> 
B75: 2034-03-01 | C75: 2034-08-31 | D75: 2033-05-01 | E75: 2034-01-31 | F75: =AVERAGEIFS('USDA ESALQ weekly IPPs'!$E$10:$E$20000,'USDA ESALQ weekly IPPs'!$B$10:$B$20000,">="&$D75,'USDA ESALQ weekly IPPs'!$B$10:$B$20000,"<="&$E75) ->  | G75: =AVERAGEIFS('USDA ESALQ weekly IPPs'!$F$10:$F$20000,'USDA ESALQ weekly IPPs'!$B$10:$B$20000,">="&$D75,'USDA ESALQ weekly IPPs'!$B$10:$B$20000,"<="&$E75) ->  | H75: =AVERAGEIFS('USDA ESALQ weekly IPPs'!$G$10:$G$20000,'USDA ESALQ weekly IPPs'!$B$10:$B$20000,">="&$D75,'USDA ESALQ weekly IPPs'!$B$10:$B$20000,"<="&$E75) ->  | I75: =AVERAGEIFS('USDA ESALQ weekly IPPs'!$H$10:$H$20000,'USDA ESALQ weekly IPPs'!$B$10:$B$20000,">="&$D75,'USDA ESALQ weekly IPPs'!$B$10:$B$20000,"<="&$E75) ->  | J75: =AVERAGEIFS('USDA ESALQ weekly IPPs'!$I$10:$I$20000,'USDA ESALQ weekly IPPs'!$B$10:$B$20000,">="&$D75,'USDA ESALQ weekly IPPs'!$B$10:$B$20000,"<="&$E75) ->  | K75: =AVERAGEIFS('USDA ESALQ weekly IPPs'!$J$10:$J$20000,'USDA ESALQ weekly IPPs'!$B$10:$B$20000,">="&$D75,'USDA ESALQ weekly IPPs'!$B$10:$B$20000,"<="&$E75) ->  | L75: =INDEX(Other_Inputs!$I$59:$ZF$59,MATCH(B75,Other_Inputs!$I$58:$ZF$58,1)) -> 0 | M75: =INDEX(Other_Inputs!$I$48:$V$48,MATCH(B75,Other_Inputs!$I$46:$V$46,1)) -> 0 | N75: =AVERAGEIFS('USDA ESALQ weekly IPPs'!$N$10:$N$20000,'USDA ESALQ weekly IPPs'!$B$10:$B$20000,">="&$D75,'USDA ESALQ weekly IPPs'!$B$10:$B$20000,"<="&$E75) ->  | O75: =AVERAGEIFS('USDA ESALQ weekly IPPs'!$O$10:$O$20000,'USDA ESALQ weekly IPPs'!$B$10:$B$20000,">="&$D75,'USDA ESALQ weekly IPPs'!$B$10:$B$20000,"<="&$E75) ->  | S75: =NA() -> 
B76: 2034-09-01 | C76: 2035-02-28 | D76: 2033-11-01 | E76: 2034-07-31 | F76: =AVERAGEIFS('USDA ESALQ weekly IPPs'!$E$10:$E$20000,'USDA ESALQ weekly IPPs'!$B$10:$B$20000,">="&$D76,'USDA ESALQ weekly IPPs'!$B$10:$B$20000,"<="&$E76) ->  | G76: =AVERAGEIFS('USDA ESALQ weekly IPPs'!$F$10:$F$20000,'USDA ESALQ weekly IPPs'!$B$10:$B$20000,">="&$D76,'USDA ESALQ weekly IPPs'!$B$10:$B$20000,"<="&$E76) ->  | H76: =AVERAGEIFS('USDA ESALQ weekly IPPs'!$G$10:$G$20000,'USDA ESALQ weekly IPPs'!$B$10:$B$20000,">="&$D76,'USDA ESALQ weekly IPPs'!$B$10:$B$20000,"<="&$E76) ->  | I76: =AVERAGEIFS('USDA ESALQ weekly IPPs'!$H$10:$H$20000,'USDA ESALQ weekly IPPs'!$B$10:$B$20000,">="&$D76,'USDA ESALQ weekly IPPs'!$B$10:$B$20000,"<="&$E76) ->  | J76: =AVERAGEIFS('USDA ESALQ weekly IPPs'!$I$10:$I$20000,'USDA ESALQ weekly IPPs'!$B$10:$B$20000,">="&$D76,'USDA ESALQ weekly IPPs'!$B$10:$B$20000,"<="&$E76) ->  | K76: =AVERAGEIFS('USDA ESALQ weekly IPPs'!$J$10:$J$20000,'USDA ESALQ weekly IPPs'!$B$10:$B$20000,">="&$D76,'USDA ESALQ weekly IPPs'!$B$10:$B$20000,"<="&$E76) ->  | L76: =INDEX(Other_Inputs!$I$59:$ZF$59,MATCH(B76,Other_Inputs!$I$58:$ZF$58,1)) -> 0 | M76: =INDEX(Other_Inputs!$I$48:$V$48,MATCH(B76,Other_Inputs!$I$46:$V$46,1)) -> 0 | N76: =AVERAGEIFS('USDA ESALQ weekly IPPs'!$N$10:$N$20000,'USDA ESALQ weekly IPPs'!$B$10:$B$20000,">="&$D76,'USDA ESALQ weekly IPPs'!$B$10:$B$20000,"<="&$E76) ->  | O76: =AVERAGEIFS('USDA ESALQ weekly IPPs'!$O$10:$O$20000,'USDA ESALQ weekly IPPs'!$B$10:$B$20000,">="&$D76,'USDA ESALQ weekly IPPs'!$B$10:$B$20000,"<="&$E76) ->  | S76: =NA() -> 
B77: 2035-03-01 | C77: 2035-08-31 | D77: 2034-05-01 | E77: 2035-01-31 | F77: =AVERAGEIFS('USDA ESALQ weekly IPPs'!$E$10:$E$20000,'USDA ESALQ weekly IPPs'!$B$10:$B$20000,">="&$D77,'USDA ESALQ weekly IPPs'!$B$10:$B$20000,"<="&$E77) ->  | G77: =AVERAGEIFS('USDA ESALQ weekly IPPs'!$F$10:$F$20000,'USDA ESALQ weekly IPPs'!$B$10:$B$20000,">="&$D77,'USDA ESALQ weekly IPPs'!$B$10:$B$20000,"<="&$E77) ->  | H77: =AVERAGEIFS('USDA ESALQ weekly IPPs'!$G$10:$G$20000,'USDA ESALQ weekly IPPs'!$B$10:$B$20000,">="&$D77,'USDA ESALQ weekly IPPs'!$B$10:$B$20000,"<="&$E77) ->  | I77: =AVERAGEIFS('USDA ESALQ weekly IPPs'!$H$10:$H$20000,'USDA ESALQ weekly IPPs'!$B$10:$B$20000,">="&$D77,'USDA ESALQ weekly IPPs'!$B$10:$B$20000,"<="&$E77) ->  | J77: =AVERAGEIFS('USDA ESALQ weekly IPPs'!$I$10:$I$20000,'USDA ESALQ weekly IPPs'!$B$10:$B$20000,">="&$D77,'USDA ESALQ weekly IPPs'!$B$10:$B$20000,"<="&$E77) ->  | K77: =AVERAGEIFS('USDA ESALQ weekly IPPs'!$J$10:$J$20000,'USDA ESALQ weekly IPPs'!$B$10:$B$20000,">="&$D77,'USDA ESALQ weekly IPPs'!$B$10:$B$20000,"<="&$E77) ->  | L77: =INDEX(Other_Inputs!$I$59:$ZF$59,MATCH(B77,Other_Inputs!$I$58:$ZF$58,1)) -> 0 | M77: =INDEX(Other_Inputs!$I$48:$V$48,MATCH(B77,Other_Inputs!$I$46:$V$46,1)) -> 0 | N77: =AVERAGEIFS('USDA ESALQ weekly IPPs'!$N$10:$N$20000,'USDA ESALQ weekly IPPs'!$B$10:$B$20000,">="&$D77,'USDA ESALQ weekly IPPs'!$B$10:$B$20000,"<="&$E77) ->  | O77: =AVERAGEIFS('USDA ESALQ weekly IPPs'!$O$10:$O$20000,'USDA ESALQ weekly IPPs'!$B$10:$B$20000,">="&$D77,'USDA ESALQ weekly IPPs'!$B$10:$B$20000,"<="&$E77) ->  | S77: =NA() -> 
B78: 2035-09-01 | C78: 2036-02-29 | D78: 2034-11-01 | E78: 2035-07-31 | F78: =AVERAGEIFS('USDA ESALQ weekly IPPs'!$E$10:$E$20000,'USDA ESALQ weekly IPPs'!$B$10:$B$20000,">="&$D78,'USDA ESALQ weekly IPPs'!$B$10:$B$20000,"<="&$E78) ->  | G78: =AVERAGEIFS('USDA ESALQ weekly IPPs'!$F$10:$F$20000,'USDA ESALQ weekly IPPs'!$B$10:$B$20000,">="&$D78,'USDA ESALQ weekly IPPs'!$B$10:$B$20000,"<="&$E78) ->  | H78: =AVERAGEIFS('USDA ESALQ weekly IPPs'!$G$10:$G$20000,'USDA ESALQ weekly IPPs'!$B$10:$B$20000,">="&$D78,'USDA ESALQ weekly IPPs'!$B$10:$B$20000,"<="&$E78) ->  | I78: =AVERAGEIFS('USDA ESALQ weekly IPPs'!$H$10:$H$20000,'USDA ESALQ weekly IPPs'!$B$10:$B$20000,">="&$D78,'USDA ESALQ weekly IPPs'!$B$10:$B$20000,"<="&$E78) ->  | J78: =AVERAGEIFS('USDA ESALQ weekly IPPs'!$I$10:$I$20000,'USDA ESALQ weekly IPPs'!$B$10:$B$20000,">="&$D78,'USDA ESALQ weekly IPPs'!$B$10:$B$20000,"<="&$E78) ->  | K78: =AVERAGEIFS('USDA ESALQ weekly IPPs'!$J$10:$J$20000,'USDA ESALQ weekly IPPs'!$B$10:$B$20000,">="&$D78,'USDA ESALQ weekly IPPs'!$B$10:$B$20000,"<="&$E78) ->  | L78: =INDEX(Other_Inputs!$I$59:$ZF$59,MATCH(B78,Other_Inputs!$I$58:$ZF$58,1)) -> 0 | M78: =INDEX(Other_Inputs!$I$48:$V$48,MATCH(B78,Other_Inputs!$I$46:$V$46,1)) -> 0 | N78: =AVERAGEIFS('USDA ESALQ weekly IPPs'!$N$10:$N$20000,'USDA ESALQ weekly IPPs'!$B$10:$B$20000,">="&$D78,'USDA ESALQ weekly IPPs'!$B$10:$B$20000,"<="&$E78) ->  | O78: =AVERAGEIFS('USDA ESALQ weekly IPPs'!$O$10:$O$20000,'USDA ESALQ weekly IPPs'!$B$10:$B$20000,">="&$D78,'USDA ESALQ weekly IPPs'!$B$10:$B$20000,"<="&$E78) ->  | S78: =NA() -> 
B79: 2036-03-01 | C79: 2036-08-31 | D79: 2035-05-01 | E79: 2036-01-31 | F79: =AVERAGEIFS('USDA ESALQ weekly IPPs'!$E$10:$E$20000,'USDA ESALQ weekly IPPs'!$B$10:$B$20000,">="&$D79,'USDA ESALQ weekly IPPs'!$B$10:$B$20000,"<="&$E79) ->  | G79: =AVERAGEIFS('USDA ESALQ weekly IPPs'!$F$10:$F$20000,'USDA ESALQ weekly IPPs'!$B$10:$B$20000,">="&$D79,'USDA ESALQ weekly IPPs'!$B$10:$B$20000,"<="&$E79) ->  | H79: =AVERAGEIFS('USDA ESALQ weekly IPPs'!$G$10:$G$20000,'USDA ESALQ weekly IPPs'!$B$10:$B$20000,">="&$D79,'USDA ESALQ weekly IPPs'!$B$10:$B$20000,"<="&$E79) ->  | I79: =AVERAGEIFS('USDA ESALQ weekly IPPs'!$H$10:$H$20000,'USDA ESALQ weekly IPPs'!$B$10:$B$20000,">="&$D79,'USDA ESALQ weekly IPPs'!$B$10:$B$20000,"<="&$E79) ->  | J79: =AVERAGEIFS('USDA ESALQ weekly IPPs'!$I$10:$I$20000,'USDA ESALQ weekly IPPs'!$B$10:$B$20000,">="&$D79,'USDA ESALQ weekly IPPs'!$B$10:$B$20000,"<="&$E79) ->  | K79: =AVERAGEIFS('USDA ESALQ weekly IPPs'!$J$10:$J$20000,'USDA ESALQ weekly IPPs'!$B$10:$B$20000,">="&$D79,'USDA ESALQ weekly IPPs'!$B$10:$B$20000,"<="&$E79) ->  | L79: =INDEX(Other_Inputs!$I$59:$ZF$59,MATCH(B79,Other_Inputs!$I$58:$ZF$58,1)) -> 0 | M79: =INDEX(Other_Inputs!$I$48:$V$48,MATCH(B79,Other_Inputs!$I$46:$V$46,1)) -> 0 | N79: =AVERAGEIFS('USDA ESALQ weekly IPPs'!$N$10:$N$20000,'USDA ESALQ weekly IPPs'!$B$10:$B$20000,">="&$D79,'USDA ESALQ weekly IPPs'!$B$10:$B$20000,"<="&$E79) ->  | O79: =AVERAGEIFS('USDA ESALQ weekly IPPs'!$O$10:$O$20000,'USDA ESALQ weekly IPPs'!$B$10:$B$20000,">="&$D79,'USDA ESALQ weekly IPPs'!$B$10:$B$20000,"<="&$E79) ->  | S79: =NA() -> 
B80: 2036-09-01 | C80: 2037-02-28 | D80: 2035-11-01 | E80: 2036-07-31 | F80: =AVERAGEIFS('USDA ESALQ weekly IPPs'!$E$10:$E$20000,'USDA ESALQ weekly IPPs'!$B$10:$B$20000,">="&$D80,'USDA ESALQ weekly IPPs'!$B$10:$B$20000,"<="&$E80) ->  | G80: =AVERAGEIFS('USDA ESALQ weekly IPPs'!$F$10:$F$20000,'USDA ESALQ weekly IPPs'!$B$10:$B$20000,">="&$D80,'USDA ESALQ weekly IPPs'!$B$10:$B$20000,"<="&$E80) ->  | H80: =AVERAGEIFS('USDA ESALQ weekly IPPs'!$G$10:$G$20000,'USDA ESALQ weekly IPPs'!$B$10:$B$20000,">="&$D80,'USDA ESALQ weekly IPPs'!$B$10:$B$20000,"<="&$E80) ->  | I80: =AVERAGEIFS('USDA ESALQ weekly IPPs'!$H$10:$H$20000,'USDA ESALQ weekly IPPs'!$B$10:$B$20000,">="&$D80,'USDA ESALQ weekly IPPs'!$B$10:$B$20000,"<="&$E80) ->  | J80: =AVERAGEIFS('USDA ESALQ weekly IPPs'!$I$10:$I$20000,'USDA ESALQ weekly IPPs'!$B$10:$B$20000,">="&$D80,'USDA ESALQ weekly IPPs'!$B$10:$B$20000,"<="&$E80) ->  | K80: =AVERAGEIFS('USDA ESALQ weekly IPPs'!$J$10:$J$20000,'USDA ESALQ weekly IPPs'!$B$10:$B$20000,">="&$D80,'USDA ESALQ weekly IPPs'!$B$10:$B$20000,"<="&$E80) ->  | L80: =INDEX(Other_Inputs!$I$59:$ZF$59,MATCH(B80,Other_Inputs!$I$58:$ZF$58,1)) -> 0 | M80: =INDEX(Other_Inputs!$I$48:$V$48,MATCH(B80,Other_Inputs!$I$46:$V$46,1)) -> 0 | N80: =AVERAGEIFS('USDA ESALQ weekly IPPs'!$N$10:$N$20000,'USDA ESALQ weekly IPPs'!$B$10:$B$20000,">="&$D80,'USDA ESALQ weekly IPPs'!$B$10:$B$20000,"<="&$E80) ->  | O80: =AVERAGEIFS('USDA ESALQ weekly IPPs'!$O$10:$O$20000,'USDA ESALQ weekly IPPs'!$B$10:$B$20000,">="&$D80,'USDA ESALQ weekly IPPs'!$B$10:$B$20000,"<="&$E80) ->  | S80: =NA() -> 
B81: 2037-03-01 | C81: 2037-08-31 | D81: 2036-05-01 | E81: 2037-01-31 | F81: =AVERAGEIFS('USDA ESALQ weekly IPPs'!$E$10:$E$20000,'USDA ESALQ weekly IPPs'!$B$10:$B$20000,">="&$D81,'USDA ESALQ weekly IPPs'!$B$10:$B$20000,"<="&$E81) ->  | G81: =AVERAGEIFS('USDA ESALQ weekly IPPs'!$F$10:$F$20000,'USDA ESALQ weekly IPPs'!$B$10:$B$20000,">="&$D81,'USDA ESALQ weekly IPPs'!$B$10:$B$20000,"<="&$E81) ->  | H81: =AVERAGEIFS('USDA ESALQ weekly IPPs'!$G$10:$G$20000,'USDA ESALQ weekly IPPs'!$B$10:$B$20000,">="&$D81,'USDA ESALQ weekly IPPs'!$B$10:$B$20000,"<="&$E81) ->  | I81: =AVERAGEIFS('USDA ESALQ weekly IPPs'!$H$10:$H$20000,'USDA ESALQ weekly IPPs'!$B$10:$B$20000,">="&$D81,'USDA ESALQ weekly IPPs'!$B$10:$B$20000,"<="&$E81) ->  | J81: =AVERAGEIFS('USDA ESALQ weekly IPPs'!$I$10:$I$20000,'USDA ESALQ weekly IPPs'!$B$10:$B$20000,">="&$D81,'USDA ESALQ weekly IPPs'!$B$10:$B$20000,"<="&$E81) ->  | K81: =AVERAGEIFS('USDA ESALQ weekly IPPs'!$J$10:$J$20000,'USDA ESALQ weekly IPPs'!$B$10:$B$20000,">="&$D81,'USDA ESALQ weekly IPPs'!$B$10:$B$20000,"<="&$E81) ->  | L81: =INDEX(Other_Inputs!$I$59:$ZF$59,MATCH(B81,Other_Inputs!$I$58:$ZF$58,1)) -> 0 | M81: =INDEX(Other_Inputs!$I$48:$V$48,MATCH(B81,Other_Inputs!$I$46:$V$46,1)) -> 0 | N81: =AVERAGEIFS('USDA ESALQ weekly IPPs'!$N$10:$N$20000,'USDA ESALQ weekly IPPs'!$B$10:$B$20000,">="&$D81,'USDA ESALQ weekly IPPs'!$B$10:$B$20000,"<="&$E81) ->  | O81: =AVERAGEIFS('USDA ESALQ weekly IPPs'!$O$10:$O$20000,'USDA ESALQ weekly IPPs'!$B$10:$B$20000,">="&$D81,'USDA ESALQ weekly IPPs'!$B$10:$B$20000,"<="&$E81) ->  | S81: =NA() -> 
B82: 2037-09-01 | C82: 2038-02-28 | D82: 2036-11-01 | E82: 2037-07-31 | F82: =AVERAGEIFS('USDA ESALQ weekly IPPs'!$E$10:$E$20000,'USDA ESALQ weekly IPPs'!$B$10:$B$20000,">="&$D82,'USDA ESALQ weekly IPPs'!$B$10:$B$20000,"<="&$E82) ->  | G82: =AVERAGEIFS('USDA ESALQ weekly IPPs'!$F$10:$F$20000,'USDA ESALQ weekly IPPs'!$B$10:$B$20000,">="&$D82,'USDA ESALQ weekly IPPs'!$B$10:$B$20000,"<="&$E82) ->  | H82: =AVERAGEIFS('USDA ESALQ weekly IPPs'!$G$10:$G$20000,'USDA ESALQ weekly IPPs'!$B$10:$B$20000,">="&$D82,'USDA ESALQ weekly IPPs'!$B$10:$B$20000,"<="&$E82) ->  | I82: =AVERAGEIFS('USDA ESALQ weekly IPPs'!$H$10:$H$20000,'USDA ESALQ weekly IPPs'!$B$10:$B$20000,">="&$D82,'USDA ESALQ weekly IPPs'!$B$10:$B$20000,"<="&$E82) ->  | J82: =AVERAGEIFS('USDA ESALQ weekly IPPs'!$I$10:$I$20000,'USDA ESALQ weekly IPPs'!$B$10:$B$20000,">="&$D82,'USDA ESALQ weekly IPPs'!$B$10:$B$20000,"<="&$E82) ->  | K82: =AVERAGEIFS('USDA ESALQ weekly IPPs'!$J$10:$J$20000,'USDA ESALQ weekly IPPs'!$B$10:$B$20000,">="&$D82,'USDA ESALQ weekly IPPs'!$B$10:$B$20000,"<="&$E82) ->  | L82: =INDEX(Other_Inputs!$I$59:$ZF$59,MATCH(B82,Other_Inputs!$I$58:$ZF$58,1)) -> 0 | M82: =INDEX(Other_Inputs!$I$48:$V$48,MATCH(B82,Other_Inputs!$I$46:$V$46,1)) -> 0 | N82: =AVERAGEIFS('USDA ESALQ weekly IPPs'!$N$10:$N$20000,'USDA ESALQ weekly IPPs'!$B$10:$B$20000,">="&$D82,'USDA ESALQ weekly IPPs'!$B$10:$B$20000,"<="&$E82) ->  | O82: =AVERAGEIFS('USDA ESALQ weekly IPPs'!$O$10:$O$20000,'USDA ESALQ weekly IPPs'!$B$10:$B$20000,">="&$D82,'USDA ESALQ weekly IPPs'!$B$10:$B$20000,"<="&$E82) ->  | S82: =NA() -> 
B83: 2038-03-01 | C83: 2038-08-31 | D83: 2037-05-01 | E83: 2038-01-31 | F83: =AVERAGEIFS('USDA ESALQ weekly IPPs'!$E$10:$E$20000,'USDA ESALQ weekly IPPs'!$B$10:$B$20000,">="&$D83,'USDA ESALQ weekly IPPs'!$B$10:$B$20000,"<="&$E83) ->  | G83: =AVERAGEIFS('USDA ESALQ weekly IPPs'!$F$10:$F$20000,'USDA ESALQ weekly IPPs'!$B$10:$B$20000,">="&$D83,'USDA ESALQ weekly IPPs'!$B$10:$B$20000,"<="&$E83) ->  | H83: =AVERAGEIFS('USDA ESALQ weekly IPPs'!$G$10:$G$20000,'USDA ESALQ weekly IPPs'!$B$10:$B$20000,">="&$D83,'USDA ESALQ weekly IPPs'!$B$10:$B$20000,"<="&$E83) ->  | I83: =AVERAGEIFS('USDA ESALQ weekly IPPs'!$H$10:$H$20000,'USDA ESALQ weekly IPPs'!$B$10:$B$20000,">="&$D83,'USDA ESALQ weekly IPPs'!$B$10:$B$20000,"<="&$E83) ->  | J83: =AVERAGEIFS('USDA ESALQ weekly IPPs'!$I$10:$I$20000,'USDA ESALQ weekly IPPs'!$B$10:$B$20000,">="&$D83,'USDA ESALQ weekly IPPs'!$B$10:$B$20000,"<="&$E83) ->  | K83: =AVERAGEIFS('USDA ESALQ weekly IPPs'!$J$10:$J$20000,'USDA ESALQ weekly IPPs'!$B$10:$B$20000,">="&$D83,'USDA ESALQ weekly IPPs'!$B$10:$B$20000,"<="&$E83) ->  | L83: =INDEX(Other_Inputs!$I$59:$ZF$59,MATCH(B83,Other_Inputs!$I$58:$ZF$58,1)) -> 0 | M83: =INDEX(Other_Inputs!$I$48:$V$48,MATCH(B83,Other_Inputs!$I$46:$V$46,1)) -> 0 | N83: =AVERAGEIFS('USDA ESALQ weekly IPPs'!$N$10:$N$20000,'USDA ESALQ weekly IPPs'!$B$10:$B$20000,">="&$D83,'USDA ESALQ weekly IPPs'!$B$10:$B$20000,"<="&$E83) ->  | O83: =AVERAGEIFS('USDA ESALQ weekly IPPs'!$O$10:$O$20000,'USDA ESALQ weekly IPPs'!$B$10:$B$20000,">="&$D83,'USDA ESALQ weekly IPPs'!$B$10:$B$20000,"<="&$E83) ->  | S83: =NA() -> 
B84: 2038-09-01 | C84: 2039-02-28 | D84: 2037-11-01 | E84: 2038-07-31 | F84: =AVERAGEIFS('USDA ESALQ weekly IPPs'!$E$10:$E$20000,'USDA ESALQ weekly IPPs'!$B$10:$B$20000,">="&$D84,'USDA ESALQ weekly IPPs'!$B$10:$B$20000,"<="&$E84) ->  | G84: =AVERAGEIFS('USDA ESALQ weekly IPPs'!$F$10:$F$20000,'USDA ESALQ weekly IPPs'!$B$10:$B$20000,">="&$D84,'USDA ESALQ weekly IPPs'!$B$10:$B$20000,"<="&$E84) ->  | H84: =AVERAGEIFS('USDA ESALQ weekly IPPs'!$G$10:$G$20000,'USDA ESALQ weekly IPPs'!$B$10:$B$20000,">="&$D84,'USDA ESALQ weekly IPPs'!$B$10:$B$20000,"<="&$E84) ->  | I84: =AVERAGEIFS('USDA ESALQ weekly IPPs'!$H$10:$H$20000,'USDA ESALQ weekly IPPs'!$B$10:$B$20000,">="&$D84,'USDA ESALQ weekly IPPs'!$B$10:$B$20000,"<="&$E84) ->  | J84: =AVERAGEIFS('USDA ESALQ weekly IPPs'!$I$10:$I$20000,'USDA ESALQ weekly IPPs'!$B$10:$B$20000,">="&$D84,'USDA ESALQ weekly IPPs'!$B$10:$B$20000,"<="&$E84) ->  | K84: =AVERAGEIFS('USDA ESALQ weekly IPPs'!$J$10:$J$20000,'USDA ESALQ weekly IPPs'!$B$10:$B$20000,">="&$D84,'USDA ESALQ weekly IPPs'!$B$10:$B$20000,"<="&$E84) ->  | L84: =INDEX(Other_Inputs!$I$59:$ZF$59,MATCH(B84,Other_Inputs!$I$58:$ZF$58,1)) -> 0 | M84: =INDEX(Other_Inputs!$I$48:$V$48,MATCH(B84,Other_Inputs!$I$46:$V$46,1)) -> 0 | N84: =AVERAGEIFS('USDA ESALQ weekly IPPs'!$N$10:$N$20000,'USDA ESALQ weekly IPPs'!$B$10:$B$20000,">="&$D84,'USDA ESALQ weekly IPPs'!$B$10:$B$20000,"<="&$E84) ->  | O84: =AVERAGEIFS('USDA ESALQ weekly IPPs'!$O$10:$O$20000,'USDA ESALQ weekly IPPs'!$B$10:$B$20000,">="&$D84,'USDA ESALQ weekly IPPs'!$B$10:$B$20000,"<="&$E84) ->  | S84: =NA() -> 
B85: 2039-03-01 | C85: 2039-08-31 | D85: 2038-05-01 | E85: 2039-01-31 | F85: =AVERAGEIFS('USDA ESALQ weekly IPPs'!$E$10:$E$20000,'USDA ESALQ weekly IPPs'!$B$10:$B$20000,">="&$D85,'USDA ESALQ weekly IPPs'!$B$10:$B$20000,"<="&$E85) ->  | G85: =AVERAGEIFS('USDA ESALQ weekly IPPs'!$F$10:$F$20000,'USDA ESALQ weekly IPPs'!$B$10:$B$20000,">="&$D85,'USDA ESALQ weekly IPPs'!$B$10:$B$20000,"<="&$E85) ->  | H85: =AVERAGEIFS('USDA ESALQ weekly IPPs'!$G$10:$G$20000,'USDA ESALQ weekly IPPs'!$B$10:$B$20000,">="&$D85,'USDA ESALQ weekly IPPs'!$B$10:$B$20000,"<="&$E85) ->  | I85: =AVERAGEIFS('USDA ESALQ weekly IPPs'!$H$10:$H$20000,'USDA ESALQ weekly IPPs'!$B$10:$B$20000,">="&$D85,'USDA ESALQ weekly IPPs'!$B$10:$B$20000,"<="&$E85) ->  | J85: =AVERAGEIFS('USDA ESALQ weekly IPPs'!$I$10:$I$20000,'USDA ESALQ weekly IPPs'!$B$10:$B$20000,">="&$D85,'USDA ESALQ weekly IPPs'!$B$10:$B$20000,"<="&$E85) ->  | K85: =AVERAGEIFS('USDA ESALQ weekly IPPs'!$J$10:$J$20000,'USDA ESALQ weekly IPPs'!$B$10:$B$20000,">="&$D85,'USDA ESALQ weekly IPPs'!$B$10:$B$20000,"<="&$E85) ->  | L85: =INDEX(Other_Inputs!$I$59:$ZF$59,MATCH(B85,Other_Inputs!$I$58:$ZF$58,1)) -> 0 | M85: =INDEX(Other_Inputs!$I$48:$V$48,MATCH(B85,Other_Inputs!$I$46:$V$46,1)) -> 0 | N85: =AVERAGEIFS('USDA ESALQ weekly IPPs'!$N$10:$N$20000,'USDA ESALQ weekly IPPs'!$B$10:$B$20000,">="&$D85,'USDA ESALQ weekly IPPs'!$B$10:$B$20000,"<="&$E85) ->  | O85: =AVERAGEIFS('USDA ESALQ weekly IPPs'!$O$10:$O$20000,'USDA ESALQ weekly IPPs'!$B$10:$B$20000,">="&$D85,'USDA ESALQ weekly IPPs'!$B$10:$B$20000,"<="&$E85) ->  | S85: =NA() -> 
B86: 2039-09-01 | C86: 2040-02-29 | D86: 2038-11-01 | E86: 2039-07-31 | F86: =AVERAGEIFS('USDA ESALQ weekly IPPs'!$E$10:$E$20000,'USDA ESALQ weekly IPPs'!$B$10:$B$20000,">="&$D86,'USDA ESALQ weekly IPPs'!$B$10:$B$20000,"<="&$E86) ->  | G86: =AVERAGEIFS('USDA ESALQ weekly IPPs'!$F$10:$F$20000,'USDA ESALQ weekly IPPs'!$B$10:$B$20000,">="&$D86,'USDA ESALQ weekly IPPs'!$B$10:$B$20000,"<="&$E86) ->  | H86: =AVERAGEIFS('USDA ESALQ weekly IPPs'!$G$10:$G$20000,'USDA ESALQ weekly IPPs'!$B$10:$B$20000,">="&$D86,'USDA ESALQ weekly IPPs'!$B$10:$B$20000,"<="&$E86) ->  | I86: =AVERAGEIFS('USDA ESALQ weekly IPPs'!$H$10:$H$20000,'USDA ESALQ weekly IPPs'!$B$10:$B$20000,">="&$D86,'USDA ESALQ weekly IPPs'!$B$10:$B$20000,"<="&$E86) ->  | J86: =AVERAGEIFS('USDA ESALQ weekly IPPs'!$I$10:$I$20000,'USDA ESALQ weekly IPPs'!$B$10:$B$20000,">="&$D86,'USDA ESALQ weekly IPPs'!$B$10:$B$20000,"<="&$E86) ->  | K86: =AVERAGEIFS('USDA ESALQ weekly IPPs'!$J$10:$J$20000,'USDA ESALQ weekly IPPs'!$B$10:$B$20000,">="&$D86,'USDA ESALQ weekly IPPs'!$B$10:$B$20000,"<="&$E86) ->  | L86: =INDEX(Other_Inputs!$I$59:$ZF$59,MATCH(B86,Other_Inputs!$I$58:$ZF$58,1)) -> 0 | M86: =INDEX(Other_Inputs!$I$48:$V$48,MATCH(B86,Other_Inputs!$I$46:$V$46,1)) -> 0 | N86: =AVERAGEIFS('USDA ESALQ weekly IPPs'!$N$10:$N$20000,'USDA ESALQ weekly IPPs'!$B$10:$B$20000,">="&$D86,'USDA ESALQ weekly IPPs'!$B$10:$B$20000,"<="&$E86) ->  | O86: =AVERAGEIFS('USDA ESALQ weekly IPPs'!$O$10:$O$20000,'USDA ESALQ weekly IPPs'!$B$10:$B$20000,">="&$D86,'USDA ESALQ weekly IPPs'!$B$10:$B$20000,"<="&$E86) ->  | S86: =NA() -> 
B87: 2040-03-01 | C87: 2040-08-31 | D87: 2039-05-01 | E87: 2040-01-31 | F87: =AVERAGEIFS('USDA ESALQ weekly IPPs'!$E$10:$E$20000,'USDA ESALQ weekly IPPs'!$B$10:$B$20000,">="&$D87,'USDA ESALQ weekly IPPs'!$B$10:$B$20000,"<="&$E87) ->  | G87: =AVERAGEIFS('USDA ESALQ weekly IPPs'!$F$10:$F$20000,'USDA ESALQ weekly IPPs'!$B$10:$B$20000,">="&$D87,'USDA ESALQ weekly IPPs'!$B$10:$B$20000,"<="&$E87) ->  | H87: =AVERAGEIFS('USDA ESALQ weekly IPPs'!$G$10:$G$20000,'USDA ESALQ weekly IPPs'!$B$10:$B$20000,">="&$D87,'USDA ESALQ weekly IPPs'!$B$10:$B$20000,"<="&$E87) ->  | I87: =AVERAGEIFS('USDA ESALQ weekly IPPs'!$H$10:$H$20000,'USDA ESALQ weekly IPPs'!$B$10:$B$20000,">="&$D87,'USDA ESALQ weekly IPPs'!$B$10:$B$20000,"<="&$E87) ->  | J87: =AVERAGEIFS('USDA ESALQ weekly IPPs'!$I$10:$I$20000,'USDA ESALQ weekly IPPs'!$B$10:$B$20000,">="&$D87,'USDA ESALQ weekly IPPs'!$B$10:$B$20000,"<="&$E87) ->  | K87: =AVERAGEIFS('USDA ESALQ weekly IPPs'!$J$10:$J$20000,'USDA ESALQ weekly IPPs'!$B$10:$B$20000,">="&$D87,'USDA ESALQ weekly IPPs'!$B$10:$B$20000,"<="&$E87) ->  | L87: =INDEX(Other_Inputs!$I$59:$ZF$59,MATCH(B87,Other_Inputs!$I$58:$ZF$58,1)) -> 0 | M87: =INDEX(Other_Inputs!$I$48:$V$48,MATCH(B87,Other_Inputs!$I$46:$V$46,1)) -> 0 | N87: =AVERAGEIFS('USDA ESALQ weekly IPPs'!$N$10:$N$20000,'USDA ESALQ weekly IPPs'!$B$10:$B$20000,">="&$D87,'USDA ESALQ weekly IPPs'!$B$10:$B$20000,"<="&$E87) ->  | O87: =AVERAGEIFS('USDA ESALQ weekly IPPs'!$O$10:$O$20000,'USDA ESALQ weekly IPPs'!$B$10:$B$20000,">="&$D87,'USDA ESALQ weekly IPPs'!$B$10:$B$20000,"<="&$E87) ->  | S87: =NA() -> 
B88: 2040-09-01 | C88: 2041-02-28 | D88: 2039-11-01 | E88: 2040-07-31 | F88: =AVERAGEIFS('USDA ESALQ weekly IPPs'!$E$10:$E$20000,'USDA ESALQ weekly IPPs'!$B$10:$B$20000,">="&$D88,'USDA ESALQ weekly IPPs'!$B$10:$B$20000,"<="&$E88) ->  | G88: =AVERAGEIFS('USDA ESALQ weekly IPPs'!$F$10:$F$20000,'USDA ESALQ weekly IPPs'!$B$10:$B$20000,">="&$D88,'USDA ESALQ weekly IPPs'!$B$10:$B$20000,"<="&$E88) ->  | H88: =AVERAGEIFS('USDA ESALQ weekly IPPs'!$G$10:$G$20000,'USDA ESALQ weekly IPPs'!$B$10:$B$20000,">="&$D88,'USDA ESALQ weekly IPPs'!$B$10:$B$20000,"<="&$E88) ->  | I88: =AVERAGEIFS('USDA ESALQ weekly IPPs'!$H$10:$H$20000,'USDA ESALQ weekly IPPs'!$B$10:$B$20000,">="&$D88,'USDA ESALQ weekly IPPs'!$B$10:$B$20000,"<="&$E88) ->  | J88: =AVERAGEIFS('USDA ESALQ weekly IPPs'!$I$10:$I$20000,'USDA ESALQ weekly IPPs'!$B$10:$B$20000,">="&$D88,'USDA ESALQ weekly IPPs'!$B$10:$B$20000,"<="&$E88) ->  | K88: =AVERAGEIFS('USDA ESALQ weekly IPPs'!$J$10:$J$20000,'USDA ESALQ weekly IPPs'!$B$10:$B$20000,">="&$D88,'USDA ESALQ weekly IPPs'!$B$10:$B$20000,"<="&$E88) ->  | L88: =INDEX(Other_Inputs!$I$59:$ZF$59,MATCH(B88,Other_Inputs!$I$58:$ZF$58,1)) -> 0 | M88: =INDEX(Other_Inputs!$I$48:$V$48,MATCH(B88,Other_Inputs!$I$46:$V$46,1)) -> 0 | N88: =AVERAGEIFS('USDA ESALQ weekly IPPs'!$N$10:$N$20000,'USDA ESALQ weekly IPPs'!$B$10:$B$20000,">="&$D88,'USDA ESALQ weekly IPPs'!$B$10:$B$20000,"<="&$E88) ->  | O88: =AVERAGEIFS('USDA ESALQ weekly IPPs'!$O$10:$O$20000,'USDA ESALQ weekly IPPs'!$B$10:$B$20000,">="&$D88,'USDA ESALQ weekly IPPs'!$B$10:$B$20000,"<="&$E88) ->  | S88: =NA() -> 
B89: 2041-03-01 | C89: 2041-08-31 | D89: 2040-05-01 | E89: 2041-01-31 | F89: =AVERAGEIFS('USDA ESALQ weekly IPPs'!$E$10:$E$20000,'USDA ESALQ weekly IPPs'!$B$10:$B$20000,">="&$D89,'USDA ESALQ weekly IPPs'!$B$10:$B$20000,"<="&$E89) ->  | G89: =AVERAGEIFS('USDA ESALQ weekly IPPs'!$F$10:$F$20000,'USDA ESALQ weekly IPPs'!$B$10:$B$20000,">="&$D89,'USDA ESALQ weekly IPPs'!$B$10:$B$20000,"<="&$E89) ->  | H89: =AVERAGEIFS('USDA ESALQ weekly IPPs'!$G$10:$G$20000,'USDA ESALQ weekly IPPs'!$B$10:$B$20000,">="&$D89,'USDA ESALQ weekly IPPs'!$B$10:$B$20000,"<="&$E89) ->  | I89: =AVERAGEIFS('USDA ESALQ weekly IPPs'!$H$10:$H$20000,'USDA ESALQ weekly IPPs'!$B$10:$B$20000,">="&$D89,'USDA ESALQ weekly IPPs'!$B$10:$B$20000,"<="&$E89) ->  | J89: =AVERAGEIFS('USDA ESALQ weekly IPPs'!$I$10:$I$20000,'USDA ESALQ weekly IPPs'!$B$10:$B$20000,">="&$D89,'USDA ESALQ weekly IPPs'!$B$10:$B$20000,"<="&$E89) ->  | K89: =AVERAGEIFS('USDA ESALQ weekly IPPs'!$J$10:$J$20000,'USDA ESALQ weekly IPPs'!$B$10:$B$20000,">="&$D89,'USDA ESALQ weekly IPPs'!$B$10:$B$20000,"<="&$E89) ->  | L89: =INDEX(Other_Inputs!$I$59:$ZF$59,MATCH(B89,Other_Inputs!$I$58:$ZF$58,1)) -> 0 | M89: =INDEX(Other_Inputs!$I$48:$V$48,MATCH(B89,Other_Inputs!$I$46:$V$46,1)) -> 0 | N89: =AVERAGEIFS('USDA ESALQ weekly IPPs'!$N$10:$N$20000,'USDA ESALQ weekly IPPs'!$B$10:$B$20000,">="&$D89,'USDA ESALQ weekly IPPs'!$B$10:$B$20000,"<="&$E89) ->  | O89: =AVERAGEIFS('USDA ESALQ weekly IPPs'!$O$10:$O$20000,'USDA ESALQ weekly IPPs'!$B$10:$B$20000,">="&$D89,'USDA ESALQ weekly IPPs'!$B$10:$B$20000,"<="&$E89) ->  | S89: =NA() -> 
B90: =C89+1 -> 2041-09-01 | C90: 2042-02-28 | D90: 2040-11-01 | E90: 2041-07-31 | F90: =AVERAGEIFS('USDA ESALQ weekly IPPs'!$E$10:$E$20000,'USDA ESALQ weekly IPPs'!$B$10:$B$20000,">="&$D90,'USDA ESALQ weekly IPPs'!$B$10:$B$20000,"<="&$E90) ->  | G90: =AVERAGEIFS('USDA ESALQ weekly IPPs'!$F$10:$F$20000,'USDA ESALQ weekly IPPs'!$B$10:$B$20000,">="&$D90,'USDA ESALQ weekly IPPs'!$B$10:$B$20000,"<="&$E90) ->  | H90: =AVERAGEIFS('USDA ESALQ weekly IPPs'!$G$10:$G$20000,'USDA ESALQ weekly IPPs'!$B$10:$B$20000,">="&$D90,'USDA ESALQ weekly IPPs'!$B$10:$B$20000,"<="&$E90) ->  | I90: =AVERAGEIFS('USDA ESALQ weekly IPPs'!$H$10:$H$20000,'USDA ESALQ weekly IPPs'!$B$10:$B$20000,">="&$D90,'USDA ESALQ weekly IPPs'!$B$10:$B$20000,"<="&$E90) ->  | J90: =AVERAGEIFS('USDA ESALQ weekly IPPs'!$I$10:$I$20000,'USDA ESALQ weekly IPPs'!$B$10:$B$20000,">="&$D90,'USDA ESALQ weekly IPPs'!$B$10:$B$20000,"<="&$E90) ->  | K90: =AVERAGEIFS('USDA ESALQ weekly IPPs'!$J$10:$J$20000,'USDA ESALQ weekly IPPs'!$B$10:$B$20000,">="&$D90,'USDA ESALQ weekly IPPs'!$B$10:$B$20000,"<="&$E90) ->  | L90: =INDEX(Other_Inputs!$I$59:$ZF$59,MATCH(B90,Other_Inputs!$I$58:$ZF$58,1)) -> 0 | M90: =INDEX(Other_Inputs!$I$48:$V$48,MATCH(B90,Other_Inputs!$I$46:$V$46,1)) -> 0 | N90: =AVERAGEIFS('USDA ESALQ weekly IPPs'!$N$10:$N$20000,'USDA ESALQ weekly IPPs'!$B$10:$B$20000,">="&$D90,'USDA ESALQ weekly IPPs'!$B$10:$B$20000,"<="&$E90) ->  | O90: =AVERAGEIFS('USDA ESALQ weekly IPPs'!$O$10:$O$20000,'USDA ESALQ weekly IPPs'!$B$10:$B$20000,">="&$D90,'USDA ESALQ weekly IPPs'!$B$10:$B$20000,"<="&$E90) ->  | S90: =NA() -> 
B91: 2042-03-01 | C91: 2042-08-31 | D91: 2041-05-01 | E91: 2042-01-31 | F91: =AVERAGEIFS('USDA ESALQ weekly IPPs'!$E$10:$E$20000,'USDA ESALQ weekly IPPs'!$B$10:$B$20000,">="&$D91,'USDA ESALQ weekly IPPs'!$B$10:$B$20000,"<="&$E91) ->  | G91: =AVERAGEIFS('USDA ESALQ weekly IPPs'!$F$10:$F$20000,'USDA ESALQ weekly IPPs'!$B$10:$B$20000,">="&$D91,'USDA ESALQ weekly IPPs'!$B$10:$B$20000,"<="&$E91) ->  | H91: =AVERAGEIFS('USDA ESALQ weekly IPPs'!$G$10:$G$20000,'USDA ESALQ weekly IPPs'!$B$10:$B$20000,">="&$D91,'USDA ESALQ weekly IPPs'!$B$10:$B$20000,"<="&$E91) ->  | I91: =AVERAGEIFS('USDA ESALQ weekly IPPs'!$H$10:$H$20000,'USDA ESALQ weekly IPPs'!$B$10:$B$20000,">="&$D91,'USDA ESALQ weekly IPPs'!$B$10:$B$20000,"<="&$E91) ->  | J91: =AVERAGEIFS('USDA ESALQ weekly IPPs'!$I$10:$I$20000,'USDA ESALQ weekly IPPs'!$B$10:$B$20000,">="&$D91,'USDA ESALQ weekly IPPs'!$B$10:$B$20000,"<="&$E91) ->  | K91: =AVERAGEIFS('USDA ESALQ weekly IPPs'!$J$10:$J$20000,'USDA ESALQ weekly IPPs'!$B$10:$B$20000,">="&$D91,'USDA ESALQ weekly IPPs'!$B$10:$B$20000,"<="&$E91) ->  | L91: =INDEX(Other_Inputs!$I$59:$ZF$59,MATCH(B91,Other_Inputs!$I$58:$ZF$58,1)) -> 0 | M91: =INDEX(Other_Inputs!$I$48:$V$48,MATCH(B91,Other_Inputs!$I$46:$V$46,1)) -> 0 | N91: =AVERAGEIFS('USDA ESALQ weekly IPPs'!$N$10:$N$20000,'USDA ESALQ weekly IPPs'!$B$10:$B$20000,">="&$D91,'USDA ESALQ weekly IPPs'!$B$10:$B$20000,"<="&$E91) ->  | O91: =AVERAGEIFS('USDA ESALQ weekly IPPs'!$O$10:$O$20000,'USDA ESALQ weekly IPPs'!$B$10:$B$20000,">="&$D91,'USDA ESALQ weekly IPPs'!$B$10:$B$20000,"<="&$E91) ->  | S91: =NA() -> 
B92: 2042-09-01 | C92: 2043-02-28 | D92: 2041-11-01 | E92: 2042-07-31 | F92: =AVERAGEIFS('USDA ESALQ weekly IPPs'!$E$10:$E$20000,'USDA ESALQ weekly IPPs'!$B$10:$B$20000,">="&$D92,'USDA ESALQ weekly IPPs'!$B$10:$B$20000,"<="&$E92) ->  | G92: =AVERAGEIFS('USDA ESALQ weekly IPPs'!$F$10:$F$20000,'USDA ESALQ weekly IPPs'!$B$10:$B$20000,">="&$D92,'USDA ESALQ weekly IPPs'!$B$10:$B$20000,"<="&$E92) ->  | H92: =AVERAGEIFS('USDA ESALQ weekly IPPs'!$G$10:$G$20000,'USDA ESALQ weekly IPPs'!$B$10:$B$20000,">="&$D92,'USDA ESALQ weekly IPPs'!$B$10:$B$20000,"<="&$E92) ->  | I92: =AVERAGEIFS('USDA ESALQ weekly IPPs'!$H$10:$H$20000,'USDA ESALQ weekly IPPs'!$B$10:$B$20000,">="&$D92,'USDA ESALQ weekly IPPs'!$B$10:$B$20000,"<="&$E92) ->  | J92: =AVERAGEIFS('USDA ESALQ weekly IPPs'!$I$10:$I$20000,'USDA ESALQ weekly IPPs'!$B$10:$B$20000,">="&$D92,'USDA ESALQ weekly IPPs'!$B$10:$B$20000,"<="&$E92) ->  | K92: =AVERAGEIFS('USDA ESALQ weekly IPPs'!$J$10:$J$20000,'USDA ESALQ weekly IPPs'!$B$10:$B$20000,">="&$D92,'USDA ESALQ weekly IPPs'!$B$10:$B$20000,"<="&$E92) ->  | L92: =INDEX(Other_Inputs!$I$59:$ZF$59,MATCH(B92,Other_Inputs!$I$58:$ZF$58,1)) -> 0 | M92: =INDEX(Other_Inputs!$I$48:$V$48,MATCH(B92,Other_Inputs!$I$46:$V$46,1)) -> 0 | N92: =AVERAGEIFS('USDA ESALQ weekly IPPs'!$N$10:$N$20000,'USDA ESALQ weekly IPPs'!$B$10:$B$20000,">="&$D92,'USDA ESALQ weekly IPPs'!$B$10:$B$20000,"<="&$E92) ->  | O92: =AVERAGEIFS('USDA ESALQ weekly IPPs'!$O$10:$O$20000,'USDA ESALQ weekly IPPs'!$B$10:$B$20000,">="&$D92,'USDA ESALQ weekly IPPs'!$B$10:$B$20000,"<="&$E92) ->  | S92: =NA() -> 
B93: 2043-03-01 | C93: 2043-08-31 | D93: 2042-05-01 | E93: 2043-01-31 | F93: =AVERAGEIFS('USDA ESALQ weekly IPPs'!$E$10:$E$20000,'USDA ESALQ weekly IPPs'!$B$10:$B$20000,">="&$D93,'USDA ESALQ weekly IPPs'!$B$10:$B$20000,"<="&$E93) ->  | G93: =AVERAGEIFS('USDA ESALQ weekly IPPs'!$F$10:$F$20000,'USDA ESALQ weekly IPPs'!$B$10:$B$20000,">="&$D93,'USDA ESALQ weekly IPPs'!$B$10:$B$20000,"<="&$E93) ->  | H93: =AVERAGEIFS('USDA ESALQ weekly IPPs'!$G$10:$G$20000,'USDA ESALQ weekly IPPs'!$B$10:$B$20000,">="&$D93,'USDA ESALQ weekly IPPs'!$B$10:$B$20000,"<="&$E93) ->  | I93: =AVERAGEIFS('USDA ESALQ weekly IPPs'!$H$10:$H$20000,'USDA ESALQ weekly IPPs'!$B$10:$B$20000,">="&$D93,'USDA ESALQ weekly IPPs'!$B$10:$B$20000,"<="&$E93) ->  | J93: =AVERAGEIFS('USDA ESALQ weekly IPPs'!$I$10:$I$20000,'USDA ESALQ weekly IPPs'!$B$10:$B$20000,">="&$D93,'USDA ESALQ weekly IPPs'!$B$10:$B$20000,"<="&$E93) ->  | K93: =AVERAGEIFS('USDA ESALQ weekly IPPs'!$J$10:$J$20000,'USDA ESALQ weekly IPPs'!$B$10:$B$20000,">="&$D93,'USDA ESALQ weekly IPPs'!$B$10:$B$20000,"<="&$E93) ->  | L93: =INDEX(Other_Inputs!$I$59:$ZF$59,MATCH(B93,Other_Inputs!$I$58:$ZF$58,1)) -> 0 | M93: =INDEX(Other_Inputs!$I$48:$V$48,MATCH(B93,Other_Inputs!$I$46:$V$46,1)) -> 0 | N93: =AVERAGEIFS('USDA ESALQ weekly IPPs'!$N$10:$N$20000,'USDA ESALQ weekly IPPs'!$B$10:$B$20000,">="&$D93,'USDA ESALQ weekly IPPs'!$B$10:$B$20000,"<="&$E93) ->  | O93: =AVERAGEIFS('USDA ESALQ weekly IPPs'!$O$10:$O$20000,'USDA ESALQ weekly IPPs'!$B$10:$B$20000,">="&$D93,'USDA ESALQ weekly IPPs'!$B$10:$B$20000,"<="&$E93) ->  | S93: =NA() -> 
B94: 2043-09-01 | C94: 2044-02-29 | D94: 2042-11-01 | E94: 2043-07-31 | F94: =AVERAGEIFS('USDA ESALQ weekly IPPs'!$E$10:$E$20000,'USDA ESALQ weekly IPPs'!$B$10:$B$20000,">="&$D94,'USDA ESALQ weekly IPPs'!$B$10:$B$20000,"<="&$E94) ->  | G94: =AVERAGEIFS('USDA ESALQ weekly IPPs'!$F$10:$F$20000,'USDA ESALQ weekly IPPs'!$B$10:$B$20000,">="&$D94,'USDA ESALQ weekly IPPs'!$B$10:$B$20000,"<="&$E94) ->  | H94: =AVERAGEIFS('USDA ESALQ weekly IPPs'!$G$10:$G$20000,'USDA ESALQ weekly IPPs'!$B$10:$B$20000,">="&$D94,'USDA ESALQ weekly IPPs'!$B$10:$B$20000,"<="&$E94) ->  | I94: =AVERAGEIFS('USDA ESALQ weekly IPPs'!$H$10:$H$20000,'USDA ESALQ weekly IPPs'!$B$10:$B$20000,">="&$D94,'USDA ESALQ weekly IPPs'!$B$10:$B$20000,"<="&$E94) ->  | J94: =AVERAGEIFS('USDA ESALQ weekly IPPs'!$I$10:$I$20000,'USDA ESALQ weekly IPPs'!$B$10:$B$20000,">="&$D94,'USDA ESALQ weekly IPPs'!$B$10:$B$20000,"<="&$E94) ->  | K94: =AVERAGEIFS('USDA ESALQ weekly IPPs'!$J$10:$J$20000,'USDA ESALQ weekly IPPs'!$B$10:$B$20000,">="&$D94,'USDA ESALQ weekly IPPs'!$B$10:$B$20000,"<="&$E94) ->  | L94: =INDEX(Other_Inputs!$I$59:$ZF$59,MATCH(B94,Other_Inputs!$I$58:$ZF$58,1)) -> 0 | M94: =INDEX(Other_Inputs!$I$48:$V$48,MATCH(B94,Other_Inputs!$I$46:$V$46,1)) -> 0 | N94: =AVERAGEIFS('USDA ESALQ weekly IPPs'!$N$10:$N$20000,'USDA ESALQ weekly IPPs'!$B$10:$B$20000,">="&$D94,'USDA ESALQ weekly IPPs'!$B$10:$B$20000,"<="&$E94) ->  | O94: =AVERAGEIFS('USDA ESALQ weekly IPPs'!$O$10:$O$20000,'USDA ESALQ weekly IPPs'!$B$10:$B$20000,">="&$D94,'USDA ESALQ weekly IPPs'!$B$10:$B$20000,"<="&$E94) ->  | S94: =NA() -> 
B95: 2044-03-01 | C95: 2044-08-31 | D95: 2043-05-01 | E95: 2044-01-31 | F95: =AVERAGEIFS('USDA ESALQ weekly IPPs'!$E$10:$E$20000,'USDA ESALQ weekly IPPs'!$B$10:$B$20000,">="&$D95,'USDA ESALQ weekly IPPs'!$B$10:$B$20000,"<="&$E95) ->  | G95: =AVERAGEIFS('USDA ESALQ weekly IPPs'!$F$10:$F$20000,'USDA ESALQ weekly IPPs'!$B$10:$B$20000,">="&$D95,'USDA ESALQ weekly IPPs'!$B$10:$B$20000,"<="&$E95) ->  | H95: =AVERAGEIFS('USDA ESALQ weekly IPPs'!$G$10:$G$20000,'USDA ESALQ weekly IPPs'!$B$10:$B$20000,">="&$D95,'USDA ESALQ weekly IPPs'!$B$10:$B$20000,"<="&$E95) ->  | I95: =AVERAGEIFS('USDA ESALQ weekly IPPs'!$H$10:$H$20000,'USDA ESALQ weekly IPPs'!$B$10:$B$20000,">="&$D95,'USDA ESALQ weekly IPPs'!$B$10:$B$20000,"<="&$E95) ->  | J95: =AVERAGEIFS('USDA ESALQ weekly IPPs'!$I$10:$I$20000,'USDA ESALQ weekly IPPs'!$B$10:$B$20000,">="&$D95,'USDA ESALQ weekly IPPs'!$B$10:$B$20000,"<="&$E95) ->  | K95: =AVERAGEIFS('USDA ESALQ weekly IPPs'!$J$10:$J$20000,'USDA ESALQ weekly IPPs'!$B$10:$B$20000,">="&$D95,'USDA ESALQ weekly IPPs'!$B$10:$B$20000,"<="&$E95) ->  | L95: =INDEX(Other_Inputs!$I$59:$ZF$59,MATCH(B95,Other_Inputs!$I$58:$ZF$58,1)) -> 0 | M95: =INDEX(Other_Inputs!$I$48:$V$48,MATCH(B95,Other_Inputs!$I$46:$V$46,1)) -> 0 | N95: =AVERAGEIFS('USDA ESALQ weekly IPPs'!$N$10:$N$20000,'USDA ESALQ weekly IPPs'!$B$10:$B$20000,">="&$D95,'USDA ESALQ weekly IPPs'!$B$10:$B$20000,"<="&$E95) ->  | O95: =AVERAGEIFS('USDA ESALQ weekly IPPs'!$O$10:$O$20000,'USDA ESALQ weekly IPPs'!$B$10:$B$20000,">="&$D95,'USDA ESALQ weekly IPPs'!$B$10:$B$20000,"<="&$E95) ->  | S95: =NA() -> 
B96: 2044-09-01 | C96: 2045-02-28 | D96: 2043-11-01 | E96: 2044-07-31 | F96: =AVERAGEIFS('USDA ESALQ weekly IPPs'!$E$10:$E$20000,'USDA ESALQ weekly IPPs'!$B$10:$B$20000,">="&$D96,'USDA ESALQ weekly IPPs'!$B$10:$B$20000,"<="&$E96) ->  | G96: =AVERAGEIFS('USDA ESALQ weekly IPPs'!$F$10:$F$20000,'USDA ESALQ weekly IPPs'!$B$10:$B$20000,">="&$D96,'USDA ESALQ weekly IPPs'!$B$10:$B$20000,"<="&$E96) ->  | H96: =AVERAGEIFS('USDA ESALQ weekly IPPs'!$G$10:$G$20000,'USDA ESALQ weekly IPPs'!$B$10:$B$20000,">="&$D96,'USDA ESALQ weekly IPPs'!$B$10:$B$20000,"<="&$E96) ->  | I96: =AVERAGEIFS('USDA ESALQ weekly IPPs'!$H$10:$H$20000,'USDA ESALQ weekly IPPs'!$B$10:$B$20000,">="&$D96,'USDA ESALQ weekly IPPs'!$B$10:$B$20000,"<="&$E96) ->  | J96: =AVERAGEIFS('USDA ESALQ weekly IPPs'!$I$10:$I$20000,'USDA ESALQ weekly IPPs'!$B$10:$B$20000,">="&$D96,'USDA ESALQ weekly IPPs'!$B$10:$B$20000,"<="&$E96) ->  | K96: =AVERAGEIFS('USDA ESALQ weekly IPPs'!$J$10:$J$20000,'USDA ESALQ weekly IPPs'!$B$10:$B$20000,">="&$D96,'USDA ESALQ weekly IPPs'!$B$10:$B$20000,"<="&$E96) ->  | L96: =INDEX(Other_Inputs!$I$59:$ZF$59,MATCH(B96,Other_Inputs!$I$58:$ZF$58,1)) -> 0 | M96: =INDEX(Other_Inputs!$I$48:$V$48,MATCH(B96,Other_Inputs!$I$46:$V$46,1)) -> 0 | N96: =AVERAGEIFS('USDA ESALQ weekly IPPs'!$N$10:$N$20000,'USDA ESALQ weekly IPPs'!$B$10:$B$20000,">="&$D96,'USDA ESALQ weekly IPPs'!$B$10:$B$20000,"<="&$E96) ->  | O96: =AVERAGEIFS('USDA ESALQ weekly IPPs'!$O$10:$O$20000,'USDA ESALQ weekly IPPs'!$B$10:$B$20000,">="&$D96,'USDA ESALQ weekly IPPs'!$B$10:$B$20000,"<="&$E96) ->  | S96: =NA() -> 
B97: 2045-03-01 | C97: 2045-08-31 | D97: 2044-05-01 | E97: 2045-01-31 | F97: =AVERAGEIFS('USDA ESALQ weekly IPPs'!$E$10:$E$20000,'USDA ESALQ weekly IPPs'!$B$10:$B$20000,">="&$D97,'USDA ESALQ weekly IPPs'!$B$10:$B$20000,"<="&$E97) ->  | G97: =AVERAGEIFS('USDA ESALQ weekly IPPs'!$F$10:$F$20000,'USDA ESALQ weekly IPPs'!$B$10:$B$20000,">="&$D97,'USDA ESALQ weekly IPPs'!$B$10:$B$20000,"<="&$E97) ->  | H97: =AVERAGEIFS('USDA ESALQ weekly IPPs'!$G$10:$G$20000,'USDA ESALQ weekly IPPs'!$B$10:$B$20000,">="&$D97,'USDA ESALQ weekly IPPs'!$B$10:$B$20000,"<="&$E97) ->  | I97: =AVERAGEIFS('USDA ESALQ weekly IPPs'!$H$10:$H$20000,'USDA ESALQ weekly IPPs'!$B$10:$B$20000,">="&$D97,'USDA ESALQ weekly IPPs'!$B$10:$B$20000,"<="&$E97) ->  | J97: =AVERAGEIFS('USDA ESALQ weekly IPPs'!$I$10:$I$20000,'USDA ESALQ weekly IPPs'!$B$10:$B$20000,">="&$D97,'USDA ESALQ weekly IPPs'!$B$10:$B$20000,"<="&$E97) ->  | K97: =AVERAGEIFS('USDA ESALQ weekly IPPs'!$J$10:$J$20000,'USDA ESALQ weekly IPPs'!$B$10:$B$20000,">="&$D97,'USDA ESALQ weekly IPPs'!$B$10:$B$20000,"<="&$E97) ->  | L97: =INDEX(Other_Inputs!$I$59:$ZF$59,MATCH(B97,Other_Inputs!$I$58:$ZF$58,1)) -> 0 | M97: =INDEX(Other_Inputs!$I$48:$V$48,MATCH(B97,Other_Inputs!$I$46:$V$46,1)) -> 0 | N97: =AVERAGEIFS('USDA ESALQ weekly IPPs'!$N$10:$N$20000,'USDA ESALQ weekly IPPs'!$B$10:$B$20000,">="&$D97,'USDA ESALQ weekly IPPs'!$B$10:$B$20000,"<="&$E97) ->  | O97: =AVERAGEIFS('USDA ESALQ weekly IPPs'!$O$10:$O$20000,'USDA ESALQ weekly IPPs'!$B$10:$B$20000,">="&$D97,'USDA ESALQ weekly IPPs'!$B$10:$B$20000,"<="&$E97) ->  | S97: =NA() -> 
B98: 2045-09-01 | C98: 2046-02-28 | D98: 2044-11-01 | E98: 2045-07-31 | F98: =AVERAGEIFS('USDA ESALQ weekly IPPs'!$E$10:$E$20000,'USDA ESALQ weekly IPPs'!$B$10:$B$20000,">="&$D98,'USDA ESALQ weekly IPPs'!$B$10:$B$20000,"<="&$E98) ->  | G98: =AVERAGEIFS('USDA ESALQ weekly IPPs'!$F$10:$F$20000,'USDA ESALQ weekly IPPs'!$B$10:$B$20000,">="&$D98,'USDA ESALQ weekly IPPs'!$B$10:$B$20000,"<="&$E98) ->  | H98: =AVERAGEIFS('USDA ESALQ weekly IPPs'!$G$10:$G$20000,'USDA ESALQ weekly IPPs'!$B$10:$B$20000,">="&$D98,'USDA ESALQ weekly IPPs'!$B$10:$B$20000,"<="&$E98) ->  | I98: =AVERAGEIFS('USDA ESALQ weekly IPPs'!$H$10:$H$20000,'USDA ESALQ weekly IPPs'!$B$10:$B$20000,">="&$D98,'USDA ESALQ weekly IPPs'!$B$10:$B$20000,"<="&$E98) ->  | J98: =AVERAGEIFS('USDA ESALQ weekly IPPs'!$I$10:$I$20000,'USDA ESALQ weekly IPPs'!$B$10:$B$20000,">="&$D98,'USDA ESALQ weekly IPPs'!$B$10:$B$20000,"<="&$E98) ->  | K98: =AVERAGEIFS('USDA ESALQ weekly IPPs'!$J$10:$J$20000,'USDA ESALQ weekly IPPs'!$B$10:$B$20000,">="&$D98,'USDA ESALQ weekly IPPs'!$B$10:$B$20000,"<="&$E98) ->  | L98: =INDEX(Other_Inputs!$I$59:$ZF$59,MATCH(B98,Other_Inputs!$I$58:$ZF$58,1)) -> 0 | M98: =INDEX(Other_Inputs!$I$48:$V$48,MATCH(B98,Other_Inputs!$I$46:$V$46,1)) -> 0 | N98: =AVERAGEIFS('USDA ESALQ weekly IPPs'!$N$10:$N$20000,'USDA ESALQ weekly IPPs'!$B$10:$B$20000,">="&$D98,'USDA ESALQ weekly IPPs'!$B$10:$B$20000,"<="&$E98) ->  | O98: =AVERAGEIFS('USDA ESALQ weekly IPPs'!$O$10:$O$20000,'USDA ESALQ weekly IPPs'!$B$10:$B$20000,">="&$D98,'USDA ESALQ weekly IPPs'!$B$10:$B$20000,"<="&$E98) ->  | S98: =NA() -> 
B99: 2046-03-01 | C99: 2046-08-31 | D99: 2045-05-01 | E99: 2046-01-31 | F99: =AVERAGEIFS('USDA ESALQ weekly IPPs'!$E$10:$E$20000,'USDA ESALQ weekly IPPs'!$B$10:$B$20000,">="&$D99,'USDA ESALQ weekly IPPs'!$B$10:$B$20000,"<="&$E99) ->  | G99: =AVERAGEIFS('USDA ESALQ weekly IPPs'!$F$10:$F$20000,'USDA ESALQ weekly IPPs'!$B$10:$B$20000,">="&$D99,'USDA ESALQ weekly IPPs'!$B$10:$B$20000,"<="&$E99) ->  | H99: =AVERAGEIFS('USDA ESALQ weekly IPPs'!$G$10:$G$20000,'USDA ESALQ weekly IPPs'!$B$10:$B$20000,">="&$D99,'USDA ESALQ weekly IPPs'!$B$10:$B$20000,"<="&$E99) ->  | I99: =AVERAGEIFS('USDA ESALQ weekly IPPs'!$H$10:$H$20000,'USDA ESALQ weekly IPPs'!$B$10:$B$20000,">="&$D99,'USDA ESALQ weekly IPPs'!$B$10:$B$20000,"<="&$E99) ->  | J99: =AVERAGEIFS('USDA ESALQ weekly IPPs'!$I$10:$I$20000,'USDA ESALQ weekly IPPs'!$B$10:$B$20000,">="&$D99,'USDA ESALQ weekly IPPs'!$B$10:$B$20000,"<="&$E99) ->  | K99: =AVERAGEIFS('USDA ESALQ weekly IPPs'!$J$10:$J$20000,'USDA ESALQ weekly IPPs'!$B$10:$B$20000,">="&$D99,'USDA ESALQ weekly IPPs'!$B$10:$B$20000,"<="&$E99) ->  | L99: =INDEX(Other_Inputs!$I$59:$ZF$59,MATCH(B99,Other_Inputs!$I$58:$ZF$58,1)) -> 0 | M99: =INDEX(Other_Inputs!$I$48:$V$48,MATCH(B99,Other_Inputs!$I$46:$V$46,1)) -> 0 | N99: =AVERAGEIFS('USDA ESALQ weekly IPPs'!$N$10:$N$20000,'USDA ESALQ weekly IPPs'!$B$10:$B$20000,">="&$D99,'USDA ESALQ weekly IPPs'!$B$10:$B$20000,"<="&$E99) ->  | O99: =AVERAGEIFS('USDA ESALQ weekly IPPs'!$O$10:$O$20000,'USDA ESALQ weekly IPPs'!$B$10:$B$20000,">="&$D99,'USDA ESALQ weekly IPPs'!$B$10:$B$20000,"<="&$E99) ->  | S99: =NA() -> 
B100: 2046-09-01 | C100: 2047-02-28 | D100: 2045-11-01 | E100: 2046-07-31 | F100: =AVERAGEIFS('USDA ESALQ weekly IPPs'!$E$10:$E$20000,'USDA ESALQ weekly IPPs'!$B$10:$B$20000,">="&$D100,'USDA ESALQ weekly IPPs'!$B$10:$B$20000,"<="&$E100) ->  | G100: =AVERAGEIFS('USDA ESALQ weekly IPPs'!$F$10:$F$20000,'USDA ESALQ weekly IPPs'!$B$10:$B$20000,">="&$D100,'USDA ESALQ weekly IPPs'!$B$10:$B$20000,"<="&$E100) ->  | H100: =AVERAGEIFS('USDA ESALQ weekly IPPs'!$G$10:$G$20000,'USDA ESALQ weekly IPPs'!$B$10:$B$20000,">="&$D100,'USDA ESALQ weekly IPPs'!$B$10:$B$20000,"<="&$E100) ->  | I100: =AVERAGEIFS('USDA ESALQ weekly IPPs'!$H$10:$H$20000,'USDA ESALQ weekly IPPs'!$B$10:$B$20000,">="&$D100,'USDA ESALQ weekly IPPs'!$B$10:$B$20000,"<="&$E100) ->  | J100: =AVERAGEIFS('USDA ESALQ weekly IPPs'!$I$10:$I$20000,'USDA ESALQ weekly IPPs'!$B$10:$B$20000,">="&$D100,'USDA ESALQ weekly IPPs'!$B$10:$B$20000,"<="&$E100) ->  | K100: =AVERAGEIFS('USDA ESALQ weekly IPPs'!$J$10:$J$20000,'USDA ESALQ weekly IPPs'!$B$10:$B$20000,">="&$D100,'USDA ESALQ weekly IPPs'!$B$10:$B$20000,"<="&$E100) ->  | L100: =INDEX(Other_Inputs!$I$59:$ZF$59,MATCH(B100,Other_Inputs!$I$58:$ZF$58,1)) -> 0 | M100: =INDEX(Other_Inputs!$I$48:$V$48,MATCH(B100,Other_Inputs!$I$46:$V$46,1)) -> 0 | N100: =AVERAGEIFS('USDA ESALQ weekly IPPs'!$N$10:$N$20000,'USDA ESALQ weekly IPPs'!$B$10:$B$20000,">="&$D100,'USDA ESALQ weekly IPPs'!$B$10:$B$20000,"<="&$E100) ->  | O100: =AVERAGEIFS('USDA ESALQ weekly IPPs'!$O$10:$O$20000,'USDA ESALQ weekly IPPs'!$B$10:$B$20000,">="&$D100,'USDA ESALQ weekly IPPs'!$B$10:$B$20000,"<="&$E100) ->  | S100: =NA() -> 
B101: 2047-03-01 | C101: 2047-08-31 | D101: 2046-05-01 | E101: 2047-01-31 | F101: =AVERAGEIFS('USDA ESALQ weekly IPPs'!$E$10:$E$20000,'USDA ESALQ weekly IPPs'!$B$10:$B$20000,">="&$D101,'USDA ESALQ weekly IPPs'!$B$10:$B$20000,"<="&$E101) ->  | G101: =AVERAGEIFS('USDA ESALQ weekly IPPs'!$F$10:$F$20000,'USDA ESALQ weekly IPPs'!$B$10:$B$20000,">="&$D101,'USDA ESALQ weekly IPPs'!$B$10:$B$20000,"<="&$E101) ->  | H101: =AVERAGEIFS('USDA ESALQ weekly IPPs'!$G$10:$G$20000,'USDA ESALQ weekly IPPs'!$B$10:$B$20000,">="&$D101,'USDA ESALQ weekly IPPs'!$B$10:$B$20000,"<="&$E101) ->  | I101: =AVERAGEIFS('USDA ESALQ weekly IPPs'!$H$10:$H$20000,'USDA ESALQ weekly IPPs'!$B$10:$B$20000,">="&$D101,'USDA ESALQ weekly IPPs'!$B$10:$B$20000,"<="&$E101) ->  | J101: =AVERAGEIFS('USDA ESALQ weekly IPPs'!$I$10:$I$20000,'USDA ESALQ weekly IPPs'!$B$10:$B$20000,">="&$D101,'USDA ESALQ weekly IPPs'!$B$10:$B$20000,"<="&$E101) ->  | K101: =AVERAGEIFS('USDA ESALQ weekly IPPs'!$J$10:$J$20000,'USDA ESALQ weekly IPPs'!$B$10:$B$20000,">="&$D101,'USDA ESALQ weekly IPPs'!$B$10:$B$20000,"<="&$E101) ->  | L101: =INDEX(Other_Inputs!$I$59:$ZF$59,MATCH(B101,Other_Inputs!$I$58:$ZF$58,1)) -> 0 | M101: =INDEX(Other_Inputs!$I$48:$V$48,MATCH(B101,Other_Inputs!$I$46:$V$46,1)) -> 0 | N101: =AVERAGEIFS('USDA ESALQ weekly IPPs'!$N$10:$N$20000,'USDA ESALQ weekly IPPs'!$B$10:$B$20000,">="&$D101,'USDA ESALQ weekly IPPs'!$B$10:$B$20000,"<="&$E101) ->  | O101: =AVERAGEIFS('USDA ESALQ weekly IPPs'!$O$10:$O$20000,'USDA ESALQ weekly IPPs'!$B$10:$B$20000,">="&$D101,'USDA ESALQ weekly IPPs'!$B$10:$B$20000,"<="&$E101) ->  | S101: =NA() -> 

Sheet USDA ESALQ weekly IPPs
B2: Weekly IPPs based on US and Brazilian ethanol prices
AG3: =AC835/AG835 -> 0.1187097526
D5: Origin specific IPP components for lowest weekly IPP | L5: US and Brazil common IPP elements | Q5: Exchange rates | T5: Brazil specific IPP elements | AI5: US specific IPP elements
L7: Elements in AUD | T7: Elements in USD or BRL | Y7: Elements in AUD | AI7: Elements in USD | AP7: Elements in AUD
B8: Week ending Friday | D8: Lowest priced origin | E8: Mill gate prices | F8: Local transport | G8: Local port costs | H8: Sea Freight | I8: Insurance | J8: Customs value duty | L8: Fuel excise | M8: Wharfage | N8: Import terminal storage and handling | O8: Transport from import terminal to fuel wholesale terminal | Q8: Median weekly AUD/USD exchange rate | R8: Median weekly AUD/BRL exchange rate | T8: ESALQ price | U8: Local transport | V8: Local port costs | W8: Sea Freight | Y8: =T8 -> ESALQ price | Z8: =U8 -> Local transport | AA8: =V8 -> Local port costs | AB8: TOTAL Brazil FOB Price | AC8: =W8 -> Sea Freight | AD8: Insurance | AE8: Customs value duty | AG8: TOTAL | AI8: USDA price | AJ8: Local transport | AK8: Local port costs | AL8: TOTAL US FOB Price | AN8: Sea Freight | AP8: =AI8 -> USDA price | AQ8: Local transport | AR8: Local port costs | AS8: =AL8 -> TOTAL US FOB Price | AT8: =AN8 -> Sea Freight | AU8: Insurance | AV8: Customs value duty | AX8: TOTAL
E9: AUD/litre | F9: AUD/litre | G9: AUD/litre | H9: AUD/litre | I9: AUD/litre | J9: AUD/litre | L9: AUD/litre | M9: AUD/litre | N9: AUD/litre | O9: AUD/litre | T9: USD/litre | U9: BRL/litre | V9: BRL/litre | W9: USD/litre | Y9: AUD/litre | Z9: AUD/litre | AA9: AUD/litre | AB9: AUD/litre | AC9: AUD/litre | AD9: AUD/litre | AE9: AUD/litre | AG9: AUD/litre | AI9: USD/litre | AJ9: USD/litre | AK9: USD/litre | AL9: USD/litre | AN9: USD/litre | AP9: AUD/litre | AQ9: AUD/litre | AR9: AUD/litre | AS9: AUD/litre | AT9: AUD/litre | AU9: AUD/litre | AV9: AUD/litre | AX9: AUD/litre
B10: 2007-01-05 | D10: =IF(MIN(AG10,AX10)=AG10,"Brazil","US") -> Brazil | E10: =IF($D10="Brazil",Y10,AP10) -> 0.5181392997 | F10: =IF($D10="Brazil",Z10,AQ10) -> 0.05903144075 | G10: =IF($D10="Brazil",AA10,AR10) -> 0.05903144075 | H10: =IF($D10="Brazil",AC10,AT10) -> 0.08730091013 | I10: =IF($D10="Brazil",AD10,AU10) -> 0.002894012365 | J10: =IF($D10="Brazil",AE10,AV10) -> 0.02544808725 | L10: =INDEX(Other_Inputs!$I$59:$ZF$59,MATCH(B10,Other_Inputs!$I$58:$ZF$58,1)) -> 0.38143 | M10: =IF(B10<Other_Inputs!$I$46,Other_Inputs!$I$48,INDEX(Other_Inputs!$I$48:$AAO$48,MATCH(B10,Other_Inputs!$I$46:$AAO$46,1))) -> 0.001917999 | N10: =Storage_import_terminal -> 0.03 | O10: =Transport_to_Wholesaler -> 0.015 | Q10: =INDEX('ExRate Calcs'!$E$7:$E$20000,MATCH(B10,'ExRate Calcs'!$C$7:$C$20000,0)) -> 0.7911 | R10: =INDEX('ExRate Calcs'!$H$7:$H$20000,MATCH('USDA ESALQ weekly IPPs'!B10,'ExRate Calcs'!$C$7:$C$20000,0)) -> 1.694012525 | T10: =INDEX('ESALQ calcs'!$D$7:$D$1995,MATCH('USDA ESALQ weekly IPPs'!B10,'ESALQ calcs'!$C$7:$C$1995,0)) -> 0.4099 | U10: =IF(YEAR(B10)<=Other_Inputs!$K$13,Other_Inputs!$K$14,INDEX(Other_Inputs!$L$14:$AAO$14,,MATCH(YEAR(B10),Other_Inputs!$L$13:$AAO$13,0))) -> 0.1 | V10: =IF(YEAR(B10)<=Other_Inputs!$K$13,Other_Inputs!$K$16,INDEX(Other_Inputs!$L$16:$AAO$16,,MATCH(YEAR(B10),Other_Inputs!$L$13:$AAO$13,0))) -> 0.1 | W10: =IF(YEAR(B10)<=Other_Inputs!$K$64,Other_Inputs!$K$68,INDEX(Other_Inputs!$L$68:$AAM$68,,MATCH(YEAR(B10),Other_Inputs!$L$64:$AAM$64,0))) -> 0.06906375 | Y10: =T10/$Q10 -> 0.5181392997 | Z10: =U10/$R10 -> 0.05903144075 | AA10: =V10/$R10 -> 0.05903144075 | AB10: =SUM(Y10:AA10) -> 0.6362021812 | AC10: =W10/Q10 -> 0.08730091013 | AD10: =SUM(AB10:AC10)*IF(YEAR(B10)<=Other_Inputs!$K$33,Other_Inputs!$K$34,INDEX(Other_Inputs!$L$34:$AAO$34,,MATCH(YEAR(B10),Other_Inputs!$L$33:$AAO$33,0))) -> 0.002894012365 | AE10: =AB10*IF(YEAR(B10)<=Other_Inputs!$K$37,Other_Inputs!$K$38,INDEX(Other_Inputs!$L$38:$AAO$38,,MATCH(YEAR(B10),Other_Inputs!$L$37:$AAO$37,0))) -> 0.02544808725 | AG10: =SUM(AB10:AE10) -> 0.7518451909 | AI10: =IFERROR(INDEX('USDA calcs'!$G$11:$G$18736,MATCH($B10,'USDA calcs'!$C$11:$C$18736,0)),INDEX('USDA historical daily prices'!$AA$14:$AA$3707,MATCH($B10,'USDA historical daily prices'!$C$14:$C$3707,0))) -> 0.6155211721 | AJ10: =IF(YEAR(B10)<=Other_Inputs!$K$20,Other_Inputs!$K$21,INDEX(Other_Inputs!$L$21:$AAO$21,,MATCH(YEAR(B10),Other_Inputs!$L$20:$AAO$20,1))) -> 0.0553 | AK10: =IF(YEAR(B10)<=Other_Inputs!$K$24,Other_Inputs!$K$27,INDEX(Other_Inputs!$L$27:$AAO$27,,MATCH(B10,Other_Inputs!$L$24:$AAO$24,1))) -> 0.0242 | AL10: =SUM(AI10,AJ10:AK10) -> 0.6950211721 | AN10: =IF(YEAR(B10)<=Other_Inputs!$K$64,Other_Inputs!$K$70,INDEX(Other_Inputs!$L$70:$AAM$70,,MATCH(YEAR(B10),Other_Inputs!$L$64:$AAM$64,0))) -> 0.069995124 | AP10: =AI10/$Q10 -> 0.7780573532 | AQ10: =AJ10/$Q10 -> 0.06990266717 | AR10: 0.03059031728 | AS10: =AL10/$Q10 -> 0.8785503376 | AT10: =AN10/$Q10 -> 0.08847822526 | AU10: =SUM(AS10:AT10)*IF(YEAR(B10)<=Other_Inputs!$K$33,Other_Inputs!$K$34,INDEX(Other_Inputs!$L$34:$AAO$34,,MATCH(YEAR(B10),Other_Inputs!$L$33:$AAO$33,0))) -> 0.003868114251 | AV10: =AS10*IF(YEAR(B10)<=Other_Inputs!$K$42,Other_Inputs!$K$43,INDEX(Other_Inputs!$L$43:$AAO$43,,MATCH(YEAR(B10),Other_Inputs!$L$42:$AAO$42,0))) -> 0 | AX10: =SUM(AS10:AV10) -> 0.9708966771
B11: =B10+7 -> 2007-01-12 | D11: =IF(MIN(AG11,AX11)=AG11,"Brazil","US") -> Brazil | E11: 0.5214841749 | F11: 0.05960853042 | G11: 0.05960853042 | H11: 0.08842536874 | I11: 0.002916506418 | J11: 0.02562804943 | L11: =INDEX(Other_Inputs!$I$59:$ZF$59,MATCH(B11,Other_Inputs!$I$58:$ZF$58,1)) -> 0.38143 | M11: =IF(B11<Other_Inputs!$I$46,Other_Inputs!$I$48,INDEX(Other_Inputs!$I$48:$AAO$48,MATCH(B11,Other_Inputs!$I$46:$AAO$46,1))) -> 0.001917999 | N11: =Storage_import_terminal -> 0.03 | O11: 0.015 | Q11: =INDEX('ExRate Calcs'!$E$7:$E$20000,MATCH(B11,'ExRate Calcs'!$C$7:$C$20000,0)) -> 0.78104 | R11: =INDEX('ExRate Calcs'!$H$7:$H$20000,MATCH('USDA ESALQ weekly IPPs'!B11,'ExRate Calcs'!$C$7:$C$20000,0)) -> 1.677612236 | T11: =INDEX('ESALQ calcs'!$D$7:$D$1995,MATCH('USDA ESALQ weekly IPPs'!B11,'ESALQ calcs'!$C$7:$C$1995,0)) -> 0.4073 | U11: =IF(YEAR(B11)<=Other_Inputs!$K$13,Other_Inputs!$K$14,INDEX(Other_Inputs!$L$14:$AAO$14,,MATCH(YEAR(B11),Other_Inputs!$L$13:$AAO$13,0))) -> 0.1 | V11: =IF(YEAR(B11)<=Other_Inputs!$K$13,Other_Inputs!$K$16,INDEX(Other_Inputs!$L$16:$AAO$16,,MATCH(YEAR(B11),Other_Inputs!$L$13:$AAO$13,0))) -> 0.1 | W11: =IF(YEAR(B11)<=Other_Inputs!$K$64,Other_Inputs!$K$68,INDEX(Other_Inputs!$L$68:$AAM$68,,MATCH(YEAR(B11),Other_Inputs!$L$64:$AAM$64,0))) -> 0.06906375 | Y11: 0.5214841749 | Z11: =U11/$R11 -> 0.05960853042 | AA11: =V11/$R11 -> 0.05960853042 | AB11: =SUM(Y11:AA11) -> 0.6407012358 | AC11: 0.08842536874 | AD11: =SUM(AB11:AC11)*IF(YEAR(B11)<=Other_Inputs!$K$33,Other_Inputs!$K$34,INDEX(Other_Inputs!$L$34:$AAO$34,,MATCH(YEAR(B11),Other_Inputs!$L$33:$AAO$33,0))) -> 0.002916506418 | AE11: =AB11*IF(YEAR(B11)<=Other_Inputs!$K$37,Other_Inputs!$K$38,INDEX(Other_Inputs!$L$38:$AAO$38,,MATCH(YEAR(B11),Other_Inputs!$L$37:$AAO$37,0))) -> 0.02562804943 | AG11: =SUM(AB11:AE11) -> 0.7576711604 | AI11: =IFERROR(INDEX('USDA calcs'!$G$11:$G$18736,MATCH($B11,'USDA calcs'!$C$11:$C$18736,0)),IFERROR(INDEX('USDA historical daily prices'!$AA$14:$AA$3707,MATCH($B11,'USDA historical daily prices'!$C$14:$C$3707,0)),AI10)) -> 0.5838205109 | AJ11: =IF(YEAR(B11)<=Other_Inputs!$K$20,Other_Inputs!$K$21,INDEX(Other_Inputs!$L$21:$AAO$21,,MATCH(YEAR(B11),Other_Inputs!$L$20:$AAO$20,1))) -> 0.0553 | AK11: =IF(YEAR(B11)<=Other_Inputs!$K$24,Other_Inputs!$K$27,INDEX(Other_Inputs!$L$27:$AAO$27,,MATCH(B11,Other_Inputs!$L$24:$AAO$24,1))) -> 0.0242 | AL11: 0.6633205109 | AN11: =IF(YEAR(B11)<=Other_Inputs!$K$64,Other_Inputs!$K$70,INDEX(Other_Inputs!$L$70:$AAM$70,,MATCH(YEAR(B11),Other_Inputs!$L$64:$AAM$64,0))) -> 0.069995124 | AP11: 0.7474911795 | AQ11: 0.07080303185 | AR11: 0.03098432859 | AS11: 0.84927854 | AT11: =AN11/$Q11 -> 0.089617848 | AU11: =SUM(AS11:AT11)*IF(YEAR(B11)<=Other_Inputs!$K$33,Other_Inputs!$K$34,INDEX(Other_Inputs!$L$34:$AAO$34,,MATCH(YEAR(B11),Other_Inputs!$L$33:$AAO$33,0))) -> 0.003755585552 | AV11: =AS11*IF(YEAR(B11)<=Other_Inputs!$K$42,Other_Inputs!$K$43,INDEX(Other_Inputs!$L$43:$AAO$43,,MATCH(YEAR(B11),Other_Inputs!$L$42:$AAO$42,0))) -> 0 | AX11: =SUM(AS11:AV11) -> 0.9426519735
B12: =B11+7 -> 2007-01-19 | D12: Brazil | E12: 0.5202238616 | F12: 0.05961857182 | G12: 0.05961857182 | H12: 0.08784501399 | I12: 0.002909224077 | J12: 0.02557844021 | L12: =INDEX(Other_Inputs!$I$59:$ZF$59,MATCH(B12,Other_Inputs!$I$58:$ZF$58,1)) -> 0.38143 | M12: =IF(B12<Other_Inputs!$I$46,Other_Inputs!$I$48,INDEX(Other_Inputs!$I$48:$AAO$48,MATCH(B12,Other_Inputs!$I$46:$AAO$46,1))) -> 0.001917999 | N12: 0.03 | O12: 0.015 | Q12: =INDEX('ExRate Calcs'!$E$7:$E$20000,MATCH(B12,'ExRate Calcs'!$C$7:$C$20000,0)) -> 0.7862 | R12: =INDEX('ExRate Calcs'!$H$7:$H$20000,MATCH('USDA ESALQ weekly IPPs'!B12,'ExRate Calcs'!$C$7:$C$20000,0)) -> 1.67732968 | T12: =INDEX('ESALQ calcs'!$D$7:$D$1995,MATCH('USDA ESALQ weekly IPPs'!B12,'ESALQ calcs'!$C$7:$C$1995,0)) -> 0.409 | U12: =IF(YEAR(B12)<=Other_Inputs!$K$13,Other_Inputs!$K$14,INDEX(Other_Inputs!$L$14:$AAO$14,,MATCH(YEAR(B12),Other_Inputs!$L$13:$AAO$13,0))) -> 0.1 | V12: =IF(YEAR(B12)<=Other_Inputs!$K$13,Other_Inputs!$K$16,INDEX(Other_Inputs!$L$16:$AAO$16,,MATCH(YEAR(B12),Other_Inputs!$L$13:$AAO$13,0))) -> 0.1 | W12: =IF(YEAR(B12)<=Other_Inputs!$K$64,Other_Inputs!$K$68,INDEX(Other_Inputs!$L$68:$AAM$68,,MATCH(YEAR(B12),Other_Inputs!$L$64:$AAM$64,0))) -> 0.06906375 | Y12: 0.5202238616 | Z12: 0.05961857182 | AA12: 0.05961857182 | AB12: 0.6394610053 | AC12: 0.08784501399 | AD12: =SUM(AB12:AC12)*IF(YEAR(B12)<=Other_Inputs!$K$33,Other_Inputs!$K$34,INDEX(Other_Inputs!$L$34:$AAO$34,,MATCH(YEAR(B12),Other_Inputs!$L$33:$AAO$33,0))) -> 0.002909224077 | AE12: =AB12*IF(YEAR(B12)<=Other_Inputs!$K$37,Other_Inputs!$K$38,INDEX(Other_Inputs!$L$38:$AAO$38,,MATCH(YEAR(B12),Other_Inputs!$L$37:$AAO$37,0))) -> 0.02557844021 | AG12: 0.7557936835 | AI12: =IFERROR(INDEX('USDA calcs'!$G$11:$G$18736,MATCH($B12,'USDA calcs'!$C$11:$C$18736,0)),IFERROR(INDEX('USDA historical daily prices'!$AA$14:$AA$3707,MATCH($B12,'USDA historical daily prices'!$C$14:$C$3707,0)),AI11)) -> 0.5415529626 | AJ12: =IF(YEAR(B12)<=Other_Inputs!$K$20,Other_Inputs!$K$21,INDEX(Other_Inputs!$L$21:$AAO$21,,MATCH(YEAR(B12),Other_Inputs!$L$20:$AAO$20,1))) -> 0.0553 | AK12: =IF(YEAR(B12)<=Other_Inputs!$K$24,Other_Inputs!$K$27,INDEX(Other_Inputs!$L$27:$AAO$27,,MATCH(B12,Other_Inputs!$L$24:$AAO$24,1))) -> 0.0242 | AL12: 0.6210529626 | AN12: =IF(YEAR(B12)<=Other_Inputs!$K$64,Other_Inputs!$K$70,INDEX(Other_Inputs!$L$70:$AAM$70,,MATCH(YEAR(B12),Other_Inputs!$L$64:$AAM$64,0))) -> 0.069995124 | AP12: 0.688823407 | AQ12: 0.0703383363 | AR12: 0.03078097176 | AS12: 0.789942715 | AT12: 0.08902966675 | AU12: =SUM(AS12:AT12)*IF(YEAR(B12)<=Other_Inputs!$K$33,Other_Inputs!$K$34,INDEX(Other_Inputs!$L$34:$AAO$34,,MATCH(YEAR(B12),Other_Inputs!$L$33:$AAO$33,0))) -> 0.003515889527 | AV12: =AS12*IF(YEAR(B12)<=Other_Inputs!$K$42,Other_Inputs!$K$43,INDEX(Other_Inputs!$L$43:$AAO$43,,MATCH(YEAR(B12),Other_Inputs!$L$42:$AAO$42,0))) -> 0 | AX12: 0.8824882713
B13: 2007-01-26 | D13: Brazil | E13: 0.5154350455 | F13: 0.05973667655 | G13: 0.05973667655 | H13: 0.08791770097 | I13: 0.002891304398 | J13: 0.02539633594 | L13: =INDEX(Other_Inputs!$I$59:$ZF$59,MATCH(B13,Other_Inputs!$I$58:$ZF$58,1)) -> 0.38143 | M13: =IF(B13<Other_Inputs!$I$46,Other_Inputs!$I$48,INDEX(Other_Inputs!$I$48:$AAO$48,MATCH(B13,Other_Inputs!$I$46:$AAO$46,1))) -> 0.001917999 | N13: 0.03 | O13: 0.015 | Q13: =INDEX('ExRate Calcs'!$E$7:$E$20000,MATCH(B13,'ExRate Calcs'!$C$7:$C$20000,0)) -> 0.78555 | R13: =INDEX('ExRate Calcs'!$H$7:$H$20000,MATCH('USDA ESALQ weekly IPPs'!B13,'ExRate Calcs'!$C$7:$C$20000,0)) -> 1.67401345 | T13: =INDEX('ESALQ calcs'!$D$7:$D$1995,MATCH('USDA ESALQ weekly IPPs'!B13,'ESALQ calcs'!$C$7:$C$1995,0)) -> 0.4049 | U13: =IF(YEAR(B13)<=Other_Inputs!$K$13,Other_Inputs!$K$14,INDEX(Other_Inputs!$L$14:$AAO$14,,MATCH(YEAR(B13),Other_Inputs!$L$13:$AAO$13,0))) -> 0.1 | V13: =IF(YEAR(B13)<=Other_Inputs!$K$13,Other_Inputs!$K$16,INDEX(Other_Inputs!$L$16:$AAO$16,,MATCH(YEAR(B13),Other_Inputs!$L$13:$AAO$13,0))) -> 0.1 | W13: =IF(YEAR(B13)<=Other_Inputs!$K$64,Other_Inputs!$K$68,INDEX(Other_Inputs!$L$68:$AAM$68,,MATCH(YEAR(B13),Other_Inputs!$L$64:$AAM$64,0))) -> 0.06906375 | Y13: 0.5154350455 | Z13: 0.05973667655 | AA13: 0.05973667655 | AB13: 0.6349083986 | AC13: 0.08791770097 | AD13: =SUM(AB13:AC13)*IF(YEAR(B13)<=Other_Inputs!$K$33,Other_Inputs!$K$34,INDEX(Other_Inputs!$L$34:$AAO$34,,MATCH(YEAR(B13),Other_Inputs!$L$33:$AAO$33,0))) -> 0.002891304398 | AE13: =AB13*IF(YEAR(B13)<=Other_Inputs!$K$37,Other_Inputs!$K$38,INDEX(Other_Inputs!$L$38:$AAO$38,,MATCH(YEAR(B13),Other_Inputs!$L$37:$AAO$37,0))) -> 0.02539633594 | AG13: 0.7511137399 | AI13: =IFERROR(INDEX('USDA calcs'!$G$11:$G$18736,MATCH($B13,'USDA calcs'!$C$11:$C$18736,0)),IFERROR(INDEX('USDA historical daily prices'!$AA$14:$AA$3707,MATCH($B13,'USDA historical daily prices'!$C$14:$C$3707,0)),AI12)) -> 0.4768307792 | AJ13: =IF(YEAR(B13)<=Other_Inputs!$K$20,Other_Inputs!$K$21,INDEX(Other_Inputs!$L$21:$AAO$21,,MATCH(YEAR(B13),Other_Inputs!$L$20:$AAO$20,1))) -> 0.0553 | AK13: =IF(YEAR(B13)<=Other_Inputs!$K$24,Other_Inputs!$K$27,INDEX(Other_Inputs!$L$27:$AAO$27,,MATCH(B13,Other_Inputs!$L$24:$AAO$24,1))) -> 0.0242 | AL13: 0.5563307792 | AN13: =IF(YEAR(B13)<=Other_Inputs!$K$64,Other_Inputs!$K$70,INDEX(Other_Inputs!$L$70:$AAM$70,,MATCH(YEAR(B13),Other_Inputs!$L$64:$AAM$64,0))) -> 0.069995124 | AP13: 0.6070024559 | AQ13: 0.07039653746 | AR13: 0.03080644135 | AS13: 0.7082054347 | AT13: 0.08910333397 | AU13: =SUM(AS13:AT13)*IF(YEAR(B13)<=Other_Inputs!$K$33,Other_Inputs!$K$34,INDEX(Other_Inputs!$L$34:$AAO$34,,MATCH(YEAR(B13),Other_Inputs!$L$33:$AAO$33,0))) -> 0.003189235075 | AV13: =AS13*IF(YEAR(B13)<=Other_Inputs!$K$42,Other_Inputs!$K$43,INDEX(Other_Inputs!$L$43:$AAO$43,,MATCH(YEAR(B13),Other_Inputs!$L$42:$AAO$42,0))) -> 0 | AX13: 0.8004980037
B14: 2007-02-02 | D14: Brazil | E14: 0.5156185354 | F14: 0.06102339837 | G14: 0.06102339837 | H14: 0.08929425683 | I14: 0.002907838356 | J14: 0.02550661328 | L14: =INDEX(Other_Inputs!$I$59:$ZF$59,MATCH(B14,Other_Inputs!$I$58:$ZF$58,1)) -> 0.38143 | M14: =IF(B14<Other_Inputs!$I$46,Other_Inputs!$I$48,INDEX(Other_Inputs!$I$48:$AAO$48,MATCH(B14,Other_Inputs!$I$46:$AAO$46,1))) -> 0.001917999 | N14: 0.03 | O14: 0.015 | Q14: =INDEX('ExRate Calcs'!$E$7:$E$20000,MATCH(B14,'ExRate Calcs'!$C$7:$C$20000,0)) -> 0.77344 | R14: =INDEX('ExRate Calcs'!$H$7:$H$20000,MATCH('USDA ESALQ weekly IPPs'!B14,'ExRate Calcs'!$C$7:$C$20000,0)) -> 1.638715684 | T14: =INDEX('ESALQ calcs'!$D$7:$D$1995,MATCH('USDA ESALQ weekly IPPs'!B14,'ESALQ calcs'!$C$7:$C$1995,0)) -> 0.3988 | U14: =IF(YEAR(B14)<=Other_Inputs!$K$13,Other_Inputs!$K$14,INDEX(Other_Inputs!$L$14:$AAO$14,,MATCH(YEAR(B14),Other_Inputs!$L$13:$AAO$13,0))) -> 0.1 | V14: =IF(YEAR(B14)<=Other_Inputs!$K$13,Other_Inputs!$K$16,INDEX(Other_Inputs!$L$16:$AAO$16,,MATCH(YEAR(B14),Other_Inputs!$L$13:$AAO$13,0))) -> 0.1 | W14: =IF(YEAR(B14)<=Other_Inputs!$K$64,Other_Inputs!$K$68,INDEX(Other_Inputs!$L$68:$AAM$68,,MATCH(YEAR(B14),Other_Inputs!$L$64:$AAM$64,0))) -> 0.06906375 | Y14: 0.5156185354 | Z14: 0.06102339837 | AA14: 0.06102339837 | AB14: 0.6376653321 | AC14: 0.08929425683 | AD14: =SUM(AB14:AC14)*IF(YEAR(B14)<=Other_Inputs!$K$33,Other_Inputs!$K$34,INDEX(Other_Inputs!$L$34:$AAO$34,,MATCH(YEAR(B14),Other_Inputs!$L$33:$AAO$33,0))) -> 0.002907838356 | AE14: =AB14*IF(YEAR(B14)<=Other_Inputs!$K$37,Other_Inputs!$K$38,INDEX(Other_Inputs!$L$38:$AAO$38,,MATCH(YEAR(B14),Other_Inputs!$L$37:$AAO$37,0))) -> 0.02550661328 | AG14: 0.7553740406 | AI14: =IFERROR(INDEX('USDA calcs'!$G$11:$G$18736,MATCH($B14,'USDA calcs'!$C$11:$C$18736,0)),IFERROR(INDEX('USDA historical daily prices'!$AA$14:$AA$3707,MATCH($B14,'USDA historical daily prices'!$C$14:$C$3707,0)),AI13)) -> 0.4728681966 | AJ14: =IF(YEAR(B14)<=Other_Inputs!$K$20,Other_Inputs!$K$21,INDEX(Other_Inputs!$L$21:$AAO$21,,MATCH(YEAR(B14),Other_Inputs!$L$20:$AAO$20,1))) -> 0.0553 | AK14: =IF(YEAR(B14)<=Other_Inputs!$K$24,Other_Inputs!$K$27,INDEX(Other_Inputs!$L$27:$AAO$27,,MATCH(B14,Other_Inputs!$L$24:$AAO$24,1))) -> 0.0242 | AL14: 0.5523681966 | AN14: =IF(YEAR(B14)<=Other_Inputs!$K$64,Other_Inputs!$K$70,INDEX(Other_Inputs!$L$70:$AAM$70,,MATCH(YEAR(B14),Other_Inputs!$L$64:$AAM$64,0))) -> 0.069995124 | AP14: 0.6113831669 | AQ14: 0.07149875879 | AR14: 0.03128878775 | AS14: 0.7141707134 | AT14: 0.09049845366 | AU14: =SUM(AS14:AT14)*IF(YEAR(B14)<=Other_Inputs!$K$33,Other_Inputs!$K$34,INDEX(Other_Inputs!$L$34:$AAO$34,,MATCH(YEAR(B14),Other_Inputs!$L$33:$AAO$33,0))) -> 0.003218676668 | AV14: =AS14*IF(YEAR(B14)<=Other_Inputs!$K$42,Other_Inputs!$K$43,INDEX(Other_Inputs!$L$43:$AAO$43,,MATCH(YEAR(B14),Other_Inputs!$L$42:$AAO$42,0))) -> 0 | AX14: 0.8078878437
B15: 2007-02-09 | D15: Brazil | E15: 0.5031770123 | F15: 0.06148915057 | G15: 0.06148915057 | H15: 0.08883254444 | I15: 0.002859951432 | J15: 0.02504621254 | L15: =INDEX(Other_Inputs!$I$59:$ZF$59,MATCH(B15,Other_Inputs!$I$58:$ZF$58,1)) -> 0.38143 | M15: =IF(B15<Other_Inputs!$I$46,Other_Inputs!$I$48,INDEX(Other_Inputs!$I$48:$AAO$48,MATCH(B15,Other_Inputs!$I$46:$AAO$46,1))) -> 0.001917999 | N15: 0.03 | O15: 0.015 | Q15: =INDEX('ExRate Calcs'!$E$7:$E$20000,MATCH(B15,'ExRate Calcs'!$C$7:$C$20000,0)) -> 0.77746 | R15: =INDEX('ExRate Calcs'!$H$7:$H$20000,MATCH('USDA ESALQ weekly IPPs'!B15,'ExRate Calcs'!$C$7:$C$20000,0)) -> 1.626303162 | T15: =INDEX('ESALQ calcs'!$D$7:$D$1995,MATCH('USDA ESALQ weekly IPPs'!B15,'ESALQ calcs'!$C$7:$C$1995,0)) -> 0.3912 | U15: =IF(YEAR(B15)<=Other_Inputs!$K$13,Other_Inputs!$K$14,INDEX(Other_Inputs!$L$14:$AAO$14,,MATCH(YEAR(B15),Other_Inputs!$L$13:$AAO$13,0))) -> 0.1 | V15: =IF(YEAR(B15)<=Other_Inputs!$K$13,Other_Inputs!$K$16,INDEX(Other_Inputs!$L$16:$AAO$16,,MATCH(YEAR(B15),Other_Inputs!$L$13:$AAO$13,0))) -> 0.1 | W15: =IF(YEAR(B15)<=Other_Inputs!$K$64,Other_Inputs!$K$68,INDEX(Other_Inputs!$L$68:$AAM$68,,MATCH(YEAR(B15),Other_Inputs!$L$64:$AAM$64,0))) -> 0.06906375 | Y15: 0.5031770123 | Z15: 0.06148915057 | AA15: 0.06148915057 | AB15: 0.6261553135 | AC15: 0.08883254444 | AD15: =SUM(AB15:AC15)*IF(YEAR(B15)<=Other_Inputs!$K$33,Other_Inputs!$K$34,INDEX(Other_Inputs!$L$34:$AAO$34,,MATCH(YEAR(B15),Other_Inputs!$L$33:$AAO$33,0))) -> 0.002859951432 | AE15: =AB15*IF(YEAR(B15)<=Other_Inputs!$K$37,Other_Inputs!$K$38,INDEX(Other_Inputs!$L$38:$AAO$38,,MATCH(YEAR(B15),Other_Inputs!$L$37:$AAO$37,0))) -> 0.02504621254 | AG15: 0.7428940219 | AI15: =IFERROR(INDEX('USDA calcs'!$G$11:$G$18736,MATCH($B15,'USDA calcs'!$C$11:$C$18736,0)),IFERROR(INDEX('USDA historical daily prices'!$AA$14:$AA$3707,MATCH($B15,'USDA historical daily prices'!$C$14:$C$3707,0)),AI14)) -> 0.4979645534 | AJ15: =IF(YEAR(B15)<=Other_Inputs!$K$20,Other_Inputs!$K$21,INDEX(Other_Inputs!$L$21:$AAO$21,,MATCH(YEAR(B15),Other_Inputs!$L$20:$AAO$20,1))) -> 0.0553 | AK15: =IF(YEAR(B15)<=Other_Inputs!$K$24,Other_Inputs!$K$27,INDEX(Other_Inputs!$L$27:$AAO$27,,MATCH(B15,Other_Inputs!$L$24:$AAO$24,1))) -> 0.0242 | AL15: 0.5774645534 | AN15: =IF(YEAR(B15)<=Other_Inputs!$K$64,Other_Inputs!$K$70,INDEX(Other_Inputs!$L$70:$AAM$70,,MATCH(YEAR(B15),Other_Inputs!$L$64:$AAM$64,0))) -> 0.069995124 | AP15: 0.6405018308 | AQ15: 0.0711290613 | AR15: 0.03112700332 | AS15: 0.7427578954 | AT15: 0.09003051475 | AU15: =SUM(AS15:AT15)*IF(YEAR(B15)<=Other_Inputs!$K$33,Other_Inputs!$K$34,INDEX(Other_Inputs!$L$34:$AAO$34,,MATCH(YEAR(B15),Other_Inputs!$L$33:$AAO$33,0))) -> 0.003331153641 | AV15: =AS15*IF(YEAR(B15)<=Other_Inputs!$K$42,Other_Inputs!$K$43,INDEX(Other_Inputs!$L$43:$AAO$43,,MATCH(YEAR(B15),Other_Inputs!$L$42:$AAO$42,0))) -> 0 | AX15: 0.8361195638
B16: 2007-02-16 | D16: Brazil | E16: 0.5132977358 | F16: 0.0611454896 | G16: 0.0611454896 | H16: 0.08864782821 | I16: 0.002896946173 | J16: 0.0254235486 | L16: =INDEX(Other_Inputs!$I$59:$ZF$59,MATCH(B16,Other_Inputs!$I$58:$ZF$58,1)) -> 0.38143 | M16: =IF(B16<Other_Inputs!$I$46,Other_Inputs!$I$48,INDEX(Other_Inputs!$I$48:$AAO$48,MATCH(B16,Other_Inputs!$I$46:$AAO$46,1))) -> 0.001917999 | N16: 0.03 | O16: 0.015 | Q16: =INDEX('ExRate Calcs'!$E$7:$E$20000,MATCH(B16,'ExRate Calcs'!$C$7:$C$20000,0)) -> 0.77908 | R16: =INDEX('ExRate Calcs'!$H$7:$H$20000,MATCH('USDA ESALQ weekly IPPs'!B16,'ExRate Calcs'!$C$7:$C$20000,0)) -> 1.635443606 | T16: =INDEX('ESALQ calcs'!$D$7:$D$1995,MATCH('USDA ESALQ weekly IPPs'!B16,'ESALQ calcs'!$C$7:$C$1995,0)) -> 0.3999 | U16: =IF(YEAR(B16)<=Other_Inputs!$K$13,Other_Inputs!$K$14,INDEX(Other_Inputs!$L$14:$AAO$14,,MATCH(YEAR(B16),Other_Inputs!$L$13:$AAO$13,0))) -> 0.1 | V16: =IF(YEAR(B16)<=Other_Inputs!$K$13,Other_Inputs!$K$16,INDEX(Other_Inputs!$L$16:$AAO$16,,MATCH(YEAR(B16),Other_Inputs!$L$13:$AAO$13,0))) -> 0.1 | W16: =IF(YEAR(B16)<=Other_Inputs!$K$64,Other_Inputs!$K$68,INDEX(Other_Inputs!$L$68:$AAM$68,,MATCH(YEAR(B16),Other_Inputs!$L$64:$AAM$64,0))) -> 0.06906375 | Y16: 0.5132977358 | Z16: 0.0611454896 | AA16: 0.0611454896 | AB16: 0.635588715 | AC16: 0.08864782821 | AD16: =SUM(AB16:AC16)*IF(YEAR(B16)<=Other_Inputs!$K$33,Other_Inputs!$K$34,INDEX(Other_Inputs!$L$34:$AAO$34,,MATCH(YEAR(B16),Other_Inputs!$L$33:$AAO$33,0))) -> 0.002896946173 | AE16: =AB16*IF(YEAR(B16)<=Other_Inputs!$K$37,Other_Inputs!$K$38,INDEX(Other_Inputs!$L$38:$AAO$38,,MATCH(YEAR(B16),Other_Inputs!$L$37:$AAO$37,0))) -> 0.0254235486 | AG16: 0.752557038 | AI16: =IFERROR(INDEX('USDA calcs'!$G$11:$G$18736,MATCH($B16,'USDA calcs'!$C$11:$C$18736,0)),IFERROR(INDEX('USDA historical daily prices'!$AA$14:$AA$3707,MATCH($B16,'USDA historical daily prices'!$C$14:$C$3707,0)),AI15)) -> 0.5217400493 | AJ16: =IF(YEAR(B16)<=Other_Inputs!$K$20,Other_Inputs!$K$21,INDEX(Other_Inputs!$L$21:$AAO$21,,MATCH(YEAR(B16),Other_Inputs!$L$20:$AAO$20,1))) -> 0.0553 | AK16: =IF(YEAR(B16)<=Other_Inputs!$K$24,Other_Inputs!$K$27,INDEX(Other_Inputs!$L$27:$AAO$27,,MATCH(B16,Other_Inputs!$L$24:$AAO$24,1))) -> 0.0242 | AL16: 0.6012400493 | AN16: =IF(YEAR(B16)<=Other_Inputs!$K$64,Other_Inputs!$K$70,INDEX(Other_Inputs!$L$70:$AAM$70,,MATCH(YEAR(B16),Other_Inputs!$L$64:$AAM$64,0))) -> 0.069995124 | AP16: 0.6696873868 | AQ16: 0.07098115726 | AR16: 0.03106227858 | AS16: 0.7717308226 | AT16: 0.08984330749 | AU16: =SUM(AS16:AT16)*IF(YEAR(B16)<=Other_Inputs!$K$33,Other_Inputs!$K$34,INDEX(Other_Inputs!$L$34:$AAO$34,,MATCH(YEAR(B16),Other_Inputs!$L$33:$AAO$33,0))) -> 0.00344629652 | AV16: =AS16*IF(YEAR(B16)<=Other_Inputs!$K$42,Other_Inputs!$K$43,INDEX(Other_Inputs!$L$43:$AAO$43,,MATCH(YEAR(B16),Other_Inputs!$L$42:$AAO$42,0))) -> 0 | AX16: 0.8650204266
B17: 2007-02-23 | D17: Brazil | E17: 0.5134613921 | F17: 0.06097632613 | G17: 0.06097632613 | H17: 0.08762433708 | I17: 0.002892153526 | J17: 0.02541656177 | L17: =INDEX(Other_Inputs!$I$59:$ZF$59,MATCH(B17,Other_Inputs!$I$58:$ZF$58,1)) -> 0.38143 | M17: =IF(B17<Other_Inputs!$I$46,Other_Inputs!$I$48,INDEX(Other_Inputs!$I$48:$AAO$48,MATCH(B17,Other_Inputs!$I$46:$AAO$46,1))) -> 0.001917999 | N17: 0.03 | O17: 0.015 | Q17: =INDEX('ExRate Calcs'!$E$7:$E$20000,MATCH(B17,'ExRate Calcs'!$C$7:$C$20000,0)) -> 0.78818 | R17: =INDEX('ExRate Calcs'!$H$7:$H$20000,MATCH('USDA ESALQ weekly IPPs'!B17,'ExRate Calcs'!$C$7:$C$20000,0)) -> 1.639980732 | T17: =INDEX('ESALQ calcs'!$D$7:$D$1995,MATCH('USDA ESALQ weekly IPPs'!B17,'ESALQ calcs'!$C$7:$C$1995,0)) -> 0.4047 | U17: =IF(YEAR(B17)<=Other_Inputs!$K$13,Other_Inputs!$K$14,INDEX(Other_Inputs!$L$14:$AAO$14,,MATCH(YEAR(B17),Other_Inputs!$L$13:$AAO$13,0))) -> 0.1 | V17: =IF(YEAR(B17)<=Other_Inputs!$K$13,Other_Inputs!$K$16,INDEX(Other_Inputs!$L$16:$AAO$16,,MATCH(YEAR(B17),Other_Inputs!$L$13:$AAO$13,0))) -> 0.1 | W17: =IF(YEAR(B17)<=Other_Inputs!$K$64,Other_Inputs!$K$68,INDEX(Other_Inputs!$L$68:$AAM$68,,MATCH(YEAR(B17),Other_Inputs!$L$64:$AAM$64,0))) -> 0.06906375 | Y17: 0.5134613921 | Z17: 0.06097632613 | AA17: 0.06097632613 | AB17: 0.6354140443 | AC17: 0.08762433708 | AD17: =SUM(AB17:AC17)*IF(YEAR(B17)<=Other_Inputs!$K$33,Other_Inputs!$K$34,INDEX(Other_Inputs!$L$34:$AAO$34,,MATCH(YEAR(B17),Other_Inputs!$L$33:$AAO$33,0))) -> 0.002892153526 | AE17: =AB17*IF(YEAR(B17)<=Other_Inputs!$K$37,Other_Inputs!$K$38,INDEX(Other_Inputs!$L$38:$AAO$38,,MATCH(YEAR(B17),Other_Inputs!$L$37:$AAO$37,0))) -> 0.02541656177 | AG17: 0.7513470967 | AI17: =IFERROR(INDEX('USDA calcs'!$G$11:$G$18736,MATCH($B17,'USDA calcs'!$C$11:$C$18736,0)),IFERROR(INDEX('USDA historical daily prices'!$AA$14:$AA$3707,MATCH($B17,'USDA historical daily prices'!$C$14:$C$3707,0)),AI16)) -> 0.5336277973 | AJ17: =IF(YEAR(B17)<=Other_Inputs!$K$20,Other_Inputs!$K$21,INDEX(Other_Inputs!$L$21:$AAO$21,,MATCH(YEAR(B17),Other_Inputs!$L$20:$AAO$20,1))) -> 0.0553 | AK17: =IF(YEAR(B17)<=Other_Inputs!$K$24,Other_Inputs!$K$27,INDEX(Other_Inputs!$L$27:$AAO$27,,MATCH(B17,Other_Inputs!$L$24:$AAO$24,1))) -> 0.0242 | AL17: 0.6131277973 | AN17: =IF(YEAR(B17)<=Other_Inputs!$K$64,Other_Inputs!$K$70,INDEX(Other_Inputs!$L$70:$AAM$70,,MATCH(YEAR(B17),Other_Inputs!$L$64:$AAM$64,0))) -> 0.069995124 | AP17: 0.6770379828 | AQ17: 0.0701616382 | AR17: 0.03070364638 | AS17: 0.7779032673 | AT17: 0.08880601385 | AU17: =SUM(AS17:AT17)*IF(YEAR(B17)<=Other_Inputs!$K$33,Other_Inputs!$K$34,INDEX(Other_Inputs!$L$34:$AAO$34,,MATCH(YEAR(B17),Other_Inputs!$L$33:$AAO$33,0))) -> 0.003466837125 | AV17: =AS17*IF(YEAR(B17)<=Other_Inputs!$K$42,Other_Inputs!$K$43,INDEX(Other_Inputs!$L$43:$AAO$43,,MATCH(YEAR(B17),Other_Inputs!$L$42:$AAO$42,0))) -> 0 | AX17: 0.8701761183
B18: 2007-03-02 | D18: Brazil | E18: 0.5017871175 | F18: 0.06006319619 | G18: 0.06006319619 | H18: 0.08753548886 | I18: 0.002837795995 | J18: 0.0248765404 | L18: =INDEX(Other_Inputs!$I$59:$ZF$59,MATCH(B18,Other_Inputs!$I$58:$ZF$58,1)) -> 0.38143 | M18: =IF(B18<Other_Inputs!$I$46,Other_Inputs!$I$48,INDEX(Other_Inputs!$I$48:$AAO$48,MATCH(B18,Other_Inputs!$I$46:$AAO$46,1))) -> 0.001917999 | N18: 0.03 | O18: 0.015 | Q18: =INDEX('ExRate Calcs'!$E$7:$E$20000,MATCH(B18,'ExRate Calcs'!$C$7:$C$20000,0)) -> 0.78898 | R18: =INDEX('ExRate Calcs'!$H$7:$H$20000,MATCH('USDA ESALQ weekly IPPs'!B18,'ExRate Calcs'!$C$7:$C$20000,0)) -> 1.664913064 | T18: =INDEX('ESALQ calcs'!$D$7:$D$1995,MATCH('USDA ESALQ weekly IPPs'!B18,'ESALQ calcs'!$C$7:$C$1995,0)) -> 0.3959 | U18: =IF(YEAR(B18)<=Other_Inputs!$K$13,Other_Inputs!$K$14,INDEX(Other_Inputs!$L$14:$AAO$14,,MATCH(YEAR(B18),Other_Inputs!$L$13:$AAO$13,0))) -> 0.1 | V18: =IF(YEAR(B18)<=Other_Inputs!$K$13,Other_Inputs!$K$16,INDEX(Other_Inputs!$L$16:$AAO$16,,MATCH(YEAR(B18),Other_Inputs!$L$13:$AAO$13,0))) -> 0.1 | W18: =IF(YEAR(B18)<=Other_Inputs!$K$64,Other_Inputs!$K$68,INDEX(Other_Inputs!$L$68:$AAM$68,,MATCH(YEAR(B18),Other_Inputs!$L$64:$AAM$64,0))) -> 0.06906375 | Y18: 0.5017871175 | Z18: 0.06006319619 | AA18: 0.06006319619 | AB18: 0.6219135099 | AC18: 0.08753548886 | AD18: =SUM(AB18:AC18)*IF(YEAR(B18)<=Other_Inputs!$K$33,Other_Inputs!$K$34,INDEX(Other_Inputs!$L$34:$AAO$34,,MATCH(YEAR(B18),Other_Inputs!$L$33:$AAO$33,0))) -> 0.002837795995 | AE18: =AB18*IF(YEAR(B18)<=Other_Inputs!$K$37,Other_Inputs!$K$38,INDEX(Other_Inputs!$L$38:$AAO$38,,MATCH(YEAR(B18),Other_Inputs!$L$37:$AAO$37,0))) -> 0.0248765404 | AG18: 0.7371633352 | AI18: =IFERROR(INDEX('USDA calcs'!$G$11:$G$18736,MATCH($B18,'USDA calcs'!$C$11:$C$18736,0)),IFERROR(INDEX('USDA historical daily prices'!$AA$14:$AA$3707,MATCH($B18,'USDA historical daily prices'!$C$14:$C$3707,0)),AI17)) -> 0.5600450149 | AJ18: =IF(YEAR(B18)<=Other_Inputs!$K$20,Other_Inputs!$K$21,INDEX(Other_Inputs!$L$21:$AAO$21,,MATCH(YEAR(B18),Other_Inputs!$L$20:$AAO$20,1))) -> 0.0553 | AK18: =IF(YEAR(B18)<=Other_Inputs!$K$24,Other_Inputs!$K$27,INDEX(Other_Inputs!$L$27:$AAO$27,,MATCH(B18,Other_Inputs!$L$24:$AAO$24,1))) -> 0.0242 | AL18: 0.6395450149 | AN18: =IF(YEAR(B18)<=Other_Inputs!$K$64,Other_Inputs!$K$70,INDEX(Other_Inputs!$L$70:$AAM$70,,MATCH(YEAR(B18),Other_Inputs!$L$64:$AAM$64,0))) -> 0.069995124 | AP18: 0.7098342353 | AQ18: 0.07009049659 | AR18: 0.03067251388 | AS18: 0.8105972457 | AT18: 0.08871596745 | AU18: =SUM(AS18:AT18)*IF(YEAR(B18)<=Other_Inputs!$K$33,Other_Inputs!$K$34,INDEX(Other_Inputs!$L$34:$AAO$34,,MATCH(YEAR(B18),Other_Inputs!$L$33:$AAO$33,0))) -> 0.003597252853 | AV18: =AS18*IF(YEAR(B18)<=Other_Inputs!$K$42,Other_Inputs!$K$43,INDEX(Other_Inputs!$L$43:$AAO$43,,MATCH(YEAR(B18),Other_Inputs!$L$42:$AAO$42,0))) -> 0 | AX18: 0.902910466
B19: 2007-03-09 | D19: Brazil | E19: 0.5149993563 | F19: 0.0608757663 | G19: 0.0608757663 | H19: 0.08891946698 | I19: 0.002902681423 | J19: 0.02547003555 | L19: =INDEX(Other_Inputs!$I$59:$ZF$59,MATCH(B19,Other_Inputs!$I$58:$ZF$58,1)) -> 0.38143 | M19: =IF(B19<Other_Inputs!$I$46,Other_Inputs!$I$48,INDEX(Other_Inputs!$I$48:$AAO$48,MATCH(B19,Other_Inputs!$I$46:$AAO$46,1))) -> 0.001917999 | N19: 0.03 | O19: 0.015 | Q19: =INDEX('ExRate Calcs'!$E$7:$E$20000,MATCH(B19,'ExRate Calcs'!$C$7:$C$20000,0)) -> 0.7767 | R19: =INDEX('ExRate Calcs'!$H$7:$H$20000,MATCH('USDA ESALQ weekly IPPs'!B19,'ExRate Calcs'!$C$7:$C$20000,0)) -> 1.642689794 | T19: =INDEX('ESALQ calcs'!$D$7:$D$1995,MATCH('USDA ESALQ weekly IPPs'!B19,'ESALQ calcs'!$C$7:$C$1995,0)) -> 0.4 | U19: =IF(YEAR(B19)<=Other_Inputs!$K$13,Other_Inputs!$K$14,INDEX(Other_Inputs!$L$14:$AAO$14,,MATCH(YEAR(B19),Other_Inputs!$L$13:$AAO$13,0))) -> 0.1 | V19: =IF(YEAR(B19)<=Other_Inputs!$K$13,Other_Inputs!$K$16,INDEX(Other_Inputs!$L$16:$AAO$16,,MATCH(YEAR(B19),Other_Inputs!$L$13:$AAO$13,0))) -> 0.1 | W19: =IF(YEAR(B19)<=Other_Inputs!$K$64,Other_Inputs!$K$68,INDEX(Other_Inputs!$L$68:$AAM$68,,MATCH(YEAR(B19),Other_Inputs!$L$64:$AAM$64,0))) -> 0.06906375 | Y19: 0.5149993563 | Z19: 0.0608757663 | AA19: 0.0608757663 | AB19: 0.6367508888 | AC19: 0.08891946698 | AD19: =SUM(AB19:AC19)*IF(YEAR(B19)<=Other_Inputs!$K$33,Other_Inputs!$K$34,INDEX(Other_Inputs!$L$34:$AAO$34,,MATCH(YEAR(B19),Other_Inputs!$L$33:$AAO$33,0))) -> 0.002902681423 | AE19: =AB19*IF(YEAR(B19)<=Other_Inputs!$K$37,Other_Inputs!$K$38,INDEX(Other_Inputs!$L$38:$AAO$38,,MATCH(YEAR(B19),Other_Inputs!$L$37:$AAO$37,0))) -> 0.02547003555 | AG19: 0.7540430728 | AI19: =IFERROR(INDEX('USDA calcs'!$G$11:$G$18736,MATCH($B19,'USDA calcs'!$C$11:$C$18736,0)),IFERROR(INDEX('USDA historical daily prices'!$AA$14:$AA$3707,MATCH($B19,'USDA historical daily prices'!$C$14:$C$3707,0)),AI18)) -> 0.5745744847 | AJ19: =IF(YEAR(B19)<=Other_Inputs!$K$20,Other_Inputs!$K$21,INDEX(Other_Inputs!$L$21:$AAO$21,,MATCH(YEAR(B19),Other_Inputs!$L$20:$AAO$20,1))) -> 0.0553 | AK19: =IF(YEAR(B19)<=Other_Inputs!$K$24,Other_Inputs!$K$27,INDEX(Other_Inputs!$L$27:$AAO$27,,MATCH(B19,Other_Inputs!$L$24:$AAO$24,1))) -> 0.0242 | AL19: 0.6540744847 | AN19: =IF(YEAR(B19)<=Other_Inputs!$K$64,Other_Inputs!$K$70,INDEX(Other_Inputs!$L$70:$AAM$70,,MATCH(YEAR(B19),Other_Inputs!$L$64:$AAM$64,0))) -> 0.069995124 | AP19: 0.7397637243 | AQ19: 0.071198661 | AR19: 0.03115746105 | AS19: 0.8421198464 | AT19: 0.0901186095 | AU19: =SUM(AS19:AT19)*IF(YEAR(B19)<=Other_Inputs!$K$33,Other_Inputs!$K$34,INDEX(Other_Inputs!$L$34:$AAO$34,,MATCH(YEAR(B19),Other_Inputs!$L$33:$AAO$33,0))) -> 0.003728953823 | AV19: =AS19*IF(YEAR(B19)<=Other_Inputs!$K$42,Other_Inputs!$K$43,INDEX(Other_Inputs!$L$43:$AAO$43,,MATCH(YEAR(B19),Other_Inputs!$L$42:$AAO$42,0))) -> 0 | AX19: 0.9359674097
B20: 2007-03-16 | D20: Brazil | E20: 0.5275754952 | F20: 0.06082154285 | G20: 0.06082154285 | H20: 0.08792553598 | I20: 0.002948576468 | J20: 0.02596874324 | L20: =INDEX(Other_Inputs!$I$59:$ZF$59,MATCH(B20,Other_Inputs!$I$58:$ZF$58,1)) -> 0.38143 | M20: =IF(B20<Other_Inputs!$I$46,Other_Inputs!$I$48,INDEX(Other_Inputs!$I$48:$AAO$48,MATCH(B20,Other_Inputs!$I$46:$AAO$46,1))) -> 0.001917999 | N20: 0.03 | O20: 0.015 | Q20: =INDEX('ExRate Calcs'!$E$7:$E$20000,MATCH(B20,'ExRate Calcs'!$C$7:$C$20000,0)) -> 0.78548 | R20: =INDEX('ExRate Calcs'!$H$7:$H$20000,MATCH('USDA ESALQ weekly IPPs'!B20,'ExRate Calcs'!$C$7:$C$20000,0)) -> 1.64415428 | T20: =INDEX('ESALQ calcs'!$D$7:$D$1995,MATCH('USDA ESALQ weekly IPPs'!B20,'ESALQ calcs'!$C$7:$C$1995,0)) -> 0.4144 | U20: =IF(YEAR(B20)<=Other_Inputs!$K$13,Other_Inputs!$K$14,INDEX(Other_Inputs!$L$14:$AAO$14,,MATCH(YEAR(B20),Other_Inputs!$L$13:$AAO$13,0))) -> 0.1 | V20: =IF(YEAR(B20)<=Other_Inputs!$K$13,Other_Inputs!$K$16,INDEX(Other_Inputs!$L$16:$AAO$16,,MATCH(YEAR(B20),Other_Inputs!$L$13:$AAO$13,0))) -> 0.1 | W20: =IF(YEAR(B20)<=Other_Inputs!$K$64,Other_Inputs!$K$68,INDEX(Other_Inputs!$L$68:$AAM$68,,MATCH(YEAR(B20),Other_Inputs!$L$64:$AAM$64,0))) -> 0.06906375 | Y20: 0.5275754952 | Z20: 0.06082154285 | AA20: 0.06082154285 | AB20: 0.6492185809 | AC20: 0.08792553598 | AD20: =SUM(AB20:AC20)*IF(YEAR(B20)<=Other_Inputs!$K$33,Other_Inputs!$K$34,INDEX(Other_Inputs!$L$34:$AAO$34,,MATCH(YEAR(B20),Other_Inputs!$L$33:$AAO$33,0))) -> 0.002948576468 | AE20: =AB20*IF(YEAR(B20)<=Other_Inputs!$K$37,Other_Inputs!$K$38,INDEX(Other_Inputs!$L$38:$AAO$38,,MATCH(YEAR(B20),Other_Inputs!$L$37:$AAO$37,0))) -> 0.02596874324 | AG20: 0.7660614366 | AI20: =IFERROR(INDEX('USDA calcs'!$G$11:$G$18736,MATCH($B20,'USDA calcs'!$C$11:$C$18736,0)),IFERROR(INDEX('USDA historical daily prices'!$AA$14:$AA$3707,MATCH($B20,'USDA historical daily prices'!$C$14:$C$3707,0)),AI19)) -> 0.5943873979 | AJ20: =IF(YEAR(B20)<=Other_Inputs!$K$20,Other_Inputs!$K$21,INDEX(Other_Inputs!$L$21:$AAO$21,,MATCH(YEAR(B20),Other_Inputs!$L$20:$AAO$20,1))) -> 0.0553 | AK20: =IF(YEAR(B20)<=Other_Inputs!$K$24,Other_Inputs!$K$27,INDEX(Other_Inputs!$L$27:$AAO$27,,MATCH(B20,Other_Inputs!$L$24:$AAO$24,1))) -> 0.0242 | AL20: 0.6738873979 | AN20: =IF(YEAR(B20)<=Other_Inputs!$K$64,Other_Inputs!$K$70,INDEX(Other_Inputs!$L$70:$AAM$70,,MATCH(YEAR(B20),Other_Inputs!$L$64:$AAM$64,0))) -> 0.069995124 | AP20: 0.7567186917 | AQ20: 0.07040281102 | AR20: 0.03080918674 | AS20: 0.8579306894 | AT20: 0.08911127463 | AU20: =SUM(AS20:AT20)*IF(YEAR(B20)<=Other_Inputs!$K$33,Other_Inputs!$K$34,INDEX(Other_Inputs!$L$34:$AAO$34,,MATCH(YEAR(B20),Other_Inputs!$L$33:$AAO$33,0))) -> 0.003788167856 | AV20: =AS20*IF(YEAR(B20)<=Other_Inputs!$K$42,Other_Inputs!$K$43,INDEX(Other_Inputs!$L$43:$AAO$43,,MATCH(YEAR(B20),Other_Inputs!$L$42:$AAO$42,0))) -> 0 | AX20: 0.9508301319
B21: 2007-03-23 | D21: Brazil | E21: 0.5853439457 | F21: 0.06027550194 | G21: 0.06027550194 | H21: 0.08615952244 | I21: 0.003168217888 | J21: 0.02823579798 | L21: =INDEX(Other_Inputs!$I$59:$ZF$59,MATCH(B21,Other_Inputs!$I$58:$ZF$58,1)) -> 0.38143 | M21: =IF(B21<Other_Inputs!$I$46,Other_Inputs!$I$48,INDEX(Other_Inputs!$I$48:$AAO$48,MATCH(B21,Other_Inputs!$I$46:$AAO$46,1))) -> 0.001917999 | N21: 0.03 | O21: 0.015 | Q21: =INDEX('ExRate Calcs'!$E$7:$E$20000,MATCH(B21,'ExRate Calcs'!$C$7:$C$20000,0)) -> 0.80158 | R21: =INDEX('ExRate Calcs'!$H$7:$H$20000,MATCH('USDA ESALQ weekly IPPs'!B21,'ExRate Calcs'!$C$7:$C$20000,0)) -> 1.659048814 | T21: =INDEX('ESALQ calcs'!$D$7:$D$1995,MATCH('USDA ESALQ weekly IPPs'!B21,'ESALQ calcs'!$C$7:$C$1995,0)) -> 0.4692 | U21: =IF(YEAR(B21)<=Other_Inputs!$K$13,Other_Inputs!$K$14,INDEX(Other_Inputs!$L$14:$AAO$14,,MATCH(YEAR(B21),Other_Inputs!$L$13:$AAO$13,0))) -> 0.1 | V21: =IF(YEAR(B21)<=Other_Inputs!$K$13,Other_Inputs!$K$16,INDEX(Other_Inputs!$L$16:$AAO$16,,MATCH(YEAR(B21),Other_Inputs!$L$13:$AAO$13,0))) -> 0.1 | W21: =IF(YEAR(B21)<=Other_Inputs!$K$64,Other_Inputs!$K$68,INDEX(Other_Inputs!$L$68:$AAM$68,,MATCH(YEAR(B21),Other_Inputs!$L$64:$AAM$64,0))) -> 0.06906375 | Y21: 0.5853439457 | Z21: 0.06027550194 | AA21: 0.06027550194 | AB21: 0.7058949496 | AC21: 0.08615952244 | AD21: =SUM(AB21:AC21)*IF(YEAR(B21)<=Other_Inputs!$K$33,Other_Inputs!$K$34,INDEX(Other_Inputs!$L$34:$AAO$34,,MATCH(YEAR(B21),Other_Inputs!$L$33:$AAO$33,0))) -> 0.003168217888 | AE21: =AB21*IF(YEAR(B21)<=Other_Inputs!$K$37,Other_Inputs!$K$38,INDEX(Other_Inputs!$L$38:$AAO$38,,MATCH(YEAR(B21),Other_Inputs!$L$37:$AAO$37,0))) -> 0.02823579798 | AG21: 0.8234584879 | AI21: =IFERROR(INDEX('USDA calcs'!$G$11:$G$18736,MATCH($B21,'USDA calcs'!$C$11:$C$18736,0)),IFERROR(INDEX('USDA historical daily prices'!$AA$14:$AA$3707,MATCH($B21,'USDA historical daily prices'!$C$14:$C$3707,0)),AI20)) -> 0.5891039544 | AJ21: =IF(YEAR(B21)<=Other_Inputs!$K$20,Other_Inputs!$K$21,INDEX(Other_Inputs!$L$21:$AAO$21,,MATCH(YEAR(B21),Other_Inputs!$L$20:$AAO$20,1))) -> 0.0553 | AK21: =IF(YEAR(B21)<=Other_Inputs!$K$24,Other_Inputs!$K$27,INDEX(Other_Inputs!$L$27:$AAO$27,,MATCH(B21,Other_Inputs!$L$24:$AAO$24,1))) -> 0.0242 | AL21: 0.6686039544 | AN21: =IF(YEAR(B21)<=Other_Inputs!$K$64,Other_Inputs!$K$70,INDEX(Other_Inputs!$L$70:$AAM$70,,MATCH(YEAR(B21),Other_Inputs!$L$64:$AAM$64,0))) -> 0.069995124 | AP21: 0.7349284593 | AQ21: 0.06898874722 | AR21: 0.03019037401 | AS21: 0.8341075805 | AT21: 0.08732144515 | AU21: =SUM(AS21:AT21)*IF(YEAR(B21)<=Other_Inputs!$K$33,Other_Inputs!$K$34,INDEX(Other_Inputs!$L$34:$AAO$34,,MATCH(YEAR(B21),Other_Inputs!$L$33:$AAO$33,0))) -> 0.003685716103 | AV21: =AS21*IF(YEAR(B21)<=Other_Inputs!$K$42,Other_Inputs!$K$43,INDEX(Other_Inputs!$L$43:$AAO$43,,MATCH(YEAR(B21),Other_Inputs!$L$42:$AAO$42,0))) -> 0 | AX21: 0.9251147418
B22: 2007-03-30 | D22: US | E22: 0.6878630768 | F22: 0.06856788593 | G22: 0.03000619963 | H22: 0.08678874644 | I22: 0.003492903635 | J22: 0 | L22: =INDEX(Other_Inputs!$I$59:$ZF$59,MATCH(B22,Other_Inputs!$I$58:$ZF$58,1)) -> 0.38143 | M22: =IF(B22<Other_Inputs!$I$46,Other_Inputs!$I$48,INDEX(Other_Inputs!$I$48:$AAO$48,MATCH(B22,Other_Inputs!$I$46:$AAO$46,1))) -> 0.001917999 | N22: 0.03 | O22: 0.015 | Q22: =INDEX('ExRate Calcs'!$E$7:$E$20000,MATCH(B22,'ExRate Calcs'!$C$7:$C$20000,0)) -> 0.8065 | R22: =INDEX('ExRate Calcs'!$H$7:$H$20000,MATCH('USDA ESALQ weekly IPPs'!B22,'ExRate Calcs'!$C$7:$C$20000,0)) -> 1.6627076 | T22: =INDEX('ESALQ calcs'!$D$7:$D$1995,MATCH('USDA ESALQ weekly IPPs'!B22,'ESALQ calcs'!$C$7:$C$1995,0)) -> 0.5198 | U22: =IF(YEAR(B22)<=Other_Inputs!$K$13,Other_Inputs!$K$14,INDEX(Other_Inputs!$L$14:$AAO$14,,MATCH(YEAR(B22),Other_Inputs!$L$13:$AAO$13,0))) -> 0.1 | V22: =IF(YEAR(B22)<=Other_Inputs!$K$13,Other_Inputs!$K$16,INDEX(Other_Inputs!$L$16:$AAO$16,,MATCH(YEAR(B22),Other_Inputs!$L$13:$AAO$13,0))) -> 0.1 | W22: =IF(YEAR(B22)<=Other_Inputs!$K$64,Other_Inputs!$K$68,INDEX(Other_Inputs!$L$68:$AAM$68,,MATCH(YEAR(B22),Other_Inputs!$L$64:$AAM$64,0))) -> 0.06906375 | Y22: 0.6445133292 | Z22: 0.06014286577 | AA22: 0.06014286577 | AB22: 0.7647990607 | AC22: 0.08563391197 | AD22: =SUM(AB22:AC22)*IF(YEAR(B22)<=Other_Inputs!$K$33,Other_Inputs!$K$34,INDEX(Other_Inputs!$L$34:$AAO$34,,MATCH(YEAR(B22),Other_Inputs!$L$33:$AAO$33,0))) -> 0.003401731891 | AE22: =AB22*IF(YEAR(B22)<=Other_Inputs!$K$37,Other_Inputs!$K$38,INDEX(Other_Inputs!$L$38:$AAO$38,,MATCH(YEAR(B22),Other_Inputs!$L$37:$AAO$37,0))) -> 0.03059196243 | AG22: 0.884426667 | AI22: =IFERROR(INDEX('USDA calcs'!$G$11:$G$18736,MATCH($B22,'USDA calcs'!$C$11:$C$18736,0)),IFERROR(INDEX('USDA historical daily prices'!$AA$14:$AA$3707,MATCH($B22,'USDA historical daily prices'!$C$14:$C$3707,0)),AI21)) -> 0.5547615714 | AJ22: =IF(YEAR(B22)<=Other_Inputs!$K$20,Other_Inputs!$K$21,INDEX(Other_Inputs!$L$21:$AAO$21,,MATCH(YEAR(B22),Other_Inputs!$L$20:$AAO$20,1))) -> 0.0553 | AK22: =IF(YEAR(B22)<=Other_Inputs!$K$24,Other_Inputs!$K$27,INDEX(Other_Inputs!$L$27:$AAO$27,,MATCH(B22,Other_Inputs!$L$24:$AAO$24,1))) -> 0.0242 | AL22: 0.6342615714 | AN22: =IF(YEAR(B22)<=Other_Inputs!$K$64,Other_Inputs!$K$70,INDEX(Other_Inputs!$L$70:$AAM$70,,MATCH(YEAR(B22),Other_Inputs!$L$64:$AAM$64,0))) -> 0.069995124 | AP22: 0.6878630768 | AQ22: 0.06856788593 | AR22: 0.03000619963 | AS22: 0.7864371623 | AT22: 0.08678874644 | AU22: =SUM(AS22:AT22)*IF(YEAR(B22)<=Other_Inputs!$K$33,Other_Inputs!$K$34,INDEX(Other_Inputs!$L$34:$AAO$34,,MATCH(YEAR(B22),Other_Inputs!$L$33:$AAO$33,0))) -> 0.003492903635 | AV22: =AS22*IF(YEAR(B22)<=Other_Inputs!$K$42,Other_Inputs!$K$43,INDEX(Other_Inputs!$L$43:$AAO$43,,MATCH(YEAR(B22),Other_Inputs!$L$42:$AAO$42,0))) -> 0 | AX22: 0.8767188124
B23: 2007-04-06 | D23: US | E23: 0.6894269276 | F23: 0.06791525944 | G23: 0.02972060178 | H23: 0.0859626945 | I23: 0.003492101933 | J23: 0 | L23: =INDEX(Other_Inputs!$I$59:$ZF$59,MATCH(B23,Other_Inputs!$I$58:$ZF$58,1)) -> 0.38143 | M23: =IF(B23<Other_Inputs!$I$46,Other_Inputs!$I$48,INDEX(Other_Inputs!$I$48:$AAO$48,MATCH(B23,Other_Inputs!$I$46:$AAO$46,1))) -> 0.001917999 | N23: 0.03 | O23: 0.015 | Q23: =INDEX('ExRate Calcs'!$E$7:$E$20000,MATCH(B23,'ExRate Calcs'!$C$7:$C$20000,0)) -> 0.81425 | R23: =INDEX('ExRate Calcs'!$H$7:$H$20000,MATCH('USDA ESALQ weekly IPPs'!B23,'ExRate Calcs'!$C$7:$C$20000,0)) -> 1.657954108 | T23: =INDEX('ESALQ calcs'!$D$7:$D$1995,MATCH('USDA ESALQ weekly IPPs'!B23,'ESALQ calcs'!$C$7:$C$1995,0)) -> 0.5258 | U23: =IF(YEAR(B23)<=Other_Inputs!$K$13,Other_Inputs!$K$14,INDEX(Other_Inputs!$L$14:$AAO$14,,MATCH(YEAR(B23),Other_Inputs!$L$13:$AAO$13,0))) -> 0.1 | V23: =IF(YEAR(B23)<=Other_Inputs!$K$13,Other_Inputs!$K$16,INDEX(Other_Inputs!$L$16:$AAO$16,,MATCH(YEAR(B23),Other_Inputs!$L$13:$AAO$13,0))) -> 0.1 | W23: =IF(YEAR(B23)<=Other_Inputs!$K$64,Other_Inputs!$K$68,INDEX(Other_Inputs!$L$68:$AAM$68,,MATCH(YEAR(B23),Other_Inputs!$L$64:$AAM$64,0))) -> 0.06906375 | Y23: 0.6457476205 | Z23: 0.06031530037 | AA23: 0.06031530037 | AB23: 0.7663782213 | AC23: 0.0848188517 | AD23: =SUM(AB23:AC23)*IF(YEAR(B23)<=Other_Inputs!$K$33,Other_Inputs!$K$34,INDEX(Other_Inputs!$L$34:$AAO$34,,MATCH(YEAR(B23),Other_Inputs!$L$33:$AAO$33,0))) -> 0.003404788292 | AE23: =AB23*IF(YEAR(B23)<=Other_Inputs!$K$37,Other_Inputs!$K$38,INDEX(Other_Inputs!$L$38:$AAO$38,,MATCH(YEAR(B23),Other_Inputs!$L$37:$AAO$37,0))) -> 0.03065512885 | AG23: 0.8852569901 | AI23: =IFERROR(INDEX('USDA calcs'!$G$11:$G$18736,MATCH($B23,'USDA calcs'!$C$11:$C$18736,0)),IFERROR(INDEX('USDA historical daily prices'!$AA$14:$AA$3707,MATCH($B23,'USDA historical daily prices'!$C$14:$C$3707,0)),AI22)) -> 0.5613658758 | AJ23: =IF(YEAR(B23)<=Other_Inputs!$K$20,Other_Inputs!$K$21,INDEX(Other_Inputs!$L$21:$AAO$21,,MATCH(YEAR(B23),Other_Inputs!$L$20:$AAO$20,1))) -> 0.0553 | AK23: =IF(YEAR(B23)<=Other_Inputs!$K$24,Other_Inputs!$K$27,INDEX(Other_Inputs!$L$27:$AAO$27,,MATCH(B23,Other_Inputs!$L$24:$AAO$24,1))) -> 0.0242 | AL23: 0.6408658758 | AN23: =IF(YEAR(B23)<=Other_Inputs!$K$64,Other_Inputs!$K$70,INDEX(Other_Inputs!$L$70:$AAM$70,,MATCH(YEAR(B23),Other_Inputs!$L$64:$AAM$64,0))) -> 0.069995124 | AP23: 0.6894269276 | AQ23: 0.06791525944 | AR23: 0.02972060178 | AS23: 0.7870627889 | AT23: 0.0859626945 | AU23: =SUM(AS23:AT23)*IF(YEAR(B23)<=Other_Inputs!$K$33,Other_Inputs!$K$34,INDEX(Other_Inputs!$L$34:$AAO$34,,MATCH(YEAR(B23),Other_Inputs!$L$33:$AAO$33,0))) -> 0.003492101933 | AV23: =AS23*IF(YEAR(B23)<=Other_Inputs!$K$42,Other_Inputs!$K$43,INDEX(Other_Inputs!$L$43:$AAO$43,,MATCH(YEAR(B23),Other_Inputs!$L$42:$AAO$42,0))) -> 0 | AX23: 0.8765175853
B24: 2007-04-13 | D24: US | E24: 0.6874487778 | F24: 0.06693294602 | G24: 0.02929072864 | H24: 0.08471934641 | I24: 0.003473567196 | J24: 0 | L24: =INDEX(Other_Inputs!$I$59:$ZF$59,MATCH(B24,Other_Inputs!$I$58:$ZF$58,1)) -> 0.38143 | M24: =IF(B24<Other_Inputs!$I$46,Other_Inputs!$I$48,INDEX(Other_Inputs!$I$48:$AAO$48,MATCH(B24,Other_Inputs!$I$46:$AAO$46,1))) -> 0.001917999 | N24: 0.03 | O24: 0.015 | Q24: =INDEX('ExRate Calcs'!$E$7:$E$20000,MATCH(B24,'ExRate Calcs'!$C$7:$C$20000,0)) -> 0.8262 | R24: =INDEX('ExRate Calcs'!$H$7:$H$20000,MATCH('USDA ESALQ weekly IPPs'!B24,'ExRate Calcs'!$C$7:$C$20000,0)) -> 1.676628613 | T24: =INDEX('ESALQ calcs'!$D$7:$D$1995,MATCH('USDA ESALQ weekly IPPs'!B24,'ESALQ calcs'!$C$7:$C$1995,0)) -> 0.5277 | U24: =IF(YEAR(B24)<=Other_Inputs!$K$13,Other_Inputs!$K$14,INDEX(Other_Inputs!$L$14:$AAO$14,,MATCH(YEAR(B24),Other_Inputs!$L$13:$AAO$13,0))) -> 0.1 | V24: =IF(YEAR(B24)<=Other_Inputs!$K$13,Other_Inputs!$K$16,INDEX(Other_Inputs!$L$16:$AAO$16,,MATCH(YEAR(B24),Other_Inputs!$L$13:$AAO$13,0))) -> 0.1 | W24: =IF(YEAR(B24)<=Other_Inputs!$K$64,Other_Inputs!$K$68,INDEX(Other_Inputs!$L$68:$AAM$68,,MATCH(YEAR(B24),Other_Inputs!$L$64:$AAM$64,0))) -> 0.06906375 | Y24: 0.6387073348 | Z24: 0.05964350081 | AA24: 0.05964350081 | AB24: 0.7579943364 | AC24: 0.08359204793 | AD24: =SUM(AB24:AC24)*IF(YEAR(B24)<=Other_Inputs!$K$33,Other_Inputs!$K$34,INDEX(Other_Inputs!$L$34:$AAO$34,,MATCH(YEAR(B24),Other_Inputs!$L$33:$AAO$33,0))) -> 0.003366345537 | AE24: =AB24*IF(YEAR(B24)<=Other_Inputs!$K$37,Other_Inputs!$K$38,INDEX(Other_Inputs!$L$38:$AAO$38,,MATCH(YEAR(B24),Other_Inputs!$L$37:$AAO$37,0))) -> 0.03031977346 | AG24: 0.8752725033 | AI24: =IFERROR(INDEX('USDA calcs'!$G$11:$G$18736,MATCH($B24,'USDA calcs'!$C$11:$C$18736,0)),IFERROR(INDEX('USDA historical daily prices'!$AA$14:$AA$3707,MATCH($B24,'USDA historical daily prices'!$C$14:$C$3707,0)),AI23)) -> 0.5679701802 | AJ24: =IF(YEAR(B24)<=Other_Inputs!$K$20,Other_Inputs!$K$21,INDEX(Other_Inputs!$L$21:$AAO$21,,MATCH(YEAR(B24),Other_Inputs!$L$20:$AAO$20,1))) -> 0.0553 | AK24: =IF(YEAR(B24)<=Other_Inputs!$K$24,Other_Inputs!$K$27,INDEX(Other_Inputs!$L$27:$AAO$27,,MATCH(B24,Other_Inputs!$L$24:$AAO$24,1))) -> 0.0242 | AL24: 0.6474701802 | AN24: =IF(YEAR(B24)<=Other_Inputs!$K$64,Other_Inputs!$K$70,INDEX(Other_Inputs!$L$70:$AAM$70,,MATCH(YEAR(B24),Other_Inputs!$L$64:$AAM$64,0))) -> 0.069995124 | AP24: 0.6874487778 | AQ24: 0.06693294602 | AR24: 0.02929072864 | AS24: 0.7836724525 | AT24: 0.08471934641 | AU24: =SUM(AS24:AT24)*IF(YEAR(B24)<=Other_Inputs!$K$33,Other_Inputs!$K$34,INDEX(Other_Inputs!$L$34:$AAO$34,,MATCH(YEAR(B24),Other_Inputs!$L$33:$AAO$33,0))) -> 0.003473567196 | AV24: =AS24*IF(YEAR(B24)<=Other_Inputs!$K$42,Other_Inputs!$K$43,INDEX(Other_Inputs!$L$43:$AAO$43,,MATCH(YEAR(B24),Other_Inputs!$L$42:$AAO$42,0))) -> 0 | AX24: 0.8718653661
B25: 2007-04-20 | D25: US | E25: 0.6958573481 | F25: 0.06636265451 | G25: 0.02904116165 | H25: 0.0839975087 | I25: 0.003501034692 | J25: 0 | L25: =INDEX(Other_Inputs!$I$59:$ZF$59,MATCH(B25,Other_Inputs!$I$58:$ZF$58,1)) -> 0.38143 | M25: =IF(B25<Other_Inputs!$I$46,Other_Inputs!$I$48,INDEX(Other_Inputs!$I$48:$AAO$48,MATCH(B25,Other_Inputs!$I$46:$AAO$46,1))) -> 0.001917999 | N25: 0.03 | O25: 0.015 | Q25: =INDEX('ExRate Calcs'!$E$7:$E$20000,MATCH(B25,'ExRate Calcs'!$C$7:$C$20000,0)) -> 0.8333 | R25: =INDEX('ExRate Calcs'!$H$7:$H$20000,MATCH('USDA ESALQ weekly IPPs'!B25,'ExRate Calcs'!$C$7:$C$20000,0)) -> 1.692651542 | T25: =INDEX('ESALQ calcs'!$D$7:$D$1995,MATCH('USDA ESALQ weekly IPPs'!B25,'ESALQ calcs'!$C$7:$C$1995,0)) -> 0.5369 | U25: =IF(YEAR(B25)<=Other_Inputs!$K$13,Other_Inputs!$K$14,INDEX(Other_Inputs!$L$14:$AAO$14,,MATCH(YEAR(B25),Other_Inputs!$L$13:$AAO$13,0))) -> 0.1 | V25: =IF(YEAR(B25)<=Other_Inputs!$K$13,Other_Inputs!$K$16,INDEX(Other_Inputs!$L$16:$AAO$16,,MATCH(YEAR(B25),Other_Inputs!$L$13:$AAO$13,0))) -> 0.1 | W25: =IF(YEAR(B25)<=Other_Inputs!$K$64,Other_Inputs!$K$68,INDEX(Other_Inputs!$L$68:$AAM$68,,MATCH(YEAR(B25),Other_Inputs!$L$64:$AAM$64,0))) -> 0.06906375 | Y25: 0.6443057722 | Z25: 0.05907890521 | AA25: 0.05907890521 | AB25: 0.7624635826 | AC25: 0.08287981519 | AD25: =SUM(AB25:AC25)*IF(YEAR(B25)<=Other_Inputs!$K$33,Other_Inputs!$K$34,INDEX(Other_Inputs!$L$34:$AAO$34,,MATCH(YEAR(B25),Other_Inputs!$L$33:$AAO$33,0))) -> 0.003381373591 | AE25: =AB25*IF(YEAR(B25)<=Other_Inputs!$K$37,Other_Inputs!$K$38,INDEX(Other_Inputs!$L$38:$AAO$38,,MATCH(YEAR(B25),Other_Inputs!$L$37:$AAO$37,0))) -> 0.03049854331 | AG25: 0.8792233147 | AI25: =IFERROR(INDEX('USDA calcs'!$G$11:$G$18736,MATCH($B25,'USDA calcs'!$C$11:$C$18736,0)),IFERROR(INDEX('USDA historical daily prices'!$AA$14:$AA$3707,MATCH($B25,'USDA historical daily prices'!$C$14:$C$3707,0)),AI24)) -> 0.5798579282 | AJ25: =IF(YEAR(B25)<=Other_Inputs!$K$20,Other_Inputs!$K$21,INDEX(Other_Inputs!$L$21:$AAO$21,,MATCH(YEAR(B25),Other_Inputs!$L$20:$AAO$20,1))) -> 0.0553 | AK25: =IF(YEAR(B25)<=Other_Inputs!$K$24,Other_Inputs!$K$27,INDEX(Other_Inputs!$L$27:$AAO$27,,MATCH(B25,Other_Inputs!$L$24:$AAO$24,1))) -> 0.0242 | AL25: 0.6593579282 | AN25: =IF(YEAR(B25)<=Other_Inputs!$K$64,Other_Inputs!$K$70,INDEX(Other_Inputs!$L$70:$AAM$70,,MATCH(YEAR(B25),Other_Inputs!$L$64:$AAM$64,0))) -> 0.069995124 | AP25: 0.6958573481 | AQ25: 0.06636265451 | AR25: 0.02904116165 | AS25: 0.7912611643 | AT25: 0.0839975087 | AU25: =SUM(AS25:AT25)*IF(YEAR(B25)<=Other_Inputs!$K$33,Other_Inputs!$K$34,INDEX(Other_Inputs!$L$34:$AAO$34,,MATCH(YEAR(B25),Other_Inputs!$L$33:$AAO$33,0))) -> 0.003501034692 | AV25: =AS25*IF(YEAR(B25)<=Other_Inputs!$K$42,Other_Inputs!$K$43,INDEX(Other_Inputs!$L$43:$AAO$43,,MATCH(YEAR(B25),Other_Inputs!$L$42:$AAO$42,0))) -> 0 | AX25: 0.8787597077
B26: 2007-04-27 | D26: US | E26: 0.6847964556 | F26: 0.06667470461 | G26: 0.02917771883 | H26: 0.08439248131 | I26: 0.003460165441 | J26: 0 | L26: =INDEX(Other_Inputs!$I$59:$ZF$59,MATCH(B26,Other_Inputs!$I$58:$ZF$58,1)) -> 0.38143 | M26: =IF(B26<Other_Inputs!$I$46,Other_Inputs!$I$48,INDEX(Other_Inputs!$I$48:$AAO$48,MATCH(B26,Other_Inputs!$I$46:$AAO$46,1))) -> 0.001917999 | N26: 0.03 | O26: 0.015 | Q26: =INDEX('ExRate Calcs'!$E$7:$E$20000,MATCH(B26,'ExRate Calcs'!$C$7:$C$20000,0)) -> 0.8294 | R26: =INDEX('ExRate Calcs'!$H$7:$H$20000,MATCH('USDA ESALQ weekly IPPs'!B26,'ExRate Calcs'!$C$7:$C$20000,0)) -> 1.68168796 | T26: =INDEX('ESALQ calcs'!$D$7:$D$1995,MATCH('USDA ESALQ weekly IPPs'!B26,'ESALQ calcs'!$C$7:$C$1995,0)) -> 0.5295 | U26: =IF(YEAR(B26)<=Other_Inputs!$K$13,Other_Inputs!$K$14,INDEX(Other_Inputs!$L$14:$AAO$14,,MATCH(YEAR(B26),Other_Inputs!$L$13:$AAO$13,0))) -> 0.1 | V26: =IF(YEAR(B26)<=Other_Inputs!$K$13,Other_Inputs!$K$16,INDEX(Other_Inputs!$L$16:$AAO$16,,MATCH(YEAR(B26),Other_Inputs!$L$13:$AAO$13,0))) -> 0.1 | W26: =IF(YEAR(B26)<=Other_Inputs!$K$64,Other_Inputs!$K$68,INDEX(Other_Inputs!$L$68:$AAM$68,,MATCH(YEAR(B26),Other_Inputs!$L$64:$AAM$64,0))) -> 0.06906375 | Y26: 0.6384133108 | Z26: 0.05946406371 | AA26: 0.05946406371 | AB26: 0.7573414383 | AC26: 0.08326953219 | AD26: =SUM(AB26:AC26)*IF(YEAR(B26)<=Other_Inputs!$K$33,Other_Inputs!$K$34,INDEX(Other_Inputs!$L$34:$AAO$34,,MATCH(YEAR(B26),Other_Inputs!$L$33:$AAO$33,0))) -> 0.003362443882 | AE26: =AB26*IF(YEAR(B26)<=Other_Inputs!$K$37,Other_Inputs!$K$38,INDEX(Other_Inputs!$L$38:$AAO$38,,MATCH(YEAR(B26),Other_Inputs!$L$37:$AAO$37,0))) -> 0.03029365753 | AG26: 0.8742670719 | AI26: =IFERROR(INDEX('USDA calcs'!$G$11:$G$18736,MATCH($B26,'USDA calcs'!$C$11:$C$18736,0)),IFERROR(INDEX('USDA historical daily prices'!$AA$14:$AA$3707,MATCH($B26,'USDA historical daily prices'!$C$14:$C$3707,0)),AI25)) -> 0.5679701802 | AJ26: =IF(YEAR(B26)<=Other_Inputs!$K$20,Other_Inputs!$K$21,INDEX(Other_Inputs!$L$21:$AAO$21,,MATCH(YEAR(B26),Other_Inputs!$L$20:$AAO$20,1))) -> 0.0553 | AK26: =IF(YEAR(B26)<=Other_Inputs!$K$24,Other_Inputs!$K$27,INDEX(Other_Inputs!$L$27:$AAO$27,,MATCH(B26,Other_Inputs!$L$24:$AAO$24,1))) -> 0.0242 | AL26: 0.6474701802 | AN26: =IF(YEAR(B26)<=Other_Inputs!$K$64,Other_Inputs!$K$70,INDEX(Other_Inputs!$L$70:$AAM$70,,MATCH(YEAR(B26),Other_Inputs!$L$64:$AAM$64,0))) -> 0.069995124 | AP26: 0.6847964556 | AQ26: =AJ26/$Q26 -> 0.06667470461 | AR26: =AK26/$Q26 -> 0.02917771883 | AS26: 0.780648879 | AT26: 0.08439248131 | AU26: =SUM(AS26:AT26)*IF(YEAR(B26)<=Other_Inputs!$K$33,Other_Inputs!$K$34,INDEX(Other_Inputs!$L$34:$AAO$34,,MATCH(YEAR(B26),Other_Inputs!$L$33:$AAO$33,0))) -> 0.003460165441 | AV26: =AS26*IF(YEAR(B26)<=Other_Inputs!$K$42,Other_Inputs!$K$43,INDEX(Other_Inputs!$L$43:$AAO$43,,MATCH(YEAR(B26),Other_Inputs!$L$42:$AAO$42,0))) -> 0 | AX26: 0.8685015258
B27: 2007-05-04 | D27: Brazil | E27: 0.636244605 | F27: 0.05979011791 | G27: 0.05979011791 | H27: 0.08372987488 | I27: 0.003358218863 | J27: 0.03023299363 | L27: =INDEX(Other_Inputs!$I$59:$ZF$59,MATCH(B27,Other_Inputs!$I$58:$ZF$58,1)) -> 0.38143 | M27: =IF(B27<Other_Inputs!$I$46,Other_Inputs!$I$48,INDEX(Other_Inputs!$I$48:$AAO$48,MATCH(B27,Other_Inputs!$I$46:$AAO$46,1))) -> 0.001917999 | N27: 0.03 | O27: 0.015 | Q27: =INDEX('ExRate Calcs'!$E$7:$E$20000,MATCH(B27,'ExRate Calcs'!$C$7:$C$20000,0)) -> 0.82484 | R27: =INDEX('ExRate Calcs'!$H$7:$H$20000,MATCH('USDA ESALQ weekly IPPs'!B27,'ExRate Calcs'!$C$7:$C$20000,0)) -> 1.67251719 | T27: =INDEX('ESALQ calcs'!$D$7:$D$1995,MATCH('USDA ESALQ weekly IPPs'!B27,'ESALQ calcs'!$C$7:$C$1995,0)) -> 0.5248 | U27: =IF(YEAR(B27)<=Other_Inputs!$K$13,Other_Inputs!$K$14,INDEX(Other_Inputs!$L$14:$AAO$14,,MATCH(YEAR(B27),Other_Inputs!$L$13:$AAO$13,0))) -> 0.1 | V27: =IF(YEAR(B27)<=Other_Inputs!$K$13,Other_Inputs!$K$16,INDEX(Other_Inputs!$L$16:$AAO$16,,MATCH(YEAR(B27),Other_Inputs!$L$13:$AAO$13,0))) -> 0.1 | W27: =IF(YEAR(B27)<=Other_Inputs!$K$64,Other_Inputs!$K$68,INDEX(Other_Inputs!$L$68:$AAM$68,,MATCH(YEAR(B27),Other_Inputs!$L$64:$AAM$64,0))) -> 0.06906375 | Y27: 0.636244605 | Z27: 0.05979011791 | AA27: 0.05979011791 | AB27: 0.7558248408 | AC27: 0.08372987488 | AD27: =SUM(AB27:AC27)*IF(YEAR(B27)<=Other_Inputs!$K$33,Other_Inputs!$K$34,INDEX(Other_Inputs!$L$34:$AAO$34,,MATCH(YEAR(B27),Other_Inputs!$L$33:$AAO$33,0))) -> 0.003358218863 | AE27: =AB27*IF(YEAR(B27)<=Other_Inputs!$K$37,Other_Inputs!$K$38,INDEX(Other_Inputs!$L$38:$AAO$38,,MATCH(YEAR(B27),Other_Inputs!$L$37:$AAO$37,0))) -> 0.03023299363 | AG27: 0.8731459282 | AI27: =IFERROR(INDEX('USDA calcs'!$G$11:$G$18736,MATCH($B27,'USDA calcs'!$C$11:$C$18736,0)),IFERROR(INDEX('USDA historical daily prices'!$AA$14:$AA$3707,MATCH($B27,'USDA historical daily prices'!$C$14:$C$3707,0)),AI26)) -> 0.5692910411 | AJ27: =IF(YEAR(B27)<=Other_Inputs!$K$20,Other_Inputs!$K$21,INDEX(Other_Inputs!$L$21:$AAO$21,,MATCH(YEAR(B27),Other_Inputs!$L$20:$AAO$20,1))) -> 0.0553 | AK27: =IF(YEAR(B27)<=Other_Inputs!$K$24,Other_Inputs!$K$27,INDEX(Other_Inputs!$L$27:$AAO$27,,MATCH(B27,Other_Inputs!$L$24:$AAO$24,1))) -> 0.0242 | AL27: 0.6487910411 | AN27: =IF(YEAR(B27)<=Other_Inputs!$K$64,Other_Inputs!$K$70,INDEX(Other_Inputs!$L$70:$AAM$70,,MATCH(YEAR(B27),Other_Inputs!$L$64:$AAM$64,0))) -> 0.069995124 | AP27: 0.6901836006 | AQ27: 0.06704330537 | AR27: 0.02933902333 | AS27: 0.7865659293 | AT27: 0.08485903205 | AU27: =SUM(AS27:AT27)*IF(YEAR(B27)<=Other_Inputs!$K$33,Other_Inputs!$K$34,INDEX(Other_Inputs!$L$34:$AAO$34,,MATCH(YEAR(B27),Other_Inputs!$L$33:$AAO$33,0))) -> 0.003485699845 | AV27: =AS27*IF(YEAR(B27)<=Other_Inputs!$K$42,Other_Inputs!$K$43,INDEX(Other_Inputs!$L$43:$AAO$43,,MATCH(YEAR(B27),Other_Inputs!$L$42:$AAO$42,0))) -> 0 | AX27: 0.8749106612
B28: 2007-05-11 | D28: Brazil | E28: 0.5846254009 | F28: 0.05966275741 | G28: 0.05966275741 | H28: 0.08326752429 | I28: 0.00314887376 | J28: 0.02815803663 | L28: =INDEX(Other_Inputs!$I$59:$ZF$59,MATCH(B28,Other_Inputs!$I$58:$ZF$58,1)) -> 0.38143 | M28: =IF(B28<Other_Inputs!$I$46,Other_Inputs!$I$48,INDEX(Other_Inputs!$I$48:$AAO$48,MATCH(B28,Other_Inputs!$I$46:$AAO$46,1))) -> 0.001917999 | N28: 0.03 | O28: 0.015 | Q28: =INDEX('ExRate Calcs'!$E$7:$E$20000,MATCH(B28,'ExRate Calcs'!$C$7:$C$20000,0)) -> 0.82942 | R28: =INDEX('ExRate Calcs'!$H$7:$H$20000,MATCH('USDA ESALQ weekly IPPs'!B28,'ExRate Calcs'!$C$7:$C$20000,0)) -> 1.676087468 | T28: =INDEX('ESALQ calcs'!$D$7:$D$1995,MATCH('USDA ESALQ weekly IPPs'!B28,'ESALQ calcs'!$C$7:$C$1995,0)) -> 0.4849 | U28: =IF(YEAR(B28)<=Other_Inputs!$K$13,Other_Inputs!$K$14,INDEX(Other_Inputs!$L$14:$AAO$14,,MATCH(YEAR(B28),Other_Inputs!$L$13:$AAO$13,0))) -> 0.1 | V28: =IF(YEAR(B28)<=Other_Inputs!$K$13,Other_Inputs!$K$16,INDEX(Other_Inputs!$L$16:$AAO$16,,MATCH(YEAR(B28),Other_Inputs!$L$13:$AAO$13,0))) -> 0.1 | W28: =IF(YEAR(B28)<=Other_Inputs!$K$64,Other_Inputs!$K$68,INDEX(Other_Inputs!$L$68:$AAM$68,,MATCH(YEAR(B28),Other_Inputs!$L$64:$AAM$64,0))) -> 0.06906375 | Y28: 0.5846254009 | Z28: 0.05966275741 | AA28: 0.05966275741 | AB28: 0.7039509157 | AC28: 0.08326752429 | AD28: =SUM(AB28:AC28)*IF(YEAR(B28)<=Other_Inputs!$K$33,Other_Inputs!$K$34,INDEX(Other_Inputs!$L$34:$AAO$34,,MATCH(YEAR(B28),Other_Inputs!$L$33:$AAO$33,0))) -> 0.00314887376 | AE28: =AB28*IF(YEAR(B28)<=Other_Inputs!$K$37,Other_Inputs!$K$38,INDEX(Other_Inputs!$L$38:$AAO$38,,MATCH(YEAR(B28),Other_Inputs!$L$37:$AAO$37,0))) -> 0.02815803663 | AG28: 0.8185253504 | AI28: =IFERROR(INDEX('USDA calcs'!$G$11:$G$18736,MATCH($B28,'USDA calcs'!$C$11:$C$18736,0)),IFERROR(INDEX('USDA historical daily prices'!$AA$14:$AA$3707,MATCH($B28,'USDA historical daily prices'!$C$14:$C$3707,0)),AI27)) -> 0.5758953456 | AJ28: =IF(YEAR(B28)<=Other_Inputs!$K$20,Other_Inputs!$K$21,INDEX(Other_Inputs!$L$21:$AAO$21,,MATCH(YEAR(B28),Other_Inputs!$L$20:$AAO$20,1))) -> 0.0553 | AK28: =IF(YEAR(B28)<=Other_Inputs!$K$24,Other_Inputs!$K$27,INDEX(Other_Inputs!$L$27:$AAO$27,,MATCH(B28,Other_Inputs!$L$24:$AAO$24,1))) -> 0.0242 | AL28: 0.6553953456 | AN28: =IF(YEAR(B28)<=Other_Inputs!$K$64,Other_Inputs!$K$70,INDEX(Other_Inputs!$L$70:$AAM$70,,MATCH(YEAR(B28),Other_Inputs!$L$64:$AAM$64,0))) -> 0.069995124 | AP28: 0.6943350119 | AQ28: 0.06667309686 | AR28: 0.02917701526 | AS28: 0.790185124 | AT28: 0.08439044634 | AU28: =SUM(AS28:AT28)*IF(YEAR(B28)<=Other_Inputs!$K$33,Other_Inputs!$K$34,INDEX(Other_Inputs!$L$34:$AAO$34,,MATCH(YEAR(B28),Other_Inputs!$L$33:$AAO$33,0))) -> 0.003498302281 | AV28: =AS28*IF(YEAR(B28)<=Other_Inputs!$K$42,Other_Inputs!$K$43,INDEX(Other_Inputs!$L$43:$AAO$43,,MATCH(YEAR(B28),Other_Inputs!$L$42:$AAO$42,0))) -> 0 | AX28: 0.8780738726
B29: 2007-05-18 | D29: Brazil | E29: 0.5420335303 | F29: 0.06103700353 | G29: 0.06103700353 | H29: 0.08329966228 | I29: 0.002989628799 | J29: 0.0265643015 | L29: =INDEX(Other_Inputs!$I$59:$ZF$59,MATCH(B29,Other_Inputs!$I$58:$ZF$58,1)) -> 0.38143 | M29: =IF(B29<Other_Inputs!$I$46,Other_Inputs!$I$48,INDEX(Other_Inputs!$I$48:$AAO$48,MATCH(B29,Other_Inputs!$I$46:$AAO$46,1))) -> 0.001917999 | N29: 0.03 | O29: 0.015 | Q29: =INDEX('ExRate Calcs'!$E$7:$E$20000,MATCH(B29,'ExRate Calcs'!$C$7:$C$20000,0)) -> 0.8291 | R29: =INDEX('ExRate Calcs'!$H$7:$H$20000,MATCH('USDA ESALQ weekly IPPs'!B29,'ExRate Calcs'!$C$7:$C$20000,0)) -> 1.638350414 | T29: =INDEX('ESALQ calcs'!$D$7:$D$1995,MATCH('USDA ESALQ weekly IPPs'!B29,'ESALQ calcs'!$C$7:$C$1995,0)) -> 0.4494 | U29: =IF(YEAR(B29)<=Other_Inputs!$K$13,Other_Inputs!$K$14,INDEX(Other_Inputs!$L$14:$AAO$14,,MATCH(YEAR(B29),Other_Inputs!$L$13:$AAO$13,0))) -> 0.1 | V29: =IF(YEAR(B29)<=Other_Inputs!$K$13,Other_Inputs!$K$16,INDEX(Other_Inputs!$L$16:$AAO$16,,MATCH(YEAR(B29),Other_Inputs!$L$13:$AAO$13,0))) -> 0.1 | W29: =IF(YEAR(B29)<=Other_Inputs!$K$64,Other_Inputs!$K$68,INDEX(Other_Inputs!$L$68:$AAM$68,,MATCH(YEAR(B29),Other_Inputs!$L$64:$AAM$64,0))) -> 0.06906375 | Y29: 0.5420335303 | Z29: 0.06103700353 | AA29: 0.06103700353 | AB29: 0.6641075374 | AC29: 0.08329966228 | AD29: =SUM(AB29:AC29)*IF(YEAR(B29)<=Other_Inputs!$K$33,Other_Inputs!$K$34,INDEX(Other_Inputs!$L$34:$AAO$34,,MATCH(YEAR(B29),Other_Inputs!$L$33:$AAO$33,0))) -> 0.002989628799 | AE29: =AB29*IF(YEAR(B29)<=Other_Inputs!$K$37,Other_Inputs!$K$38,INDEX(Other_Inputs!$L$38:$AAO$38,,MATCH(YEAR(B29),Other_Inputs!$L$37:$AAO$37,0))) -> 0.0265643015 | AG29: 0.77696113 | AI29: =IFERROR(INDEX('USDA calcs'!$G$11:$G$18736,MATCH($B29,'USDA calcs'!$C$11:$C$18736,0)),IFERROR(INDEX('USDA historical daily prices'!$AA$14:$AA$3707,MATCH($B29,'USDA historical daily prices'!$C$14:$C$3707,0)),AI28)) -> 0.5745744847 | AJ29: =IF(YEAR(B29)<=Other_Inputs!$K$20,Other_Inputs!$K$21,INDEX(Other_Inputs!$L$21:$AAO$21,,MATCH(YEAR(B29),Other_Inputs!$L$20:$AAO$20,1))) -> 0.0553 | AK29: =IF(YEAR(B29)<=Other_Inputs!$K$24,Other_Inputs!$K$27,INDEX(Other_Inputs!$L$27:$AAO$27,,MATCH(B29,Other_Inputs!$L$24:$AAO$24,1))) -> 0.0242 | AL29: 0.6540744847 | AN29: =IF(YEAR(B29)<=Other_Inputs!$K$64,Other_Inputs!$K$70,INDEX(Other_Inputs!$L$70:$AAM$70,,MATCH(YEAR(B29),Other_Inputs!$L$64:$AAM$64,0))) -> 0.069995124 | AP29: 0.6930098717 | AQ29: 0.06669883006 | AR29: 0.02918827644 | AS29: 0.7888969782 | AT29: 0.08442301773 | AU29: =SUM(AS29:AT29)*IF(YEAR(B29)<=Other_Inputs!$K$33,Other_Inputs!$K$34,INDEX(Other_Inputs!$L$34:$AAO$34,,MATCH(YEAR(B29),Other_Inputs!$L$33:$AAO$33,0))) -> 0.003493279984 | AV29: =AS29*IF(YEAR(B29)<=Other_Inputs!$K$42,Other_Inputs!$K$43,INDEX(Other_Inputs!$L$43:$AAO$43,,MATCH(YEAR(B29),Other_Inputs!$L$42:$AAO$42,0))) -> 0 | AX29: 0.876813276
B30: 2007-05-25 | D30: Brazil | E30: 0.4764917746 | F30: 0.06251242544 | G30: 0.06251242544 | H30: 0.08403551786 | I30: 0.002742208573 | J30: 0.02406066502 | L30: =INDEX(Other_Inputs!$I$59:$ZF$59,MATCH(B30,Other_Inputs!$I$58:$ZF$58,1)) -> 0.38143 | M30: =IF(B30<Other_Inputs!$I$46,Other_Inputs!$I$48,INDEX(Other_Inputs!$I$48:$AAO$48,MATCH(B30,Other_Inputs!$I$46:$AAO$46,1))) -> 0.001917999 | N30: 0.03 | O30: 0.015 | Q30: =INDEX('ExRate Calcs'!$E$7:$E$20000,MATCH(B30,'ExRate Calcs'!$C$7:$C$20000,0)) -> 0.82184 | R30: =INDEX('ExRate Calcs'!$H$7:$H$20000,MATCH('USDA ESALQ weekly IPPs'!B30,'ExRate Calcs'!$C$7:$C$20000,0)) -> 1.599681972 | T30: =INDEX('ESALQ calcs'!$D$7:$D$1995,MATCH('USDA ESALQ weekly IPPs'!B30,'ESALQ calcs'!$C$7:$C$1995,0)) -> 0.3916 | U30: =IF(YEAR(B30)<=Other_Inputs!$K$13,Other_Inputs!$K$14,INDEX(Other_Inputs!$L$14:$AAO$14,,MATCH(YEAR(B30),Other_Inputs!$L$13:$AAO$13,0))) -> 0.1 | V30: =IF(YEAR(B30)<=Other_Inputs!$K$13,Other_Inputs!$K$16,INDEX(Other_Inputs!$L$16:$AAO$16,,MATCH(YEAR(B30),Other_Inputs!$L$13:$AAO$13,0))) -> 0.1 | W30: =IF(YEAR(B30)<=Other_Inputs!$K$64,Other_Inputs!$K$68,INDEX(Other_Inputs!$L$68:$AAM$68,,MATCH(YEAR(B30),Other_Inputs!$L$64:$AAM$64,0))) -> 0.06906375 | Y30: 0.4764917746 | Z30: 0.06251242544 | AA30: 0.06251242544 | AB30: 0.6015166254 | AC30: 0.08403551786 | AD30: =SUM(AB30:AC30)*IF(YEAR(B30)<=Other_Inputs!$K$33,Other_Inputs!$K$34,INDEX(Other_Inputs!$L$34:$AAO$34,,MATCH(YEAR(B30),Other_Inputs!$L$33:$AAO$33,0))) -> 0.002742208573 | AE30: =AB30*IF(YEAR(B30)<=Other_Inputs!$K$37,Other_Inputs!$K$38,INDEX(Other_Inputs!$L$38:$AAO$38,,MATCH(YEAR(B30),Other_Inputs!$L$37:$AAO$37,0))) -> 0.02406066502 | AG30: 0.7123550169 | AI30: =IFERROR(INDEX('USDA calcs'!$G$11:$G$18736,MATCH($B30,'USDA calcs'!$C$11:$C$18736,0)),IFERROR(INDEX('USDA historical daily prices'!$AA$14:$AA$3707,MATCH($B30,'USDA historical daily prices'!$C$14:$C$3707,0)),AI29)) -> 0.5679701802 | AJ30: =IF(YEAR(B30)<=Other_Inputs!$K$20,Other_Inputs!$K$21,INDEX(Other_Inputs!$L$21:$AAO$21,,MATCH(YEAR(B30),Other_Inputs!$L$20:$AAO$20,1))) -> 0.0553 | AK30: =IF(YEAR(B30)<=Other_Inputs!$K$24,Other_Inputs!$K$27,INDEX(Other_Inputs!$L$27:$AAO$27,,MATCH(B30,Other_Inputs!$L$24:$AAO$24,1))) -> 0.0242 | AL30: 0.6474701802 | AN30: =IF(YEAR(B30)<=Other_Inputs!$K$64,Other_Inputs!$K$70,INDEX(Other_Inputs!$L$70:$AAM$70,,MATCH(YEAR(B30),Other_Inputs!$L$64:$AAM$64,0))) -> 0.069995124 | AP30: 0.6910958097 | AQ30: 0.0672880366 | AR30: 0.0294461209 | AS30: 0.7878299672 | AT30: 0.08516879685 | AU30: =SUM(AS30:AT30)*IF(YEAR(B30)<=Other_Inputs!$K$33,Other_Inputs!$K$34,INDEX(Other_Inputs!$L$34:$AAO$34,,MATCH(YEAR(B30),Other_Inputs!$L$33:$AAO$33,0))) -> 0.003491995056 | AV30: =AS30*IF(YEAR(B30)<=Other_Inputs!$K$42,Other_Inputs!$K$43,INDEX(Other_Inputs!$L$43:$AAO$43,,MATCH(YEAR(B30),Other_Inputs!$L$42:$AAO$42,0))) -> 0 | AX30: 0.8764907591
B31: 2007-06-01 | D31: Brazil | E31: 0.4439928942 | F31: 0.06303505395 | G31: 0.06303505395 | H31: 0.08403347285 | I31: 0.0026163859 | J31: 0.02280252008 | L31: =INDEX(Other_Inputs!$I$59:$ZF$59,MATCH(B31,Other_Inputs!$I$58:$ZF$58,1)) -> 0.38143 | M31: =IF(B31<Other_Inputs!$I$46,Other_Inputs!$I$48,INDEX(Other_Inputs!$I$48:$AAO$48,MATCH(B31,Other_Inputs!$I$46:$AAO$46,1))) -> 0.001917999 | N31: 0.03 | O31: 0.015 | Q31: =INDEX('ExRate Calcs'!$E$7:$E$20000,MATCH(B31,'ExRate Calcs'!$C$7:$C$20000,0)) -> 0.82186 | R31: =INDEX('ExRate Calcs'!$H$7:$H$20000,MATCH('USDA ESALQ weekly IPPs'!B31,'ExRate Calcs'!$C$7:$C$20000,0)) -> 1.586418885 | T31: =INDEX('ESALQ calcs'!$D$7:$D$1995,MATCH('USDA ESALQ weekly IPPs'!B31,'ESALQ calcs'!$C$7:$C$1995,0)) -> 0.3649 | U31: =IF(YEAR(B31)<=Other_Inputs!$K$13,Other_Inputs!$K$14,INDEX(Other_Inputs!$L$14:$AAO$14,,MATCH(YEAR(B31),Other_Inputs!$L$13:$AAO$13,0))) -> 0.1 | V31: =IF(YEAR(B31)<=Other_Inputs!$K$13,Other_Inputs!$K$16,INDEX(Other_Inputs!$L$16:$AAO$16,,MATCH(YEAR(B31),Other_Inputs!$L$13:$AAO$13,0))) -> 0.1 | W31: =IF(YEAR(B31)<=Other_Inputs!$K$64,Other_Inputs!$K$68,INDEX(Other_Inputs!$L$68:$AAM$68,,MATCH(YEAR(B31),Other_Inputs!$L$64:$AAM$64,0))) -> 0.06906375 | Y31: 0.4439928942 | Z31: 0.06303505395 | AA31: 0.06303505395 | AB31: 0.5700630021 | AC31: 0.08403347285 | AD31: =SUM(AB31:AC31)*IF(YEAR(B31)<=Other_Inputs!$K$33,Other_Inputs!$K$34,INDEX(Other_Inputs!$L$34:$AAO$34,,MATCH(YEAR(B31),Other_Inputs!$L$33:$AAO$33,0))) -> 0.0026163859 | AE31: =AB31*IF(YEAR(B31)<=Other_Inputs!$K$37,Other_Inputs!$K$38,INDEX(Other_Inputs!$L$38:$AAO$38,,MATCH(YEAR(B31),Other_Inputs!$L$37:$AAO$37,0))) -> 0.02280252008 | AG31: 0.6795153809 | AI31: =IFERROR(INDEX('USDA calcs'!$G$11:$G$18736,MATCH($B31,'USDA calcs'!$C$11:$C$18736,0)),IFERROR(INDEX('USDA historical daily prices'!$AA$14:$AA$3707,MATCH($B31,'USDA historical daily prices'!$C$14:$C$3707,0)),AI30)) -> 0.5745744847 | AJ31: =IF(YEAR(B31)<=Other_Inputs!$K$20,Other_Inputs!$K$21,INDEX(Other_Inputs!$L$21:$AAO$21,,MATCH(YEAR(B31),Other_Inputs!$L$20:$AAO$20,1))) -> 0.0553 | AK31: =IF(YEAR(B31)<=Other_Inputs!$K$24,Other_Inputs!$K$27,INDEX(Other_Inputs!$L$27:$AAO$27,,MATCH(B31,Other_Inputs!$L$24:$AAO$24,1))) -> 0.0242 | AL31: 0.6540744847 | AN31: =IF(YEAR(B31)<=Other_Inputs!$K$64,Other_Inputs!$K$70,INDEX(Other_Inputs!$L$70:$AAM$70,,MATCH(YEAR(B31),Other_Inputs!$L$64:$AAM$64,0))) -> 0.069995124 | AP31: 0.6991147941 | AQ31: 0.06728639914 | AR31: 0.02944540433 | AS31: 0.7958465976 | AT31: 0.08516672426 | AU31: =SUM(AS31:AT31)*IF(YEAR(B31)<=Other_Inputs!$K$33,Other_Inputs!$K$34,INDEX(Other_Inputs!$L$34:$AAO$34,,MATCH(YEAR(B31),Other_Inputs!$L$33:$AAO$33,0))) -> 0.003524053287 | AV31: =AS31*IF(YEAR(B31)<=Other_Inputs!$K$42,Other_Inputs!$K$43,INDEX(Other_Inputs!$L$43:$AAO$43,,MATCH(YEAR(B31),Other_Inputs!$L$42:$AAO$42,0))) -> 0 | AX31: 0.8845373751
B32: 2007-06-08 | D32: Brazil | E32: 0.4198700402 | F32: 0.06096385994 | G32: 0.06096385994 | H32: 0.08219330921 | I32: 0.002495964277 | J32: 0.0216719104 | L32: =INDEX(Other_Inputs!$I$59:$ZF$59,MATCH(B32,Other_Inputs!$I$58:$ZF$58,1)) -> 0.38143 | M32: =IF(B32<Other_Inputs!$I$46,Other_Inputs!$I$48,INDEX(Other_Inputs!$I$48:$AAO$48,MATCH(B32,Other_Inputs!$I$46:$AAO$46,1))) -> 0.001917999 | N32: 0.03 | O32: 0.015 | Q32: =INDEX('ExRate Calcs'!$E$7:$E$20000,MATCH(B32,'ExRate Calcs'!$C$7:$C$20000,0)) -> 0.84026 | R32: =INDEX('ExRate Calcs'!$H$7:$H$20000,MATCH('USDA ESALQ weekly IPPs'!B32,'ExRate Calcs'!$C$7:$C$20000,0)) -> 1.640316084 | T32: =INDEX('ESALQ calcs'!$D$7:$D$1995,MATCH('USDA ESALQ weekly IPPs'!B32,'ESALQ calcs'!$C$7:$C$1995,0)) -> 0.3528 | U32: =IF(YEAR(B32)<=Other_Inputs!$K$13,Other_Inputs!$K$14,INDEX(Other_Inputs!$L$14:$AAO$14,,MATCH(YEAR(B32),Other_Inputs!$L$13:$AAO$13,0))) -> 0.1 | V32: =IF(YEAR(B32)<=Other_Inputs!$K$13,Other_Inputs!$K$16,INDEX(Other_Inputs!$L$16:$AAO$16,,MATCH(YEAR(B32),Other_Inputs!$L$13:$AAO$13,0))) -> 0.1 | W32: =IF(YEAR(B32)<=Other_Inputs!$K$64,Other_Inputs!$K$68,INDEX(Other_Inputs!$L$68:$AAM$68,,MATCH(YEAR(B32),Other_Inputs!$L$64:$AAM$64,0))) -> 0.06906375 | Y32: 0.4198700402 | Z32: 0.06096385994 | AA32: 0.06096385994 | AB32: 0.5417977601 | AC32: 0.08219330921 | AD32: =SUM(AB32:AC32)*IF(YEAR(B32)<=Other_Inputs!$K$33,Other_Inputs!$K$34,INDEX(Other_Inputs!$L$34:$AAO$34,,MATCH(YEAR(B32),Other_Inputs!$L$33:$AAO$33,0))) -> 0.002495964277 | AE32: =AB32*IF(YEAR(B32)<=Other_Inputs!$K$37,Other_Inputs!$K$38,INDEX(Other_Inputs!$L$38:$AAO$38,,MATCH(YEAR(B32),Other_Inputs!$L$37:$AAO$37,0))) -> 0.0216719104 | AG32: 0.648158944 | AI32: =IFERROR(INDEX('USDA calcs'!$G$11:$G$18736,MATCH($B32,'USDA calcs'!$C$11:$C$18736,0)),IFERROR(INDEX('USDA historical daily prices'!$AA$14:$AA$3707,MATCH($B32,'USDA historical daily prices'!$C$14:$C$3707,0)),AI31)) -> 0.5587241541 | AJ32: =IF(YEAR(B32)<=Other_Inputs!$K$20,Other_Inputs!$K$21,INDEX(Other_Inputs!$L$21:$AAO$21,,MATCH(YEAR(B32),Other_Inputs!$L$20:$AAO$20,1))) -> 0.0553 | AK32: =IF(YEAR(B32)<=Other_Inputs!$K$24,Other_Inputs!$K$27,INDEX(Other_Inputs!$L$27:$AAO$27,,MATCH(B32,Other_Inputs!$L$24:$AAO$24,1))) -> 0.0242 | AL32: 0.6382241541 | AN32: =IF(YEAR(B32)<=Other_Inputs!$K$64,Other_Inputs!$K$70,INDEX(Other_Inputs!$L$70:$AAM$70,,MATCH(YEAR(B32),Other_Inputs!$L$64:$AAM$64,0))) -> 0.069995124 | AP32: 0.6649419871 | AQ32: 0.06581296265 | AR32: 0.02880060934 | AS32: 0.7595555591 | AT32: 0.0833017447 | AU32: =SUM(AS32:AT32)*IF(YEAR(B32)<=Other_Inputs!$K$33,Other_Inputs!$K$34,INDEX(Other_Inputs!$L$34:$AAO$34,,MATCH(YEAR(B32),Other_Inputs!$L$33:$AAO$33,0))) -> 0.003371429215 | AV32: =AS32*IF(YEAR(B32)<=Other_Inputs!$K$42,Other_Inputs!$K$43,INDEX(Other_Inputs!$L$43:$AAO$43,,MATCH(YEAR(B32),Other_Inputs!$L$42:$AAO$42,0))) -> 0 | AX32: 0.846228733
B33: 2007-06-15 | D33: Brazil | E33: 0.4145114729 | F33: 0.06162789043 | G33: 0.06162789043 | H33: 0.08221630309 | I33: 0.002479934227 | J33: 0.02151069015 | L33: =INDEX(Other_Inputs!$I$59:$ZF$59,MATCH(B33,Other_Inputs!$I$58:$ZF$58,1)) -> 0.38143 | M33: =IF(B33<Other_Inputs!$I$46,Other_Inputs!$I$48,INDEX(Other_Inputs!$I$48:$AAO$48,MATCH(B33,Other_Inputs!$I$46:$AAO$46,1))) -> 0.001917999 | N33: 0.03 | O33: 0.015 | Q33: =INDEX('ExRate Calcs'!$E$7:$E$20000,MATCH(B33,'ExRate Calcs'!$C$7:$C$20000,0)) -> 0.840025 | R33: =INDEX('ExRate Calcs'!$H$7:$H$20000,MATCH('USDA ESALQ weekly IPPs'!B33,'ExRate Calcs'!$C$7:$C$20000,0)) -> 1.622641945 | T33: =INDEX('ESALQ calcs'!$D$7:$D$1995,MATCH('USDA ESALQ weekly IPPs'!B33,'ESALQ calcs'!$C$7:$C$1995,0)) -> 0.3482 | U33: =IF(YEAR(B33)<=Other_Inputs!$K$13,Other_Inputs!$K$14,INDEX(Other_Inputs!$L$14:$AAO$14,,MATCH(YEAR(B33),Other_Inputs!$L$13:$AAO$13,0))) -> 0.1 | V33: =IF(YEAR(B33)<=Other_Inputs!$K$13,Other_Inputs!$K$16,INDEX(Other_Inputs!$L$16:$AAO$16,,MATCH(YEAR(B33),Other_Inputs!$L$13:$AAO$13,0))) -> 0.1 | W33: =IF(YEAR(B33)<=Other_Inputs!$K$64,Other_Inputs!$K$68,INDEX(Other_Inputs!$L$68:$AAM$68,,MATCH(YEAR(B33),Other_Inputs!$L$64:$AAM$64,0))) -> 0.06906375 | Y33: 0.4145114729 | Z33: 0.06162789043 | AA33: 0.06162789043 | AB33: 0.5377672537 | AC33: 0.08221630309 | AD33: =SUM(AB33:AC33)*IF(YEAR(B33)<=Other_Inputs!$K$33,Other_Inputs!$K$34,INDEX(Other_Inputs!$L$34:$AAO$34,,MATCH(YEAR(B33),Other_Inputs!$L$33:$AAO$33,0))) -> 0.002479934227 | AE33: =AB33*IF(YEAR(B33)<=Other_Inputs!$K$37,Other_Inputs!$K$38,INDEX(Other_Inputs!$L$38:$AAO$38,,MATCH(YEAR(B33),Other_Inputs!$L$37:$AAO$37,0))) -> 0.02151069015 | AG33: 0.6439741812 | AI33: =IFERROR(INDEX('USDA calcs'!$G$11:$G$18736,MATCH($B33,'USDA calcs'!$C$11:$C$18736,0)),IFERROR(INDEX('USDA historical daily prices'!$AA$14:$AA$3707,MATCH($B33,'USDA historical daily prices'!$C$14:$C$3707,0)),AI32)) -> 0.5402321017 | AJ33: =IF(YEAR(B33)<=Other_Inputs!$K$20,Other_Inputs!$K$21,INDEX(Other_Inputs!$L$21:$AAO$21,,MATCH(YEAR(B33),Other_Inputs!$L$20:$AAO$20,1))) -> 0.0553 | AK33: =IF(YEAR(B33)<=Other_Inputs!$K$24,Other_Inputs!$K$27,INDEX(Other_Inputs!$L$27:$AAO$27,,MATCH(B33,Other_Inputs!$L$24:$AAO$24,1))) -> 0.0242 | AL33: 0.6197321017 | AN33: =IF(YEAR(B33)<=Other_Inputs!$K$64,Other_Inputs!$K$70,INDEX(Other_Inputs!$L$70:$AAM$70,,MATCH(YEAR(B33),Other_Inputs!$L$64:$AAM$64,0))) -> 0.069995124 | AP33: 0.6431143141 | AQ33: 0.06583137407 | AR33: 0.02880866641 | AS33: 0.7377543545 | AT33: 0.08332504866 | AU33: =SUM(AS33:AT33)*IF(YEAR(B33)<=Other_Inputs!$K$33,Other_Inputs!$K$34,INDEX(Other_Inputs!$L$34:$AAO$34,,MATCH(YEAR(B33),Other_Inputs!$L$33:$AAO$33,0))) -> 0.003284317613 | AV33: =AS33*IF(YEAR(B33)<=Other_Inputs!$K$42,Other_Inputs!$K$43,INDEX(Other_Inputs!$L$43:$AAO$43,,MATCH(YEAR(B33),Other_Inputs!$L$42:$AAO$42,0))) -> 0 | AX33: 0.8243637208
B34: 2007-06-22 | D34: Brazil | E34: 0.4122991742 | F34: 0.0618488613 | G34: 0.0618488613 | H34: 0.08170710787 | I34: 0.002470816019 | J34: 0.02143987587 | L34: =INDEX(Other_Inputs!$I$59:$ZF$59,MATCH(B34,Other_Inputs!$I$58:$ZF$58,1)) -> 0.38143 | M34: =IF(B34<Other_Inputs!$I$46,Other_Inputs!$I$48,INDEX(Other_Inputs!$I$48:$AAO$48,MATCH(B34,Other_Inputs!$I$46:$AAO$46,1))) -> 0.001917999 | N34: 0.03 | O34: 0.015 | Q34: =INDEX('ExRate Calcs'!$E$7:$E$20000,MATCH(B34,'ExRate Calcs'!$C$7:$C$20000,0)) -> 0.84526 | R34: =INDEX('ExRate Calcs'!$H$7:$H$20000,MATCH('USDA ESALQ weekly IPPs'!B34,'ExRate Calcs'!$C$7:$C$20000,0)) -> 1.616844642 | T34: =INDEX('ESALQ calcs'!$D$7:$D$1995,MATCH('USDA ESALQ weekly IPPs'!B34,'ESALQ calcs'!$C$7:$C$1995,0)) -> 0.3485 | U34: =IF(YEAR(B34)<=Other_Inputs!$K$13,Other_Inputs!$K$14,INDEX(Other_Inputs!$L$14:$AAO$14,,MATCH(YEAR(B34),Other_Inputs!$L$13:$AAO$13,0))) -> 0.1 | V34: =IF(YEAR(B34)<=Other_Inputs!$K$13,Other_Inputs!$K$16,INDEX(Other_Inputs!$L$16:$AAO$16,,MATCH(YEAR(B34),Other_Inputs!$L$13:$AAO$13,0))) -> 0.1 | W34: =IF(YEAR(B34)<=Other_Inputs!$K$64,Other_Inputs!$K$68,INDEX(Other_Inputs!$L$68:$AAM$68,,MATCH(YEAR(B34),Other_Inputs!$L$64:$AAM$64,0))) -> 0.06906375 | Y34: 0.4122991742 | Z34: 0.0618488613 | AA34: 0.0618488613 | AB34: 0.5359968968 | AC34: 0.08170710787 | AD34: =SUM(AB34:AC34)*IF(YEAR(B34)<=Other_Inputs!$K$33,Other_Inputs!$K$34,INDEX(Other_Inputs!$L$34:$AAO$34,,MATCH(YEAR(B34),Other_Inputs!$L$33:$AAO$33,0))) -> 0.002470816019 | AE34: =AB34*IF(YEAR(B34)<=Other_Inputs!$K$37,Other_Inputs!$K$38,INDEX(Other_Inputs!$L$38:$AAO$38,,MATCH(YEAR(B34),Other_Inputs!$L$37:$AAO$37,0))) -> 0.02143987587 | AG34: 0.6416146966 | AI34: =IFERROR(INDEX('USDA calcs'!$G$11:$G$18736,MATCH($B34,'USDA calcs'!$C$11:$C$18736,0)),IFERROR(INDEX('USDA historical daily prices'!$AA$14:$AA$3707,MATCH($B34,'USDA historical daily prices'!$C$14:$C$3707,0)),AI33)) -> 0.5375903799 | AJ34: =IF(YEAR(B34)<=Other_Inputs!$K$20,Other_Inputs!$K$21,INDEX(Other_Inputs!$L$21:$AAO$21,,MATCH(YEAR(B34),Other_Inputs!$L$20:$AAO$20,1))) -> 0.0553 | AK34: =IF(YEAR(B34)<=Other_Inputs!$K$24,Other_Inputs!$K$27,INDEX(Other_Inputs!$L$27:$AAO$27,,MATCH(B34,Other_Inputs!$L$24:$AAO$24,1))) -> 0.0242 | AL34: 0.6170903799 | AN34: =IF(YEAR(B34)<=Other_Inputs!$K$64,Other_Inputs!$K$70,INDEX(Other_Inputs!$L$70:$AAM$70,,MATCH(YEAR(B34),Other_Inputs!$L$64:$AAM$64,0))) -> 0.069995124 | AP34: 0.6360059389 | AQ34: 0.06542365663 | AR34: 0.02863024395 | AS34: 0.7300598395 | AT34: 0.08280898658 | AU34: =SUM(AS34:AT34)*IF(YEAR(B34)<=Other_Inputs!$K$33,Other_Inputs!$K$34,INDEX(Other_Inputs!$L$34:$AAO$34,,MATCH(YEAR(B34),Other_Inputs!$L$33:$AAO$33,0))) -> 0.003251475304 | AV34: =AS34*IF(YEAR(B34)<=Other_Inputs!$K$42,Other_Inputs!$K$43,INDEX(Other_Inputs!$L$43:$AAO$43,,MATCH(YEAR(B34),Other_Inputs!$L$42:$AAO$42,0))) -> 0 | AX34: 0.8161203014
B35: 2007-06-29 | D35: Brazil | E35: 0.4037369915 | F35: 0.06106428672 | G35: 0.06106428672 | H35: 0.08167425497 | I35: 0.00243015928 | J35: 0.0210346226 | L35: =INDEX(Other_Inputs!$I$59:$ZF$59,MATCH(B35,Other_Inputs!$I$58:$ZF$58,1)) -> 0.38143 | M35: =IF(B35<Other_Inputs!$I$46,Other_Inputs!$I$48,INDEX(Other_Inputs!$I$48:$AAO$48,MATCH(B35,Other_Inputs!$I$46:$AAO$46,1))) -> 0.001917999 | N35: 0.03 | O35: 0.015 | Q35: =INDEX('ExRate Calcs'!$E$7:$E$20000,MATCH(B35,'ExRate Calcs'!$C$7:$C$20000,0)) -> 0.8456 | R35: =INDEX('ExRate Calcs'!$H$7:$H$20000,MATCH('USDA ESALQ weekly IPPs'!B35,'ExRate Calcs'!$C$7:$C$20000,0)) -> 1.637618408 | T35: =INDEX('ESALQ calcs'!$D$7:$D$1995,MATCH('USDA ESALQ weekly IPPs'!B35,'ESALQ calcs'!$C$7:$C$1995,0)) -> 0.3414 | U35: =IF(YEAR(B35)<=Other_Inputs!$K$13,Other_Inputs!$K$14,INDEX(Other_Inputs!$L$14:$AAO$14,,MATCH(YEAR(B35),Other_Inputs!$L$13:$AAO$13,0))) -> 0.1 | V35: =IF(YEAR(B35)<=Other_Inputs!$K$13,Other_Inputs!$K$16,INDEX(Other_Inputs!$L$16:$AAO$16,,MATCH(YEAR(B35),Other_Inputs!$L$13:$AAO$13,0))) -> 0.1 | W35: =IF(YEAR(B35)<=Other_Inputs!$K$64,Other_Inputs!$K$68,INDEX(Other_Inputs!$L$68:$AAM$68,,MATCH(YEAR(B35),Other_Inputs!$L$64:$AAM$64,0))) -> 0.06906375 | Y35: 0.4037369915 | Z35: 0.06106428672 | AA35: 0.06106428672 | AB35: 0.5258655649 | AC35: 0.08167425497 | AD35: =SUM(AB35:AC35)*IF(YEAR(B35)<=Other_Inputs!$K$33,Other_Inputs!$K$34,INDEX(Other_Inputs!$L$34:$AAO$34,,MATCH(YEAR(B35),Other_Inputs!$L$33:$AAO$33,0))) -> 0.00243015928 | AE35: =AB35*IF(YEAR(B35)<=Other_Inputs!$K$37,Other_Inputs!$K$38,INDEX(Other_Inputs!$L$38:$AAO$38,,MATCH(YEAR(B35),Other_Inputs!$L$37:$AAO$37,0))) -> 0.0210346226 | AG35: 0.6310046018 | AI35: =IFERROR(INDEX('USDA calcs'!$G$11:$G$18736,MATCH($B35,'USDA calcs'!$C$11:$C$18736,0)),IFERROR(INDEX('USDA historical daily prices'!$AA$14:$AA$3707,MATCH($B35,'USDA historical daily prices'!$C$14:$C$3707,0)),AI34)) -> 0.5237213406 | AJ35: =IF(YEAR(B35)<=Other_Inputs!$K$20,Other_Inputs!$K$21,INDEX(Other_Inputs!$L$21:$AAO$21,,MATCH(YEAR(B35),Other_Inputs!$L$20:$AAO$20,1))) -> 0.0553 | AK35: =IF(YEAR(B35)<=Other_Inputs!$K$24,Other_Inputs!$K$27,INDEX(Other_Inputs!$L$27:$AAO$27,,MATCH(B35,Other_Inputs!$L$24:$AAO$24,1))) -> 0.0242 | AL35: 0.6032213406 | AN35: =IF(YEAR(B35)<=Other_Inputs!$K$64,Other_Inputs!$K$70,INDEX(Other_Inputs!$L$70:$AAM$70,,MATCH(YEAR(B35),Other_Inputs!$L$64:$AAM$64,0))) -> 0.069995124 | AP35: 0.6193487945 | AQ35: 0.06539735099 | AR35: 0.02861873226 | AS35: 0.7133648777 | AT35: 0.08277569063 | AU35: =SUM(AS35:AT35)*IF(YEAR(B35)<=Other_Inputs!$K$33,Other_Inputs!$K$34,INDEX(Other_Inputs!$L$34:$AAO$34,,MATCH(YEAR(B35),Other_Inputs!$L$33:$AAO$33,0))) -> 0.003184562274 | AV35: =AS35*IF(YEAR(B35)<=Other_Inputs!$K$42,Other_Inputs!$K$43,INDEX(Other_Inputs!$L$43:$AAO$43,,MATCH(YEAR(B35),Other_Inputs!$L$42:$AAO$42,0))) -> 0 | AX35: 0.7993251307
B36: 2007-07-06 | D36: Brazil | E36: 0.4057683326 | F36: 0.06111928498 | G36: 0.06111928498 | H36: 0.0806442667 | I36: 0.002434604677 | J36: 0.0211202761 | L36: =INDEX(Other_Inputs!$I$59:$ZF$59,MATCH(B36,Other_Inputs!$I$58:$ZF$58,1)) -> 0.38143 | M36: =IF(B36<Other_Inputs!$I$46,Other_Inputs!$I$48,INDEX(Other_Inputs!$I$48:$AAO$48,MATCH(B36,Other_Inputs!$I$46:$AAO$46,1))) -> 0.001917999 | N36: 0.03 | O36: 0.015 | Q36: =INDEX('ExRate Calcs'!$E$7:$E$20000,MATCH(B36,'ExRate Calcs'!$C$7:$C$20000,0)) -> 0.8564 | R36: =INDEX('ExRate Calcs'!$H$7:$H$20000,MATCH('USDA ESALQ weekly IPPs'!B36,'ExRate Calcs'!$C$7:$C$20000,0)) -> 1.636144795 | T36: =INDEX('ESALQ calcs'!$D$7:$D$1995,MATCH('USDA ESALQ weekly IPPs'!B36,'ESALQ calcs'!$C$7:$C$1995,0)) -> 0.3475 | U36: =IF(YEAR(B36)<=Other_Inputs!$K$13,Other_Inputs!$K$14,INDEX(Other_Inputs!$L$14:$AAO$14,,MATCH(YEAR(B36),Other_Inputs!$L$13:$AAO$13,0))) -> 0.1 | V36: =IF(YEAR(B36)<=Other_Inputs!$K$13,Other_Inputs!$K$16,INDEX(Other_Inputs!$L$16:$AAO$16,,MATCH(YEAR(B36),Other_Inputs!$L$13:$AAO$13,0))) -> 0.1 | W36: =IF(YEAR(B36)<=Other_Inputs!$K$64,Other_Inputs!$K$68,INDEX(Other_Inputs!$L$68:$AAM$68,,MATCH(YEAR(B36),Other_Inputs!$L$64:$AAM$64,0))) -> 0.06906375 | Y36: 0.4057683326 | Z36: 0.06111928498 | AA36: 0.06111928498 | AB36: 0.5280069025 | AC36: 0.0806442667 | AD36: =SUM(AB36:AC36)*IF(YEAR(B36)<=Other_Inputs!$K$33,Other_Inputs!$K$34,INDEX(Other_Inputs!$L$34:$AAO$34,,MATCH(YEAR(B36),Other_Inputs!$L$33:$AAO$33,0))) -> 0.002434604677 | AE36: =AB36*IF(YEAR(B36)<=Other_Inputs!$K$37,Other_Inputs!$K$38,INDEX(Other_Inputs!$L$38:$AAO$38,,MATCH(YEAR(B36),Other_Inputs!$L$37:$AAO$37,0))) -> 0.0211202761 | AG36: 0.63220605 | AI36: =IFERROR(INDEX('USDA calcs'!$G$11:$G$18736,MATCH($B36,'USDA calcs'!$C$11:$C$18736,0)),IFERROR(INDEX('USDA historical daily prices'!$AA$14:$AA$3707,MATCH($B36,'USDA historical daily prices'!$C$14:$C$3707,0)),AI35)) -> 0.5257026319 | AJ36: =IF(YEAR(B36)<=Other_Inputs!$K$20,Other_Inputs!$K$21,INDEX(Other_Inputs!$L$21:$AAO$21,,MATCH(YEAR(B36),Other_Inputs!$L$20:$AAO$20,1))) -> 0.0553 | AK36: =IF(YEAR(B36)<=Other_Inputs!$K$24,Other_Inputs!$K$27,INDEX(Other_Inputs!$L$27:$AAO$27,,MATCH(B36,Other_Inputs!$L$24:$AAO$24,1))) -> 0.0242 | AL36: 0.6052026319 | AN36: =IF(YEAR(B36)<=Other_Inputs!$K$64,Other_Inputs!$K$70,INDEX(Other_Inputs!$L$70:$AAM$70,,MATCH(YEAR(B36),Other_Inputs!$L$64:$AAM$64,0))) -> 0.069995124 | AP36: 0.6138517421 | AQ36: 0.06457262961 | AR36: 0.02825782345 | AS36: 0.7066821952 | AT36: 0.08173181224 | AU36: =SUM(AS36:AT36)*IF(YEAR(B36)<=Other_Inputs!$K$33,Other_Inputs!$K$34,INDEX(Other_Inputs!$L$34:$AAO$34,,MATCH(YEAR(B36),Other_Inputs!$L$33:$AAO$33,0))) -> 0.00315365603 | AV36: =AS36*IF(YEAR(B36)<=Other_Inputs!$K$42,Other_Inputs!$K$43,INDEX(Other_Inputs!$L$43:$AAO$43,,MATCH(YEAR(B36),Other_Inputs!$L$42:$AAO$42,0))) -> 0 | AX36: 0.7915676634
B37: 2007-07-13 | D37: Brazil | E37: 0.4088174491 | F37: 0.06161373715 | G37: 0.06161373715 | H37: 0.08021155142 | I37: 0.002449025899 | J37: 0.02128179693 | L37: =INDEX(Other_Inputs!$I$59:$ZF$59,MATCH(B37,Other_Inputs!$I$58:$ZF$58,1)) -> 0.38143 | M37: =IF(B37<Other_Inputs!$I$46,Other_Inputs!$I$48,INDEX(Other_Inputs!$I$48:$AAO$48,MATCH(B37,Other_Inputs!$I$46:$AAO$46,1))) -> 0.001917999 | N37: 0.03 | O37: 0.015 | Q37: =INDEX('ExRate Calcs'!$E$7:$E$20000,MATCH(B37,'ExRate Calcs'!$C$7:$C$20000,0)) -> 0.86102 | R37: =INDEX('ExRate Calcs'!$H$7:$H$20000,MATCH('USDA ESALQ weekly IPPs'!B37,'ExRate Calcs'!$C$7:$C$20000,0)) -> 1.623014682 | T37: =INDEX('ESALQ calcs'!$D$7:$D$1995,MATCH('USDA ESALQ weekly IPPs'!B37,'ESALQ calcs'!$C$7:$C$1995,0)) -> 0.352 | U37: =IF(YEAR(B37)<=Other_Inputs!$K$13,Other_Inputs!$K$14,INDEX(Other_Inputs!$L$14:$AAO$14,,MATCH(YEAR(B37),Other_Inputs!$L$13:$AAO$13,0))) -> 0.1 | V37: =IF(YEAR(B37)<=Other_Inputs!$K$13,Other_Inputs!$K$16,INDEX(Other_Inputs!$L$16:$AAO$16,,MATCH(YEAR(B37),Other_Inputs!$L$13:$AAO$13,0))) -> 0.1 | W37: =IF(YEAR(B37)<=Other_Inputs!$K$64,Other_Inputs!$K$68,INDEX(Other_Inputs!$L$68:$AAM$68,,MATCH(YEAR(B37),Other_Inputs!$L$64:$AAM$64,0))) -> 0.06906375 | Y37: 0.4088174491 | Z37: 0.06161373715 | AA37: 0.06161373715 | AB37: 0.5320449234 | AC37: 0.08021155142 | AD37: =SUM(AB37:AC37)*IF(YEAR(B37)<=Other_Inputs!$K$33,Other_Inputs!$K$34,INDEX(Other_Inputs!$L$34:$AAO$34,,MATCH(YEAR(B37),Other_Inputs!$L$33:$AAO$33,0))) -> 0.002449025899 | AE37: =AB37*IF(YEAR(B37)<=Other_Inputs!$K$37,Other_Inputs!$K$38,INDEX(Other_Inputs!$L$38:$AAO$38,,MATCH(YEAR(B37),Other_Inputs!$L$37:$AAO$37,0))) -> 0.02128179693 | AG37: 0.6359872976 | AI37: =IFERROR(INDEX('USDA calcs'!$G$11:$G$18736,MATCH($B37,'USDA calcs'!$C$11:$C$18736,0)),IFERROR(INDEX('USDA historical daily prices'!$AA$14:$AA$3707,MATCH($B37,'USDA historical daily prices'!$C$14:$C$3707,0)),AI36)) -> 0.5124940231 | AJ37: =IF(YEAR(B37)<=Other_Inputs!$K$20,Other_Inputs!$K$21,INDEX(Other_Inputs!$L$21:$AAO$21,,MATCH(YEAR(B37),Other_Inputs!$L$20:$AAO$20,1))) -> 0.0553 | AK37: =IF(YEAR(B37)<=Other_Inputs!$K$24,Other_Inputs!$K$27,INDEX(Other_Inputs!$L$27:$AAO$27,,MATCH(B37,Other_Inputs!$L$24:$AAO$24,1))) -> 0.0242 | AL37: 0.5919940231 | AN37: =IF(YEAR(B37)<=Other_Inputs!$K$64,Other_Inputs!$K$70,INDEX(Other_Inputs!$L$70:$AAM$70,,MATCH(YEAR(B37),Other_Inputs!$L$64:$AAM$64,0))) -> 0.069995124 | AP37: 0.5952173272 | AQ37: 0.06422615038 | AR37: 0.02810619962 | AS37: 0.6875496772 | AT37: 0.08129326148 | AU37: =SUM(AS37:AT37)*IF(YEAR(B37)<=Other_Inputs!$K$33,Other_Inputs!$K$34,INDEX(Other_Inputs!$L$34:$AAO$34,,MATCH(YEAR(B37),Other_Inputs!$L$33:$AAO$33,0))) -> 0.003075371755 | AV37: =AS37*IF(YEAR(B37)<=Other_Inputs!$K$42,Other_Inputs!$K$43,INDEX(Other_Inputs!$L$43:$AAO$43,,MATCH(YEAR(B37),Other_Inputs!$L$42:$AAO$42,0))) -> 0 | AX37: 0.7719183105
B38: 2007-07-20 | D38: Brazil | E38: 0.410372838 | F38: 0.0612962034 | G38: 0.0612962034 | H38: 0.07879312509 | I38: 0.00244703348 | J38: 0.02131860979 | L38: =INDEX(Other_Inputs!$I$59:$ZF$59,MATCH(B38,Other_Inputs!$I$58:$ZF$58,1)) -> 0.38143 | M38: =IF(B38<Other_Inputs!$I$46,Other_Inputs!$I$48,INDEX(Other_Inputs!$I$48:$AAO$48,MATCH(B38,Other_Inputs!$I$46:$AAO$46,1))) -> 0.001917999 | N38: 0.03 | O38: 0.015 | Q38: =INDEX('ExRate Calcs'!$E$7:$E$20000,MATCH(B38,'ExRate Calcs'!$C$7:$C$20000,0)) -> 0.87652 | R38: =INDEX('ExRate Calcs'!$H$7:$H$20000,MATCH('USDA ESALQ weekly IPPs'!B38,'ExRate Calcs'!$C$7:$C$20000,0)) -> 1.631422412 | T38: =INDEX('ESALQ calcs'!$D$7:$D$1995,MATCH('USDA ESALQ weekly IPPs'!B38,'ESALQ calcs'!$C$7:$C$1995,0)) -> 0.3597 | U38: =IF(YEAR(B38)<=Other_Inputs!$K$13,Other_Inputs!$K$14,INDEX(Other_Inputs!$L$14:$AAO$14,,MATCH(YEAR(B38),Other_Inputs!$L$13:$AAO$13,0))) -> 0.1 | V38: =IF(YEAR(B38)<=Other_Inputs!$K$13,Other_Inputs!$K$16,INDEX(Other_Inputs!$L$16:$AAO$16,,MATCH(YEAR(B38),Other_Inputs!$L$13:$AAO$13,0))) -> 0.1 | W38: =IF(YEAR(B38)<=Other_Inputs!$K$64,Other_Inputs!$K$68,INDEX(Other_Inputs!$L$68:$AAM$68,,MATCH(YEAR(B38),Other_Inputs!$L$64:$AAM$64,0))) -> 0.06906375 | Y38: 0.410372838 | Z38: 0.0612962034 | AA38: 0.0612962034 | AB38: 0.5329652448 | AC38: 0.07879312509 | AD38: =SUM(AB38:AC38)*IF(YEAR(B38)<=Other_Inputs!$K$33,Other_Inputs!$K$34,INDEX(Other_Inputs!$L$34:$AAO$34,,MATCH(YEAR(B38),Other_Inputs!$L$33:$AAO$33,0))) -> 0.00244703348 | AE38: =AB38*IF(YEAR(B38)<=Other_Inputs!$K$37,Other_Inputs!$K$38,INDEX(Other_Inputs!$L$38:$AAO$38,,MATCH(YEAR(B38),Other_Inputs!$L$37:$AAO$37,0))) -> 0.02131860979 | AG38: 0.6355240132 | AI38: =IFERROR(INDEX('USDA calcs'!$G$11:$G$18736,MATCH($B38,'USDA calcs'!$C$11:$C$18736,0)),IFERROR(INDEX('USDA historical daily prices'!$AA$14:$AA$3707,MATCH($B38,'USDA historical daily prices'!$C$14:$C$3707,0)),AI37)) -> 0.5157961753 | AJ38: =IF(YEAR(B38)<=Other_Inputs!$K$20,Other_Inputs!$K$21,INDEX(Other_Inputs!$L$21:$AAO$21,,MATCH(YEAR(B38),Other_Inputs!$L$20:$AAO$20,1))) -> 0.0553 | AK38: =IF(YEAR(B38)<=Other_Inputs!$K$24,Other_Inputs!$K$27,INDEX(Other_Inputs!$L$27:$AAO$27,,MATCH(B38,Other_Inputs!$L$24:$AAO$24,1))) -> 0.0242 | AL38: 0.5952961753 | AN38: =IF(YEAR(B38)<=Other_Inputs!$K$64,Other_Inputs!$K$70,INDEX(Other_Inputs!$L$70:$AAM$70,,MATCH(YEAR(B38),Other_Inputs!$L$64:$AAM$64,0))) -> 0.069995124 | AP38: 0.5884591057 | AQ38: 0.06309040296 | AR38: 0.02760918176 | AS38: 0.6791586904 | AT38: 0.07985570666 | AU38: =SUM(AS38:AT38)*IF(YEAR(B38)<=Other_Inputs!$K$33,Other_Inputs!$K$34,INDEX(Other_Inputs!$L$34:$AAO$34,,MATCH(YEAR(B38),Other_Inputs!$L$33:$AAO$33,0))) -> 0.003036057588 | AV38: =AS38*IF(YEAR(B38)<=Other_Inputs!$K$42,Other_Inputs!$K$43,INDEX(Other_Inputs!$L$43:$AAO$43,,MATCH(YEAR(B38),Other_Inputs!$L$42:$AAO$42,0))) -> 0 | AX38: 0.7620504547
B39: 2007-07-27 | D39: Brazil | E39: 0.4074342866 | F39: 0.06049436842 | G39: 0.06049436842 | H39: 0.07831600254 | I39: 0.002426956104 | J39: 0.02113692094 | L39: =INDEX(Other_Inputs!$I$59:$ZF$59,MATCH(B39,Other_Inputs!$I$58:$ZF$58,1)) -> 0.38143 | M39: =IF(B39<Other_Inputs!$I$46,Other_Inputs!$I$48,INDEX(Other_Inputs!$I$48:$AAO$48,MATCH(B39,Other_Inputs!$I$46:$AAO$46,1))) -> 0.001917999 | N39: 0.03 | O39: 0.015 | Q39: =INDEX('ExRate Calcs'!$E$7:$E$20000,MATCH(B39,'ExRate Calcs'!$C$7:$C$20000,0)) -> 0.88186 | R39: =INDEX('ExRate Calcs'!$H$7:$H$20000,MATCH('USDA ESALQ weekly IPPs'!B39,'ExRate Calcs'!$C$7:$C$20000,0)) -> 1.653046434 | T39: =INDEX('ESALQ calcs'!$D$7:$D$1995,MATCH('USDA ESALQ weekly IPPs'!B39,'ESALQ calcs'!$C$7:$C$1995,0)) -> 0.3593 | U39: =IF(YEAR(B39)<=Other_Inputs!$K$13,Other_Inputs!$K$14,INDEX(Other_Inputs!$L$14:$AAO$14,,MATCH(YEAR(B39),Other_Inputs!$L$13:$AAO$13,0))) -> 0.1 | V39: =IF(YEAR(B39)<=Other_Inputs!$K$13,Other_Inputs!$K$16,INDEX(Other_Inputs!$L$16:$AAO$16,,MATCH(YEAR(B39),Other_Inputs!$L$13:$AAO$13,0))) -> 0.1 | W39: =IF(YEAR(B39)<=Other_Inputs!$K$64,Other_Inputs!$K$68,INDEX(Other_Inputs!$L$68:$AAM$68,,MATCH(YEAR(B39),Other_Inputs!$L$64:$AAM$64,0))) -> 0.06906375 | Y39: 0.4074342866 | Z39: 0.06049436842 | AA39: 0.06049436842 | AB39: 0.5284230235 | AC39: 0.07831600254 | AD39: =SUM(AB39:AC39)*IF(YEAR(B39)<=Other_Inputs!$K$33,Other_Inputs!$K$34,INDEX(Other_Inputs!$L$34:$AAO$34,,MATCH(YEAR(B39),Other_Inputs!$L$33:$AAO$33,0))) -> 0.002426956104 | AE39: =AB39*IF(YEAR(B39)<=Other_Inputs!$K$37,Other_Inputs!$K$38,INDEX(Other_Inputs!$L$38:$AAO$38,,MATCH(YEAR(B39),Other_Inputs!$L$37:$AAO$37,0))) -> 0.02113692094 | AG39: 0.6303029031 | AI39: =IFERROR(INDEX('USDA calcs'!$G$11:$G$18736,MATCH($B39,'USDA calcs'!$C$11:$C$18736,0)),IFERROR(INDEX('USDA historical daily prices'!$AA$14:$AA$3707,MATCH($B39,'USDA historical daily prices'!$C$14:$C$3707,0)),AI38)) -> 0.5204191884 | AJ39: =IF(YEAR(B39)<=Other_Inputs!$K$20,Other_Inputs!$K$21,INDEX(Other_Inputs!$L$21:$AAO$21,,MATCH(YEAR(B39),Other_Inputs!$L$20:$AAO$20,1))) -> 0.0553 | AK39: =IF(YEAR(B39)<=Other_Inputs!$K$24,Other_Inputs!$K$27,INDEX(Other_Inputs!$L$27:$AAO$27,,MATCH(B39,Other_Inputs!$L$24:$AAO$24,1))) -> 0.0242 | AL39: 0.5999191884 | AN39: =IF(YEAR(B39)<=Other_Inputs!$K$64,Other_Inputs!$K$70,INDEX(Other_Inputs!$L$70:$AAM$70,,MATCH(YEAR(B39),Other_Inputs!$L$64:$AAM$64,0))) -> 0.069995124 | AP39: 0.590138104 | AQ39: 0.06270836641 | AR39: 0.0274419976 | AS39: 0.680288468 | AT39: 0.07937214977 | AU39: =SUM(AS39:AT39)*IF(YEAR(B39)<=Other_Inputs!$K$33,Other_Inputs!$K$34,INDEX(Other_Inputs!$L$34:$AAO$34,,MATCH(YEAR(B39),Other_Inputs!$L$33:$AAO$33,0))) -> 0.003038642471 | AV39: =AS39*IF(YEAR(B39)<=Other_Inputs!$K$42,Other_Inputs!$K$43,INDEX(Other_Inputs!$L$43:$AAO$43,,MATCH(YEAR(B39),Other_Inputs!$L$42:$AAO$42,0))) -> 0 | AX39: 0.7626992603
B40: 2007-08-03 | D40: Brazil | E40: 0.4159045073 | F40: 0.06247833384 | G40: 0.06247833384 | H40: 0.08098089911 | I40: 0.002487368296 | J40: 0.021634447 | L40: =INDEX(Other_Inputs!$I$59:$ZF$59,MATCH(B40,Other_Inputs!$I$58:$ZF$58,1)) -> 0.38143 | M40: =IF(B40<Other_Inputs!$I$46,Other_Inputs!$I$48,INDEX(Other_Inputs!$I$48:$AAO$48,MATCH(B40,Other_Inputs!$I$46:$AAO$46,1))) -> 0.001917999 | N40: 0.03 | O40: 0.015 | Q40: =INDEX('ExRate Calcs'!$E$7:$E$20000,MATCH(B40,'ExRate Calcs'!$C$7:$C$20000,0)) -> 0.85284 | R40: =INDEX('ExRate Calcs'!$H$7:$H$20000,MATCH('USDA ESALQ weekly IPPs'!B40,'ExRate Calcs'!$C$7:$C$20000,0)) -> 1.600554846 | T40: =INDEX('ESALQ calcs'!$D$7:$D$1995,MATCH('USDA ESALQ weekly IPPs'!B40,'ESALQ calcs'!$C$7:$C$1995,0)) -> 0.3547 | U40: =IF(YEAR(B40)<=Other_Inputs!$K$13,Other_Inputs!$K$14,INDEX(Other_Inputs!$L$14:$AAO$14,,MATCH(YEAR(B40),Other_Inputs!$L$13:$AAO$13,0))) -> 0.1 | V40: =IF(YEAR(B40)<=Other_Inputs!$K$13,Other_Inputs!$K$16,INDEX(Other_Inputs!$L$16:$AAO$16,,MATCH(YEAR(B40),Other_Inputs!$L$13:$AAO$13,0))) -> 0.1 | W40: =IF(YEAR(B40)<=Other_Inputs!$K$64,Other_Inputs!$K$68,INDEX(Other_Inputs!$L$68:$AAM$68,,MATCH(YEAR(B40),Other_Inputs!$L$64:$AAM$64,0))) -> 0.06906375 | Y40: 0.4159045073 | Z40: 0.06247833384 | AA40: 0.06247833384 | AB40: 0.540861175 | AC40: 0.08098089911 | AD40: =SUM(AB40:AC40)*IF(YEAR(B40)<=Other_Inputs!$K$33,Other_Inputs!$K$34,INDEX(Other_Inputs!$L$34:$AAO$34,,MATCH(YEAR(B40),Other_Inputs!$L$33:$AAO$33,0))) -> 0.002487368296 | AE40: =AB40*IF(YEAR(B40)<=Other_Inputs!$K$37,Other_Inputs!$K$38,INDEX(Other_Inputs!$L$38:$AAO$38,,MATCH(YEAR(B40),Other_Inputs!$L$37:$AAO$37,0))) -> 0.021634447 | AG40: 0.6459638894 | AI40: =IFERROR(INDEX('USDA calcs'!$G$11:$G$18736,MATCH($B40,'USDA calcs'!$C$11:$C$18736,0)),IFERROR(INDEX('USDA historical daily prices'!$AA$14:$AA$3707,MATCH($B40,'USDA historical daily prices'!$C$14:$C$3707,0)),AI39)) -> 0.513814884 | AJ40: =IF(YEAR(B40)<=Other_Inputs!$K$20,Other_Inputs!$K$21,INDEX(Other_Inputs!$L$21:$AAO$21,,MATCH(YEAR(B40),Other_Inputs!$L$20:$AAO$20,1))) -> 0.0553 | AK40: =IF(YEAR(B40)<=Other_Inputs!$K$24,Other_Inputs!$K$27,INDEX(Other_Inputs!$L$27:$AAO$27,,MATCH(B40,Other_Inputs!$L$24:$AAO$24,1))) -> 0.0242 | AL40: 0.593314884 | AN40: =IF(YEAR(B40)<=Other_Inputs!$K$64,Other_Inputs!$K$70,INDEX(Other_Inputs!$L$70:$AAM$70,,MATCH(YEAR(B40),Other_Inputs!$L$64:$AAM$64,0))) -> 0.069995124 | AP40: 0.6024751231 | AQ40: 0.06484217438 | AR40: 0.02837577975 | AS40: 0.6956930772 | AT40: 0.08207298438 | AU40: =SUM(AS40:AT40)*IF(YEAR(B40)<=Other_Inputs!$K$33,Other_Inputs!$K$34,INDEX(Other_Inputs!$L$34:$AAO$34,,MATCH(YEAR(B40),Other_Inputs!$L$33:$AAO$33,0))) -> 0.003111064246 | AV40: =AS40*IF(YEAR(B40)<=Other_Inputs!$K$42,Other_Inputs!$K$43,INDEX(Other_Inputs!$L$43:$AAO$43,,MATCH(YEAR(B40),Other_Inputs!$L$42:$AAO$42,0))) -> 0 | AX40: 0.7808771259
B41: 2007-08-10 | D41: Brazil | E41: 0.4059495631 | F41: 0.06113139183 | G41: 0.06113139183 | H41: 0.08072674673 | I41: 0.002435756374 | J41: 0.02112849387 | L41: =INDEX(Other_Inputs!$I$59:$ZF$59,MATCH(B41,Other_Inputs!$I$58:$ZF$58,1)) -> 0.38143 | M41: =IF(B41<Other_Inputs!$I$46,Other_Inputs!$I$48,INDEX(Other_Inputs!$I$48:$AAO$48,MATCH(B41,Other_Inputs!$I$46:$AAO$46,1))) -> 0.001917999 | N41: 0.03 | O41: 0.015 | Q41: =INDEX('ExRate Calcs'!$E$7:$E$20000,MATCH(B41,'ExRate Calcs'!$C$7:$C$20000,0)) -> 0.855525 | R41: =INDEX('ExRate Calcs'!$H$7:$H$20000,MATCH('USDA ESALQ weekly IPPs'!B41,'ExRate Calcs'!$C$7:$C$20000,0)) -> 1.635820762 | T41: =INDEX('ESALQ calcs'!$D$7:$D$1995,MATCH('USDA ESALQ weekly IPPs'!B41,'ESALQ calcs'!$C$7:$C$1995,0)) -> 0.3473 | U41: =IF(YEAR(B41)<=Other_Inputs!$K$13,Other_Inputs!$K$14,INDEX(Other_Inputs!$L$14:$AAO$14,,MATCH(YEAR(B41),Other_Inputs!$L$13:$AAO$13,0))) -> 0.1 | V41: =IF(YEAR(B41)<=Other_Inputs!$K$13,Other_Inputs!$K$16,INDEX(Other_Inputs!$L$16:$AAO$16,,MATCH(YEAR(B41),Other_Inputs!$L$13:$AAO$13,0))) -> 0.1 | W41: =IF(YEAR(B41)<=Other_Inputs!$K$64,Other_Inputs!$K$68,INDEX(Other_Inputs!$L$68:$AAM$68,,MATCH(YEAR(B41),Other_Inputs!$L$64:$AAM$64,0))) -> 0.06906375 | Y41: 0.4059495631 | Z41: 0.06113139183 | AA41: 0.06113139183 | AB41: 0.5282123468 | AC41: 0.08072674673 | AD41: =SUM(AB41:AC41)*IF(YEAR(B41)<=Other_Inputs!$K$33,Other_Inputs!$K$34,INDEX(Other_Inputs!$L$34:$AAO$34,,MATCH(YEAR(B41),Other_Inputs!$L$33:$AAO$33,0))) -> 0.002435756374 | AE41: =AB41*IF(YEAR(B41)<=Other_Inputs!$K$37,Other_Inputs!$K$38,INDEX(Other_Inputs!$L$38:$AAO$38,,MATCH(YEAR(B41),Other_Inputs!$L$37:$AAO$37,0))) -> 0.02112849387 | AG41: 0.6325033438 | AI41: =IFERROR(INDEX('USDA calcs'!$G$11:$G$18736,MATCH($B41,'USDA calcs'!$C$11:$C$18736,0)),IFERROR(INDEX('USDA historical daily prices'!$AA$14:$AA$3707,MATCH($B41,'USDA historical daily prices'!$C$14:$C$3707,0)),AI40)) -> 0.4840955141 | AJ41: =IF(YEAR(B41)<=Other_Inputs!$K$20,Other_Inputs!$K$21,INDEX(Other_Inputs!$L$21:$AAO$21,,MATCH(YEAR(B41),Other_Inputs!$L$20:$AAO$20,1))) -> 0.0553 | AK41: =IF(YEAR(B41)<=Other_Inputs!$K$24,Other_Inputs!$K$27,INDEX(Other_Inputs!$L$27:$AAO$27,,MATCH(B41,Other_Inputs!$L$24:$AAO$24,1))) -> 0.0242 | AL41: 0.5635955141 | AN41: =IF(YEAR(B41)<=Other_Inputs!$K$64,Other_Inputs!$K$70,INDEX(Other_Inputs!$L$70:$AAM$70,,MATCH(YEAR(B41),Other_Inputs!$L$64:$AAM$64,0))) -> 0.069995124 | AP41: 0.5658461344 | AQ41: 0.06463867216 | AR41: 0.02828672453 | AS41: 0.658771531 | AT41: 0.08181540458 | AU41: =SUM(AS41:AT41)*IF(YEAR(B41)<=Other_Inputs!$K$33,Other_Inputs!$K$34,INDEX(Other_Inputs!$L$34:$AAO$34,,MATCH(YEAR(B41),Other_Inputs!$L$33:$AAO$33,0))) -> 0.002962347742 | AV41: =AS41*IF(YEAR(B41)<=Other_Inputs!$K$42,Other_Inputs!$K$43,INDEX(Other_Inputs!$L$43:$AAO$43,,MATCH(YEAR(B41),Other_Inputs!$L$42:$AAO$42,0))) -> 0 | AX41: 0.7435492834
B42: 2007-08-17 | D42: Brazil | E42: 0.4008433676 | F42: 0.06069200379 | G42: 0.06069200379 | H42: 0.08417070882 | I42: 0.002425592336 | J42: 0.02088909501 | L42: =INDEX(Other_Inputs!$I$59:$ZF$59,MATCH(B42,Other_Inputs!$I$58:$ZF$58,1)) -> 0.38143 | M42: =IF(B42<Other_Inputs!$I$46,Other_Inputs!$I$48,INDEX(Other_Inputs!$I$48:$AAO$48,MATCH(B42,Other_Inputs!$I$46:$AAO$46,1))) -> 0.001917999 | N42: 0.03 | O42: 0.015 | Q42: =INDEX('ExRate Calcs'!$E$7:$E$20000,MATCH(B42,'ExRate Calcs'!$C$7:$C$20000,0)) -> 0.82052 | R42: =INDEX('ExRate Calcs'!$H$7:$H$20000,MATCH('USDA ESALQ weekly IPPs'!B42,'ExRate Calcs'!$C$7:$C$20000,0)) -> 1.64766351 | T42: =INDEX('ESALQ calcs'!$D$7:$D$1995,MATCH('USDA ESALQ weekly IPPs'!B42,'ESALQ calcs'!$C$7:$C$1995,0)) -> 0.3289 | U42: =IF(YEAR(B42)<=Other_Inputs!$K$13,Other_Inputs!$K$14,INDEX(Other_Inputs!$L$14:$AAO$14,,MATCH(YEAR(B42),Other_Inputs!$L$13:$AAO$13,0))) -> 0.1 | V42: =IF(YEAR(B42)<=Other_Inputs!$K$13,Other_Inputs!$K$16,INDEX(Other_Inputs!$L$16:$AAO$16,,MATCH(YEAR(B42),Other_Inputs!$L$13:$AAO$13,0))) -> 0.1 | W42: =IF(YEAR(B42)<=Other_Inputs!$K$64,Other_Inputs!$K$68,INDEX(Other_Inputs!$L$68:$AAM$68,,MATCH(YEAR(B42),Other_Inputs!$L$64:$AAM$64,0))) -> 0.06906375 | Y42: 0.4008433676 | Z42: 0.06069200379 | AA42: 0.06069200379 | AB42: 0.5222273752 | AC42: 0.08417070882 | AD42: =SUM(AB42:AC42)*IF(YEAR(B42)<=Other_Inputs!$K$33,Other_Inputs!$K$34,INDEX(Other_Inputs!$L$34:$AAO$34,,MATCH(YEAR(B42),Other_Inputs!$L$33:$AAO$33,0))) -> 0.002425592336 | AE42: =AB42*IF(YEAR(B42)<=Other_Inputs!$K$37,Other_Inputs!$K$38,INDEX(Other_Inputs!$L$38:$AAO$38,,MATCH(YEAR(B42),Other_Inputs!$L$37:$AAO$37,0))) -> 0.02088909501 | AG42: 0.6297127714 | AI42: =IFERROR(INDEX('USDA calcs'!$G$11:$G$18736,MATCH($B42,'USDA calcs'!$C$11:$C$18736,0)),IFERROR(INDEX('USDA historical daily prices'!$AA$14:$AA$3707,MATCH($B42,'USDA historical daily prices'!$C$14:$C$3707,0)),AI41)) -> 0.4801329314 | AJ42: =IF(YEAR(B42)<=Other_Inputs!$K$20,Other_Inputs!$K$21,INDEX(Other_Inputs!$L$21:$AAO$21,,MATCH(YEAR(B42),Other_Inputs!$L$20:$AAO$20,1))) -> 0.0553 | AK42: =IF(YEAR(B42)<=Other_Inputs!$K$24,Other_Inputs!$K$27,INDEX(Other_Inputs!$L$27:$AAO$27,,MATCH(B42,Other_Inputs!$L$24:$AAO$24,1))) -> 0.0242 | AL42: 0.5596329314 | AN42: =IF(YEAR(B42)<=Other_Inputs!$K$64,Other_Inputs!$K$70,INDEX(Other_Inputs!$L$70:$AAM$70,,MATCH(YEAR(B42),Other_Inputs!$L$64:$AAM$64,0))) -> 0.069995124 | AP42: 0.5851568901 | AQ42: 0.06739628528 | AR42: 0.02949349193 | AS42: 0.6820466673 | AT42: 0.08530581095 | AU42: =SUM(AS42:AT42)*IF(YEAR(B42)<=Other_Inputs!$K$33,Other_Inputs!$K$34,INDEX(Other_Inputs!$L$34:$AAO$34,,MATCH(YEAR(B42),Other_Inputs!$L$33:$AAO$33,0))) -> 0.003069409913 | AV42: =AS42*IF(YEAR(B42)<=Other_Inputs!$K$42,Other_Inputs!$K$43,INDEX(Other_Inputs!$L$43:$AAO$43,,MATCH(YEAR(B42),Other_Inputs!$L$42:$AAO$42,0))) -> 0 | AX42: 0.7704218881
B43: 2007-08-24 | D43: Brazil | E43: 0.4117749046 | F43: 0.0616055214 | G43: 0.0616055214 | H43: 0.08552998217 | I43: 0.002482063718 | J43: 0.0213994379 | L43: =INDEX(Other_Inputs!$I$59:$ZF$59,MATCH(B43,Other_Inputs!$I$58:$ZF$58,1)) -> 0.38143 | M43: =IF(B43<Other_Inputs!$I$46,Other_Inputs!$I$48,INDEX(Other_Inputs!$I$48:$AAO$48,MATCH(B43,Other_Inputs!$I$46:$AAO$46,1))) -> 0.001917999 | N43: 0.03 | O43: 0.015 | Q43: =INDEX('ExRate Calcs'!$E$7:$E$20000,MATCH(B43,'ExRate Calcs'!$C$7:$C$20000,0)) -> 0.80748 | R43: =INDEX('ExRate Calcs'!$H$7:$H$20000,MATCH('USDA ESALQ weekly IPPs'!B43,'ExRate Calcs'!$C$7:$C$20000,0)) -> 1.623231128 | T43: =INDEX('ESALQ calcs'!$D$7:$D$1995,MATCH('USDA ESALQ weekly IPPs'!B43,'ESALQ calcs'!$C$7:$C$1995,0)) -> 0.3325 | U43: =IF(YEAR(B43)<=Other_Inputs!$K$13,Other_Inputs!$K$14,INDEX(Other_Inputs!$L$14:$AAO$14,,MATCH(YEAR(B43),Other_Inputs!$L$13:$AAO$13,0))) -> 0.1 | V43: =IF(YEAR(B43)<=Other_Inputs!$K$13,Other_Inputs!$K$16,INDEX(Other_Inputs!$L$16:$AAO$16,,MATCH(YEAR(B43),Other_Inputs!$L$13:$AAO$13,0))) -> 0.1 | W43: =IF(YEAR(B43)<=Other_Inputs!$K$64,Other_Inputs!$K$68,INDEX(Other_Inputs!$L$68:$AAM$68,,MATCH(YEAR(B43),Other_Inputs!$L$64:$AAM$64,0))) -> 0.06906375 | Y43: 0.4117749046 | Z43: 0.0616055214 | AA43: 0.0616055214 | AB43: 0.5349859475 | AC43: 0.08552998217 | AD43: =SUM(AB43:AC43)*IF(YEAR(B43)<=Other_Inputs!$K$33,Other_Inputs!$K$34,INDEX(Other_Inputs!$L$34:$AAO$34,,MATCH(YEAR(B43),Other_Inputs!$L$33:$AAO$33,0))) -> 0.002482063718 | AE43: =AB43*IF(YEAR(B43)<=Other_Inputs!$K$37,Other_Inputs!$K$38,INDEX(Other_Inputs!$L$38:$AAO$38,,MATCH(YEAR(B43),Other_Inputs!$L$37:$AAO$37,0))) -> 0.0213994379 | AG43: 0.6443974312 | AI43: =IFERROR(INDEX('USDA calcs'!$G$11:$G$18736,MATCH($B43,'USDA calcs'!$C$11:$C$18736,0)),IFERROR(INDEX('USDA historical daily prices'!$AA$14:$AA$3707,MATCH($B43,'USDA historical daily prices'!$C$14:$C$3707,0)),AI42)) -> 0.4623013095 | AJ43: =IF(YEAR(B43)<=Other_Inputs!$K$20,Other_Inputs!$K$21,INDEX(Other_Inputs!$L$21:$AAO$21,,MATCH(YEAR(B43),Other_Inputs!$L$20:$AAO$20,1))) -> 0.0553 | AK43: =IF(YEAR(B43)<=Other_Inputs!$K$24,Other_Inputs!$K$27,INDEX(Other_Inputs!$L$27:$AAO$27,,MATCH(B43,Other_Inputs!$L$24:$AAO$24,1))) -> 0.0242 | AL43: 0.5418013095 | AN43: =IF(YEAR(B43)<=Other_Inputs!$K$64,Other_Inputs!$K$70,INDEX(Other_Inputs!$L$70:$AAM$70,,MATCH(YEAR(B43),Other_Inputs!$L$64:$AAM$64,0))) -> 0.069995124 | AP43: 0.5725235418 | AQ43: 0.06848466835 | AR43: 0.02996978253 | AS43: 0.6709779926 | AT43: 0.08668341507 | AU43: =SUM(AS43:AT43)*IF(YEAR(B43)<=Other_Inputs!$K$33,Other_Inputs!$K$34,INDEX(Other_Inputs!$L$34:$AAO$34,,MATCH(YEAR(B43),Other_Inputs!$L$33:$AAO$33,0))) -> 0.003030645631 | AV43: =AS43*IF(YEAR(B43)<=Other_Inputs!$K$42,Other_Inputs!$K$43,INDEX(Other_Inputs!$L$43:$AAO$43,,MATCH(YEAR(B43),Other_Inputs!$L$42:$AAO$42,0))) -> 0 | AX43: 0.7606920533
B44: 2007-08-31 | D44: Brazil | E44: 0.4086585366 | F44: 0.06190295168 | G44: 0.06190295168 | H44: 0.08422408537 | I44: 0.002466754101 | J44: 0.0212985776 | L44: =INDEX(Other_Inputs!$I$59:$ZF$59,MATCH(B44,Other_Inputs!$I$58:$ZF$58,1)) -> 0.38143 | M44: =IF(B44<Other_Inputs!$I$46,Other_Inputs!$I$48,INDEX(Other_Inputs!$I$48:$AAO$48,MATCH(B44,Other_Inputs!$I$46:$AAO$46,1))) -> 0.001917999 | N44: 0.03 | O44: 0.015 | Q44: =INDEX('ExRate Calcs'!$E$7:$E$20000,MATCH(B44,'ExRate Calcs'!$C$7:$C$20000,0)) -> 0.82 | R44: =INDEX('ExRate Calcs'!$H$7:$H$20000,MATCH('USDA ESALQ weekly IPPs'!B44,'ExRate Calcs'!$C$7:$C$20000,0)) -> 1.615431854 | T44: =INDEX('ESALQ calcs'!$D$7:$D$1995,MATCH('USDA ESALQ weekly IPPs'!B44,'ESALQ calcs'!$C$7:$C$1995,0)) -> 0.3351 | U44: =IF(YEAR(B44)<=Other_Inputs!$K$13,Other_Inputs!$K$14,INDEX(Other_Inputs!$L$14:$AAO$14,,MATCH(YEAR(B44),Other_Inputs!$L$13:$AAO$13,0))) -> 0.1 | V44: =IF(YEAR(B44)<=Other_Inputs!$K$13,Other_Inputs!$K$16,INDEX(Other_Inputs!$L$16:$AAO$16,,MATCH(YEAR(B44),Other_Inputs!$L$13:$AAO$13,0))) -> 0.1 | W44: =IF(YEAR(B44)<=Other_Inputs!$K$64,Other_Inputs!$K$68,INDEX(Other_Inputs!$L$68:$AAM$68,,MATCH(YEAR(B44),Other_Inputs!$L$64:$AAM$64,0))) -> 0.06906375 | Y44: 0.4086585366 | Z44: 0.06190295168 | AA44: 0.06190295168 | AB44: 0.5324644399 | AC44: 0.08422408537 | AD44: =SUM(AB44:AC44)*IF(YEAR(B44)<=Other_Inputs!$K$33,Other_Inputs!$K$34,INDEX(Other_Inputs!$L$34:$AAO$34,,MATCH(YEAR(B44),Other_Inputs!$L$33:$AAO$33,0))) -> 0.002466754101 | AE44: =AB44*IF(YEAR(B44)<=Other_Inputs!$K$37,Other_Inputs!$K$38,INDEX(Other_Inputs!$L$38:$AAO$38,,MATCH(YEAR(B44),Other_Inputs!$L$37:$AAO$37,0))) -> 0.0212985776 | AG44: 0.640453857 | AI44: =IFERROR(INDEX('USDA calcs'!$G$11:$G$18736,MATCH($B44,'USDA calcs'!$C$11:$C$18736,0)),IFERROR(INDEX('USDA historical daily prices'!$AA$14:$AA$3707,MATCH($B44,'USDA historical daily prices'!$C$14:$C$3707,0)),AI43)) -> 0.4438092571 | AJ44: =IF(YEAR(B44)<=Other_Inputs!$K$20,Other_Inputs!$K$21,INDEX(Other_Inputs!$L$21:$AAO$21,,MATCH(YEAR(B44),Other_Inputs!$L$20:$AAO$20,1))) -> 0.0553 | AK44: =IF(YEAR(B44)<=Other_Inputs!$K$24,Other_Inputs!$K$27,INDEX(Other_Inputs!$L$27:$AAO$27,,MATCH(B44,Other_Inputs!$L$24:$AAO$24,1))) -> 0.0242 | AL44: 0.5233092571 | AN44: =IF(YEAR(B44)<=Other_Inputs!$K$64,Other_Inputs!$K$70,INDEX(Other_Inputs!$L$70:$AAM$70,,MATCH(YEAR(B44),Other_Inputs!$L$64:$AAM$64,0))) -> 0.069995124 | AP44: 0.5412308014 | AQ44: 0.06743902439 | AR44: 0.02951219512 | AS44: 0.6381820209 | AT44: 0.08535990732 | AU44: =SUM(AS44:AT44)*IF(YEAR(B44)<=Other_Inputs!$K$33,Other_Inputs!$K$34,INDEX(Other_Inputs!$L$34:$AAO$34,,MATCH(YEAR(B44),Other_Inputs!$L$33:$AAO$33,0))) -> 0.002894167713 | AV44: =AS44*IF(YEAR(B44)<=Other_Inputs!$K$42,Other_Inputs!$K$43,INDEX(Other_Inputs!$L$43:$AAO$43,,MATCH(YEAR(B44),Other_Inputs!$L$42:$AAO$42,0))) -> 0 | AX44: 0.7264360959
